Workbook

Sheet Rangliste
A1: Stand: | B1: =NOW() -> 2026-07-16T00:29:24.390 | G1: Stand: | H1: 2026-07-16T00:27:46.050
B2: =CONCATENATE(Punktestand!Q7,Punktestand!P7,Punktestand!Q8) -> nach 102 von 104 Spielen | H2: nach 102 von 104 Spielen
P3: Name des Mitspielers eingeben:
A4: Rang | B4: Name | C4: Punkte | D4: +/- | E4: Rang Hilf | G4: Rang | H4: Name | I4: Punkte | J4: Rang Hilf | L4: Makro | P4: Weltmeister ausgeschieden | R4: 10 Punkte gemacht - Vorrunde | W4: Extrapunkte - Finalrunde
A5: =IF(C5="","",IF(C5>0,1,"")) -> 1 | B5: Stefan Wullschleger | C5: 4033 | D5: =IFERROR(VLOOKUP(B5,$H$5:$J$104,3,FALSE)-E5,"") -> 1 | E5: =IFERROR(_xlfn.RANK.EQ(C5,$C$5:$C$104,0),"") -> 1 | G5: =IF(I5="","",IF(I5>=0,1,"")) -> 1 | H5: Agnes Isenschmid | I5: 3693 | J5: =IFERROR(_xlfn.RANK.EQ(I5,$I$5:$I$104,0),"") -> 1 | P5: Manfred Brunner | R5: =Vorrunde!C9 -> 1 | S5: =Vorrunde!D9 -> Mexiko | T5: =Vorrunde!E9 -> Südafrika | U5: =Vorrunde!HO9 -> Ruben Antonelli, André Bartholet, Roger Bartholet, Pongsapat Nott Boonaek, Manfred Brunner, Philip Brunner, Lisa D'Acunto, Vinci D'Acunto, Rafael Derungs, Dino Duvnjak, Stefan Gygli, André Lanz, Franz Lischer, Julian Merkli, Martin Rohner, Martin Schawalder, Yannick Schilliger, Bruno Silva, Aleandro Silvestri, Armando Thormann, Christoph Wälti, Markus Wagner | W5: =Finalrunde!C11 -> 73 | X5: =Finalrunde!D11 -> Südafrika | Y5: =Finalrunde!E11 -> Kanada | Z5: =Finalrunde!EW11 -> Roger Bartholet
A6: =IF(C6="","",IF(C6=C5,"",2)) -> 2 | B6: Agnes Isenschmid | C6: 4023 | D6: -1 | E6: 2 | G6: =IF(I6="","",IF(I6=I5,"",2)) -> 2 | H6: Stefan Wullschleger | I6: 3603 | J6: =IFERROR(_xlfn.RANK.EQ(I6,$I$5:$I$104,0),"") -> 2 | P6: Vinci D'Acunto | R6: =Vorrunde!C10 -> 2 | S6: =Vorrunde!D10 -> Südkorea | T6: =Vorrunde!E10 -> Tschechien | U6: =Vorrunde!HO10 -> Panos Agorastos, Mara Beck, Manuel Brunner, Oli Christiansen, Laurent Grosse, Robin Gygli, Florian Haab, Agnes Isenschmid, Martin Marthaler, Lynn Rüegg, Evelyne Schenk | W6: =Finalrunde!C12 -> 74 | X6: =Finalrunde!D12 -> Deutschland | Y6: =Finalrunde!E12 -> Paraguay | Z6: =Finalrunde!EW12 -> 
A7: =IF(C7="","",IF(C7=C6,"",3)) -> 3 | B7: Martin Rohner | C7: 3637 | D7: 19 | E7: 3 | G7: =IF(I7="","",IF(I7=I6,"",3)) -> 3 | H7: Marc Lütolf | I7: 3579 | J7: 3 | P7: Erich Schommarz | R7: =Vorrunde!C11 -> 3 | S7: =Vorrunde!D11 -> Kanada | T7: =Vorrunde!E11 -> Bosnien-Herz. | U7: =Vorrunde!HO11 -> Panos Agorastos, Oli Christiansen, Javier Cruz, Leo Rodrigues da Costa, Lisa D'Acunto, Andreia Gomes, Franz Lischer, Martin Marthaler, Petra Rauscher, Michael Rüegg, Yannick Schilliger, Aleandro Silvestri, Armando Thormann, Christoph Wälti | W7: =Finalrunde!C13 -> 75 | X7: =Finalrunde!D13 -> Holland | Y7: =Finalrunde!E13 -> Marokko | Z7: =Finalrunde!EW13 -> André Lanz, Yannick Schilliger
A8: =IF(C8="","",IF(C8=C7,"",4)) -> 4 | B8: André Lanz | C8: 3622 | D8: 3 | E8: 4 | G8: =IF(I8="","",IF(I8=I7,"",4)) -> 4 | H8: Armando Thormann | I8: 3531 | J8: 4 | P8: Stefan Zachmann | R8: =Vorrunde!C12 -> 4 | S8: =Vorrunde!D12 -> USA | T8: =Vorrunde!E12 -> Paraguay | U8: =Vorrunde!HO12 -> Ralph Schuster | W8: =Finalrunde!C14 -> 76 | X8: =Finalrunde!D14 -> Brasilien | Y8: =Finalrunde!E14 -> Japan | Z8: =Finalrunde!EW14 -> Panos Agorastos, Peter Balazs, André Bartholet, Michael Bosshart, Rafael Derungs, Armin Duvnjak, Dino Duvnjak, Andreas Isenschmid, Michael Isenschmid, Tanja Kistler, Michael Prucha, Martin Schawalder, Markus Wagner, Stefan Wullschleger
A9: =IF(C9="","",IF(C9=C8,"",5)) -> 5 | B9: Marc Lütolf | C9: 3579 | D9: -2 | E9: 5 | G9: =IF(I9="","",IF(I9=I8,"",5)) -> 5 | H9: Florian Haab | I9: 3496 | J9: 5 | P9: Ben Marthaler | R9: =Vorrunde!C13 -> 5 | S9: =Vorrunde!D13 -> Haiti | T9: =Vorrunde!E13 -> Schottland | U9: =Vorrunde!HO13 -> André Bartholet, André Burkart, Oli Christiansen, Rafael Derungs, Dino Duvnjak, Djuma Duvnjak, Andreia Gomes, Pascal Keller, Tanja Kistler, Martin Marthaler, Petra Rauscher, Lynn Rüegg, Michael Rüegg | W9: =Finalrunde!C15 -> 77 | X9: =Finalrunde!D15 -> Frankreich | Y9: =Finalrunde!E15 -> Schweden | Z9: =Finalrunde!EW15 -> Leo Rodrigues da Costa, Florian González, Aleandro Silvestri
A10: =IF(C10="","",IF(C10=C9,"",6)) -> 6 | B10: Armando Thormann | C10: 3531 | D10: -2 | E10: 6 | G10: =IF(I10="","",IF(I10=I9,"",6)) -> 6 | H10: Sabine Rüegg | I10: 3492 | J10: 6 | P10: Yiannis Agorastos | R10: =Vorrunde!C14 -> 6 | S10: =Vorrunde!D14 -> Australien | T10: =Vorrunde!E14 -> Türkei | U10: =Vorrunde!HO14 -> Aya Bartholet | W10: =Finalrunde!C16 -> 78 | X10: =Finalrunde!D16 -> Elfenbeinküste | Y10: =Finalrunde!E16 -> Norwegen | Z10: =Finalrunde!EW16 -> Oli Christiansen, Javier Cruz, Rui Gomes, André Lanz, Lynn Rüegg, Evelyne Schenk, Yannick Schilliger, Armando Thormann
A11: =IF(C11="","",IF(C11=C10,"",7)) -> 7 | B11: Florian Haab | C11: 3496 | D11: -2 | E11: 7 | G11: =IF(I11="","",IF(I11=I10,"",7)) -> 7 | H11: André Lanz | I11: 3472 | J11: 7 | L11: Einzelne Makros | P11: Philippe Bartholet | R11: =Vorrunde!C15 -> 7 | S11: =Vorrunde!D15 -> Brasilien | T11: =Vorrunde!E15 -> Marokko | U11: =Vorrunde!HO15 -> Peter Balazs, Manfred Brunner, Philip Brunner, Timothy Gygli, André Lanz, Martin Schawalder, Armando Thormann | W11: =Finalrunde!C17 -> 79 | X11: =Finalrunde!D17 -> Mexiko | Y11: =Finalrunde!E17 -> Ecuador | Z11: =Finalrunde!EW17 -> 
A12: =IF(C12="","",IF(C12=C11,"",8)) -> 8 | B12: Sabine Rüegg | C12: 3492 | D12: -2 | E12: 8 | G12: =IF(I12="","",IF(I12=I11,"",8)) -> 8 | H12: Mara Beck | I12: 3466 | J12: 8 | P12: Rafael Derungs | R12: =Vorrunde!C16 -> 8 | S12: =Vorrunde!D16 -> Katar | T12: =Vorrunde!E16 -> Schweiz | U12: =Vorrunde!HO16 -> Andreia Gomes | W12: =Finalrunde!C18 -> 80 | X12: =Finalrunde!D18 -> England | Y12: =Finalrunde!E18 -> DR Kongo | Z12: =Finalrunde!EW18 -> Javier Cruz
A13: =IF(C13="","",IF(C13=C12,"",9)) -> 9 | B13: Javier Cruz | C13: 3478 | D13: 5 | E13: 9 | G13: =IF(I13="","",IF(I13=I12,"",9)) -> 9 | H13: Michael Isenschmid | I13: 3444 | J13: 9 | P13: Florian González | R13: =Vorrunde!C17 -> 9 | S13: =Vorrunde!D17 -> Elfenbeinküste | T13: =Vorrunde!E17 -> Ecuador | U13: =Vorrunde!HO17 -> Oli Christiansen, Pascal Keller, Michael Rüegg | W13: =Finalrunde!C19 -> 81 | X13: =Finalrunde!D19 -> USA | Y13: =Finalrunde!E19 -> Bosnien-Herz. | Z13: =Finalrunde!EW19 -> Rafael Derungs, Reto Gygli, Reto Treichler
A14: =IF(C14="","",IF(C14=C13,"",10)) -> 10 | B14: Mara Beck | C14: 3466 | D14: -2 | E14: 10 | G14: =IF(I14="","",IF(I14=I13,"",10)) -> 10 | H14: Yannick Schilliger | I14: 3413 | J14: 10 | P14: Nicolas Mack | R14: =Vorrunde!C18 -> 10 | S14: =Vorrunde!D18 -> Deutschland | T14: =Vorrunde!E18 -> Curacao | U14: =Vorrunde!HO18 ->  | W14: =Finalrunde!C20 -> 82 | X14: =Finalrunde!D20 -> Belgien | Y14: =Finalrunde!E20 -> Senegal | Z14: =Finalrunde!EW20 -> 
A15: =IF(C15="","",IF(C15=C14,"",11)) -> 11 | B15: Markus Wagner | C15: 3453 | D15: 9 | E15: 11 | G15: =IF(I15="","",IF(I15=I14,"",11)) -> 11 | H15: Michael Bosshart | I15: 3410 | J15: 11 | P15: Jingwen Wang | R15: =Vorrunde!C19 -> 11 | S15: =Vorrunde!D19 -> Holland | T15: =Vorrunde!E19 -> Japan | U15: =Vorrunde!HO19 -> Ambra Antonelli, Ruben Antonelli, Javier Cruz, Lisa D'Acunto, Niva D'Acunto, Vinci D'Acunto, Rui Gomes, Agnes Isenschmid, Telmo Oliveira, Lechena Pek, Stefan Principe, Jingwen Wang | W15: =Finalrunde!C21 -> 83 | X15: =Finalrunde!D21 -> Portugal | Y15: =Finalrunde!E21 -> Kroatien | Z15: =Finalrunde!EW21 -> Yiannis Agorastos, Stefan Gygli, Sabine Rüegg
A16: =IF(C16="","",IF(C16=C15,"",12)) -> 12 | B16: Michael Isenschmid | C16: 3444 | D16: -3 | E16: 12 | G16: =IF(I16="","",IF(I16=I15,"",12)) -> 12 | H16: Aleandro Silvestri | I16: 3336 | J16: 12 | P16: Panos Agorastos | R16: =Vorrunde!C20 -> 12 | S16: =Vorrunde!D20 -> Schweden | T16: =Vorrunde!E20 -> Tunesien | U16: =Vorrunde!HO20 ->  | W16: =Finalrunde!C22 -> 84 | X16: =Finalrunde!D22 -> Spanien | Y16: =Finalrunde!E22 -> Österreich | Z16: =Finalrunde!EW22 -> Mara Beck, Pongsapat Nott Boonaek, Leo Rodrigues da Costa, Vinci D'Acunto, Laurent Grosse, Florian Haab, Agnes Isenschmid, Franz Lischer, Telmo Oliveira, Stefan Principe, Michael Rüegg, Sabine Rüegg, Armando Thormann, Jingwen Wang
A17: =IF(C17="","",IF(C17=C16,"",13)) -> 13 | B17: Yannick Schilliger | C17: 3413 | D17: -3 | E17: 13 | G17: =IF(I17="","",IF(I17=I16,"",13)) -> 13 | H17: Djuma Duvnjak | I17: 3330 | J17: 13 | P17: Ruben Antonelli | R17: =Vorrunde!C21 -> 13 | S17: =Vorrunde!D21 -> Saudi-Arabien | T17: =Vorrunde!E21 -> Uruguay | U17: =Vorrunde!HO21 -> Marco Antonelli, Ruben Antonelli, Deliz González, Martin Oroshi | W17: =Finalrunde!C23 -> 85 | X17: =Finalrunde!D23 -> Schweiz | Y17: =Finalrunde!E23 -> Algerien | Z17: =Finalrunde!EW23 -> Roger Bartholet, Vinci D'Acunto, Dino Duvnjak, Djuma Duvnjak, Reto Gygli, Robin Gygli, Stefan Gygli, Philipp Meyer, Stefan Principe, Armando Thormann
A18: =IF(C18="","",IF(C18=C17,"",14)) -> 14 | B18: Michael Bosshart | C18: 3410 | D18: -3 | E18: 14 | G18: =IF(I18="","",IF(I18=I17,"",14)) -> 14 | H18: Javier Cruz | I18: 3328 | J18: 14 | P18: Leo Rodrigues da Costa | R18: =Vorrunde!C22 -> 14 | S18: =Vorrunde!D22 -> Spanien | T18: =Vorrunde!E22 -> Kap Verde | U18: =Vorrunde!HO22 ->  | W18: =Finalrunde!C24 -> 86 | X18: =Finalrunde!D24 -> Argentinien | Y18: =Finalrunde!E24 -> Kap Verde | Z18: =Finalrunde!EW24 -> 
A19: =IF(C19="","",IF(C19=C18,"",15)) -> 15 | B19: Pongsapat Nott Boonaek | C19: 3380 | D19: 8 | E19: 15 | G19: =IF(I19="","",IF(I19=I18,"",15)) -> 15 | H19: Nicolas Mack | I19: 3323 | J19: 15 | P19: Armin Duvnjak | R19: =Vorrunde!C23 -> 15 | S19: =Vorrunde!D23 -> Iran | T19: =Vorrunde!E23 -> Neuseeland | U19: =Vorrunde!HO23 -> Manuel Brunner, Ralph Schuster | W19: =Finalrunde!C25 -> 87 | X19: =Finalrunde!D25 -> Kolumbien | Y19: =Finalrunde!E25 -> Ghana | Z19: =Finalrunde!EW25 -> Vinci D'Acunto
A20: =IF(C20="","",IF(C20=C19,"",16)) -> 16 | B20: Michael Prucha | C20: 3358 | D20: 12 | E20: 16 | G20: =IF(I20="","",IF(I20=I19,"",16)) -> 16 | H20: Florian González | I20: 3319 | J20: 16 | P20: Andreia Gomes | R20: =Vorrunde!C24 -> 16 | S20: =Vorrunde!D24 -> Belgien | T20: =Vorrunde!E24 -> Ägypten | U20: =Vorrunde!HO24 -> Panos Agorastos, Rui Gomes, Timothy Gygli, Aiden Jones, Ben Marthaler, Elias Marty, Stefan Principe, Michael Rüegg, Christoph Wälti | W20: =Finalrunde!C26 -> 88 | X20: =Finalrunde!D26 -> Australien | Y20: =Finalrunde!E26 -> Ägypten | Z20: =Finalrunde!EW26 -> 
A21: =IF(C21="","",IF(C21=C20,"",17)) -> 17 | B21: Aleandro Silvestri | C21: 3336 | D21: -5 | E21: 17 | G21: =IF(I21="","",IF(I21=I20,"",17)) -> 17 | H21: Julian Merkli | I21: 3302 | J21: 17 | P21: Rui Gomes | R21: =Vorrunde!C25 -> 17 | S21: =Vorrunde!D25 -> Frankreich | T21: =Vorrunde!E25 -> Senegal | U21: =Vorrunde!HO25 -> Ambra Antonelli, Ruben Antonelli, Aya Bartholet, Pongsapat Nott Boonaek, Michael Bosshart, Nicolas Brunner, Leo Rodrigues da Costa, Armin Duvnjak, Florian González, Laurent Grosse, Sarina Gygli, Timothy Gygli, Florian Haab, Agnes Isenschmid, Michael Isenschmid, Elias Marty, Julian Merkli, Petra Rauscher, Sabine Rüegg, Yannick Schilliger, Reto Treichler, Christoph Wälti
A22: =IF(C22="","",IF(C22=C21,"",18)) -> 18 | B22: Djuma Duvnjak | C22: 3330 | D22: -5 | E22: 18 | G22: =IF(I22="","",IF(I22=I21,"",18)) -> 18 | H22: Dino Duvnjak | I22: 3300 | J22: 18 | P22: Selina Gygli | R22: =Vorrunde!C26 -> 18 | S22: =Vorrunde!D26 -> Irak | T22: =Vorrunde!E26 -> Norwegen | U22: =Vorrunde!HO26 ->  | W22: =Finalrunde!C28 -> 89 | X22: =Finalrunde!D28 -> Paraguay | Y22: =Finalrunde!E28 -> Frankreich | Z22: =Finalrunde!EW28 -> 
A23: =IF(C23="","",IF(C23=C22,"",19)) -> 19 | B23: Nicolas Mack | C23: 3323 | D23: -4 | E23: 19 | G23: =IF(I23="","",IF(I23=I22,"",19)) -> 19 | H23: Marco Antonelli | I23: 3299 | J23: 19 | P23: Telmo Oliveira | R23: =Vorrunde!C27 -> 19 | S23: =Vorrunde!D27 -> Argentinien | T23: =Vorrunde!E27 -> Algerien | U23: =Vorrunde!HO27 -> Ruben Antonelli, Philippe Bartholet, Mara Beck, Manfred Brunner, Philip Brunner, Leo Rodrigues da Costa, Andreia Gomes, Timothy Gygli, Florian Haab, Nicolas Mack, Mauro Marini, Martin Marthaler, Ivo und Brigitte Rüdemann, Bruno Silva, Reto Treichler, Marc Walthard | W23: =Finalrunde!C29 -> 90 | X23: =Finalrunde!D29 -> Kanada | Y23: =Finalrunde!E29 -> Marokko | Z23: =Finalrunde!EW29 -> Ruben Antonelli
A24: =IF(C24="","",IF(C24=C23,"",20)) -> 20 | B24: Florian González | C24: 3319 | D24: -4 | E24: 20 | G24: =IF(I24="","",IF(I24=I23,"",20)) -> 20 | H24: Markus Wagner | I24: 3273 | J24: 20 | P24: Lynn Rüegg | R24: =Vorrunde!C28 -> 20 | S24: =Vorrunde!D28 -> Österreich | T24: =Vorrunde!E28 -> Jordanien | U24: =Vorrunde!HO28 -> Dino Duvnjak, Florian Haab, Michael Isenschmid | W24: =Finalrunde!C30 -> 91 | X24: =Finalrunde!D30 -> Brasilien | Y24: =Finalrunde!E30 -> Norwegen | Z24: =Finalrunde!EW30 -> Agnes Isenschmid, Marc Lütolf, Sabine Rüegg
A25: =IF(C25="","",IF(C25=C24,"",21)) -> 21 | B25: Julian Merkli | C25: 3302 | D25: -4 | E25: 21 | G25: =IF(I25="","",IF(I25=I24,"",21)) -> 21 | H25: Andreas Isenschmid | I25: 3241 | J25: 21 | P25: Bruno Silva | R25: =Vorrunde!C29 -> 21 | S25: =Vorrunde!D29 -> Ghana | T25: =Vorrunde!E29 -> Panama | U25: =Vorrunde!HO29 -> Nicolas Brunner, André Burkart, Oli Christiansen, Lisa D'Acunto, Dino Duvnjak, Djuma Duvnjak, Florian González, Selina Gygli, Stefan Gygli, Timothy Gygli, Pascal Keller, Marc Lütolf, Lynn Rüegg, Michael Rüegg, Christoph Wälti, Markus Wagner | W25: =Finalrunde!C31 -> 92 | X25: =Finalrunde!D31 -> Mexiko | Y25: =Finalrunde!E31 -> England | Z25: =Finalrunde!EW31 -> 
A26: =IF(C26="","",IF(C26=C25,"",22)) -> 22 | B26: Dino Duvnjak | C26: 3300 | D26: -4 | E26: 22 | G26: =IF(I26="","",IF(I26=I25,"",22)) -> 22 | H26: Martin Rohner | I26: 3207 | J26: 22 | P26: Lea Treichler | R26: =Vorrunde!C30 -> 22 | S26: =Vorrunde!D30 -> England | T26: =Vorrunde!E30 -> Kroatien | U26: =Vorrunde!HO30 -> Nicolas Brunner, Lynn Rüegg, Lea Treichler | W26: =Finalrunde!C32 -> 93 | X26: =Finalrunde!D32 -> Portugal | Y26: =Finalrunde!E32 -> Spanien | Z26: =Finalrunde!EW32 -> 
A27: =IF(C27="","",IF(C27=C26,"",23)) -> 23 | B27: Marco Antonelli | C27: 3299 | D27: -4 | E27: 23 | G27: =IF(I27="","",IF(I27=I26,"",23)) -> 23 | H27: Pongsapat Nott Boonaek | I27: 3200 | J27: 23 | P27: Philip Brunner | R27: =Vorrunde!C31 -> 23 | S27: =Vorrunde!D31 -> Portugal | T27: =Vorrunde!E31 -> DR Kongo | U27: =Vorrunde!HO31 ->  | W27: =Finalrunde!C33 -> 94 | X27: =Finalrunde!D33 -> USA | Y27: =Finalrunde!E33 -> Belgien | Z27: =Finalrunde!EW33 -> 
A28: =IF(C28="","",IF(C28=C27,"",24)) -> 24 | B28: Martin Schawalder | C28: 3263 | D28: 10 | E28: 24 | G28: =IF(I28="","",IF(I28=I27,"",24)) -> 24 | H28: Lisa D'Acunto | I28: 3192 | J28: 24 | P28: Ambra Antonelli | R28: =Vorrunde!C32 -> 24 | S28: =Vorrunde!D32 -> Usbekistan | T28: =Vorrunde!E32 -> Kolumbien | U28: =Vorrunde!HO32 -> Mara Beck, Goran Djukic, Michael Isenschmid, Yannick Schilliger, Ralph Schuster | W28: =Finalrunde!C34 -> 95 | X28: =Finalrunde!D34 -> Argentinien | Y28: =Finalrunde!E34 -> Ägypten | Z28: =Finalrunde!EW34 -> Manuel Brunner
A29: =IF(C29="","",IF(C29=C28,"",25)) ->  | B29: Aya Bartholet | C29: 3263 | D29: 18 | E29: 24 | G29: =IF(I29="","",IF(I29=I28,"",25)) -> 25 | H29: Timothy Gygli | I29: 3184 | J29: 25 | P29: Roger Bartholet | R29: =Vorrunde!C33 -> 25 | S29: =Vorrunde!D33 -> Tschechien | T29: =Vorrunde!E33 -> Südafrika | U29: =Vorrunde!HO33 -> Aya Bartholet, Manfred Brunner, Manuel Brunner, André Burkart, Rui Gomes, Deliz González, Laurent Grosse, Robin Gygli, Stefan Gygli, Andreas Isenschmid, André Lanz, Franz Lischer, Marc Lütolf, Julian Merkli, Lynn Rüegg, Michael Rüegg, Evelyne Schenk, Yannick Schilliger, Ralph Schuster, Christoph Wälti | W29: =Finalrunde!C35 -> 96 | X29: =Finalrunde!D35 -> Schweiz | Y29: =Finalrunde!E35 -> Kolumbien | Z29: =Finalrunde!EW35 -> 
A30: =IF(C30="","",IF(C30=C29,"",26)) -> 26 | B30: Andreas Isenschmid | C30: 3241 | D30: -5 | E30: 26 | G30: =IF(I30="","",IF(I30=I29,"",26)) -> 26 | H30: Telmo Oliveira | I30: 3182 | J30: 26 | P30: Peter Balazs | R30: =Vorrunde!C34 -> 26 | S30: =Vorrunde!D34 -> Schweiz | T30: =Vorrunde!E34 -> Bosnien-Herz. | U30: =Vorrunde!HO34 -> Nicolas Brunner, Stefan Principe
A31: =IF(C31="","",IF(C31=C30,"",27)) -> 27 | B31: Bruno Silva | C31: 3218 | D31: 8 | E31: 27 | G31: =IF(I31="","",IF(I31=I30,"",27)) ->  | H31: Robin Gygli | I31: 3182 | J31: 26 | P31: André Bartholet | R31: =Vorrunde!C35 -> 27 | S31: =Vorrunde!D35 -> Kanada | T31: =Vorrunde!E35 -> Katar | U31: =Vorrunde!HO35 ->  | W31: =Finalrunde!C37 -> 97 | X31: =Finalrunde!D37 -> Frankreich | Y31: =Finalrunde!E37 -> Marokko | Z31: =Finalrunde!EW37 -> Nicolas Brunner, Leo Rodrigues da Costa, Rafael Derungs, Armin Duvnjak, Julian Merkli
A32: =IF(C32="","",IF(C32=C31,"",28)) -> 28 | B32: Peter Balazs | C32: 3202 | D32: 8 | E32: 28 | G32: =IF(I32="","",IF(I32=I31,"",28)) -> 28 | H32: Michael Prucha | I32: 3178 | J32: 28 | P32: Pongsapat Nott Boonaek | R32: =Vorrunde!C36 -> 28 | S32: =Vorrunde!D36 -> Mexiko | T32: =Vorrunde!E36 -> Südkorea | U32: =Vorrunde!HO36 -> André Bartholet, Lisa D'Acunto, Niva D'Acunto, Vinci D'Acunto, Dino Duvnjak, Djuma Duvnjak, Florian González, Sarina Gygli, Aiden Jones, Pascal Keller, Philipp Meyer | W32: =Finalrunde!C38 -> 98 | X32: =Finalrunde!D38 -> Spanien | Y32: =Finalrunde!E38 -> Belgien | Z32: =Finalrunde!EW38 -> Panos Agorastos, Peter Balazs, Philippe Bartholet, Mara Beck, Pongsapat Nott Boonaek, Dino Duvnjak, Djuma Duvnjak, Deliz González, Florian González, Andreas Isenschmid, Michael Isenschmid, Tanja Kistler, Marc Lütolf, Nicolas Mack, Julian Merkli, Martin Oroshi, Aleandro Silvestri, Stefan Wullschleger
A33: =IF(C33="","",IF(C33=C32,"",29)) -> 29 | B33: Lisa D'Acunto | C33: 3192 | D33: -5 | E33: 29 | G33: =IF(I33="","",IF(I33=I32,"",29)) -> 29 | H33: Ivo und Brigitte Rüdemann | I33: 3170 | J33: 29 | P33: Manuel Brunner | R33: =Vorrunde!C37 -> 29 | S33: =Vorrunde!D37 -> Brasilien | T33: =Vorrunde!E37 -> Haiti | U33: =Vorrunde!HO37 -> Panos Agorastos, Aya Bartholet, Philippe Bartholet, Pongsapat Nott Boonaek, Michael Bosshart, Philip Brunner, Javier Cruz, Rafael Derungs, Goran Djukic, Dino Duvnjak, Djuma Duvnjak, Selina Gygli, Florian Haab, Agnes Isenschmid, André Lanz, Julian Merkli, Ivo und Brigitte Rüdemann, Michael Rüegg, Sabine Rüegg, Martin Schawalder, Marc Walthard, Stefan Wullschleger | W33: =Finalrunde!C39 -> 99 | X33: =Finalrunde!D39 -> Norwegen | Y33: =Finalrunde!E39 -> England | Z33: =Finalrunde!EW39 -> Agnes Isenschmid, Marc Lütolf
A34: =IF(C34="","",IF(C34=C33,"",30)) -> 30 | B34: Timothy Gygli | C34: 3184 | D34: -5 | E34: 30 | G34: =IF(I34="","",IF(I34=I33,"",30)) -> 30 | H34: Leo Rodrigues da Costa | I34: 3159 | J34: 30 | P34: Nicolas Brunner | R34: =Vorrunde!C38 -> 30 | S34: =Vorrunde!D38 -> Schottland | T34: =Vorrunde!E38 -> Marokko | U34: =Vorrunde!HO38 -> André Bartholet, Manuel Brunner, André Burkart, Rafael Derungs, Dino Duvnjak, Djuma Duvnjak, Aiden Jones, Pascal Keller, Elias Marty | W34: =Finalrunde!C40 -> 100 | X34: =Finalrunde!D40 -> Argentinien | Y34: =Finalrunde!E40 -> Schweiz | Z34: =Finalrunde!EW40 -> Mauro Marini, Sabine Rüegg
A35: =IF(C35="","",IF(C35=C34,"",31)) -> 31 | B35: Telmo Oliveira | C35: 3182 | D35: -5 | E35: 31 | G35: =IF(I35="","",IF(I35=I34,"",31)) -> 31 | H35: Reto Gygli | I35: 3129 | J35: 31 | P35: André Burkart | R35: =Vorrunde!C39 -> 31 | S35: =Vorrunde!D39 -> Türkei | T35: =Vorrunde!E39 -> Paraguay | U35: =Vorrunde!HO39 -> Stefan Gygli, Pascal Keller
A36: =IF(C36="","",IF(C36=C35,"",32)) ->  | B36: Robin Gygli | C36: 3182 | D36: -5 | E36: 31 | G36: =IF(I36="","",IF(I36=I35,"",32)) -> 32 | H36: Lechena Pek | I36: 3122 | J36: 32 | P36: Lisa D'Acunto | R36: =Vorrunde!C40 -> 32 | S36: =Vorrunde!D40 -> USA | T36: =Vorrunde!E40 -> Australien | U36: =Vorrunde!HO40 -> Marco Antonelli, Ruben Antonelli, Peter Balazs, Philip Brunner, Leo Rodrigues da Costa, Rui Gomes, Robin Gygli, Florian Haab, Agnes Isenschmid, Nicolas Mack, Martin Oroshi, Michael Prucha, Aleandro Silvestri, Markus Wagner | W36: =Finalrunde!C42 -> 101 | X36: =Finalrunde!D42 -> Frankreich | Y36: =Finalrunde!E42 -> Spanien | Z36: =Finalrunde!EW42 -> 
A37: =IF(C37="","",IF(C37=C36,"",33)) -> 33 | B37: Ivo und Brigitte Rüdemann | C37: 3170 | D37: -4 | E37: 33 | G37: =IF(I37="","",IF(I37=I36,"",33)) -> 33 | H37: Stefan Gygli | I37: 3101 | J37: 33 | P37: Goran Djukic | R37: =Vorrunde!C41 -> 33 | S37: =Vorrunde!D41 -> Deutschland | T37: =Vorrunde!E41 -> Elfenbeinküste | U37: =Vorrunde!HO41 -> Panos Agorastos, Ruben Antonelli, Aya Bartholet, Nicolas Brunner, Philip Brunner, Rafael Derungs, Deliz González, Laurent Grosse, André Lanz, Marc Lütolf, Philipp Meyer, Michael Prucha, Michael Rüegg, Martin Schawalder, Yannick Schilliger, Erich Schommarz, Bruno Silva, Reto Treichler, Stefan Wullschleger | W37: =Finalrunde!C43 -> 102 | X37: =Finalrunde!D43 -> England | Y37: =Finalrunde!E43 -> Argentinien | Z37: =Finalrunde!EW43 -> Martin Marthaler, Martin Rohner, Stefan Wullschleger
A38: =IF(C38="","",IF(C38=C37,"",34)) -> 34 | B38: Nicolas Brunner | C38: 3162 | D38: 4 | E38: 34 | G38: =IF(I38="","",IF(I38=I37,"",34)) -> 34 | H38: Martin Schawalder | I38: 3083 | J38: 34 | P38: Robin Gygli | R38: =Vorrunde!C42 -> 34 | S38: =Vorrunde!D42 -> Ecuador | T38: =Vorrunde!E42 -> Curacao | U38: =Vorrunde!HO42 -> Rui Gomes, Lechena Pek, Evelyne Schenk
A39: =IF(C39="","",IF(C39=C38,"",35)) -> 35 | B39: Leo Rodrigues da Costa | C39: 3159 | D39: -5 | E39: 35 | G39: =IF(I39="","",IF(I39=I38,"",35)) -> 35 | H39: Bruno Silva | I39: 3068 | J39: 35 | P39: Timothy Gygli | R39: =Vorrunde!C43 -> 35 | S39: =Vorrunde!D43 -> Holland | T39: =Vorrunde!E43 -> Schweden | U39: =Vorrunde!HO43 ->  | W39: =Finalrunde!C45 -> 103 | X39: =Finalrunde!D45 -> Frankreich | Y39: =Finalrunde!E45 -> England | Z39: =Finalrunde!EW45 -> 
A40: =IF(C40="","",IF(C40=C39,"",36)) -> 36 | B40: Reto Gygli | C40: 3129 | D40: -5 | E40: 36 | G40: =IF(I40="","",IF(I40=I39,"",36)) -> 36 | H40: Peter Balazs | I40: 3022 | J40: 36 | P40: Aiden Jones | R40: =Vorrunde!C44 -> 36 | S40: =Vorrunde!D44 -> Tunesien | T40: =Vorrunde!E44 -> Japan | U40: =Vorrunde!HO44 -> 
A41: =IF(C41="","",IF(C41=C40,"",37)) -> 37 | B41: Sarina Gygli | C41: 3125 | D41: 21 | E41: 37 | G41: =IF(I41="","",IF(I41=I40,"",37)) -> 37 | H41: André Bartholet | I41: 3005 | J41: 37 | P41: Pascal Keller | R41: =Vorrunde!C45 -> 37 | S41: =Vorrunde!D45 -> Uruguay | T41: =Vorrunde!E45 -> Kap Verde | U41: =Vorrunde!HO45 -> Rui Gomes | W41: =Finalrunde!C47 -> 104 | X41: =Finalrunde!D47 -> Spanien | Y41: =Finalrunde!E47 -> Argentinien | Z41: =Finalrunde!EW47 -> 
A42: =IF(C42="","",IF(C42=C41,"",38)) -> 38 | B42: Lechena Pek | C42: 3122 | D42: -6 | E42: 38 | G42: =IF(I42="","",IF(I42=I41,"",38)) -> 38 | H42: Nicolas Brunner | I42: 2982 | J42: 38 | P42: Franz Lischer | R42: =Vorrunde!C46 -> 38 | S42: =Vorrunde!D46 -> Spanien | T42: =Vorrunde!E46 -> Saudi-Arabien | U42: =Vorrunde!HO46 -> Roger Bartholet, Armin Duvnjak, Robin Gygli, Stefan Gygli, Philipp Meyer, Lea Treichler, Christoph Wälti
A43: =IF(C43="","",IF(C43=C42,"",39)) -> 39 | B43: Elias Marty | C43: 3108 | D43: 4 | E43: 39 | G43: =IF(I43="","",IF(I43=I42,"",39)) -> 39 | H43: Michael Rüegg | I43: 2972 | J43: 39 | P43: Mauro Marini | R43: =Vorrunde!C47 -> 39 | S43: =Vorrunde!D47 -> Belgien | T43: =Vorrunde!E47 -> Iran | U43: =Vorrunde!HO47 -> 
A44: =IF(C44="","",IF(C44=C43,"",40)) -> 40 | B44: Stefan Gygli | C44: 3101 | D44: -7 | E44: 40 | G44: =IF(I44="","",IF(I44=I43,"",40)) -> 40 | H44: Rafael Derungs | I44: 2944 | J44: 40 | P44: Philipp Meyer | R44: =Vorrunde!C48 -> 40 | S44: =Vorrunde!D48 -> Neuseeland | T44: =Vorrunde!E48 -> Ägypten | U44: =Vorrunde!HO48 -> Peter Balazs, Nicolas Brunner, Niva D'Acunto, Vinci D'Acunto, Armin Duvnjak, Agnes Isenschmid, Michael Isenschmid, André Lanz, Martin Oroshi
A45: =IF(C45="","",IF(C45=C44,"",41)) -> 41 | B45: Martin Marthaler | C45: 3094 | D45: 27 | E45: 41 | G45: =IF(I45="","",IF(I45=I44,"",41)) -> 41 | H45: Rui Gomes | I45: 2943 | J45: 41 | P45: Martin Oroshi | R45: =Vorrunde!C49 -> 41 | S45: =Vorrunde!D49 -> Norwegen | T45: =Vorrunde!E49 -> Senegal | U45: =Vorrunde!HO49 -> Nicolas Brunner, Lynn Rüegg
A46: =IF(C46="","",IF(C46=C45,"",42)) -> 42 | B46: Rui Gomes | C46: 3093 | D46: -1 | E46: 42 | G46: =IF(I46="","",IF(I46=I45,"",42)) -> 42 | H46: Aya Bartholet | I46: 2933 | J46: 42 | P46: Stefan Principe | R46: =Vorrunde!C50 -> 42 | S46: =Vorrunde!D50 -> Frankreich | T46: =Vorrunde!E50 -> Irak | U46: =Vorrunde!HO50 -> Ambra Antonelli, Ruben Antonelli, Roger Bartholet, Michael Bosshart, Manfred Brunner, Philip Brunner, Leo Rodrigues da Costa, Rafael Derungs, Goran Djukic, Rui Gomes, Laurent Grosse, Robin Gygli, Stefan Gygli, Florian Haab, Agnes Isenschmid, Andreas Isenschmid, André Lanz, Franz Lischer, Nicolas Mack, Petra Rauscher, Martin Rohner, Martin Schawalder, Yannick Schilliger, Erich Schommarz, Aleandro Silvestri, Markus Wagner, Marc Walthard, Jingwen Wang
A47: =IF(C47="","",IF(C47=C46,"",43)) -> 43 | B47: Rafael Derungs | C47: 3044 | D47: -3 | E47: 43 | G47: =IF(I47="","",IF(I47=I46,"",43)) -> 43 | H47: Elias Marty | I47: 2928 | J47: 43 | P47: Petra Rauscher | R47: =Vorrunde!C51 -> 43 | S47: =Vorrunde!D51 -> Argentinien | T47: =Vorrunde!E51 -> Österreich | U47: =Vorrunde!HO51 -> André Bartholet, Philippe Bartholet, Roger Bartholet, Pongsapat Nott Boonaek, Lisa D'Acunto, Goran Djukic, Laurent Grosse, Tanja Kistler, Franz Lischer, Nicolas Mack, Elias Marty, Julian Merkli, Martin Rohner, Ivo und Brigitte Rüdemann, Martin Schawalder, Markus Wagner
A48: =IF(C48="","",IF(C48=C47,"",44)) -> 44 | B48: André Bartholet | C48: 3005 | D48: -7 | E48: 44 | G48: =IF(I48="","",IF(I48=I47,"",44)) -> 44 | H48: Philip Brunner | I48: 2926 | J48: 44 | P48: Armando Thormann | R48: =Vorrunde!C52 -> 44 | S48: =Vorrunde!D52 -> Jordanien | T48: =Vorrunde!E52 -> Algerien | U48: =Vorrunde!HO52 -> Panos Agorastos, Peter Balazs, Mara Beck, Reto Gygli, Selina Gygli, Andreas Isenschmid, Nicolas Mack, Ben Marthaler, Philipp Meyer, Martin Oroshi, Petra Rauscher, Michael Rüegg, Reto Treichler, Stefan Wullschleger
A49: =IF(C49="","",IF(C49=C48,"",45)) -> 45 | B49: Michael Rüegg | C49: 2972 | D49: -6 | E49: 45 | G49: =IF(I49="","",IF(I49=I48,"",45)) -> 45 | H49: Christoph Wälti | I49: 2923 | J49: 45 | P49: Reto Treichler | R49: =Vorrunde!C53 -> 45 | S49: =Vorrunde!D53 -> England | T49: =Vorrunde!E53 -> Ghana | U49: =Vorrunde!HO53 -> 
A50: =IF(C50="","",IF(C50=C49,"",46)) -> 46 | B50: Mauro Marini | C50: 2965 | D50: 13 | E50: 46 | G50: =IF(I50="","",IF(I50=I49,"",46)) -> 46 | H50: Pascal Keller | I50: 2905 | J50: 46 | P50: Christoph Wälti | R50: =Vorrunde!C54 -> 46 | S50: =Vorrunde!D54 -> Panama | T50: =Vorrunde!E54 -> Kroatien | U50: =Vorrunde!HO54 -> André Bartholet, Aya Bartholet, Philippe Bartholet, André Burkart, Vinci D'Acunto, Dino Duvnjak, Sarina Gygli, Stefan Gygli, Aiden Jones, Pascal Keller, Franz Lischer, Bruno Silva
A51: =IF(C51="","",IF(C51=C50,"",47)) -> 47 | B51: Philip Brunner | C51: 2926 | D51: -3 | E51: 47 | G51: =IF(I51="","",IF(I51=I50,"",47)) -> 47 | H51: Reto Treichler | I51: 2898 | J51: 47 | P51: Oli Christiansen | R51: =Vorrunde!C55 -> 47 | S51: =Vorrunde!D55 -> Portugal | T51: =Vorrunde!E55 -> Usbekistan | U51: =Vorrunde!HO55 -> Rui Gomes, Lea Treichler, Stefan Zachmann
A52: =IF(C52="","",IF(C52=C51,"",48)) -> 48 | B52: Oli Christiansen | C52: 2924 | D52: 14 | E52: 48 | G52: =IF(I52="","",IF(I52=I51,"",48)) -> 48 | H52: Deliz González | I52: 2886 | J52: 48 | P52: Dino Duvnjak | R52: =Vorrunde!C56 -> 48 | S52: =Vorrunde!D56 -> Kolumbien | T52: =Vorrunde!E56 -> DR Kongo | U52: =Vorrunde!HO56 -> André Bartholet, Philippe Bartholet, Manuel Brunner, Oli Christiansen, Andreia Gomes, Pascal Keller, Bruno Silva
A53: =IF(C53="","",IF(C53=C52,"",49)) -> 49 | B53: Christoph Wälti | C53: 2923 | D53: -4 | E53: 49 | G53: =IF(I53="","",IF(I53=I52,"",49)) -> 49 | H53: Evelyne Schenk | I53: 2885 | J53: 49 | P53: Reto Gygli | R53: =Vorrunde!C57 -> 49 | S53: =Vorrunde!D57 -> Schottland | T53: =Vorrunde!E57 -> Brasilien | U53: =Vorrunde!HO57 -> Manfred Brunner, Goran Djukic, Florian González, Florian Haab, Ben Marthaler, Lechena Pek
A54: =IF(C54="","",IF(C54=C53,"",50)) -> 50 | B54: Pascal Keller | C54: 2905 | D54: -4 | E54: 50 | G54: =IF(I54="","",IF(I54=I53,"",50)) -> 50 | H54: Lynn Rüegg | I54: 2872 | J54: 50 | P54: Stefan Gygli | R54: =Vorrunde!C58 -> 50 | S54: =Vorrunde!D58 -> Marokko | T54: =Vorrunde!E58 -> Haiti | U54: =Vorrunde!HO58 -> 
A55: =IF(C55="","",IF(C55=C54,"",51)) -> 51 | B55: Reto Treichler | C55: 2898 | D55: -4 | E55: 51 | G55: =IF(I55="","",IF(I55=I54,"",51)) ->  | H55: André Burkart | I55: 2872 | J55: 50 | P55: Michael Isenschmid | R55: =Vorrunde!C59 -> 51 | S55: =Vorrunde!D59 -> Schweiz | T55: =Vorrunde!E59 -> Kanada | U55: =Vorrunde!HO59 -> Panos Agorastos, Yiannis Agorastos, Ambra Antonelli, Peter Balazs, Mara Beck, Michael Bosshart, Oli Christiansen, Leo Rodrigues da Costa, Niva D'Acunto, Goran Djukic, Reto Gygli, Florian Haab, Agnes Isenschmid, Andreas Isenschmid, Aiden Jones, André Lanz, Ben Marthaler, Martin Oroshi, Martin Rohner, Ivo und Brigitte Rüdemann, Michael Rüegg, Sabine Rüegg, Erich Schommarz, Armando Thormann, Reto Treichler, Christoph Wälti, Markus Wagner, Stefan Wullschleger
A56: =IF(C56="","",IF(C56=C55,"",52)) -> 52 | B56: Deliz González | C56: 2886 | D56: -4 | E56: 52 | G56: =IF(I56="","",IF(I56=I55,"",52)) -> 52 | H56: Erich Schommarz | I56: 2853 | J56: 52 | P56: Michael Rüegg | R56: =Vorrunde!C60 -> 52 | S56: =Vorrunde!D60 -> Bosnien-Herz. | T56: =Vorrunde!E60 -> Katar | U56: =Vorrunde!HO60 -> Armin Duvnjak, Agnes Isenschmid, Andreas Isenschmid, Michael Isenschmid, Elias Marty, Ralph Schuster, Stefan Zachmann
A57: =IF(C57="","",IF(C57=C56,"",53)) -> 53 | B57: Evelyne Schenk | C57: 2885 | D57: -4 | E57: 53 | G57: =IF(I57="","",IF(I57=I56,"",53)) ->  | H57: Tanja Kistler | I57: 2853 | J57: 52 | P57: Yannick Schilliger | R57: =Vorrunde!C61 -> 53 | S57: =Vorrunde!D61 -> Tschechien | T57: =Vorrunde!E61 -> Mexiko | U57: =Vorrunde!HO61 -> Manfred Brunner, Timothy Gygli, Marc Lütolf
A58: =IF(C58="","",IF(C58=C57,"",54)) -> 54 | B58: Lynn Rüegg | C58: 2872 | D58: -4 | E58: 54 | G58: =IF(I58="","",IF(I58=I57,"",54)) -> 54 | H58: Armin Duvnjak | I58: 2849 | J58: 54 | R58: =Vorrunde!C62 -> 54 | S58: =Vorrunde!D62 -> Südafrika | T58: =Vorrunde!E62 -> Südkorea | U58: =Vorrunde!HO62 -> Aya Bartholet, Roger Bartholet, Florian González, Tanja Kistler, Martin Marthaler, Elias Marty, Telmo Oliveira, Ivo und Brigitte Rüdemann
A59: =IF(C59="","",IF(C59=C58,"",55)) ->  | B59: André Burkart | C59: 2872 | D59: -4 | E59: 54 | G59: =IF(I59="","",IF(I59=I58,"",55)) -> 55 | H59: Stefan Principe | I59: 2839 | J59: 55 | R59: =Vorrunde!C63 -> 55 | S59: =Vorrunde!D63 -> Curacao | T59: =Vorrunde!E63 -> Elfenbeinküste | U59: =Vorrunde!HO63 -> Philippe Bartholet, Roger Bartholet, Michael Bosshart, Philip Brunner, André Burkart, Leo Rodrigues da Costa, Florian González, Robin Gygli, Florian Haab, Agnes Isenschmid, Andreas Isenschmid, Marc Lütolf, Nicolas Mack, Martin Marthaler, Julian Merkli, Michael Prucha, Martin Rohner, Martin Schawalder, Yannick Schilliger, Bruno Silva, Lea Treichler, Christoph Wälti, Marc Walthard
A60: =IF(C60="","",IF(C60=C59,"",56)) -> 56 | B60: Erich Schommarz | C60: 2853 | D60: -4 | E60: 56 | G60: =IF(I60="","",IF(I60=I59,"",56)) -> 56 | H60: Franz Lischer | I60: 2822 | J60: 56 | R60: =Vorrunde!C64 -> 56 | S60: =Vorrunde!D64 -> Ecuador | T60: =Vorrunde!E64 -> Deutschland | U60: =Vorrunde!HO64 -> Roger Bartholet
A61: =IF(C61="","",IF(C61=C60,"",57)) ->  | B61: Tanja Kistler | C61: 2853 | D61: -4 | E61: 56 | G61: =IF(I61="","",IF(I61=I60,"",57)) -> 57 | H61: Laurent Grosse | I61: 2813 | J61: 57 | R61: =Vorrunde!C65 -> 57 | S61: =Vorrunde!D65 -> Japan | T61: =Vorrunde!E65 -> Schweden | U61: =Vorrunde!HO65 -> Yiannis Agorastos, Peter Balazs, Niva D'Acunto, Vinci D'Acunto, Laurent Grosse, Reto Gygli, Robin Gygli, Stefan Gygli, Andreas Isenschmid, André Lanz, Marc Lütolf, Nicolas Mack, Martin Marthaler, Julian Merkli, Martin Oroshi, Ivo und Brigitte Rüdemann, Yannick Schilliger, Erich Schommarz, Aleandro Silvestri, Lea Treichler, Reto Treichler, Markus Wagner
A62: =IF(C62="","",IF(C62=C61,"",58)) -> 58 | B62: Armin Duvnjak | C62: 2849 | D62: -4 | E62: 58 | G62: =IF(I62="","",IF(I62=I61,"",58)) -> 58 | H62: Sarina Gygli | I62: 2795 | J62: 58 | R62: =Vorrunde!C66 -> 58 | S62: =Vorrunde!D66 -> Tunesien | T62: =Vorrunde!E66 -> Holland | U62: =Vorrunde!HO66 -> Mara Beck, Pongsapat Nott Boonaek, Javier Cruz, Armin Duvnjak, Michael Isenschmid, Franz Lischer, Stefan Zachmann
A63: =IF(C63="","",IF(C63=C62,"",59)) -> 59 | B63: Stefan Principe | C63: 2839 | D63: -4 | E63: 59 | G63: =IF(I63="","",IF(I63=I62,"",59)) -> 59 | H63: Mauro Marini | I63: 2785 | J63: 59 | R63: =Vorrunde!C67 -> 59 | S63: =Vorrunde!D67 -> Türkei | T63: =Vorrunde!E67 -> USA | U63: =Vorrunde!HO67 -> Ambra Antonelli
A64: =IF(C64="","",IF(C64=C63,"",60)) -> 60 | B64: Franz Lischer | C64: 2822 | D64: -4 | E64: 60 | G64: =IF(I64="","",IF(I64=I63,"",60)) -> 60 | H64: Philippe Bartholet | I64: 2781 | J64: 60 | R64: =Vorrunde!C68 -> 60 | S64: =Vorrunde!D68 -> Paraguay | T64: =Vorrunde!E68 -> Australien | U64: =Vorrunde!HO68 -> André Bartholet, Julian Merkli, Lynn Rüegg, Christoph Wälti
A65: =IF(C65="","",IF(C65=C64,"",61)) -> 61 | B65: Laurent Grosse | C65: 2813 | D65: -4 | E65: 61 | G65: =IF(I65="","",IF(I65=I64,"",61)) -> 61 | H65: Panos Agorastos | I65: 2750 | J65: 61 | R65: =Vorrunde!C69 -> 61 | S65: =Vorrunde!D69 -> Norwegen | T65: =Vorrunde!E69 -> Frankreich | U65: =Vorrunde!HO69 -> Roger Bartholet, Nicolas Brunner, Mauro Marini, Stefan Principe
A66: =IF(C66="","",IF(C66=C65,"",62)) -> 62 | B66: Philippe Bartholet | C66: 2781 | D66: -2 | E66: 62 | G66: =IF(I66="","",IF(I66=I65,"",62)) -> 62 | H66: Oli Christiansen | I66: 2744 | J66: 62 | R66: =Vorrunde!C70 -> 62 | S66: =Vorrunde!D70 -> Senegal | T66: =Vorrunde!E70 -> Irak | U66: =Vorrunde!HO70 -> 
A67: =IF(C67="","",IF(C67=C66,"",63)) -> 63 | B67: Panos Agorastos | C67: 2750 | D67: -2 | E67: 63 | G67: =IF(I67="","",IF(I67=I66,"",63)) -> 63 | H67: Niva D'Acunto | I67: 2738 | J67: 63 | R67: =Vorrunde!C71 -> 63 | S67: =Vorrunde!D71 -> Ägypten | T67: =Vorrunde!E71 -> Iran | U67: =Vorrunde!HO71 -> Peter Balazs, Mara Beck, Philip Brunner, Leo Rodrigues da Costa, Rafael Derungs, Goran Djukic, Djuma Duvnjak, Andreia Gomes, Deliz González, Florian González, Laurent Grosse, Sarina Gygli, Florian Haab, Aiden Jones, André Lanz, Franz Lischer, Nicolas Mack, Michael Prucha, Martin Schawalder, Erich Schommarz, Aleandro Silvestri, Reto Treichler, Markus Wagner, Marc Walthard, Stefan Zachmann
A68: =IF(C68="","",IF(C68=C67,"",64)) -> 64 | B68: Niva D'Acunto | C68: 2738 | D68: -1 | E68: 64 | G68: =IF(I68="","",IF(I68=I67,"",64)) -> 64 | H68: Ruben Antonelli | I68: 2716 | J68: 64 | R68: =Vorrunde!C72 -> 64 | S68: =Vorrunde!D72 -> Neuseeland | T68: =Vorrunde!E72 -> Belgien | U68: =Vorrunde!HO72 -> 
A69: =IF(C69="","",IF(C69=C68,"",65)) -> 65 | B69: Ruben Antonelli | C69: 2716 | D69: =IFERROR(VLOOKUP(B69,$H$5:$J$104,3,FALSE)-E69,"") -> -1 | E69: =IFERROR(_xlfn.RANK.EQ(C69,$C$5:$C$104,0),"") -> 65 | G69: =IF(I69="","",IF(I69=I68,"",65)) -> 65 | H69: Petra Rauscher | I69: 2703 | J69: 65 | R69: =Vorrunde!C73 -> 65 | S69: =Vorrunde!D73 -> Kap Verde | T69: =Vorrunde!E73 -> Saudi-Arabien | U69: =Vorrunde!HO73 -> Manfred Brunner, Manuel Brunner, André Burkart, Niva D'Acunto, Andreia Gomes, Florian González, Stefan Gygli, Franz Lischer, Martin Marthaler, Julian Merkli, Martin Oroshi, Ivo und Brigitte Rüdemann, Lynn Rüegg, Christoph Wälti, Jingwen Wang
A70: =IF(C70="","",IF(C70=C69,"",66)) -> 66 | B70: Petra Rauscher | C70: 2703 | D70: -1 | E70: 66 | G70: =IF(I70="","",IF(I70=I69,"",66)) -> 66 | H70: Martin Oroshi | I70: 2685 | J70: =IFERROR(_xlfn.RANK.EQ(I70,$I$5:$I$104,0),"") -> 66 | R70: =Vorrunde!C74 -> 66 | S70: =Vorrunde!D74 -> Uruguay | T70: =Vorrunde!E74 -> Spanien | U70: =Vorrunde!HO74 -> André Bartholet, André Burkart, Oli Christiansen, Pascal Keller, Philipp Meyer, Lea Treichler
A71: =IF(C71="","",IF(C71=C70,"",67)) -> 67 | B71: Martin Oroshi | C71: 2685 | D71: -1 | E71: 67 | G71: =IF(I71="","",IF(I71=I70,"",67)) -> 67 | H71: Philipp Meyer | I71: 2666 | J71: 67 | R71: =Vorrunde!C75 -> 67 | S71: =Vorrunde!D75 -> Panama | T71: =Vorrunde!E75 -> England | U71: =Vorrunde!HO75 -> Peter Balazs, Aya Bartholet, Philip Brunner, Oli Christiansen, Rafael Derungs, Dino Duvnjak, Andreia Gomes, Deliz González, Florian González, Laurent Grosse, Selina Gygli, Aiden Jones, André Lanz, Nicolas Mack, Telmo Oliveira, Ivo und Brigitte Rüdemann, Martin Schawalder, Yannick Schilliger, Markus Wagner, Marc Walthard, Stefan Wullschleger
A72: =IF(C72="","",IF(C72=C71,"",68)) -> 68 | B72: Philipp Meyer | C72: 2666 | D72: -1 | E72: 68 | G72: =IF(I72="","",IF(I72=I71,"",68)) -> 68 | H72: Martin Marthaler | I72: 2664 | J72: 68 | R72: =Vorrunde!C76 -> 68 | S72: =Vorrunde!D76 -> Kroatien | T72: =Vorrunde!E76 -> Ghana | U72: =Vorrunde!HO76 -> Panos Agorastos, Philippe Bartholet, Mara Beck, Michael Bosshart, Philip Brunner, Leo Rodrigues da Costa, Niva D'Acunto, Vinci D'Acunto, Rafael Derungs, Armin Duvnjak, Deliz González, Florian González, Reto Gygli, Agnes Isenschmid, Andreas Isenschmid, Tanja Kistler, Nicolas Mack, Philipp Meyer, Telmo Oliveira, Martin Oroshi, Petra Rauscher, Sabine Rüegg, Evelyne Schenk, Erich Schommarz, Aleandro Silvestri, Reto Treichler, Marc Walthard, Stefan Wullschleger
A73: =IF(C73="","",IF(C73=C72,"",69)) -> 69 | B73: Yiannis Agorastos | C73: 2640 | D73: 0 | E73: 69 | G73: =IF(I73="","",IF(I73=I72,"",69)) -> 69 | H73: Yiannis Agorastos | I73: 2640 | J73: 69 | R73: =Vorrunde!C77 -> 69 | S73: =Vorrunde!D77 -> Algerien | T73: =Vorrunde!E77 -> Österreich | U73: =Vorrunde!HO77 -> 
A74: =IF(C74="","",IF(C74=C73,"",70)) -> 70 | B74: Jingwen Wang | C74: 2638 | D74: 0 | E74: 70 | G74: =IF(I74="","",IF(I74=I73,"",70)) -> 70 | H74: Jingwen Wang | I74: 2638 | J74: 70 | R74: =Vorrunde!C78 -> 70 | S74: =Vorrunde!D78 -> Jordanien | T74: =Vorrunde!E78 -> Argentinien | U74: =Vorrunde!HO78 -> Yiannis Agorastos, Ambra Antonelli, Marco Antonelli, Agnes Isenschmid, Andreas Isenschmid, Michael Isenschmid, Elias Marty, Petra Rauscher
A75: =IF(C75="","",IF(C75=C74,"",71)) -> 71 | B75: Lea Treichler | C75: 2574 | D75: 0 | E75: 71 | G75: =IF(I75="","",IF(I75=I74,"",71)) -> 71 | H75: Lea Treichler | I75: 2574 | J75: 71 | R75: =Vorrunde!C79 -> 71 | S75: =Vorrunde!D79 -> Kolumbien | T75: =Vorrunde!E79 -> Portugal | U75: =Vorrunde!HO79 -> Franz Lischer
A76: =IF(C76="","",IF(C76=C75,"",72)) -> 72 | B76: Aiden Jones | C76: 2561 | D76: 0 | E76: 72 | G76: =IF(I76="","",IF(I76=I75,"",72)) -> 72 | H76: Aiden Jones | I76: 2561 | J76: 72 | R76: =Vorrunde!C80 -> 72 | S76: =Vorrunde!D80 -> DR Kongo | T76: =Vorrunde!E80 -> Usbekistan | U76: =Vorrunde!HO80 -> Michael Isenschmid, Lechena Pek, Evelyne Schenk, Ralph Schuster
A77: =IF(C77="","",IF(C77=C76,"",73)) -> 73 | B77: Manuel Brunner | C77: 2548 | D77: 0 | E77: 73 | G77: =IF(I77="","",IF(I77=I76,"",73)) -> 73 | H77: Manuel Brunner | I77: 2548 | J77: 73
A78: =IF(C78="","",IF(C78=C77,"",74)) -> 74 | B78: Vinci D'Acunto | C78: 2519 | D78: 0 | E78: 74 | G78: =IF(I78="","",IF(I78=I77,"",74)) -> 74 | H78: Vinci D'Acunto | I78: 2519 | J78: 74
A79: =IF(C79="","",IF(C79=C78,"",75)) -> 75 | B79: Goran Djukic | C79: 2468 | D79: 0 | E79: 75 | G79: =IF(I79="","",IF(I79=I78,"",75)) -> 75 | H79: Goran Djukic | I79: 2468 | J79: 75
A80: =IF(C80="","",IF(C80=C79,"",76)) -> 76 | B80: Ralph Schuster | C80: 2441 | D80: 4 | E80: 76 | G80: =IF(I80="","",IF(I80=I79,"",76)) -> 76 | H80: Roger Bartholet | I80: 2411 | J80: 76
A81: =IF(C81="","",IF(C81=C80,"",77)) -> 77 | B81: Roger Bartholet | C81: 2411 | D81: -1 | E81: 77 | G81: =IF(I81="","",IF(I81=I80,"",77)) -> 77 | H81: Marc Walthard | I81: 2406 | J81: 77
A82: =IF(C82="","",IF(C82=C81,"",78)) -> 78 | B82: Marc Walthard | C82: 2406 | D82: -1 | E82: 78 | G82: =IF(I82="","",IF(I82=I81,"",78)) -> 78 | H82: Selina Gygli | I82: 2392 | J82: 78
A83: =IF(C83="","",IF(C83=C82,"",79)) -> 79 | B83: Selina Gygli | C83: 2392 | D83: -1 | E83: 79 | G83: =IF(I83="","",IF(I83=I82,"",79)) -> 79 | H83: Stefan Zachmann | I83: 2379 | J83: 79
A84: =IF(C84="","",IF(C84=C83,"",80)) -> 80 | B84: Stefan Zachmann | C84: 2379 | D84: -1 | E84: 80 | G84: =IF(I84="","",IF(I84=I83,"",80)) -> 80 | H84: Ralph Schuster | I84: 2261 | J84: 80
A85: =IF(C85="","",IF(C85=C84,"",81)) -> 81 | B85: Ambra Antonelli | C85: 2224 | D85: 0 | E85: 81 | G85: =IF(I85="","",IF(I85=I84,"",81)) -> 81 | H85: Ambra Antonelli | I85: 2224 | J85: 81
A86: =IF(C86="","",IF(C86=C85,"",82)) -> 82 | B86: Andreia Gomes | C86: 2113 | D86: 0 | E86: 82 | G86: =IF(I86="","",IF(I86=I85,"",82)) -> 82 | H86: Andreia Gomes | I86: 2113 | J86: 82
A87: =IF(C87="","",IF(C87=C86,"",83)) -> 83 | B87: Manfred Brunner | C87: 1997 | D87: 0 | E87: 83 | G87: =IF(I87="","",IF(I87=I86,"",83)) -> 83 | H87: Manfred Brunner | I87: 1997 | J87: 83
A88: =IF(C88="","",IF(C88=C87,"",84)) -> 84 | B88: Ben Marthaler | C88: 1646 | D88: 0 | E88: 84 | G88: =IF(I88="","",IF(I88=I87,"",84)) -> 84 | H88: Ben Marthaler | I88: 1646 | J88: 84
A89: =IF(C89="","",IF(C89=C88,"",85)) ->  | G89: =IF(I89="","",IF(I89=I88,"",85)) -> 
A90: =IF(C90="","",IF(C90=C89,"",86)) ->  | G90: =IF(I90="","",IF(I90=I89,"",86)) -> 
A91: =IF(C91="","",IF(C91=C90,"",87)) ->  | G91: =IF(I91="","",IF(I91=I90,"",87)) -> 
A92: =IF(C92="","",IF(C92=C91,"",88)) ->  | G92: =IF(I92="","",IF(I92=I91,"",88)) -> 
A93: =IF(C93="","",IF(C93=C92,"",89)) ->  | G93: =IF(I93="","",IF(I93=I92,"",89)) -> 
A94: =IF(C94="","",IF(C94=C93,"",90)) ->  | G94: =IF(I94="","",IF(I94=I93,"",90)) -> 
A95: =IF(C95="","",IF(C95=C94,"",91)) ->  | G95: =IF(I95="","",IF(I95=I94,"",91)) -> 
A96: =IF(C96="","",IF(C96=C95,"",92)) ->  | G96: =IF(I96="","",IF(I96=I95,"",92)) -> 
A97: =IF(C97="","",IF(C97=C96,"",93)) ->  | G97: =IF(I97="","",IF(I97=I96,"",93)) -> 
A98: =IF(C98="","",IF(C98=C97,"",94)) ->  | G98: =IF(I98="","",IF(I98=I97,"",94)) -> 
A99: =IF(C99="","",IF(C99=C98,"",95)) ->  | G99: =IF(I99="","",IF(I99=I98,"",95)) -> 
A100: =IF(C100="","",IF(C100=C99,"",96)) ->  | G100: =IF(I100="","",IF(I100=I99,"",96)) -> 
A101: =IF(C101="","",IF(C101=C100,"",97)) ->  | G101: =IF(I101="","",IF(I101=I100,"",97)) -> 
A102: =IF(C102="","",IF(C102=C101,"",98)) ->  | G102: =IF(I102="","",IF(I102=I101,"",98)) -> 
A103: =IF(C103="","",IF(C103=C102,"",99)) ->  | G103: =IF(I103="","",IF(I103=I102,"",99)) -> 
A104: =IF(C104="","",IF(C104=C103,"",100)) ->  | G104: =IF(I104="","",IF(I104=I103,"",100)) -> 

Sheet Punktestand
A1: =Teams!$B$54 -> WM 2026 by Rogerinho (www.fcbouncer.ch)
A3: Punktestand | C3: Spieler 1 - 100 | E3: Anzahl Spieler: | F3: =COUNTIF(B7:B106,"??*") -> 84
C5: Punkte | D5: Punkte | E5: Punkte | F5: Punkte | H5: Rang | J5: Rang | L5: Punkte | O5: Spiel
A6: Nr. | B6: Name | C6: Vorrunde | D6: Endplatzierung | E6: Finalrunde | F6: Total | H6: Zeile | J6: Tabelle | L6: Total | O6: Nr.
A7: =Teilnehmerliste!A6 -> 1 | B7: =Teilnehmerliste!B6 &" "&Teilnehmerliste!C6 -> Panos Agorastos | C7: =Vorrunde!$K$81 -> 290 | D7: =Endplatzierung!$F$58 -> 260 | E7: =Finalrunde!$N$50 -> 2200 | F7: =IF(Teilnehmerliste!B6="","",SUM(C7:E7)) -> 2750 | H7: =IFERROR(_xlfn.RANK.EQ(F7,$F$7:$F$106,0),"") -> 63 | J7: =IF(ROWS($J$7:J7)<=$F$3,SMALL($H$7:$H$106,ROWS($J$7:J7)),"") -> 1 | K7: =IF($H7="","",INDEX($B$7:$H$106,_xlfn.AGGREGATE(14,6,ROW($H$7:$H$106)-ROW($H$7)+1/($H$7:$H$106=J7),COUNTIF($J$7:J7,J7)),1)) -> Stefan Wullschleger | L7: =IF($H7="","",INDEX($B$7:$H$106,_xlfn.AGGREGATE(14,6,ROW($H$7:$H$106)-ROW($H$7)+1/($H$7:$H$106=J7),COUNTIF($J$7:J7,J7)),5)) -> 4033 | N7: =ISBLANK(Vorrunde!F9) -> FALSE | O7: 1 | P7: =COUNTIF(N7:N111,FALSE) -> 102 | Q7: nach
A8: =Teilnehmerliste!A7 -> 2 | B8: =Teilnehmerliste!B7 &" "&Teilnehmerliste!C7 -> Yiannis Agorastos | C8: =Vorrunde!$O$81 -> 210 | D8: =Endplatzierung!$H$58 -> 260 | E8: =Finalrunde!$U$50 -> 2170 | F8: =IF(Teilnehmerliste!B7="","",SUM(C8:E8)) -> 2640 | H8: =IFERROR(_xlfn.RANK.EQ(F8,$F$7:$F$106,0),"") -> 69 | J8: =IF(ROWS($J$7:$J$7)<=$F$3,SMALL($H$7:$H$106,ROWS($J$7:J8)),"") -> 2 | K8: =IF($H8="","",INDEX($B$7:$H$106,_xlfn.AGGREGATE(14,6,ROW($H$7:$H$106)-ROW($H$7)+1/($H$7:$H$106=J8),COUNTIF($J$7:J8,J8)),1)) -> Agnes Isenschmid | L8: =IF($H8="","",INDEX($B$7:$H$106,_xlfn.AGGREGATE(14,6,ROW($H$7:$H$106)-ROW($H$7)+1/($H$7:$H$106=J8),COUNTIF($J$7:J8,J8)),5)) -> 4023 | N8: =ISBLANK(Vorrunde!F10) -> FALSE | O8: 2 | Q8: von 104 Spielen
A9: =Teilnehmerliste!A8 -> 3 | B9: =Teilnehmerliste!B8 &" "&Teilnehmerliste!C8 -> Ambra Antonelli | C9: =Vorrunde!$S$81 -> 224 | D9: =Endplatzierung!$J$58 -> 260 | E9: =Finalrunde!$AB$50 -> 1740 | F9: =IF(Teilnehmerliste!B8="","",SUM(C9:E9)) -> 2224 | H9: 81 | J9: =IF(ROWS($J$7:$J$7)<=$F$3,SMALL($H$7:$H$106,ROWS($J$7:J9)),"") -> 3 | K9: =IF($H9="","",INDEX($B$7:$H$106,_xlfn.AGGREGATE(14,6,ROW($H$7:$H$106)-ROW($H$7)+1/($H$7:$H$106=J9),COUNTIF($J$7:J9,J9)),1)) -> Martin Rohner | L9: =IF($H9="","",INDEX($B$7:$H$106,_xlfn.AGGREGATE(14,6,ROW($H$7:$H$106)-ROW($H$7)+1/($H$7:$H$106=J9),COUNTIF($J$7:J9,J9)),5)) -> 3637 | N9: =ISBLANK(Vorrunde!F11) -> FALSE | O9: 3
A10: =Teilnehmerliste!A9 -> 4 | B10: =Teilnehmerliste!B9 &" "&Teilnehmerliste!C9 -> Marco Antonelli | C10: =Vorrunde!$W$81 -> 239 | D10: =Endplatzierung!$L$58 -> 300 | E10: =Finalrunde!$AI$50 -> 2760 | F10: =IF(Teilnehmerliste!B9="","",SUM(C10:E10)) -> 3299 | H10: 23 | J10: =IF(ROWS($J$7:$J$7)<=$F$3,SMALL($H$7:$H$106,ROWS($J$7:J10)),"") -> 4 | K10: =IF($H10="","",INDEX($B$7:$H$106,_xlfn.AGGREGATE(14,6,ROW($H$7:$H$106)-ROW($H$7)+1/($H$7:$H$106=J10),COUNTIF($J$7:J10,J10)),1)) -> André Lanz | L10: =IF($H10="","",INDEX($B$7:$H$106,_xlfn.AGGREGATE(14,6,ROW($H$7:$H$106)-ROW($H$7)+1/($H$7:$H$106=J10),COUNTIF($J$7:J10,J10)),5)) -> 3622 | N10: =ISBLANK(Vorrunde!F12) -> FALSE | O10: 4
A11: =Teilnehmerliste!A10 -> 5 | B11: =Teilnehmerliste!B10 &" "&Teilnehmerliste!C10 -> Ruben Antonelli | C11: =Vorrunde!$AA$81 -> 296 | D11: =Endplatzierung!$N$58 -> 360 | E11: =Finalrunde!$AP$50 -> 2060 | F11: =IF(Teilnehmerliste!B10="","",SUM(C11:E11)) -> 2716 | H11: 65 | J11: =IF(ROWS($J$7:$J$7)<=$F$3,SMALL($H$7:$H$106,ROWS($J$7:J11)),"") -> 5 | K11: =IF($H11="","",INDEX($B$7:$H$106,_xlfn.AGGREGATE(14,6,ROW($H$7:$H$106)-ROW($H$7)+1/($H$7:$H$106=J11),COUNTIF($J$7:J11,J11)),1)) -> Marc Lütolf | L11: =IF($H11="","",INDEX($B$7:$H$106,_xlfn.AGGREGATE(14,6,ROW($H$7:$H$106)-ROW($H$7)+1/($H$7:$H$106=J11),COUNTIF($J$7:J11,J11)),5)) -> 3579 | N11: =ISBLANK(Vorrunde!F13) -> FALSE | O11: 5
A12: =Teilnehmerliste!A11 -> 6 | B12: =Teilnehmerliste!B11 &" "&Teilnehmerliste!C11 -> Peter Balazs | C12: =Vorrunde!$AE$81 -> 292 | D12: =Endplatzierung!$P$58 -> 400 | E12: =Finalrunde!$AW$50 -> 2510 | F12: =IF(Teilnehmerliste!B11="","",SUM(C12:E12)) -> 3202 | H12: 28 | J12: =IF(ROWS($J$7:$J$7)<=$F$3,SMALL($H$7:$H$106,ROWS($J$7:J12)),"") -> 6 | K12: =IF($H12="","",INDEX($B$7:$H$106,_xlfn.AGGREGATE(14,6,ROW($H$7:$H$106)-ROW($H$7)+1/($H$7:$H$106=J12),COUNTIF($J$7:J12,J12)),1)) -> Armando Thormann | L12: =IF($H12="","",INDEX($B$7:$H$106,_xlfn.AGGREGATE(14,6,ROW($H$7:$H$106)-ROW($H$7)+1/($H$7:$H$106=J12),COUNTIF($J$7:J12,J12)),5)) -> 3531 | N12: =ISBLANK(Vorrunde!F14) -> FALSE | O12: 6
A13: =Teilnehmerliste!A12 -> 7 | B13: =Teilnehmerliste!B12 &" "&Teilnehmerliste!C12 -> André Bartholet | C13: =Vorrunde!$AI$81 -> 265 | D13: =Endplatzierung!$R$58 -> 340 | E13: =Finalrunde!$BD$50 -> 2400 | F13: =IF(Teilnehmerliste!B12="","",SUM(C13:E13)) -> 3005 | H13: 44 | J13: =IF(ROWS($J$7:$J$7)<=$F$3,SMALL($H$7:$H$106,ROWS($J$7:J13)),"") -> 7 | K13: =IF($H13="","",INDEX($B$7:$H$106,_xlfn.AGGREGATE(14,6,ROW($H$7:$H$106)-ROW($H$7)+1/($H$7:$H$106=J13),COUNTIF($J$7:J13,J13)),1)) -> Florian Haab | L13: =IF($H13="","",INDEX($B$7:$H$106,_xlfn.AGGREGATE(14,6,ROW($H$7:$H$106)-ROW($H$7)+1/($H$7:$H$106=J13),COUNTIF($J$7:J13,J13)),5)) -> 3496 | N13: =ISBLANK(Vorrunde!F15) -> FALSE | O13: 7
A14: =Teilnehmerliste!A13 -> 8 | B14: =Teilnehmerliste!B13 &" "&Teilnehmerliste!C13 -> Aya Bartholet | C14: =Vorrunde!$AM$81 -> 213 | D14: =Endplatzierung!$T$58 -> 160 | E14: =Finalrunde!$BK$50 -> 2890 | F14: =IF(Teilnehmerliste!B13="","",SUM(C14:E14)) -> 3263 | H14: 24 | J14: =IF(ROWS($J$7:$J$7)<=$F$3,SMALL($H$7:$H$106,ROWS($J$7:J14)),"") -> 8 | K14: =IF($H14="","",INDEX($B$7:$H$106,_xlfn.AGGREGATE(14,6,ROW($H$7:$H$106)-ROW($H$7)+1/($H$7:$H$106=J14),COUNTIF($J$7:J14,J14)),1)) -> Sabine Rüegg | L14: =IF($H14="","",INDEX($B$7:$H$106,_xlfn.AGGREGATE(14,6,ROW($H$7:$H$106)-ROW($H$7)+1/($H$7:$H$106=J14),COUNTIF($J$7:J14,J14)),5)) -> 3492 | N14: =ISBLANK(Vorrunde!F16) -> FALSE | O14: 8
A15: =Teilnehmerliste!A14 -> 9 | B15: =Teilnehmerliste!B14 &" "&Teilnehmerliste!C14 -> Philippe Bartholet | C15: =Vorrunde!$AQ$81 -> 271 | D15: =Endplatzierung!$V$58 -> 220 | E15: =Finalrunde!$BR$50 -> 2290 | F15: =IF(Teilnehmerliste!B14="","",SUM(C15:E15)) -> 2781 | H15: 62 | J15: =IF(ROWS($J$7:$J$7)<=$F$3,SMALL($H$7:$H$106,ROWS($J$7:J15)),"") -> 9 | K15: =IF($H15="","",INDEX($B$7:$H$106,_xlfn.AGGREGATE(14,6,ROW($H$7:$H$106)-ROW($H$7)+1/($H$7:$H$106=J15),COUNTIF($J$7:J15,J15)),1)) -> Javier Cruz | L15: =IF($H15="","",INDEX($B$7:$H$106,_xlfn.AGGREGATE(14,6,ROW($H$7:$H$106)-ROW($H$7)+1/($H$7:$H$106=J15),COUNTIF($J$7:J15,J15)),5)) -> 3478 | N15: =ISBLANK(Vorrunde!F17) -> FALSE | O15: 9
A16: =Teilnehmerliste!A15 -> 10 | B16: =Teilnehmerliste!B15 &" "&Teilnehmerliste!C15 -> Roger Bartholet | C16: =Vorrunde!$AU$81 -> 271 | D16: =Endplatzierung!$X$58 -> 260 | E16: =Finalrunde!$BY$50 -> 1880 | F16: =IF(Teilnehmerliste!B15="","",SUM(C16:E16)) -> 2411 | H16: 77 | J16: =IF(ROWS($J$7:$J$7)<=$F$3,SMALL($H$7:$H$106,ROWS($J$7:J16)),"") -> 10 | K16: =IF($H16="","",INDEX($B$7:$H$106,_xlfn.AGGREGATE(14,6,ROW($H$7:$H$106)-ROW($H$7)+1/($H$7:$H$106=J16),COUNTIF($J$7:J16,J16)),1)) -> Mara Beck | L16: =IF($H16="","",INDEX($B$7:$H$106,_xlfn.AGGREGATE(14,6,ROW($H$7:$H$106)-ROW($H$7)+1/($H$7:$H$106=J16),COUNTIF($J$7:J16,J16)),5)) -> 3466 | N16: =ISBLANK(Vorrunde!F18) -> FALSE | O16: 10
A17: =Teilnehmerliste!A16 -> 11 | B17: =Teilnehmerliste!B16 &" "&Teilnehmerliste!C16 -> Mara Beck | C17: =Vorrunde!$AY$81 -> 296 | D17: =Endplatzierung!$Z$58 -> 280 | E17: =Finalrunde!$CF$50 -> 2890 | F17: =IF(Teilnehmerliste!B16="","",SUM(C17:E17)) -> 3466 | H17: 10 | J17: =IF(ROWS($J$7:$J$7)<=$F$3,SMALL($H$7:$H$106,ROWS($J$7:J17)),"") -> 11 | K17: =IF($H17="","",INDEX($B$7:$H$106,_xlfn.AGGREGATE(14,6,ROW($H$7:$H$106)-ROW($H$7)+1/($H$7:$H$106=J17),COUNTIF($J$7:J17,J17)),1)) -> Markus Wagner | L17: =IF($H17="","",INDEX($B$7:$H$106,_xlfn.AGGREGATE(14,6,ROW($H$7:$H$106)-ROW($H$7)+1/($H$7:$H$106=J17),COUNTIF($J$7:J17,J17)),5)) -> 3453 | N17: =ISBLANK(Vorrunde!F19) -> FALSE | O17: 11
A18: =Teilnehmerliste!A17 -> 12 | B18: =Teilnehmerliste!B17 &" "&Teilnehmerliste!C17 -> Pongsapat Nott Boonaek | C18: =Vorrunde!$BC$81 -> 270 | D18: =Endplatzierung!$AB$58 -> 380 | E18: =Finalrunde!$CM$50 -> 2730 | F18: =IF(Teilnehmerliste!B17="","",SUM(C18:E18)) -> 3380 | H18: 15 | J18: =IF(ROWS($J$7:$J$7)<=$F$3,SMALL($H$7:$H$106,ROWS($J$7:J18)),"") -> 12 | K18: =IF($H18="","",INDEX($B$7:$H$106,_xlfn.AGGREGATE(14,6,ROW($H$7:$H$106)-ROW($H$7)+1/($H$7:$H$106=J18),COUNTIF($J$7:J18,J18)),1)) -> Michael Isenschmid | L18: =IF($H18="","",INDEX($B$7:$H$106,_xlfn.AGGREGATE(14,6,ROW($H$7:$H$106)-ROW($H$7)+1/($H$7:$H$106=J18),COUNTIF($J$7:J18,J18)),5)) -> 3444 | N18: =ISBLANK(Vorrunde!F20) -> FALSE | O18: 12
A19: =Teilnehmerliste!A18 -> 13 | B19: =Teilnehmerliste!B18 &" "&Teilnehmerliste!C18 -> Michael Bosshart | C19: =Vorrunde!$BG$81 -> 270 | D19: =Endplatzierung!$AD$58 -> 300 | E19: =Finalrunde!$CT$50 -> 2840 | F19: =IF(Teilnehmerliste!B18="","",SUM(C19:E19)) -> 3410 | H19: 14 | J19: =IF(ROWS($J$7:$J$7)<=$F$3,SMALL($H$7:$H$106,ROWS($J$7:J19)),"") -> 13 | K19: =IF($H19="","",INDEX($B$7:$H$106,_xlfn.AGGREGATE(14,6,ROW($H$7:$H$106)-ROW($H$7)+1/($H$7:$H$106=J19),COUNTIF($J$7:J19,J19)),1)) -> Yannick Schilliger | L19: =IF($H19="","",INDEX($B$7:$H$106,_xlfn.AGGREGATE(14,6,ROW($H$7:$H$106)-ROW($H$7)+1/($H$7:$H$106=J19),COUNTIF($J$7:J19,J19)),5)) -> 3413 | N19: =ISBLANK(Vorrunde!F21) -> FALSE | O19: 13
A20: =Teilnehmerliste!A19 -> 14 | B20: =Teilnehmerliste!B19 &" "&Teilnehmerliste!C19 -> Manfred Brunner | C20: =Vorrunde!$BK$81 -> 287 | D20: =Endplatzierung!$AF$58 -> 240 | E20: =Finalrunde!$DA$50 -> 1470 | F20: =IF(Teilnehmerliste!B19="","",SUM(C20:E20)) -> 1997 | H20: 83 | J20: =IF(ROWS($J$7:$J$7)<=$F$3,SMALL($H$7:$H$106,ROWS($J$7:J20)),"") -> 14 | K20: =IF($H20="","",INDEX($B$7:$H$106,_xlfn.AGGREGATE(14,6,ROW($H$7:$H$106)-ROW($H$7)+1/($H$7:$H$106=J20),COUNTIF($J$7:J20,J20)),1)) -> Michael Bosshart | L20: =IF($H20="","",INDEX($B$7:$H$106,_xlfn.AGGREGATE(14,6,ROW($H$7:$H$106)-ROW($H$7)+1/($H$7:$H$106=J20),COUNTIF($J$7:J20,J20)),5)) -> 3410 | N20: =ISBLANK(Vorrunde!F22) -> FALSE | O20: 14
A21: =Teilnehmerliste!A20 -> 15 | B21: =Teilnehmerliste!B20 &" "&Teilnehmerliste!C20 -> Manuel Brunner | C21: =Vorrunde!$BO$81 -> 248 | D21: =Endplatzierung!$AH$58 -> 200 | E21: =Finalrunde!$DH$50 -> 2100 | F21: =IF(Teilnehmerliste!B20="","",SUM(C21:E21)) -> 2548 | H21: 73 | J21: =IF(ROWS($J$7:$J$7)<=$F$3,SMALL($H$7:$H$106,ROWS($J$7:J21)),"") -> 15 | K21: =IF($H21="","",INDEX($B$7:$H$106,_xlfn.AGGREGATE(14,6,ROW($H$7:$H$106)-ROW($H$7)+1/($H$7:$H$106=J21),COUNTIF($J$7:J21,J21)),1)) -> Pongsapat Nott Boonaek | L21: =IF($H21="","",INDEX($B$7:$H$106,_xlfn.AGGREGATE(14,6,ROW($H$7:$H$106)-ROW($H$7)+1/($H$7:$H$106=J21),COUNTIF($J$7:J21,J21)),5)) -> 3380 | N21: =ISBLANK(Vorrunde!F23) -> FALSE | O21: 15
A22: =Teilnehmerliste!A21 -> 16 | B22: =Teilnehmerliste!B21 &" "&Teilnehmerliste!C21 -> Nicolas Brunner | C22: =Vorrunde!$BS$81 -> 292 | D22: =Endplatzierung!$AJ$58 -> 260 | E22: =Finalrunde!$DO$50 -> 2610 | F22: =IF(Teilnehmerliste!B21="","",SUM(C22:E22)) -> 3162 | H22: 34 | J22: =IF(ROWS($J$7:$J$7)<=$F$3,SMALL($H$7:$H$106,ROWS($J$7:J22)),"") -> 16 | K22: =IF($H22="","",INDEX($B$7:$H$106,_xlfn.AGGREGATE(14,6,ROW($H$7:$H$106)-ROW($H$7)+1/($H$7:$H$106=J22),COUNTIF($J$7:J22,J22)),1)) -> Michael Prucha | L22: =IF($H22="","",INDEX($B$7:$H$106,_xlfn.AGGREGATE(14,6,ROW($H$7:$H$106)-ROW($H$7)+1/($H$7:$H$106=J22),COUNTIF($J$7:J22,J22)),5)) -> 3358 | N22: =ISBLANK(Vorrunde!F24) -> FALSE | O22: 16
A23: =Teilnehmerliste!A22 -> 17 | B23: =Teilnehmerliste!B22 &" "&Teilnehmerliste!C22 -> Philip Brunner | C23: =Vorrunde!$BW$81 -> 286 | D23: =Endplatzierung!$AL$58 -> 320 | E23: =Finalrunde!$DV$50 -> 2320 | F23: =IF(Teilnehmerliste!B22="","",SUM(C23:E23)) -> 2926 | H23: 47 | J23: =IF(ROWS($J$7:$J$7)<=$F$3,SMALL($H$7:$H$106,ROWS($J$7:J23)),"") -> 17 | K23: =IF($H23="","",INDEX($B$7:$H$106,_xlfn.AGGREGATE(14,6,ROW($H$7:$H$106)-ROW($H$7)+1/($H$7:$H$106=J23),COUNTIF($J$7:J23,J23)),1)) -> Aleandro Silvestri | L23: =IF($H23="","",INDEX($B$7:$H$106,_xlfn.AGGREGATE(14,6,ROW($H$7:$H$106)-ROW($H$7)+1/($H$7:$H$106=J23),COUNTIF($J$7:J23,J23)),5)) -> 3336 | N23: =ISBLANK(Vorrunde!F25) -> FALSE | O23: 17
A24: =Teilnehmerliste!A23 -> 18 | B24: =Teilnehmerliste!B23 &" "&Teilnehmerliste!C23 -> André Burkart | C24: =Vorrunde!$CA$81 -> 272 | D24: =Endplatzierung!$AN$58 -> 260 | E24: =Finalrunde!$EC$50 -> 2340 | F24: =IF(Teilnehmerliste!B23="","",SUM(C24:E24)) -> 2872 | H24: 54 | J24: =IF(ROWS($J$7:$J$7)<=$F$3,SMALL($H$7:$H$106,ROWS($J$7:J24)),"") -> 18 | K24: =IF($H24="","",INDEX($B$7:$H$106,_xlfn.AGGREGATE(14,6,ROW($H$7:$H$106)-ROW($H$7)+1/($H$7:$H$106=J24),COUNTIF($J$7:J24,J24)),1)) -> Djuma Duvnjak | L24: =IF($H24="","",INDEX($B$7:$H$106,_xlfn.AGGREGATE(14,6,ROW($H$7:$H$106)-ROW($H$7)+1/($H$7:$H$106=J24),COUNTIF($J$7:J24,J24)),5)) -> 3330 | N24: =ISBLANK(Vorrunde!F26) -> FALSE | O24: 18
A25: =Teilnehmerliste!A24 -> 19 | B25: =Teilnehmerliste!B24 &" "&Teilnehmerliste!C24 -> Oli Christiansen | C25: =Vorrunde!$CE$81 -> 254 | D25: =Endplatzierung!$AP$58 -> 300 | E25: =Finalrunde!$EJ$50 -> 2370 | F25: =IF(Teilnehmerliste!B24="","",SUM(C25:E25)) -> 2924 | H25: 48 | J25: =IF(ROWS($J$7:$J$7)<=$F$3,SMALL($H$7:$H$106,ROWS($J$7:J25)),"") -> 19 | K25: =IF($H25="","",INDEX($B$7:$H$106,_xlfn.AGGREGATE(14,6,ROW($H$7:$H$106)-ROW($H$7)+1/($H$7:$H$106=J25),COUNTIF($J$7:J25,J25)),1)) -> Nicolas Mack | L25: =IF($H25="","",INDEX($B$7:$H$106,_xlfn.AGGREGATE(14,6,ROW($H$7:$H$106)-ROW($H$7)+1/($H$7:$H$106=J25),COUNTIF($J$7:J25,J25)),5)) -> 3323 | N25: =ISBLANK(Vorrunde!F27) -> FALSE | O25: 19
A26: =Teilnehmerliste!A25 -> 20 | B26: =Teilnehmerliste!B25 &" "&Teilnehmerliste!C25 -> Javier Cruz | C26: =Vorrunde!$CI$81 -> 258 | D26: =Endplatzierung!$AR$58 -> 300 | E26: =Finalrunde!$EQ$50 -> 2920 | F26: =IF(Teilnehmerliste!B25="","",SUM(C26:E26)) -> 3478 | H26: 9 | J26: =IF(ROWS($J$7:$J$7)<=$F$3,SMALL($H$7:$H$106,ROWS($J$7:J26)),"") -> 20 | K26: =IF($H26="","",INDEX($B$7:$H$106,_xlfn.AGGREGATE(14,6,ROW($H$7:$H$106)-ROW($H$7)+1/($H$7:$H$106=J26),COUNTIF($J$7:J26,J26)),1)) -> Florian González | L26: =IF($H26="","",INDEX($B$7:$H$106,_xlfn.AGGREGATE(14,6,ROW($H$7:$H$106)-ROW($H$7)+1/($H$7:$H$106=J26),COUNTIF($J$7:J26,J26)),5)) -> 3319 | N26: =ISBLANK(Vorrunde!F28) -> FALSE | O26: 20
A27: =Teilnehmerliste!A26 -> 21 | B27: =Teilnehmerliste!B26 &" "&Teilnehmerliste!C26 -> Leo Rodrigues da Costa | C27: =Vorrunde!$CM$81 -> 289 | D27: =Endplatzierung!$AT$58 -> 400 | E27: =Finalrunde!$N$100 -> 2470 | F27: =IF(Teilnehmerliste!B26="","",SUM(C27:E27)) -> 3159 | H27: 35 | J27: =IF(ROWS($J$7:$J$7)<=$F$3,SMALL($H$7:$H$106,ROWS($J$7:J27)),"") -> 21 | K27: =IF($H27="","",INDEX($B$7:$H$106,_xlfn.AGGREGATE(14,6,ROW($H$7:$H$106)-ROW($H$7)+1/($H$7:$H$106=J27),COUNTIF($J$7:J27,J27)),1)) -> Julian Merkli | L27: =IF($H27="","",INDEX($B$7:$H$106,_xlfn.AGGREGATE(14,6,ROW($H$7:$H$106)-ROW($H$7)+1/($H$7:$H$106=J27),COUNTIF($J$7:J27,J27)),5)) -> 3302 | N27: =ISBLANK(Vorrunde!F29) -> FALSE | O27: 21
A28: =Teilnehmerliste!A27 -> 22 | B28: =Teilnehmerliste!B27 &" "&Teilnehmerliste!C27 -> Lisa D'Acunto | C28: =Vorrunde!$CQ$81 -> 252 | D28: =Endplatzierung!$AV$58 -> 360 | E28: =Finalrunde!$U$100 -> 2580 | F28: =IF(Teilnehmerliste!B27="","",SUM(C28:E28)) -> 3192 | H28: 29 | J28: =IF(ROWS($J$7:$J$7)<=$F$3,SMALL($H$7:$H$106,ROWS($J$7:J28)),"") -> 22 | K28: =IF($H28="","",INDEX($B$7:$H$106,_xlfn.AGGREGATE(14,6,ROW($H$7:$H$106)-ROW($H$7)+1/($H$7:$H$106=J28),COUNTIF($J$7:J28,J28)),1)) -> Dino Duvnjak | L28: =IF($H28="","",INDEX($B$7:$H$106,_xlfn.AGGREGATE(14,6,ROW($H$7:$H$106)-ROW($H$7)+1/($H$7:$H$106=J28),COUNTIF($J$7:J28,J28)),5)) -> 3300 | N28: =ISBLANK(Vorrunde!F30) -> FALSE | O28: 22
A29: =Teilnehmerliste!A28 -> 23 | B29: =Teilnehmerliste!B28 &" "&Teilnehmerliste!C28 -> Niva D'Acunto | C29: =Vorrunde!$CU$81 -> 268 | D29: =Endplatzierung!$AX$58 -> 280 | E29: =Finalrunde!$AB$100 -> 2190 | F29: =IF(Teilnehmerliste!B28="","",SUM(C29:E29)) -> 2738 | H29: 64 | J29: =IF(ROWS($J$7:$J$7)<=$F$3,SMALL($H$7:$H$106,ROWS($J$7:J29)),"") -> 23 | K29: =IF($H29="","",INDEX($B$7:$H$106,_xlfn.AGGREGATE(14,6,ROW($H$7:$H$106)-ROW($H$7)+1/($H$7:$H$106=J29),COUNTIF($J$7:J29,J29)),1)) -> Marco Antonelli | L29: =IF($H29="","",INDEX($B$7:$H$106,_xlfn.AGGREGATE(14,6,ROW($H$7:$H$106)-ROW($H$7)+1/($H$7:$H$106=J29),COUNTIF($J$7:J29,J29)),5)) -> 3299 | N29: =ISBLANK(Vorrunde!F31) -> FALSE | O29: 23
A30: =Teilnehmerliste!A29 -> 24 | B30: =Teilnehmerliste!B29 &" "&Teilnehmerliste!C29 -> Vinci D'Acunto | C30: =Vorrunde!$CY$81 -> 279 | D30: =Endplatzierung!$AZ$58 -> 320 | E30: =Finalrunde!$AI$100 -> 1920 | F30: =IF(Teilnehmerliste!B29="","",SUM(C30:E30)) -> 2519 | H30: 74 | J30: =IF(ROWS($J$7:$J$7)<=$F$3,SMALL($H$7:$H$106,ROWS($J$7:J30)),"") -> 24 | K30: =IF($H30="","",INDEX($B$7:$H$106,_xlfn.AGGREGATE(14,6,ROW($H$7:$H$106)-ROW($H$7)+1/($H$7:$H$106=J30),COUNTIF($J$7:J30,J30)),1)) -> Martin Schawalder | L30: =IF($H30="","",INDEX($B$7:$H$106,_xlfn.AGGREGATE(14,6,ROW($H$7:$H$106)-ROW($H$7)+1/($H$7:$H$106=J30),COUNTIF($J$7:J30,J30)),5)) -> 3263 | N30: =ISBLANK(Vorrunde!F32) -> FALSE | O30: 24
A31: =Teilnehmerliste!A30 -> 25 | B31: =Teilnehmerliste!B30 &" "&Teilnehmerliste!C30 -> Rafael Derungs | C31: =Vorrunde!$DC$81 -> 274 | D31: =Endplatzierung!$BB$58 -> 280 | E31: =Finalrunde!$AP$100 -> 2490 | F31: =IF(Teilnehmerliste!B30="","",SUM(C31:E31)) -> 3044 | H31: 43 | J31: =IF(ROWS($J$7:$J$7)<=$F$3,SMALL($H$7:$H$106,ROWS($J$7:J31)),"") -> 24 | K31: =IF($H31="","",INDEX($B$7:$H$106,_xlfn.AGGREGATE(14,6,ROW($H$7:$H$106)-ROW($H$7)+1/($H$7:$H$106=J31),COUNTIF($J$7:J31,J31)),1)) -> Aya Bartholet | L31: =IF($H31="","",INDEX($B$7:$H$106,_xlfn.AGGREGATE(14,6,ROW($H$7:$H$106)-ROW($H$7)+1/($H$7:$H$106=J31),COUNTIF($J$7:J31,J31)),5)) -> 3263 | N31: =ISBLANK(Vorrunde!F33) -> FALSE | O31: 25
A32: =Teilnehmerliste!A31 -> 26 | B32: =Teilnehmerliste!B31 &" "&Teilnehmerliste!C31 -> Goran Djukic | C32: =Vorrunde!$DG$81 -> 268 | D32: =Endplatzierung!$BD$58 -> 260 | E32: =Finalrunde!$AW$100 -> 1940 | F32: =IF(Teilnehmerliste!B31="","",SUM(C32:E32)) -> 2468 | H32: 75 | J32: =IF(ROWS($J$7:$J$7)<=$F$3,SMALL($H$7:$H$106,ROWS($J$7:J32)),"") -> 26 | K32: =IF($H32="","",INDEX($B$7:$H$106,_xlfn.AGGREGATE(14,6,ROW($H$7:$H$106)-ROW($H$7)+1/($H$7:$H$106=J32),COUNTIF($J$7:J32,J32)),1)) -> Andreas Isenschmid | L32: =IF($H32="","",INDEX($B$7:$H$106,_xlfn.AGGREGATE(14,6,ROW($H$7:$H$106)-ROW($H$7)+1/($H$7:$H$106=J32),COUNTIF($J$7:J32,J32)),5)) -> 3241 | N32: =ISBLANK(Vorrunde!F34) -> FALSE | O32: 26
A33: =Teilnehmerliste!A32 -> 27 | B33: =Teilnehmerliste!B32 &" "&Teilnehmerliste!C32 -> Armin Duvnjak | C33: =Vorrunde!$DK$81 -> 249 | D33: =Endplatzierung!$BF$58 -> 340 | E33: =Finalrunde!$BD$100 -> 2260 | F33: =IF(Teilnehmerliste!B32="","",SUM(C33:E33)) -> 2849 | H33: 58 | J33: =IF(ROWS($J$7:$J$7)<=$F$3,SMALL($H$7:$H$106,ROWS($J$7:J33)),"") -> 27 | K33: =IF($H33="","",INDEX($B$7:$H$106,_xlfn.AGGREGATE(14,6,ROW($H$7:$H$106)-ROW($H$7)+1/($H$7:$H$106=J33),COUNTIF($J$7:J33,J33)),1)) -> Bruno Silva | L33: =IF($H33="","",INDEX($B$7:$H$106,_xlfn.AGGREGATE(14,6,ROW($H$7:$H$106)-ROW($H$7)+1/($H$7:$H$106=J33),COUNTIF($J$7:J33,J33)),5)) -> 3218 | N33: =ISBLANK(Vorrunde!F35) -> FALSE | O33: 27
A34: =Teilnehmerliste!A33 -> 28 | B34: =Teilnehmerliste!B33 &" "&Teilnehmerliste!C33 -> Dino Duvnjak | C34: =Vorrunde!$DO$81 -> 280 | D34: =Endplatzierung!$BH$58 -> 260 | E34: =Finalrunde!$BK$100 -> 2760 | F34: =IF(Teilnehmerliste!B33="","",SUM(C34:E34)) -> 3300 | H34: 22 | J34: =IF(ROWS($J$7:$J$7)<=$F$3,SMALL($H$7:$H$106,ROWS($J$7:J34)),"") -> 28 | K34: =IF($H34="","",INDEX($B$7:$H$106,_xlfn.AGGREGATE(14,6,ROW($H$7:$H$106)-ROW($H$7)+1/($H$7:$H$106=J34),COUNTIF($J$7:J34,J34)),1)) -> Peter Balazs | L34: =IF($H34="","",INDEX($B$7:$H$106,_xlfn.AGGREGATE(14,6,ROW($H$7:$H$106)-ROW($H$7)+1/($H$7:$H$106=J34),COUNTIF($J$7:J34,J34)),5)) -> 3202 | N34: =ISBLANK(Vorrunde!F36) -> FALSE | O34: 28
A35: =Teilnehmerliste!A34 -> 29 | B35: =Teilnehmerliste!B34 &" "&Teilnehmerliste!C34 -> Djuma Duvnjak | C35: =Vorrunde!$DS$81 -> 280 | D35: =Endplatzierung!$BJ$58 -> 340 | E35: =Finalrunde!$BR$100 -> 2710 | F35: =IF(Teilnehmerliste!B34="","",SUM(C35:E35)) -> 3330 | H35: 18 | J35: =IF(ROWS($J$7:$J$7)<=$F$3,SMALL($H$7:$H$106,ROWS($J$7:J35)),"") -> 29 | K35: =IF($H35="","",INDEX($B$7:$H$106,_xlfn.AGGREGATE(14,6,ROW($H$7:$H$106)-ROW($H$7)+1/($H$7:$H$106=J35),COUNTIF($J$7:J35,J35)),1)) -> Lisa D'Acunto | L35: =IF($H35="","",INDEX($B$7:$H$106,_xlfn.AGGREGATE(14,6,ROW($H$7:$H$106)-ROW($H$7)+1/($H$7:$H$106=J35),COUNTIF($J$7:J35,J35)),5)) -> 3192 | N35: =ISBLANK(Vorrunde!F37) -> FALSE | O35: 29
A36: =Teilnehmerliste!A35 -> 30 | B36: =Teilnehmerliste!B35 &" "&Teilnehmerliste!C35 -> Andreia Gomes | C36: =Vorrunde!$DW$81 -> 243 | D36: =Endplatzierung!$BL$58 -> 180 | E36: =Finalrunde!$BY$100 -> 1690 | F36: =IF(Teilnehmerliste!B35="","",SUM(C36:E36)) -> 2113 | H36: 82 | J36: =IF(ROWS($J$7:$J$7)<=$F$3,SMALL($H$7:$H$106,ROWS($J$7:J36)),"") -> 30 | K36: =IF($H36="","",INDEX($B$7:$H$106,_xlfn.AGGREGATE(14,6,ROW($H$7:$H$106)-ROW($H$7)+1/($H$7:$H$106=J36),COUNTIF($J$7:J36,J36)),1)) -> Timothy Gygli | L36: =IF($H36="","",INDEX($B$7:$H$106,_xlfn.AGGREGATE(14,6,ROW($H$7:$H$106)-ROW($H$7)+1/($H$7:$H$106=J36),COUNTIF($J$7:J36,J36)),5)) -> 3184 | N36: =ISBLANK(Vorrunde!F38) -> FALSE | O36: 30
A37: =Teilnehmerliste!A36 -> 31 | B37: =Teilnehmerliste!B36 &" "&Teilnehmerliste!C36 -> Rui Gomes | C37: =Vorrunde!$EA$81 -> 283 | D37: =Endplatzierung!$BN$58 -> 320 | E37: =Finalrunde!$CF$100 -> 2490 | F37: =IF(Teilnehmerliste!B36="","",SUM(C37:E37)) -> 3093 | H37: 42 | J37: =IF(ROWS($J$7:$J$7)<=$F$3,SMALL($H$7:$H$106,ROWS($J$7:J37)),"") -> 31 | K37: =IF($H37="","",INDEX($B$7:$H$106,_xlfn.AGGREGATE(14,6,ROW($H$7:$H$106)-ROW($H$7)+1/($H$7:$H$106=J37),COUNTIF($J$7:J37,J37)),1)) -> Telmo Oliveira | L37: =IF($H37="","",INDEX($B$7:$H$106,_xlfn.AGGREGATE(14,6,ROW($H$7:$H$106)-ROW($H$7)+1/($H$7:$H$106=J37),COUNTIF($J$7:J37,J37)),5)) -> 3182 | N37: =ISBLANK(Vorrunde!F39) -> FALSE | O37: 31
A38: =Teilnehmerliste!A37 -> 32 | B38: =Teilnehmerliste!B37 &" "&Teilnehmerliste!C37 -> Deliz González | C38: =Vorrunde!$EE$81 -> 246 | D38: =Endplatzierung!$BP$58 -> 140 | E38: =Finalrunde!$CM$100 -> 2500 | F38: =IF(Teilnehmerliste!B37="","",SUM(C38:E38)) -> 2886 | H38: 52 | J38: =IF(ROWS($J$7:$J$7)<=$F$3,SMALL($H$7:$H$106,ROWS($J$7:J38)),"") -> 31 | K38: =IF($H38="","",INDEX($B$7:$H$106,_xlfn.AGGREGATE(14,6,ROW($H$7:$H$106)-ROW($H$7)+1/($H$7:$H$106=J38),COUNTIF($J$7:J38,J38)),1)) -> Robin Gygli | L38: =IF($H38="","",INDEX($B$7:$H$106,_xlfn.AGGREGATE(14,6,ROW($H$7:$H$106)-ROW($H$7)+1/($H$7:$H$106=J38),COUNTIF($J$7:J38,J38)),5)) -> 3182 | N38: =ISBLANK(Vorrunde!F40) -> FALSE | O38: 32
A39: =Teilnehmerliste!A38 -> 33 | B39: =Teilnehmerliste!B38 &" "&Teilnehmerliste!C38 -> Florian González | C39: =Vorrunde!$EI$81 -> 259 | D39: =Endplatzierung!$BR$58 -> 280 | E39: =Finalrunde!$CT$100 -> 2780 | F39: =IF(Teilnehmerliste!B38="","",SUM(C39:E39)) -> 3319 | H39: 20 | J39: =IF(ROWS($J$7:$J$7)<=$F$3,SMALL($H$7:$H$106,ROWS($J$7:J39)),"") -> 33 | K39: =IF($H39="","",INDEX($B$7:$H$106,_xlfn.AGGREGATE(14,6,ROW($H$7:$H$106)-ROW($H$7)+1/($H$7:$H$106=J39),COUNTIF($J$7:J39,J39)),1)) -> Ivo und Brigitte Rüdemann | L39: =IF($H39="","",INDEX($B$7:$H$106,_xlfn.AGGREGATE(14,6,ROW($H$7:$H$106)-ROW($H$7)+1/($H$7:$H$106=J39),COUNTIF($J$7:J39,J39)),5)) -> 3170 | N39: =ISBLANK(Vorrunde!F41) -> FALSE | O39: 33
A40: =Teilnehmerliste!A39 -> 34 | B40: =Teilnehmerliste!B39 &" "&Teilnehmerliste!C39 -> Laurent Grosse | C40: =Vorrunde!$EM$81 -> 243 | D40: =Endplatzierung!$BT$58 -> 220 | E40: =Finalrunde!$DA$100 -> 2350 | F40: =IF(Teilnehmerliste!B39="","",SUM(C40:E40)) -> 2813 | H40: 61 | J40: =IF(ROWS($J$7:$J$7)<=$F$3,SMALL($H$7:$H$106,ROWS($J$7:J40)),"") -> 34 | K40: =IF($H40="","",INDEX($B$7:$H$106,_xlfn.AGGREGATE(14,6,ROW($H$7:$H$106)-ROW($H$7)+1/($H$7:$H$106=J40),COUNTIF($J$7:J40,J40)),1)) -> Nicolas Brunner | L40: =IF($H40="","",INDEX($B$7:$H$106,_xlfn.AGGREGATE(14,6,ROW($H$7:$H$106)-ROW($H$7)+1/($H$7:$H$106=J40),COUNTIF($J$7:J40,J40)),5)) -> 3162 | N40: =ISBLANK(Vorrunde!F42) -> FALSE | O40: 34
A41: =Teilnehmerliste!A40 -> 35 | B41: =Teilnehmerliste!B40 &" "&Teilnehmerliste!C40 -> Reto Gygli | C41: =Vorrunde!$EQ$81 -> 249 | D41: =Endplatzierung!$BV$58 -> 260 | E41: =Finalrunde!$DH$100 -> 2620 | F41: =IF(Teilnehmerliste!B40="","",SUM(C41:E41)) -> 3129 | H41: 36 | J41: =IF(ROWS($J$7:$J$7)<=$F$3,SMALL($H$7:$H$106,ROWS($J$7:J41)),"") -> 35 | K41: =IF($H41="","",INDEX($B$7:$H$106,_xlfn.AGGREGATE(14,6,ROW($H$7:$H$106)-ROW($H$7)+1/($H$7:$H$106=J41),COUNTIF($J$7:J41,J41)),1)) -> Leo Rodrigues da Costa | L41: =IF($H41="","",INDEX($B$7:$H$106,_xlfn.AGGREGATE(14,6,ROW($H$7:$H$106)-ROW($H$7)+1/($H$7:$H$106=J41),COUNTIF($J$7:J41,J41)),5)) -> 3159 | N41: =ISBLANK(Vorrunde!F43) -> FALSE | O41: 35
A42: =Teilnehmerliste!A41 -> 36 | B42: =Teilnehmerliste!B41 &" "&Teilnehmerliste!C41 -> Robin Gygli | C42: =Vorrunde!$EU$81 -> 282 | D42: =Endplatzierung!$BX$58 -> 280 | E42: =Finalrunde!$DO$100 -> 2620 | F42: =IF(Teilnehmerliste!B41="","",SUM(C42:E42)) -> 3182 | H42: 31 | J42: =IF(ROWS($J$7:$J$7)<=$F$3,SMALL($H$7:$H$106,ROWS($J$7:J42)),"") -> 36 | K42: =IF($H42="","",INDEX($B$7:$H$106,_xlfn.AGGREGATE(14,6,ROW($H$7:$H$106)-ROW($H$7)+1/($H$7:$H$106=J42),COUNTIF($J$7:J42,J42)),1)) -> Reto Gygli | L42: =IF($H42="","",INDEX($B$7:$H$106,_xlfn.AGGREGATE(14,6,ROW($H$7:$H$106)-ROW($H$7)+1/($H$7:$H$106=J42),COUNTIF($J$7:J42,J42)),5)) -> 3129 | N42: =ISBLANK(Vorrunde!F44) -> FALSE | O42: 36
A43: =Teilnehmerliste!A42 -> 37 | B43: =Teilnehmerliste!B42 &" "&Teilnehmerliste!C42 -> Sarina Gygli | C43: =Vorrunde!$EY$81 -> 245 | D43: =Endplatzierung!$BZ$58 -> 220 | E43: =Finalrunde!$DV$100 -> 2660 | F43: =IF(Teilnehmerliste!B42="","",SUM(C43:E43)) -> 3125 | H43: 37 | J43: =IF(ROWS($J$7:$J$7)<=$F$3,SMALL($H$7:$H$106,ROWS($J$7:J43)),"") -> 37 | K43: =IF($H43="","",INDEX($B$7:$H$106,_xlfn.AGGREGATE(14,6,ROW($H$7:$H$106)-ROW($H$7)+1/($H$7:$H$106=J43),COUNTIF($J$7:J43,J43)),1)) -> Sarina Gygli | L43: =IF($H43="","",INDEX($B$7:$H$106,_xlfn.AGGREGATE(14,6,ROW($H$7:$H$106)-ROW($H$7)+1/($H$7:$H$106=J43),COUNTIF($J$7:J43,J43)),5)) -> 3125 | N43: =ISBLANK(Vorrunde!F45) -> FALSE | O43: 37
A44: =Teilnehmerliste!A43 -> 38 | B44: =Teilnehmerliste!B43 &" "&Teilnehmerliste!C43 -> Selina Gygli | C44: =Vorrunde!$FC$81 -> 212 | D44: =Endplatzierung!$CB$58 -> 180 | E44: =Finalrunde!$EC$100 -> 2000 | F44: =IF(Teilnehmerliste!B43="","",SUM(C44:E44)) -> 2392 | H44: 79 | J44: =IF(ROWS($J$7:$J$7)<=$F$3,SMALL($H$7:$H$106,ROWS($J$7:J44)),"") -> 38 | K44: =IF($H44="","",INDEX($B$7:$H$106,_xlfn.AGGREGATE(14,6,ROW($H$7:$H$106)-ROW($H$7)+1/($H$7:$H$106=J44),COUNTIF($J$7:J44,J44)),1)) -> Lechena Pek | L44: =IF($H44="","",INDEX($B$7:$H$106,_xlfn.AGGREGATE(14,6,ROW($H$7:$H$106)-ROW($H$7)+1/($H$7:$H$106=J44),COUNTIF($J$7:J44,J44)),5)) -> 3122 | N44: =ISBLANK(Vorrunde!F46) -> FALSE | O44: 38
A45: =Teilnehmerliste!A44 -> 39 | B45: =Teilnehmerliste!B44 &" "&Teilnehmerliste!C44 -> Stefan Gygli | C45: =Vorrunde!$FG$81 -> 251 | D45: =Endplatzierung!$CD$58 -> 300 | E45: =Finalrunde!$EJ$100 -> 2550 | F45: =IF(Teilnehmerliste!B44="","",SUM(C45:E45)) -> 3101 | H45: 40 | J45: =IF(ROWS($J$7:$J$7)<=$F$3,SMALL($H$7:$H$106,ROWS($J$7:J45)),"") -> 39 | K45: =IF($H45="","",INDEX($B$7:$H$106,_xlfn.AGGREGATE(14,6,ROW($H$7:$H$106)-ROW($H$7)+1/($H$7:$H$106=J45),COUNTIF($J$7:J45,J45)),1)) -> Elias Marty | L45: =IF($H45="","",INDEX($B$7:$H$106,_xlfn.AGGREGATE(14,6,ROW($H$7:$H$106)-ROW($H$7)+1/($H$7:$H$106=J45),COUNTIF($J$7:J45,J45)),5)) -> 3108 | N45: =ISBLANK(Vorrunde!F47) -> FALSE | O45: 39
A46: =Teilnehmerliste!A45 -> 40 | B46: =Teilnehmerliste!B45 &" "&Teilnehmerliste!C45 -> Timothy Gygli | C46: =Vorrunde!$FK$81 -> 274 | D46: =Endplatzierung!$CF$58 -> 300 | E46: =Finalrunde!$EQ$100 -> 2610 | F46: =IF(Teilnehmerliste!B45="","",SUM(C46:E46)) -> 3184 | H46: 30 | J46: =IF(ROWS($J$7:$J$7)<=$F$3,SMALL($H$7:$H$106,ROWS($J$7:J46)),"") -> 40 | K46: =IF($H46="","",INDEX($B$7:$H$106,_xlfn.AGGREGATE(14,6,ROW($H$7:$H$106)-ROW($H$7)+1/($H$7:$H$106=J46),COUNTIF($J$7:J46,J46)),1)) -> Stefan Gygli | L46: =IF($H46="","",INDEX($B$7:$H$106,_xlfn.AGGREGATE(14,6,ROW($H$7:$H$106)-ROW($H$7)+1/($H$7:$H$106=J46),COUNTIF($J$7:J46,J46)),5)) -> 3101 | N46: =ISBLANK(Vorrunde!F48) -> FALSE | O46: 40
A47: =Teilnehmerliste!A46 -> 41 | B47: =Teilnehmerliste!B46 &" "&Teilnehmerliste!C46 -> Florian Haab | C47: =Vorrunde!$FO$81 -> 306 | D47: =Endplatzierung!$CH$58 -> 320 | E47: =Finalrunde!$N$150 -> 2870 | F47: =IF(Teilnehmerliste!B46="","",SUM(C47:E47)) -> 3496 | H47: 7 | J47: =IF(ROWS($J$7:$J$7)<=$F$3,SMALL($H$7:$H$106,ROWS($J$7:J47)),"") -> 41 | K47: =IF($H47="","",INDEX($B$7:$H$106,_xlfn.AGGREGATE(14,6,ROW($H$7:$H$106)-ROW($H$7)+1/($H$7:$H$106=J47),COUNTIF($J$7:J47,J47)),1)) -> Martin Marthaler | L47: =IF($H47="","",INDEX($B$7:$H$106,_xlfn.AGGREGATE(14,6,ROW($H$7:$H$106)-ROW($H$7)+1/($H$7:$H$106=J47),COUNTIF($J$7:J47,J47)),5)) -> 3094 | N47: =ISBLANK(Vorrunde!F49) -> FALSE | O47: 41
A48: =Teilnehmerliste!A47 -> 42 | B48: =Teilnehmerliste!B47 &" "&Teilnehmerliste!C47 -> Agnes Isenschmid | C48: =Vorrunde!$FS$81 -> 273 | D48: =Endplatzierung!$CJ$58 -> 360 | E48: =Finalrunde!$U$150 -> 3390 | F48: =IF(Teilnehmerliste!B47="","",SUM(C48:E48)) -> 4023 | H48: 2 | J48: =IF(ROWS($J$7:$J$7)<=$F$3,SMALL($H$7:$H$106,ROWS($J$7:J48)),"") -> 42 | K48: =IF($H48="","",INDEX($B$7:$H$106,_xlfn.AGGREGATE(14,6,ROW($H$7:$H$106)-ROW($H$7)+1/($H$7:$H$106=J48),COUNTIF($J$7:J48,J48)),1)) -> Rui Gomes | L48: =IF($H48="","",INDEX($B$7:$H$106,_xlfn.AGGREGATE(14,6,ROW($H$7:$H$106)-ROW($H$7)+1/($H$7:$H$106=J48),COUNTIF($J$7:J48,J48)),5)) -> 3093 | N48: =ISBLANK(Vorrunde!F50) -> FALSE | O48: 42
A49: =Teilnehmerliste!A48 -> 43 | B49: =Teilnehmerliste!B48 &" "&Teilnehmerliste!C48 -> Andreas Isenschmid | C49: =Vorrunde!$FW$81 -> 271 | D49: =Endplatzierung!$CL$58 -> 220 | E49: =Finalrunde!$AB$150 -> 2750 | F49: =IF(Teilnehmerliste!B48="","",SUM(C49:E49)) -> 3241 | H49: 26 | J49: =IF(ROWS($J$7:$J$7)<=$F$3,SMALL($H$7:$H$106,ROWS($J$7:J49)),"") -> 43 | K49: =IF($H49="","",INDEX($B$7:$H$106,_xlfn.AGGREGATE(14,6,ROW($H$7:$H$106)-ROW($H$7)+1/($H$7:$H$106=J49),COUNTIF($J$7:J49,J49)),1)) -> Rafael Derungs | L49: =IF($H49="","",INDEX($B$7:$H$106,_xlfn.AGGREGATE(14,6,ROW($H$7:$H$106)-ROW($H$7)+1/($H$7:$H$106=J49),COUNTIF($J$7:J49,J49)),5)) -> 3044 | N49: =ISBLANK(Vorrunde!F51) -> FALSE | O49: 43
A50: =Teilnehmerliste!A49 -> 44 | B50: =Teilnehmerliste!B49 &" "&Teilnehmerliste!C49 -> Michael Isenschmid | C50: =Vorrunde!$GA$81 -> 284 | D50: =Endplatzierung!$CN$58 -> 280 | E50: =Finalrunde!$AI$150 -> 2880 | F50: =IF(Teilnehmerliste!B49="","",SUM(C50:E50)) -> 3444 | H50: 12 | J50: =IF(ROWS($J$7:$J$7)<=$F$3,SMALL($H$7:$H$106,ROWS($J$7:J50)),"") -> 44 | K50: =IF($H50="","",INDEX($B$7:$H$106,_xlfn.AGGREGATE(14,6,ROW($H$7:$H$106)-ROW($H$7)+1/($H$7:$H$106=J50),COUNTIF($J$7:J50,J50)),1)) -> André Bartholet | L50: =IF($H50="","",INDEX($B$7:$H$106,_xlfn.AGGREGATE(14,6,ROW($H$7:$H$106)-ROW($H$7)+1/($H$7:$H$106=J50),COUNTIF($J$7:J50,J50)),5)) -> 3005 | N50: =ISBLANK(Vorrunde!F52) -> FALSE | O50: 44
A51: =Teilnehmerliste!A50 -> 45 | B51: =Teilnehmerliste!B50 &" "&Teilnehmerliste!C50 -> Aiden Jones | C51: =Vorrunde!$GE$81 -> 251 | D51: =Endplatzierung!$CP$58 -> 260 | E51: =Finalrunde!$AP$150 -> 2050 | F51: =IF(Teilnehmerliste!B50="","",SUM(C51:E51)) -> 2561 | H51: 72 | J51: =IF(ROWS($J$7:$J$7)<=$F$3,SMALL($H$7:$H$106,ROWS($J$7:J51)),"") -> 45 | K51: =IF($H51="","",INDEX($B$7:$H$106,_xlfn.AGGREGATE(14,6,ROW($H$7:$H$106)-ROW($H$7)+1/($H$7:$H$106=J51),COUNTIF($J$7:J51,J51)),1)) -> Michael Rüegg | L51: =IF($H51="","",INDEX($B$7:$H$106,_xlfn.AGGREGATE(14,6,ROW($H$7:$H$106)-ROW($H$7)+1/($H$7:$H$106=J51),COUNTIF($J$7:J51,J51)),5)) -> 2972 | N51: =ISBLANK(Vorrunde!F53) -> FALSE | O51: 45
A52: =Teilnehmerliste!A51 -> 46 | B52: =Teilnehmerliste!B51 &" "&Teilnehmerliste!C51 -> Pascal Keller | C52: =Vorrunde!$GI$81 -> 285 | D52: =Endplatzierung!$CR$58 -> 300 | E52: =Finalrunde!$AW$150 -> 2320 | F52: =IF(Teilnehmerliste!B51="","",SUM(C52:E52)) -> 2905 | H52: 50 | J52: =IF(ROWS($J$7:$J$7)<=$F$3,SMALL($H$7:$H$106,ROWS($J$7:J52)),"") -> 46 | K52: =IF($H52="","",INDEX($B$7:$H$106,_xlfn.AGGREGATE(14,6,ROW($H$7:$H$106)-ROW($H$7)+1/($H$7:$H$106=J52),COUNTIF($J$7:J52,J52)),1)) -> Mauro Marini | L52: =IF($H52="","",INDEX($B$7:$H$106,_xlfn.AGGREGATE(14,6,ROW($H$7:$H$106)-ROW($H$7)+1/($H$7:$H$106=J52),COUNTIF($J$7:J52,J52)),5)) -> 2965 | N52: =ISBLANK(Vorrunde!F54) -> FALSE | O52: 46
A53: =Teilnehmerliste!A52 -> 47 | B53: =Teilnehmerliste!B52 &" "&Teilnehmerliste!C52 -> Tanja Kistler | C53: =Vorrunde!$GM$81 -> 263 | D53: =Endplatzierung!$CT$58 -> 280 | E53: =Finalrunde!$BD$150 -> 2310 | F53: =IF(Teilnehmerliste!B52="","",SUM(C53:E53)) -> 2853 | H53: 56 | J53: =IF(ROWS($J$7:$J$7)<=$F$3,SMALL($H$7:$H$106,ROWS($J$7:J53)),"") -> 47 | K53: =IF($H53="","",INDEX($B$7:$H$106,_xlfn.AGGREGATE(14,6,ROW($H$7:$H$106)-ROW($H$7)+1/($H$7:$H$106=J53),COUNTIF($J$7:J53,J53)),1)) -> Philip Brunner | L53: =IF($H53="","",INDEX($B$7:$H$106,_xlfn.AGGREGATE(14,6,ROW($H$7:$H$106)-ROW($H$7)+1/($H$7:$H$106=J53),COUNTIF($J$7:J53,J53)),5)) -> 2926 | N53: =ISBLANK(Vorrunde!F55) -> FALSE | O53: 47
A54: =Teilnehmerliste!A53 -> 48 | B54: =Teilnehmerliste!B53 &" "&Teilnehmerliste!C53 -> André Lanz | C54: =Vorrunde!$GQ$81 -> 312 | D54: =Endplatzierung!$CV$58 -> 260 | E54: =Finalrunde!$BK$150 -> 3050 | F54: =IF(Teilnehmerliste!B53="","",SUM(C54:E54)) -> 3622 | H54: 4 | J54: =IF(ROWS($J$7:$J$7)<=$F$3,SMALL($H$7:$H$106,ROWS($J$7:J54)),"") -> 48 | K54: =IF($H54="","",INDEX($B$7:$H$106,_xlfn.AGGREGATE(14,6,ROW($H$7:$H$106)-ROW($H$7)+1/($H$7:$H$106=J54),COUNTIF($J$7:J54,J54)),1)) -> Oli Christiansen | L54: =IF($H54="","",INDEX($B$7:$H$106,_xlfn.AGGREGATE(14,6,ROW($H$7:$H$106)-ROW($H$7)+1/($H$7:$H$106=J54),COUNTIF($J$7:J54,J54)),5)) -> 2924 | N54: =ISBLANK(Vorrunde!F56) -> FALSE | O54: 48
A55: =Teilnehmerliste!A54 -> 49 | B55: =Teilnehmerliste!B54 &" "&Teilnehmerliste!C54 -> Franz Lischer | C55: =Vorrunde!$GU$81 -> 312 | D55: =Endplatzierung!$CX$58 -> 240 | E55: =Finalrunde!$BR$150 -> 2270 | F55: =IF(Teilnehmerliste!B54="","",SUM(C55:E55)) -> 2822 | H55: 60 | J55: =IF(ROWS($J$7:$J$7)<=$F$3,SMALL($H$7:$H$106,ROWS($J$7:J55)),"") -> 49 | K55: =IF($H55="","",INDEX($B$7:$H$106,_xlfn.AGGREGATE(14,6,ROW($H$7:$H$106)-ROW($H$7)+1/($H$7:$H$106=J55),COUNTIF($J$7:J55,J55)),1)) -> Christoph Wälti | L55: =IF($H55="","",INDEX($B$7:$H$106,_xlfn.AGGREGATE(14,6,ROW($H$7:$H$106)-ROW($H$7)+1/($H$7:$H$106=J55),COUNTIF($J$7:J55,J55)),5)) -> 2923 | N55: =ISBLANK(Vorrunde!F57) -> FALSE | O55: 49
A56: =Teilnehmerliste!A55 -> 50 | B56: =Teilnehmerliste!B55 &" "&Teilnehmerliste!C55 -> Marc Lütolf | C56: =Vorrunde!$GY$81 -> 269 | D56: =Endplatzierung!$CZ$58 -> 260 | E56: =Finalrunde!$BY$150 -> 3050 | F56: =IF(Teilnehmerliste!B55="","",SUM(C56:E56)) -> 3579 | H56: 5 | J56: =IF(ROWS($J$7:$J$7)<=$F$3,SMALL($H$7:$H$106,ROWS($J$7:J56)),"") -> 50 | K56: =IF($H56="","",INDEX($B$7:$H$106,_xlfn.AGGREGATE(14,6,ROW($H$7:$H$106)-ROW($H$7)+1/($H$7:$H$106=J56),COUNTIF($J$7:J56,J56)),1)) -> Pascal Keller | L56: =IF($H56="","",INDEX($B$7:$H$106,_xlfn.AGGREGATE(14,6,ROW($H$7:$H$106)-ROW($H$7)+1/($H$7:$H$106=J56),COUNTIF($J$7:J56,J56)),5)) -> 2905 | N56: =ISBLANK(Vorrunde!F58) -> FALSE | O56: 50
A57: =Teilnehmerliste!A56 -> 51 | B57: =Teilnehmerliste!B56 &" "&Teilnehmerliste!C56 -> Nicolas Mack | C57: =Vorrunde!$K$162 -> 283 | D57: =Endplatzierung!$F$116 -> 240 | E57: =Finalrunde!$CF$150 -> 2800 | F57: =IF(Teilnehmerliste!B56="","",SUM(C57:E57)) -> 3323 | H57: 19 | J57: =IF(ROWS($J$7:$J$7)<=$F$3,SMALL($H$7:$H$106,ROWS($J$7:J57)),"") -> 51 | K57: =IF($H57="","",INDEX($B$7:$H$106,_xlfn.AGGREGATE(14,6,ROW($H$7:$H$106)-ROW($H$7)+1/($H$7:$H$106=J57),COUNTIF($J$7:J57,J57)),1)) -> Reto Treichler | L57: =IF($H57="","",INDEX($B$7:$H$106,_xlfn.AGGREGATE(14,6,ROW($H$7:$H$106)-ROW($H$7)+1/($H$7:$H$106=J57),COUNTIF($J$7:J57,J57)),5)) -> 2898 | N57: =ISBLANK(Vorrunde!F59) -> FALSE | O57: 51
A58: =Teilnehmerliste!A57 -> 52 | B58: =Teilnehmerliste!B57 &" "&Teilnehmerliste!C57 -> Mauro Marini | C58: =Vorrunde!$O$162 -> 245 | D58: =Endplatzierung!$H$116 -> 300 | E58: =Finalrunde!$CM$150 -> 2420 | F58: =IF(Teilnehmerliste!B57="","",SUM(C58:E58)) -> 2965 | H58: 46 | J58: =IF(ROWS($J$7:$J$7)<=$F$3,SMALL($H$7:$H$106,ROWS($J$7:J58)),"") -> 52 | K58: =IF($H58="","",INDEX($B$7:$H$106,_xlfn.AGGREGATE(14,6,ROW($H$7:$H$106)-ROW($H$7)+1/($H$7:$H$106=J58),COUNTIF($J$7:J58,J58)),1)) -> Deliz González | L58: =IF($H58="","",INDEX($B$7:$H$106,_xlfn.AGGREGATE(14,6,ROW($H$7:$H$106)-ROW($H$7)+1/($H$7:$H$106=J58),COUNTIF($J$7:J58,J58)),5)) -> 2886 | N58: =ISBLANK(Vorrunde!F60) -> FALSE | O58: 52
A59: =Teilnehmerliste!A58 -> 53 | B59: =Teilnehmerliste!B58 &" "&Teilnehmerliste!C58 -> Ben Marthaler | C59: =Vorrunde!$S$162 -> 206 | D59: =Endplatzierung!$J$116 -> 220 | E59: =Finalrunde!$CT$150 -> 1220 | F59: =IF(Teilnehmerliste!B58="","",SUM(C59:E59)) -> 1646 | H59: 84 | J59: =IF(ROWS($J$7:$J$7)<=$F$3,SMALL($H$7:$H$106,ROWS($J$7:J59)),"") -> 53 | K59: =IF($H59="","",INDEX($B$7:$H$106,_xlfn.AGGREGATE(14,6,ROW($H$7:$H$106)-ROW($H$7)+1/($H$7:$H$106=J59),COUNTIF($J$7:J59,J59)),1)) -> Evelyne Schenk | L59: =IF($H59="","",INDEX($B$7:$H$106,_xlfn.AGGREGATE(14,6,ROW($H$7:$H$106)-ROW($H$7)+1/($H$7:$H$106=J59),COUNTIF($J$7:J59,J59)),5)) -> 2885 | N59: =ISBLANK(Vorrunde!F61) -> FALSE | O59: 53
A60: =Teilnehmerliste!A59 -> 54 | B60: =Teilnehmerliste!B59 &" "&Teilnehmerliste!C59 -> Martin Marthaler | C60: =Vorrunde!$W$162 -> 224 | D60: =Endplatzierung!$L$116 -> 140 | E60: =Finalrunde!$DA$150 -> 2730 | F60: =IF(Teilnehmerliste!B59="","",SUM(C60:E60)) -> 3094 | H60: 41 | J60: =IF(ROWS($J$7:$J$7)<=$F$3,SMALL($H$7:$H$106,ROWS($J$7:J60)),"") -> 54 | K60: =IF($H60="","",INDEX($B$7:$H$106,_xlfn.AGGREGATE(14,6,ROW($H$7:$H$106)-ROW($H$7)+1/($H$7:$H$106=J60),COUNTIF($J$7:J60,J60)),1)) -> Lynn Rüegg | L60: =IF($H60="","",INDEX($B$7:$H$106,_xlfn.AGGREGATE(14,6,ROW($H$7:$H$106)-ROW($H$7)+1/($H$7:$H$106=J60),COUNTIF($J$7:J60,J60)),5)) -> 2872 | N60: =ISBLANK(Vorrunde!F62) -> FALSE | O60: 54
A61: =Teilnehmerliste!A60 -> 55 | B61: =Teilnehmerliste!B60 &" "&Teilnehmerliste!C60 -> Elias Marty | C61: =Vorrunde!$AA$162 -> 238 | D61: =Endplatzierung!$N$116 -> 180 | E61: =Finalrunde!$DH$150 -> 2690 | F61: =IF(Teilnehmerliste!B60="","",SUM(C61:E61)) -> 3108 | H61: 39 | J61: =IF(ROWS($J$7:$J$7)<=$F$3,SMALL($H$7:$H$106,ROWS($J$7:J61)),"") -> 54 | K61: =IF($H61="","",INDEX($B$7:$H$106,_xlfn.AGGREGATE(14,6,ROW($H$7:$H$106)-ROW($H$7)+1/($H$7:$H$106=J61),COUNTIF($J$7:J61,J61)),1)) -> André Burkart | L61: =IF($H61="","",INDEX($B$7:$H$106,_xlfn.AGGREGATE(14,6,ROW($H$7:$H$106)-ROW($H$7)+1/($H$7:$H$106=J61),COUNTIF($J$7:J61,J61)),5)) -> 2872 | N61: =ISBLANK(Vorrunde!F63) -> FALSE | O61: 55
A62: =Teilnehmerliste!A61 -> 56 | B62: =Teilnehmerliste!B61 &" "&Teilnehmerliste!C61 -> Julian Merkli | C62: =Vorrunde!$AE$162 -> 242 | D62: =Endplatzierung!$P$116 -> 300 | E62: =Finalrunde!$DO$150 -> 2760 | F62: =IF(Teilnehmerliste!B61="","",SUM(C62:E62)) -> 3302 | H62: 21 | J62: =IF(ROWS($J$7:$J$7)<=$F$3,SMALL($H$7:$H$106,ROWS($J$7:J62)),"") -> 56 | K62: =IF($H62="","",INDEX($B$7:$H$106,_xlfn.AGGREGATE(14,6,ROW($H$7:$H$106)-ROW($H$7)+1/($H$7:$H$106=J62),COUNTIF($J$7:J62,J62)),1)) -> Erich Schommarz | L62: =IF($H62="","",INDEX($B$7:$H$106,_xlfn.AGGREGATE(14,6,ROW($H$7:$H$106)-ROW($H$7)+1/($H$7:$H$106=J62),COUNTIF($J$7:J62,J62)),5)) -> 2853 | N62: =ISBLANK(Vorrunde!F64) -> FALSE | O62: 56
A63: =Teilnehmerliste!A62 -> 57 | B63: =Teilnehmerliste!B62 &" "&Teilnehmerliste!C62 -> Philipp Meyer | C63: =Vorrunde!$AI$162 -> 256 | D63: =Endplatzierung!$R$116 -> 300 | E63: =Finalrunde!$DV$150 -> 2110 | F63: =IF(Teilnehmerliste!B62="","",SUM(C63:E63)) -> 2666 | H63: 68 | J63: =IF(ROWS($J$7:$J$7)<=$F$3,SMALL($H$7:$H$106,ROWS($J$7:J63)),"") -> 56 | K63: =IF($H63="","",INDEX($B$7:$H$106,_xlfn.AGGREGATE(14,6,ROW($H$7:$H$106)-ROW($H$7)+1/($H$7:$H$106=J63),COUNTIF($J$7:J63,J63)),1)) -> Tanja Kistler | L63: =IF($H63="","",INDEX($B$7:$H$106,_xlfn.AGGREGATE(14,6,ROW($H$7:$H$106)-ROW($H$7)+1/($H$7:$H$106=J63),COUNTIF($J$7:J63,J63)),5)) -> 2853 | N63: =ISBLANK(Vorrunde!F65) -> FALSE | O63: 57
A64: =Teilnehmerliste!A63 -> 58 | B64: =Teilnehmerliste!B63 &" "&Teilnehmerliste!C63 -> Telmo Oliveira | C64: =Vorrunde!$AM$162 -> 262 | D64: =Endplatzierung!$T$116 -> 280 | E64: =Finalrunde!$EC$150 -> 2640 | F64: =IF(Teilnehmerliste!B63="","",SUM(C64:E64)) -> 3182 | H64: 31 | J64: =IF(ROWS($J$7:$J$7)<=$F$3,SMALL($H$7:$H$106,ROWS($J$7:J64)),"") -> 58 | K64: =IF($H64="","",INDEX($B$7:$H$106,_xlfn.AGGREGATE(14,6,ROW($H$7:$H$106)-ROW($H$7)+1/($H$7:$H$106=J64),COUNTIF($J$7:J64,J64)),1)) -> Armin Duvnjak | L64: =IF($H64="","",INDEX($B$7:$H$106,_xlfn.AGGREGATE(14,6,ROW($H$7:$H$106)-ROW($H$7)+1/($H$7:$H$106=J64),COUNTIF($J$7:J64,J64)),5)) -> 2849 | N64: =ISBLANK(Vorrunde!F66) -> FALSE | O64: 58
A65: =Teilnehmerliste!A64 -> 59 | B65: =Teilnehmerliste!B64 &" "&Teilnehmerliste!C64 -> Martin Oroshi | C65: =Vorrunde!$AQ$162 -> 275 | D65: =Endplatzierung!$V$116 -> 300 | E65: =Finalrunde!$EJ$150 -> 2110 | F65: =IF(Teilnehmerliste!B64="","",SUM(C65:E65)) -> 2685 | H65: 67 | J65: =IF(ROWS($J$7:$J$7)<=$F$3,SMALL($H$7:$H$106,ROWS($J$7:J65)),"") -> 59 | K65: =IF($H65="","",INDEX($B$7:$H$106,_xlfn.AGGREGATE(14,6,ROW($H$7:$H$106)-ROW($H$7)+1/($H$7:$H$106=J65),COUNTIF($J$7:J65,J65)),1)) -> Stefan Principe | L65: =IF($H65="","",INDEX($B$7:$H$106,_xlfn.AGGREGATE(14,6,ROW($H$7:$H$106)-ROW($H$7)+1/($H$7:$H$106=J65),COUNTIF($J$7:J65,J65)),5)) -> 2839 | N65: =ISBLANK(Vorrunde!F67) -> FALSE | O65: 59
A66: =Teilnehmerliste!A65 -> 60 | B66: =Teilnehmerliste!B65 &" "&Teilnehmerliste!C65 -> Lechena Pek | C66: =Vorrunde!$AU$162 -> 242 | D66: =Endplatzierung!$X$116 -> 280 | E66: =Finalrunde!$EQ$150 -> 2600 | F66: =IF(Teilnehmerliste!B65="","",SUM(C66:E66)) -> 3122 | H66: 38 | J66: =IF(ROWS($J$7:$J$7)<=$F$3,SMALL($H$7:$H$106,ROWS($J$7:J66)),"") -> 60 | K66: =IF($H66="","",INDEX($B$7:$H$106,_xlfn.AGGREGATE(14,6,ROW($H$7:$H$106)-ROW($H$7)+1/($H$7:$H$106=J66),COUNTIF($J$7:J66,J66)),1)) -> Franz Lischer | L66: =IF($H66="","",INDEX($B$7:$H$106,_xlfn.AGGREGATE(14,6,ROW($H$7:$H$106)-ROW($H$7)+1/($H$7:$H$106=J66),COUNTIF($J$7:J66,J66)),5)) -> 2822 | N66: =ISBLANK(Vorrunde!F68) -> FALSE | O66: 60
A67: =Teilnehmerliste!A66 -> 61 | B67: =Teilnehmerliste!B66 &" "&Teilnehmerliste!C66 -> Stefan Principe | C67: =Vorrunde!$AY$162 -> 259 | D67: =Endplatzierung!$Z$116 -> 300 | E67: =Finalrunde!$N$200 -> 2280 | F67: =IF(Teilnehmerliste!B66="","",SUM(C67:E67)) -> 2839 | H67: 59 | J67: =IF(ROWS($J$7:$J$7)<=$F$3,SMALL($H$7:$H$106,ROWS($J$7:J67)),"") -> 61 | K67: =IF($H67="","",INDEX($B$7:$H$106,_xlfn.AGGREGATE(14,6,ROW($H$7:$H$106)-ROW($H$7)+1/($H$7:$H$106=J67),COUNTIF($J$7:J67,J67)),1)) -> Laurent Grosse | L67: =IF($H67="","",INDEX($B$7:$H$106,_xlfn.AGGREGATE(14,6,ROW($H$7:$H$106)-ROW($H$7)+1/($H$7:$H$106=J67),COUNTIF($J$7:J67,J67)),5)) -> 2813 | N67: =ISBLANK(Vorrunde!F69) -> FALSE | O67: 61
A68: =Teilnehmerliste!A67 -> 62 | B68: =Teilnehmerliste!B67 &" "&Teilnehmerliste!C67 -> Michael Prucha | C68: =Vorrunde!$BC$162 -> 248 | D68: =Endplatzierung!$AB$116 -> 280 | E68: =Finalrunde!$U$200 -> 2830 | F68: =IF(Teilnehmerliste!B67="","",SUM(C68:E68)) -> 3358 | H68: 16 | J68: =IF(ROWS($J$7:$J$7)<=$F$3,SMALL($H$7:$H$106,ROWS($J$7:J68)),"") -> 62 | K68: =IF($H68="","",INDEX($B$7:$H$106,_xlfn.AGGREGATE(14,6,ROW($H$7:$H$106)-ROW($H$7)+1/($H$7:$H$106=J68),COUNTIF($J$7:J68,J68)),1)) -> Philippe Bartholet | L68: =IF($H68="","",INDEX($B$7:$H$106,_xlfn.AGGREGATE(14,6,ROW($H$7:$H$106)-ROW($H$7)+1/($H$7:$H$106=J68),COUNTIF($J$7:J68,J68)),5)) -> 2781 | N68: =ISBLANK(Vorrunde!F70) -> FALSE | O68: 62
A69: =Teilnehmerliste!A68 -> 63 | B69: =Teilnehmerliste!B68 &" "&Teilnehmerliste!C68 -> Petra Rauscher | C69: =Vorrunde!$BG$162 -> 253 | D69: =Endplatzierung!$AD$116 -> 200 | E69: =Finalrunde!$AB$200 -> 2250 | F69: =IF(Teilnehmerliste!B68="","",SUM(C69:E69)) -> 2703 | H69: 66 | J69: =IF(ROWS($J$7:$J$7)<=$F$3,SMALL($H$7:$H$106,ROWS($J$7:J69)),"") -> 63 | K69: =IF($H69="","",INDEX($B$7:$H$106,_xlfn.AGGREGATE(14,6,ROW($H$7:$H$106)-ROW($H$7)+1/($H$7:$H$106=J69),COUNTIF($J$7:J69,J69)),1)) -> Panos Agorastos | L69: =IF($H69="","",INDEX($B$7:$H$106,_xlfn.AGGREGATE(14,6,ROW($H$7:$H$106)-ROW($H$7)+1/($H$7:$H$106=J69),COUNTIF($J$7:J69,J69)),5)) -> 2750 | N69: =ISBLANK(Vorrunde!F71) -> FALSE | O69: 63
A70: =Teilnehmerliste!A69 -> 64 | B70: =Teilnehmerliste!B69 &" "&Teilnehmerliste!C69 -> Martin Rohner | C70: =Vorrunde!$BK$162 -> 227 | D70: =Endplatzierung!$AF$116 -> 240 | E70: =Finalrunde!$AI$200 -> 3170 | F70: =IF(Teilnehmerliste!B69="","",SUM(C70:E70)) -> 3637 | H70: 3 | J70: =IF(ROWS($J$7:$J$7)<=$F$3,SMALL($H$7:$H$106,ROWS($J$7:J70)),"") -> 64 | K70: =IF($H70="","",INDEX($B$7:$H$106,_xlfn.AGGREGATE(14,6,ROW($H$7:$H$106)-ROW($H$7)+1/($H$7:$H$106=J70),COUNTIF($J$7:J70,J70)),1)) -> Niva D'Acunto | L70: =IF($H70="","",INDEX($B$7:$H$106,_xlfn.AGGREGATE(14,6,ROW($H$7:$H$106)-ROW($H$7)+1/($H$7:$H$106=J70),COUNTIF($J$7:J70,J70)),5)) -> 2738 | N70: =ISBLANK(Vorrunde!F72) -> FALSE | O70: 64
A71: =Teilnehmerliste!A70 -> 65 | B71: =Teilnehmerliste!B70 &" "&Teilnehmerliste!C70 -> Ivo und Brigitte Rüdemann | C71: =Vorrunde!$BO$162 -> 260 | D71: =Endplatzierung!$AH$116 -> 240 | E71: =Finalrunde!$AP$200 -> 2670 | F71: =IF(Teilnehmerliste!B70="","",SUM(C71:E71)) -> 3170 | H71: 33 | J71: =IF(ROWS($J$7:$J$7)<=$F$3,SMALL($H$7:$H$106,ROWS($J$7:J71)),"") -> 65 | K71: =IF($H71="","",INDEX($B$7:$H$106,_xlfn.AGGREGATE(14,6,ROW($H$7:$H$106)-ROW($H$7)+1/($H$7:$H$106=J71),COUNTIF($J$7:J71,J71)),1)) -> Ruben Antonelli | L71: =IF($H71="","",INDEX($B$7:$H$106,_xlfn.AGGREGATE(14,6,ROW($H$7:$H$106)-ROW($H$7)+1/($H$7:$H$106=J71),COUNTIF($J$7:J71,J71)),5)) -> 2716 | N71: =ISBLANK(Vorrunde!F73) -> FALSE | O71: 65
A72: =Teilnehmerliste!A71 -> 66 | B72: =Teilnehmerliste!B71 &" "&Teilnehmerliste!C71 -> Lynn Rüegg | C72: =Vorrunde!$BS$162 -> 252 | D72: =Endplatzierung!$AJ$116 -> 360 | E72: =Finalrunde!$AW$200 -> 2260 | F72: =IF(Teilnehmerliste!B71="","",SUM(C72:E72)) -> 2872 | H72: =IFERROR(_xlfn.RANK.EQ(F72,$F$7:$F$106,0),"") -> 54 | J72: =IF(ROWS($J$7:$J$7)<=$F$3,SMALL($H$7:$H$106,ROWS($J$7:J72)),"") -> 66 | K72: =IF($H72="","",INDEX($B$7:$H$106,_xlfn.AGGREGATE(14,6,ROW($H$7:$H$106)-ROW($H$7)+1/($H$7:$H$106=J72),COUNTIF($J$7:J72,J72)),1)) -> Petra Rauscher | L72: =IF($H72="","",INDEX($B$7:$H$106,_xlfn.AGGREGATE(14,6,ROW($H$7:$H$106)-ROW($H$7)+1/($H$7:$H$106=J72),COUNTIF($J$7:J72,J72)),5)) -> 2703 | N72: =ISBLANK(Vorrunde!F74) -> FALSE | O72: 66
A73: =Teilnehmerliste!A72 -> 67 | B73: =Teilnehmerliste!B72 &" "&Teilnehmerliste!C72 -> Michael Rüegg | C73: =Vorrunde!$BW$162 -> 262 | D73: =Endplatzierung!$AL$116 -> 260 | E73: =Finalrunde!$BD$200 -> 2450 | F73: =IF(Teilnehmerliste!B72="","",SUM(C73:E73)) -> 2972 | H73: 45 | J73: =IF(ROWS($J$7:$J$7)<=$F$3,SMALL($H$7:$H$106,ROWS($J$7:J73)),"") -> 67 | K73: =IF($H73="","",INDEX($B$7:$H$106,_xlfn.AGGREGATE(14,6,ROW($H$7:$H$106)-ROW($H$7)+1/($H$7:$H$106=J73),COUNTIF($J$7:J73,J73)),1)) -> Martin Oroshi | L73: =IF($H73="","",INDEX($B$7:$H$106,_xlfn.AGGREGATE(14,6,ROW($H$7:$H$106)-ROW($H$7)+1/($H$7:$H$106=J73),COUNTIF($J$7:J73,J73)),5)) -> 2685 | N73: =ISBLANK(Vorrunde!F75) -> FALSE | O73: 67
A74: =Teilnehmerliste!A73 -> 68 | B74: =Teilnehmerliste!B73 &" "&Teilnehmerliste!C73 -> Sabine Rüegg | C74: =Vorrunde!$CA$162 -> 272 | D74: =Endplatzierung!$AN$116 -> 300 | E74: =Finalrunde!$BK$200 -> 2920 | F74: =IF(Teilnehmerliste!B73="","",SUM(C74:E74)) -> 3492 | H74: 8 | J74: =IF(ROWS($J$7:$J$7)<=$F$3,SMALL($H$7:$H$106,ROWS($J$7:J74)),"") -> 68 | K74: =IF($H74="","",INDEX($B$7:$H$106,_xlfn.AGGREGATE(14,6,ROW($H$7:$H$106)-ROW($H$7)+1/($H$7:$H$106=J74),COUNTIF($J$7:J74,J74)),1)) -> Philipp Meyer | L74: =IF($H74="","",INDEX($B$7:$H$106,_xlfn.AGGREGATE(14,6,ROW($H$7:$H$106)-ROW($H$7)+1/($H$7:$H$106=J74),COUNTIF($J$7:J74,J74)),5)) -> 2666 | N74: =ISBLANK(Vorrunde!F76) -> FALSE | O74: 68
A75: =Teilnehmerliste!A74 -> 69 | B75: =Teilnehmerliste!B74 &" "&Teilnehmerliste!C74 -> Martin Schawalder | C75: =Vorrunde!$CE$162 -> 283 | D75: =Endplatzierung!$AP$116 -> 220 | E75: =Finalrunde!$BR$200 -> 2760 | F75: =IF(Teilnehmerliste!B74="","",SUM(C75:E75)) -> 3263 | H75: 24 | J75: =IF(ROWS($J$7:$J$7)<=$F$3,SMALL($H$7:$H$106,ROWS($J$7:J75)),"") -> 69 | K75: =IF($H75="","",INDEX($B$7:$H$106,_xlfn.AGGREGATE(14,6,ROW($H$7:$H$106)-ROW($H$7)+1/($H$7:$H$106=J75),COUNTIF($J$7:J75,J75)),1)) -> Yiannis Agorastos | L75: =IF($H75="","",INDEX($B$7:$H$106,_xlfn.AGGREGATE(14,6,ROW($H$7:$H$106)-ROW($H$7)+1/($H$7:$H$106=J75),COUNTIF($J$7:J75,J75)),5)) -> 2640 | N75: =ISBLANK(Vorrunde!F77) -> FALSE | O75: 69
A76: =Teilnehmerliste!A75 -> 70 | B76: =Teilnehmerliste!B75 &" "&Teilnehmerliste!C75 -> Evelyne Schenk | C76: =Vorrunde!$CI$162 -> 245 | D76: =Endplatzierung!$AR$116 -> 260 | E76: =Finalrunde!$BY$200 -> 2380 | F76: =IF(Teilnehmerliste!B75="","",SUM(C76:E76)) -> 2885 | H76: 53 | J76: =IF(ROWS($J$7:$J$7)<=$F$3,SMALL($H$7:$H$106,ROWS($J$7:J76)),"") -> 70 | K76: =IF($H76="","",INDEX($B$7:$H$106,_xlfn.AGGREGATE(14,6,ROW($H$7:$H$106)-ROW($H$7)+1/($H$7:$H$106=J76),COUNTIF($J$7:J76,J76)),1)) -> Jingwen Wang | L76: =IF($H76="","",INDEX($B$7:$H$106,_xlfn.AGGREGATE(14,6,ROW($H$7:$H$106)-ROW($H$7)+1/($H$7:$H$106=J76),COUNTIF($J$7:J76,J76)),5)) -> 2638 | N76: =ISBLANK(Vorrunde!F78) -> FALSE | O76: 70
A77: =Teilnehmerliste!A76 -> 71 | B77: =Teilnehmerliste!B76 &" "&Teilnehmerliste!C76 -> Yannick Schilliger | C77: =Vorrunde!$CM$162 -> 283 | D77: =Endplatzierung!$AT$116 -> 300 | E77: =Finalrunde!$CF$200 -> 2830 | F77: =IF(Teilnehmerliste!B76="","",SUM(C77:E77)) -> 3413 | H77: 13 | J77: =IF(ROWS($J$7:$J$7)<=$F$3,SMALL($H$7:$H$106,ROWS($J$7:J77)),"") -> 71 | K77: =IF($H77="","",INDEX($B$7:$H$106,_xlfn.AGGREGATE(14,6,ROW($H$7:$H$106)-ROW($H$7)+1/($H$7:$H$106=J77),COUNTIF($J$7:J77,J77)),1)) -> Lea Treichler | L77: =IF($H77="","",INDEX($B$7:$H$106,_xlfn.AGGREGATE(14,6,ROW($H$7:$H$106)-ROW($H$7)+1/($H$7:$H$106=J77),COUNTIF($J$7:J77,J77)),5)) -> 2574 | N77: =ISBLANK(Vorrunde!F79) -> FALSE | O77: 71
A78: =Teilnehmerliste!A77 -> 72 | B78: =Teilnehmerliste!B77 &" "&Teilnehmerliste!C77 -> Erich Schommarz | C78: =Vorrunde!$CQ$162 -> 263 | D78: =Endplatzierung!$AV$116 -> 340 | E78: =Finalrunde!$CM$200 -> 2250 | F78: =IF(Teilnehmerliste!B77="","",SUM(C78:E78)) -> 2853 | H78: 56 | J78: =IF(ROWS($J$7:$J$7)<=$F$3,SMALL($H$7:$H$106,ROWS($J$7:J78)),"") -> 72 | K78: =IF($H78="","",INDEX($B$7:$H$106,_xlfn.AGGREGATE(14,6,ROW($H$7:$H$106)-ROW($H$7)+1/($H$7:$H$106=J78),COUNTIF($J$7:J78,J78)),1)) -> Aiden Jones | L78: =IF($H78="","",INDEX($B$7:$H$106,_xlfn.AGGREGATE(14,6,ROW($H$7:$H$106)-ROW($H$7)+1/($H$7:$H$106=J78),COUNTIF($J$7:J78,J78)),5)) -> 2561 | N78: =ISBLANK(Vorrunde!F80) -> FALSE | O78: 72
A79: =Teilnehmerliste!A78 -> 73 | B79: =Teilnehmerliste!B78 &" "&Teilnehmerliste!C78 -> Ralph Schuster | C79: =Vorrunde!$CU$162 -> 241 | D79: =Endplatzierung!$AX$116 -> 240 | E79: =Finalrunde!$CT$200 -> 1960 | F79: =IF(Teilnehmerliste!B78="","",SUM(C79:E79)) -> 2441 | H79: 76 | J79: =IF(ROWS($J$7:$J$7)<=$F$3,SMALL($H$7:$H$106,ROWS($J$7:J79)),"") -> 73 | K79: =IF($H79="","",INDEX($B$7:$H$106,_xlfn.AGGREGATE(14,6,ROW($H$7:$H$106)-ROW($H$7)+1/($H$7:$H$106=J79),COUNTIF($J$7:J79,J79)),1)) -> Manuel Brunner | L79: =IF($H79="","",INDEX($B$7:$H$106,_xlfn.AGGREGATE(14,6,ROW($H$7:$H$106)-ROW($H$7)+1/($H$7:$H$106=J79),COUNTIF($J$7:J79,J79)),5)) -> 2548 | N79: =ISBLANK(Finalrunde!F11) -> FALSE | O79: 73
A80: =Teilnehmerliste!A79 -> 74 | B80: =Teilnehmerliste!B79 &" "&Teilnehmerliste!C79 -> Bruno Silva | C80: =Vorrunde!$CY$162 -> 268 | D80: =Endplatzierung!$AZ$116 -> 360 | E80: =Finalrunde!$DA$200 -> 2590 | F80: =IF(Teilnehmerliste!B79="","",SUM(C80:E80)) -> 3218 | H80: 27 | J80: =IF(ROWS($J$7:$J$7)<=$F$3,SMALL($H$7:$H$106,ROWS($J$7:J80)),"") -> 74 | K80: =IF($H80="","",INDEX($B$7:$H$106,_xlfn.AGGREGATE(14,6,ROW($H$7:$H$106)-ROW($H$7)+1/($H$7:$H$106=J80),COUNTIF($J$7:J80,J80)),1)) -> Vinci D'Acunto | L80: =IF($H80="","",INDEX($B$7:$H$106,_xlfn.AGGREGATE(14,6,ROW($H$7:$H$106)-ROW($H$7)+1/($H$7:$H$106=J80),COUNTIF($J$7:J80,J80)),5)) -> 2519 | N80: =ISBLANK(Finalrunde!F12) -> FALSE | O80: 74
A81: =Teilnehmerliste!A80 -> 75 | B81: =Teilnehmerliste!B80 &" "&Teilnehmerliste!C80 -> Aleandro Silvestri | C81: =Vorrunde!$DC$162 -> 306 | D81: =Endplatzierung!$BB$116 -> 380 | E81: =Finalrunde!$DH$200 -> 2650 | F81: =IF(Teilnehmerliste!B80="","",SUM(C81:E81)) -> 3336 | H81: 17 | J81: =IF(ROWS($J$7:$J$7)<=$F$3,SMALL($H$7:$H$106,ROWS($J$7:J81)),"") -> 75 | K81: =IF($H81="","",INDEX($B$7:$H$106,_xlfn.AGGREGATE(14,6,ROW($H$7:$H$106)-ROW($H$7)+1/($H$7:$H$106=J81),COUNTIF($J$7:J81,J81)),1)) -> Goran Djukic | L81: =IF($H81="","",INDEX($B$7:$H$106,_xlfn.AGGREGATE(14,6,ROW($H$7:$H$106)-ROW($H$7)+1/($H$7:$H$106=J81),COUNTIF($J$7:J81,J81)),5)) -> 2468 | N81: =ISBLANK(Finalrunde!F13) -> FALSE | O81: 75
A82: =Teilnehmerliste!A81 -> 76 | B82: =Teilnehmerliste!B81 &" "&Teilnehmerliste!C81 -> Armando Thormann | C82: =Vorrunde!$DG$162 -> 271 | D82: =Endplatzierung!$BD$116 -> 380 | E82: =Finalrunde!$DO$200 -> 2880 | F82: =IF(Teilnehmerliste!B81="","",SUM(C82:E82)) -> 3531 | H82: 6 | J82: =IF(ROWS($J$7:$J$7)<=$F$3,SMALL($H$7:$H$106,ROWS($J$7:J82)),"") -> 76 | K82: =IF($H82="","",INDEX($B$7:$H$106,_xlfn.AGGREGATE(14,6,ROW($H$7:$H$106)-ROW($H$7)+1/($H$7:$H$106=J82),COUNTIF($J$7:J82,J82)),1)) -> Ralph Schuster | L82: =IF($H82="","",INDEX($B$7:$H$106,_xlfn.AGGREGATE(14,6,ROW($H$7:$H$106)-ROW($H$7)+1/($H$7:$H$106=J82),COUNTIF($J$7:J82,J82)),5)) -> 2441 | N82: =ISBLANK(Finalrunde!F14) -> FALSE | O82: 76
A83: =Teilnehmerliste!A82 -> 77 | B83: =Teilnehmerliste!B82 &" "&Teilnehmerliste!C82 -> Lea Treichler | C83: =Vorrunde!$DK$162 -> 274 | D83: =Endplatzierung!$BF$116 -> 300 | E83: =Finalrunde!$DV$200 -> 2000 | F83: =IF(Teilnehmerliste!B82="","",SUM(C83:E83)) -> 2574 | H83: 71 | J83: =IF(ROWS($J$7:$J$7)<=$F$3,SMALL($H$7:$H$106,ROWS($J$7:J83)),"") -> 77 | K83: =IF($H83="","",INDEX($B$7:$H$106,_xlfn.AGGREGATE(14,6,ROW($H$7:$H$106)-ROW($H$7)+1/($H$7:$H$106=J83),COUNTIF($J$7:J83,J83)),1)) -> Roger Bartholet | L83: =IF($H83="","",INDEX($B$7:$H$106,_xlfn.AGGREGATE(14,6,ROW($H$7:$H$106)-ROW($H$7)+1/($H$7:$H$106=J83),COUNTIF($J$7:J83,J83)),5)) -> 2411 | N83: =ISBLANK(Finalrunde!F15) -> FALSE | O83: 77
A84: =Teilnehmerliste!A83 -> 78 | B84: =Teilnehmerliste!B83 &" "&Teilnehmerliste!C83 -> Reto Treichler | C84: =Vorrunde!$DO$162 -> 278 | D84: =Endplatzierung!$BH$116 -> 320 | E84: =Finalrunde!$EC$200 -> 2300 | F84: =IF(Teilnehmerliste!B83="","",SUM(C84:E84)) -> 2898 | H84: 51 | J84: =IF(ROWS($J$7:$J$7)<=$F$3,SMALL($H$7:$H$106,ROWS($J$7:J84)),"") -> 78 | K84: =IF($H84="","",INDEX($B$7:$H$106,_xlfn.AGGREGATE(14,6,ROW($H$7:$H$106)-ROW($H$7)+1/($H$7:$H$106=J84),COUNTIF($J$7:J84,J84)),1)) -> Marc Walthard | L84: =IF($H84="","",INDEX($B$7:$H$106,_xlfn.AGGREGATE(14,6,ROW($H$7:$H$106)-ROW($H$7)+1/($H$7:$H$106=J84),COUNTIF($J$7:J84,J84)),5)) -> 2406 | N84: =ISBLANK(Finalrunde!F16) -> FALSE | O84: 78
A85: =Teilnehmerliste!A84 -> 79 | B85: =Teilnehmerliste!B84 &" "&Teilnehmerliste!C84 -> Christoph Wälti | C85: =Vorrunde!$DS$162 -> 313 | D85: =Endplatzierung!$BJ$116 -> 320 | E85: =Finalrunde!$EJ$200 -> 2290 | F85: =IF(Teilnehmerliste!B84="","",SUM(C85:E85)) -> 2923 | H85: 49 | J85: =IF(ROWS($J$7:$J$7)<=$F$3,SMALL($H$7:$H$106,ROWS($J$7:J85)),"") -> 79 | K85: =IF($H85="","",INDEX($B$7:$H$106,_xlfn.AGGREGATE(14,6,ROW($H$7:$H$106)-ROW($H$7)+1/($H$7:$H$106=J85),COUNTIF($J$7:J85,J85)),1)) -> Selina Gygli | L85: =IF($H85="","",INDEX($B$7:$H$106,_xlfn.AGGREGATE(14,6,ROW($H$7:$H$106)-ROW($H$7)+1/($H$7:$H$106=J85),COUNTIF($J$7:J85,J85)),5)) -> 2392 | N85: =ISBLANK(Finalrunde!F17) -> FALSE | O85: 79
A86: =Teilnehmerliste!A85 -> 80 | B86: =Teilnehmerliste!B85 &" "&Teilnehmerliste!C85 -> Markus Wagner | C86: =Vorrunde!$DW$162 -> 283 | D86: =Endplatzierung!$BL$116 -> 320 | E86: =Finalrunde!$EQ$200 -> 2850 | F86: =IF(Teilnehmerliste!B85="","",SUM(C86:E86)) -> 3453 | H86: 11 | J86: =IF(ROWS($J$7:$J$7)<=$F$3,SMALL($H$7:$H$106,ROWS($J$7:J86)),"") -> 80 | K86: =IF($H86="","",INDEX($B$7:$H$106,_xlfn.AGGREGATE(14,6,ROW($H$7:$H$106)-ROW($H$7)+1/($H$7:$H$106=J86),COUNTIF($J$7:J86,J86)),1)) -> Stefan Zachmann | L86: =IF($H86="","",INDEX($B$7:$H$106,_xlfn.AGGREGATE(14,6,ROW($H$7:$H$106)-ROW($H$7)+1/($H$7:$H$106=J86),COUNTIF($J$7:J86,J86)),5)) -> 2379 | N86: =ISBLANK(Finalrunde!F18) -> FALSE | O86: 80
A87: =Teilnehmerliste!A86 -> 81 | B87: =Teilnehmerliste!B86 &" "&Teilnehmerliste!C86 -> Marc Walthard | C87: =Vorrunde!$EA$162 -> 266 | D87: =Endplatzierung!$BN$116 -> 200 | E87: =Finalrunde!$N$250 -> 1940 | F87: =IF(Teilnehmerliste!B86="","",SUM(C87:E87)) -> 2406 | H87: 78 | J87: =IF(ROWS($J$7:$J$7)<=$F$3,SMALL($H$7:$H$106,ROWS($J$7:J87)),"") -> 81 | K87: =IF($H87="","",INDEX($B$7:$H$106,_xlfn.AGGREGATE(14,6,ROW($H$7:$H$106)-ROW($H$7)+1/($H$7:$H$106=J87),COUNTIF($J$7:J87,J87)),1)) -> Ambra Antonelli | L87: =IF($H87="","",INDEX($B$7:$H$106,_xlfn.AGGREGATE(14,6,ROW($H$7:$H$106)-ROW($H$7)+1/($H$7:$H$106=J87),COUNTIF($J$7:J87,J87)),5)) -> 2224 | N87: =ISBLANK(Finalrunde!F19) -> FALSE | O87: 81
A88: =Teilnehmerliste!A87 -> 82 | B88: =Teilnehmerliste!B87 &" "&Teilnehmerliste!C87 -> Jingwen Wang | C88: =Vorrunde!$EE$162 -> 208 | D88: =Endplatzierung!$BP$116 -> 180 | E88: =Finalrunde!$U$250 -> 2250 | F88: =IF(Teilnehmerliste!B87="","",SUM(C88:E88)) -> 2638 | H88: 70 | J88: =IF(ROWS($J$7:$J$7)<=$F$3,SMALL($H$7:$H$106,ROWS($J$7:J88)),"") -> 82 | K88: =IF($H88="","",INDEX($B$7:$H$106,_xlfn.AGGREGATE(14,6,ROW($H$7:$H$106)-ROW($H$7)+1/($H$7:$H$106=J88),COUNTIF($J$7:J88,J88)),1)) -> Andreia Gomes | L88: =IF($H88="","",INDEX($B$7:$H$106,_xlfn.AGGREGATE(14,6,ROW($H$7:$H$106)-ROW($H$7)+1/($H$7:$H$106=J88),COUNTIF($J$7:J88,J88)),5)) -> 2113 | N88: =ISBLANK(Finalrunde!F20) -> FALSE | O88: 82
A89: =Teilnehmerliste!A88 -> 83 | B89: =Teilnehmerliste!B88 &" "&Teilnehmerliste!C88 -> Stefan Wullschleger | C89: =Vorrunde!$EI$162 -> 273 | D89: =Endplatzierung!$BR$116 -> 380 | E89: =Finalrunde!$AB$250 -> 3380 | F89: =IF(Teilnehmerliste!B88="","",SUM(C89:E89)) -> 4033 | H89: 1 | J89: =IF(ROWS($J$7:$J$7)<=$F$3,SMALL($H$7:$H$106,ROWS($J$7:J89)),"") -> 83 | K89: =IF($H89="","",INDEX($B$7:$H$106,_xlfn.AGGREGATE(14,6,ROW($H$7:$H$106)-ROW($H$7)+1/($H$7:$H$106=J89),COUNTIF($J$7:J89,J89)),1)) -> Manfred Brunner | L89: =IF($H89="","",INDEX($B$7:$H$106,_xlfn.AGGREGATE(14,6,ROW($H$7:$H$106)-ROW($H$7)+1/($H$7:$H$106=J89),COUNTIF($J$7:J89,J89)),5)) -> 1997 | N89: =ISBLANK(Finalrunde!F21) -> FALSE | O89: 83
A90: =Teilnehmerliste!A89 -> 84 | B90: =Teilnehmerliste!B89 &" "&Teilnehmerliste!C89 -> Stefan Zachmann | C90: =Vorrunde!$EM$162 -> 209 | D90: =Endplatzierung!$BT$116 -> 240 | E90: =Finalrunde!$AI$250 -> 1930 | F90: =IF(Teilnehmerliste!B89="","",SUM(C90:E90)) -> 2379 | H90: 80 | J90: =IF(ROWS($J$7:$J$7)<=$F$3,SMALL($H$7:$H$106,ROWS($J$7:J90)),"") -> 84 | K90: =IF($H90="","",INDEX($B$7:$H$106,_xlfn.AGGREGATE(14,6,ROW($H$7:$H$106)-ROW($H$7)+1/($H$7:$H$106=J90),COUNTIF($J$7:J90,J90)),1)) -> Ben Marthaler | L90: =IF($H90="","",INDEX($B$7:$H$106,_xlfn.AGGREGATE(14,6,ROW($H$7:$H$106)-ROW($H$7)+1/($H$7:$H$106=J90),COUNTIF($J$7:J90,J90)),5)) -> 1646 | N90: =ISBLANK(Finalrunde!F22) -> FALSE | O90: 84
A91: =Teilnehmerliste!A90 -> 85 | B91: =Teilnehmerliste!B90 &" "&Teilnehmerliste!C90 ->  | C91: =Vorrunde!$EQ$162 -> 0 | D91: =Endplatzierung!$BV$116 -> 0 | E91: =Finalrunde!$AP$250 -> 0 | F91: =IF(Teilnehmerliste!B90="","",SUM(C91:E91)) ->  | J91: =IF(ROWS($J$7:$J$7)<=$F$3,SMALL($H$7:$H$106,ROWS($J$7:J91)),"") ->  | K91: =IF($H91="","",INDEX($B$7:$H$106,_xlfn.AGGREGATE(14,6,ROW($H$7:$H$106)-ROW($H$7)+1/($H$7:$H$106=J91),COUNTIF($J$7:J91,J91)),1)) ->  | L91: =IF($H91="","",INDEX($B$7:$H$106,_xlfn.AGGREGATE(14,6,ROW($H$7:$H$106)-ROW($H$7)+1/($H$7:$H$106=J91),COUNTIF($J$7:J91,J91)),5)) ->  | N91: =ISBLANK(Finalrunde!F23) -> FALSE | O91: 85
A92: =Teilnehmerliste!A91 -> 86 | B92: =Teilnehmerliste!B91 &" "&Teilnehmerliste!C91 ->  | C92: =Vorrunde!$EU$162 -> 0 | D92: =Endplatzierung!$BX$116 -> 0 | E92: =Finalrunde!$AW$250 -> 0 | F92: =IF(Teilnehmerliste!B91="","",SUM(C92:E92)) ->  | J92: =IF(ROWS($J$7:$J$7)<=$F$3,SMALL($H$7:$H$106,ROWS($J$7:J92)),"") ->  | K92: =IF($H92="","",INDEX($B$7:$H$106,_xlfn.AGGREGATE(14,6,ROW($H$7:$H$106)-ROW($H$7)+1/($H$7:$H$106=J92),COUNTIF($J$7:J92,J92)),1)) ->  | L92: =IF($H92="","",INDEX($B$7:$H$106,_xlfn.AGGREGATE(14,6,ROW($H$7:$H$106)-ROW($H$7)+1/($H$7:$H$106=J92),COUNTIF($J$7:J92,J92)),5)) ->  | N92: =ISBLANK(Finalrunde!F24) -> FALSE | O92: 86
A93: =Teilnehmerliste!A92 -> 87 | B93: =Teilnehmerliste!B92 &" "&Teilnehmerliste!C92 ->  | C93: =Vorrunde!$EY$162 -> 0 | D93: =Endplatzierung!$BZ$116 -> 0 | E93: =Finalrunde!$BD$250 -> 0 | F93: =IF(Teilnehmerliste!B92="","",SUM(C93:E93)) ->  | J93: =IF(ROWS($J$7:$J$7)<=$F$3,SMALL($H$7:$H$106,ROWS($J$7:J93)),"") ->  | K93: =IF($H93="","",INDEX($B$7:$H$106,_xlfn.AGGREGATE(14,6,ROW($H$7:$H$106)-ROW($H$7)+1/($H$7:$H$106=J93),COUNTIF($J$7:J93,J93)),1)) ->  | L93: =IF($H93="","",INDEX($B$7:$H$106,_xlfn.AGGREGATE(14,6,ROW($H$7:$H$106)-ROW($H$7)+1/($H$7:$H$106=J93),COUNTIF($J$7:J93,J93)),5)) ->  | N93: =ISBLANK(Finalrunde!F25) -> FALSE | O93: 87
A94: =Teilnehmerliste!A93 -> 88 | B94: =Teilnehmerliste!B93 &" "&Teilnehmerliste!C93 ->  | C94: =Vorrunde!$FC$162 -> 0 | D94: =Endplatzierung!$CB$116 -> 0 | E94: =Finalrunde!$BK$250 -> 0 | F94: =IF(Teilnehmerliste!B93="","",SUM(C94:E94)) ->  | J94: =IF(ROWS($J$7:$J$7)<=$F$3,SMALL($H$7:$H$106,ROWS($J$7:J94)),"") ->  | K94: =IF($H94="","",INDEX($B$7:$H$106,_xlfn.AGGREGATE(14,6,ROW($H$7:$H$106)-ROW($H$7)+1/($H$7:$H$106=J94),COUNTIF($J$7:J94,J94)),1)) ->  | L94: =IF($H94="","",INDEX($B$7:$H$106,_xlfn.AGGREGATE(14,6,ROW($H$7:$H$106)-ROW($H$7)+1/($H$7:$H$106=J94),COUNTIF($J$7:J94,J94)),5)) ->  | N94: =ISBLANK(Finalrunde!F26) -> FALSE | O94: 88
A95: =Teilnehmerliste!A94 -> 89 | B95: =Teilnehmerliste!B94 &" "&Teilnehmerliste!C94 ->  | C95: =Vorrunde!$FG$162 -> 0 | D95: =Endplatzierung!$CD$116 -> 0 | E95: =Finalrunde!$BR$250 -> 0 | F95: =IF(Teilnehmerliste!B94="","",SUM(C95:E95)) ->  | J95: =IF(ROWS($J$7:$J$7)<=$F$3,SMALL($H$7:$H$106,ROWS($J$7:J95)),"") ->  | K95: =IF($H95="","",INDEX($B$7:$H$106,_xlfn.AGGREGATE(14,6,ROW($H$7:$H$106)-ROW($H$7)+1/($H$7:$H$106=J95),COUNTIF($J$7:J95,J95)),1)) ->  | L95: =IF($H95="","",INDEX($B$7:$H$106,_xlfn.AGGREGATE(14,6,ROW($H$7:$H$106)-ROW($H$7)+1/($H$7:$H$106=J95),COUNTIF($J$7:J95,J95)),5)) ->  | N95: =ISBLANK(Finalrunde!F28) -> FALSE | O95: 89
A96: =Teilnehmerliste!A95 -> 90 | B96: =Teilnehmerliste!B95 &" "&Teilnehmerliste!C95 ->  | C96: =Vorrunde!$FK$162 -> 0 | D96: =Endplatzierung!$CF$116 -> 0 | E96: =Finalrunde!$BY$250 -> 0 | F96: =IF(Teilnehmerliste!B95="","",SUM(C96:E96)) ->  | J96: =IF(ROWS($J$7:$J$7)<=$F$3,SMALL($H$7:$H$106,ROWS($J$7:J96)),"") ->  | K96: =IF($H96="","",INDEX($B$7:$H$106,_xlfn.AGGREGATE(14,6,ROW($H$7:$H$106)-ROW($H$7)+1/($H$7:$H$106=J96),COUNTIF($J$7:J96,J96)),1)) ->  | L96: =IF($H96="","",INDEX($B$7:$H$106,_xlfn.AGGREGATE(14,6,ROW($H$7:$H$106)-ROW($H$7)+1/($H$7:$H$106=J96),COUNTIF($J$7:J96,J96)),5)) ->  | N96: =ISBLANK(Finalrunde!F29) -> FALSE | O96: 90
A97: =Teilnehmerliste!A96 -> 91 | B97: =Teilnehmerliste!B96 &" "&Teilnehmerliste!C96 ->  | C97: =Vorrunde!$FO$162 -> 0 | D97: =Endplatzierung!$CH$116 -> 0 | E97: =Finalrunde!$CF$250 -> 0 | F97: =IF(Teilnehmerliste!B96="","",SUM(C97:E97)) ->  | J97: =IF(ROWS($J$7:$J$7)<=$F$3,SMALL($H$7:$H$106,ROWS($J$7:J97)),"") ->  | K97: =IF($H97="","",INDEX($B$7:$H$106,_xlfn.AGGREGATE(14,6,ROW($H$7:$H$106)-ROW($H$7)+1/($H$7:$H$106=J97),COUNTIF($J$7:J97,J97)),1)) ->  | L97: =IF($H97="","",INDEX($B$7:$H$106,_xlfn.AGGREGATE(14,6,ROW($H$7:$H$106)-ROW($H$7)+1/($H$7:$H$106=J97),COUNTIF($J$7:J97,J97)),5)) ->  | N97: =ISBLANK(Finalrunde!F30) -> FALSE | O97: 91
A98: =Teilnehmerliste!A97 -> 92 | B98: =Teilnehmerliste!B97 &" "&Teilnehmerliste!C97 ->  | C98: =Vorrunde!$FS$162 -> 0 | D98: =Endplatzierung!$CJ$116 -> 0 | E98: =Finalrunde!$CM$250 -> 0 | F98: =IF(Teilnehmerliste!B97="","",SUM(C98:E98)) ->  | J98: =IF(ROWS($J$7:$J$7)<=$F$3,SMALL($H$7:$H$106,ROWS($J$7:J98)),"") ->  | K98: =IF($H98="","",INDEX($B$7:$H$106,_xlfn.AGGREGATE(14,6,ROW($H$7:$H$106)-ROW($H$7)+1/($H$7:$H$106=J98),COUNTIF($J$7:J98,J98)),1)) ->  | L98: =IF($H98="","",INDEX($B$7:$H$106,_xlfn.AGGREGATE(14,6,ROW($H$7:$H$106)-ROW($H$7)+1/($H$7:$H$106=J98),COUNTIF($J$7:J98,J98)),5)) ->  | N98: =ISBLANK(Finalrunde!F31) -> FALSE | O98: 92
A99: =Teilnehmerliste!A98 -> 93 | B99: =Teilnehmerliste!B98 &" "&Teilnehmerliste!C98 ->  | C99: =Vorrunde!$FW$162 -> 0 | D99: =Endplatzierung!$CL$116 -> 0 | E99: =Finalrunde!$CT$250 -> 0 | F99: =IF(Teilnehmerliste!B98="","",SUM(C99:E99)) ->  | J99: =IF(ROWS($J$7:$J$7)<=$F$3,SMALL($H$7:$H$106,ROWS($J$7:J99)),"") ->  | K99: =IF($H99="","",INDEX($B$7:$H$106,_xlfn.AGGREGATE(14,6,ROW($H$7:$H$106)-ROW($H$7)+1/($H$7:$H$106=J99),COUNTIF($J$7:J99,J99)),1)) ->  | L99: =IF($H99="","",INDEX($B$7:$H$106,_xlfn.AGGREGATE(14,6,ROW($H$7:$H$106)-ROW($H$7)+1/($H$7:$H$106=J99),COUNTIF($J$7:J99,J99)),5)) ->  | N99: =ISBLANK(Finalrunde!F32) -> FALSE | O99: 93
A100: =Teilnehmerliste!A99 -> 94 | B100: =Teilnehmerliste!B99 &" "&Teilnehmerliste!C99 ->  | C100: =Vorrunde!$GA$162 -> 0 | D100: =Endplatzierung!$CN$116 -> 0 | E100: =Finalrunde!$DA$250 -> 0 | F100: =IF(Teilnehmerliste!B99="","",SUM(C100:E100)) ->  | J100: =IF(ROWS($J$7:$J$7)<=$F$3,SMALL($H$7:$H$106,ROWS($J$7:J100)),"") ->  | K100: =IF($H100="","",INDEX($B$7:$H$106,_xlfn.AGGREGATE(14,6,ROW($H$7:$H$106)-ROW($H$7)+1/($H$7:$H$106=J100),COUNTIF($J$7:J100,J100)),1)) ->  | L100: =IF($H100="","",INDEX($B$7:$H$106,_xlfn.AGGREGATE(14,6,ROW($H$7:$H$106)-ROW($H$7)+1/($H$7:$H$106=J100),COUNTIF($J$7:J100,J100)),5)) ->  | N100: =ISBLANK(Finalrunde!F33) -> FALSE | O100: 94
A101: =Teilnehmerliste!A100 -> 95 | B101: =Teilnehmerliste!B100 &" "&Teilnehmerliste!C100 ->  | C101: =Vorrunde!$GE$162 -> 0 | D101: =Endplatzierung!$CP$116 -> 0 | E101: =Finalrunde!$DH$250 -> 0 | F101: =IF(Teilnehmerliste!B100="","",SUM(C101:E101)) ->  | J101: =IF(ROWS($J$7:$J$7)<=$F$3,SMALL($H$7:$H$106,ROWS($J$7:J101)),"") ->  | K101: =IF($H101="","",INDEX($B$7:$H$106,_xlfn.AGGREGATE(14,6,ROW($H$7:$H$106)-ROW($H$7)+1/($H$7:$H$106=J101),COUNTIF($J$7:J101,J101)),1)) ->  | L101: =IF($H101="","",INDEX($B$7:$H$106,_xlfn.AGGREGATE(14,6,ROW($H$7:$H$106)-ROW($H$7)+1/($H$7:$H$106=J101),COUNTIF($J$7:J101,J101)),5)) ->  | N101: =ISBLANK(Finalrunde!F34) -> FALSE | O101: 95
A102: =Teilnehmerliste!A101 -> 96 | B102: =Teilnehmerliste!B101 &" "&Teilnehmerliste!C101 ->  | C102: =Vorrunde!$GI$162 -> 0 | D102: =Endplatzierung!$CR$116 -> 0 | E102: =Finalrunde!$DO$250 -> 0 | F102: =IF(Teilnehmerliste!B101="","",SUM(C102:E102)) ->  | J102: =IF(ROWS($J$7:$J$7)<=$F$3,SMALL($H$7:$H$106,ROWS($J$7:J102)),"") ->  | K102: =IF($H102="","",INDEX($B$7:$H$106,_xlfn.AGGREGATE(14,6,ROW($H$7:$H$106)-ROW($H$7)+1/($H$7:$H$106=J102),COUNTIF($J$7:J102,J102)),1)) ->  | L102: =IF($H102="","",INDEX($B$7:$H$106,_xlfn.AGGREGATE(14,6,ROW($H$7:$H$106)-ROW($H$7)+1/($H$7:$H$106=J102),COUNTIF($J$7:J102,J102)),5)) ->  | N102: =ISBLANK(Finalrunde!F35) -> FALSE | O102: 96
A103: =Teilnehmerliste!A102 -> 97 | B103: =Teilnehmerliste!B102 &" "&Teilnehmerliste!C102 ->  | C103: =Vorrunde!$GM$162 -> 0 | D103: =Endplatzierung!$CT$116 -> 0 | E103: =Finalrunde!$DV$250 -> 0 | F103: =IF(Teilnehmerliste!B102="","",SUM(C103:E103)) ->  | J103: =IF(ROWS($J$7:$J$7)<=$F$3,SMALL($H$7:$H$106,ROWS($J$7:J103)),"") ->  | K103: =IF($H103="","",INDEX($B$7:$H$106,_xlfn.AGGREGATE(14,6,ROW($H$7:$H$106)-ROW($H$7)+1/($H$7:$H$106=J103),COUNTIF($J$7:J103,J103)),1)) ->  | L103: =IF($H103="","",INDEX($B$7:$H$106,_xlfn.AGGREGATE(14,6,ROW($H$7:$H$106)-ROW($H$7)+1/($H$7:$H$106=J103),COUNTIF($J$7:J103,J103)),5)) ->  | N103: =ISBLANK(Finalrunde!F37) -> FALSE | O103: 97
A104: =Teilnehmerliste!A103 -> 98 | B104: =Teilnehmerliste!B103 &" "&Teilnehmerliste!C103 ->  | C104: =Vorrunde!$GQ$162 -> 0 | D104: =Endplatzierung!$CV$116 -> 0 | E104: =Finalrunde!$EC$250 -> 0 | F104: =IF(Teilnehmerliste!B103="","",SUM(C104:E104)) ->  | J104: =IF(ROWS($J$7:$J$7)<=$F$3,SMALL($H$7:$H$106,ROWS($J$7:J104)),"") ->  | K104: =IF($H104="","",INDEX($B$7:$H$106,_xlfn.AGGREGATE(14,6,ROW($H$7:$H$106)-ROW($H$7)+1/($H$7:$H$106=J104),COUNTIF($J$7:J104,J104)),1)) ->  | L104: =IF($H104="","",INDEX($B$7:$H$106,_xlfn.AGGREGATE(14,6,ROW($H$7:$H$106)-ROW($H$7)+1/($H$7:$H$106=J104),COUNTIF($J$7:J104,J104)),5)) ->  | N104: =ISBLANK(Finalrunde!F38) -> FALSE | O104: 98
A105: =Teilnehmerliste!A104 -> 99 | B105: =Teilnehmerliste!B104 &" "&Teilnehmerliste!C104 ->  | C105: =Vorrunde!$GU$162 -> 0 | D105: =Endplatzierung!$CX$116 -> 0 | E105: =Finalrunde!$EJ$250 -> 0 | F105: =IF(Teilnehmerliste!B104="","",SUM(C105:E105)) ->  | J105: =IF(ROWS($J$7:$J$7)<=$F$3,SMALL($H$7:$H$106,ROWS($J$7:J105)),"") ->  | K105: =IF($H105="","",INDEX($B$7:$H$106,_xlfn.AGGREGATE(14,6,ROW($H$7:$H$106)-ROW($H$7)+1/($H$7:$H$106=J105),COUNTIF($J$7:J105,J105)),1)) ->  | L105: =IF($H105="","",INDEX($B$7:$H$106,_xlfn.AGGREGATE(14,6,ROW($H$7:$H$106)-ROW($H$7)+1/($H$7:$H$106=J105),COUNTIF($J$7:J105,J105)),5)) ->  | N105: =ISBLANK(Finalrunde!F39) -> FALSE | O105: 99
A106: =Teilnehmerliste!A105 -> 100 | B106: =Teilnehmerliste!B105 &" "&Teilnehmerliste!C105 ->  | C106: =Vorrunde!$GY$162 -> 0 | D106: =Endplatzierung!$CZ$116 -> 0 | E106: =Finalrunde!$EQ$250 -> 0 | F106: =IF(Teilnehmerliste!B105="","",SUM(C106:E106)) ->  | J106: =IF(ROWS($J$7:$J$7)<=$F$3,SMALL($H$7:$H$106,ROWS($J$7:J106)),"") ->  | K106: =IF($H106="","",INDEX($B$7:$H$106,_xlfn.AGGREGATE(14,6,ROW($H$7:$H$106)-ROW($H$7)+1/($H$7:$H$106=J106),COUNTIF($J$7:J106,J106)),1)) ->  | L106: =IF($H106="","",INDEX($B$7:$H$106,_xlfn.AGGREGATE(14,6,ROW($H$7:$H$106)-ROW($H$7)+1/($H$7:$H$106=J106),COUNTIF($J$7:J106,J106)),5)) ->  | N106: =ISBLANK(Finalrunde!F40) -> FALSE | O106: 100
N107: =ISBLANK(Finalrunde!F42) -> FALSE | O107: 101
N108: =ISBLANK(Finalrunde!F43) -> FALSE | O108: 102
N109: =ISBLANK(Finalrunde!F45) -> TRUE | O109: 103
N110: =ISBLANK(Finalrunde!F47) -> TRUE | O110: 104
N111: =ISBLANK(Finalrunde!F48) -> TRUE | O111: 105

Sheet Vorrunde
A1: =Teams!$B$54 -> WM 2026 by Rogerinho (www.fcbouncer.ch)
A3: Vorrunde | D3: Spieler 1 - 50
A4: 10 Punkte für korrektes Resultat | I4: =Teilnehmerliste!$B6 -> Panos | M4: =Teilnehmerliste!$B7 -> Yiannis | Q4: =Teilnehmerliste!$B8 -> Ambra | U4: =Teilnehmerliste!$B9 -> Marco | Y4: =Teilnehmerliste!$B10 -> Ruben | AC4: =Teilnehmerliste!$B11 -> Peter | AG4: =Teilnehmerliste!$B12 -> André | AK4: =Teilnehmerliste!$B13 -> Aya | AO4: =Teilnehmerliste!$B14 -> Philippe | AS4: =Teilnehmerliste!$B15 -> Roger | AW4: =Teilnehmerliste!$B16 -> Mara | BA4: =Teilnehmerliste!$B17 -> Pongsapat Nott | BE4: =Teilnehmerliste!$B18 -> Michael | BI4: =Teilnehmerliste!$B19 -> Manfred | BM4: =Teilnehmerliste!$B20 -> Manuel | BQ4: =Teilnehmerliste!$B21 -> Nicolas | BU4: =Teilnehmerliste!$B22 -> Philip | BY4: =Teilnehmerliste!$B23 -> André | CC4: =Teilnehmerliste!$B24 -> Oli | CG4: =Teilnehmerliste!$B25 -> Javier | CK4: =Teilnehmerliste!$B26 -> Leo | CO4: =Teilnehmerliste!$B27 -> Lisa | CS4: =Teilnehmerliste!$B28 -> Niva | CW4: =Teilnehmerliste!$B29 -> Vinci | DA4: =Teilnehmerliste!$B30 -> Rafael | DE4: =Teilnehmerliste!$B31 -> Goran | DI4: =Teilnehmerliste!$B32 -> Armin | DM4: =Teilnehmerliste!$B33 -> Dino | DQ4: =Teilnehmerliste!$B34 -> Djuma | DU4: =Teilnehmerliste!$B35 -> Andreia | DY4: =Teilnehmerliste!$B36 -> Rui | EC4: =Teilnehmerliste!$B37 -> Deliz | EG4: =Teilnehmerliste!$B38 -> Florian | EK4: =Teilnehmerliste!$B39 -> Laurent | EO4: =Teilnehmerliste!$B40 -> Reto | ES4: =Teilnehmerliste!$B41 -> Robin | EW4: =Teilnehmerliste!$B42 -> Sarina | FA4: =Teilnehmerliste!$B43 -> Selina | FE4: =Teilnehmerliste!$B44 -> Stefan | FI4: =Teilnehmerliste!$B45 -> Timothy | FM4: =Teilnehmerliste!$B46 -> Florian | FQ4: =Teilnehmerliste!$B47 -> Agnes | FU4: =Teilnehmerliste!$B48 -> Andreas | FY4: =Teilnehmerliste!$B49 -> Michael | GC4: =Teilnehmerliste!$B50 -> Aiden | GG4: =Teilnehmerliste!$B51 -> Pascal | GK4: =Teilnehmerliste!$B52 -> Tanja | GO4: =Teilnehmerliste!$B53 -> André | GS4: =Teilnehmerliste!$B54 -> Franz | GW4: =Teilnehmerliste!$B55 -> Marc | HB4: Statistik (1, x, 2) | HG4: Statistik (1, x, 2) in Prozenten | HK4: Summe Anzahl Tore | HO4: 10 Punkte gemacht | HQ4: 7 Punkte gemacht
A5: 7 Punkte für richtiger Sieger (Torverhältnis stimmt) | I5: =Teilnehmerliste!$C6 -> Agorastos | M5: =Teilnehmerliste!$C7 -> Agorastos | Q5: =Teilnehmerliste!$C8 -> Antonelli | U5: =Teilnehmerliste!$C9 -> Antonelli | Y5: =Teilnehmerliste!$C10 -> Antonelli | AC5: =Teilnehmerliste!$C11 -> Balazs | AG5: =Teilnehmerliste!$C12 -> Bartholet | AK5: =Teilnehmerliste!$C13 -> Bartholet | AO5: =Teilnehmerliste!$C14 -> Bartholet | AS5: =Teilnehmerliste!$C15 -> Bartholet | AW5: =Teilnehmerliste!$C16 -> Beck | BA5: =Teilnehmerliste!$C17 -> Boonaek | BE5: =Teilnehmerliste!$C18 -> Bosshart | BI5: =Teilnehmerliste!$C19 -> Brunner | BM5: =Teilnehmerliste!$C20 -> Brunner | BQ5: =Teilnehmerliste!$C21 -> Brunner | BU5: =Teilnehmerliste!$C22 -> Brunner | BY5: =Teilnehmerliste!$C23 -> Burkart | CC5: =Teilnehmerliste!$C24 -> Christiansen | CG5: =Teilnehmerliste!$C25 -> Cruz | CK5: =Teilnehmerliste!$C26 -> Rodrigues da Costa | CO5: =Teilnehmerliste!$C27 -> D'Acunto | CS5: =Teilnehmerliste!$C28 -> D'Acunto | CW5: =Teilnehmerliste!$C29 -> D'Acunto | DA5: =Teilnehmerliste!$C30 -> Derungs | DE5: =Teilnehmerliste!$C31 -> Djukic | DI5: =Teilnehmerliste!$C32 -> Duvnjak | DM5: =Teilnehmerliste!$C33 -> Duvnjak | DQ5: =Teilnehmerliste!$C34 -> Duvnjak | DU5: =Teilnehmerliste!$C35 -> Gomes | DY5: =Teilnehmerliste!$C36 -> Gomes | EC5: =Teilnehmerliste!$C37 -> González | EG5: =Teilnehmerliste!$C38 -> González | EK5: =Teilnehmerliste!$C39 -> Grosse | EO5: =Teilnehmerliste!$C40 -> Gygli | ES5: =Teilnehmerliste!$C41 -> Gygli | EW5: =Teilnehmerliste!$C42 -> Gygli | FA5: =Teilnehmerliste!$C43 -> Gygli | FE5: =Teilnehmerliste!$C44 -> Gygli | FI5: =Teilnehmerliste!$C45 -> Gygli | FM5: =Teilnehmerliste!$C46 -> Haab | FQ5: =Teilnehmerliste!$C47 -> Isenschmid | FU5: =Teilnehmerliste!$C48 -> Isenschmid | FY5: =Teilnehmerliste!$C49 -> Isenschmid | GC5: =Teilnehmerliste!$C50 -> Jones | GG5: =Teilnehmerliste!$C51 -> Keller | GK5: =Teilnehmerliste!$C52 -> Kistler | GO5: =Teilnehmerliste!$C53 -> Lanz | GS5: =Teilnehmerliste!$C54 -> Lischer | GW5: =Teilnehmerliste!$C55 -> Lütolf | HB5: 1 | HC5: X | HD5: 2 | HE5: SUMME | HG5: 1 | HH5: X | HI5: 2 | HK5: Vorrunde | HO5: Vorrunde | HQ5: Vorrunde
A6: 5 Punkte für richtiger Sieger (Torverhältnis stimmt nicht) | K6: =Teilnehmerliste!$A6 -> 1 | O6: =Teilnehmerliste!$A7 -> 2 | S6: =Teilnehmerliste!$A8 -> 3 | W6: =Teilnehmerliste!$A9 -> 4 | AA6: =Teilnehmerliste!$A10 -> 5 | AE6: =Teilnehmerliste!$A11 -> 6 | AI6: =Teilnehmerliste!$A12 -> 7 | AM6: =Teilnehmerliste!$A13 -> 8 | AQ6: =Teilnehmerliste!$A14 -> 9 | AU6: =Teilnehmerliste!$A15 -> 10 | AY6: =Teilnehmerliste!$A16 -> 11 | BC6: =Teilnehmerliste!$A17 -> 12 | BG6: =Teilnehmerliste!$A18 -> 13 | BK6: =Teilnehmerliste!$A19 -> 14 | BO6: =Teilnehmerliste!$A20 -> 15 | BS6: =Teilnehmerliste!$A21 -> 16 | BW6: =Teilnehmerliste!$A22 -> 17 | CA6: =Teilnehmerliste!$A23 -> 18 | CE6: =Teilnehmerliste!$A24 -> 19 | CI6: =Teilnehmerliste!$A25 -> 20 | CM6: =Teilnehmerliste!$A26 -> 21 | CQ6: =Teilnehmerliste!$A27 -> 22 | CU6: =Teilnehmerliste!$A28 -> 23 | CY6: =Teilnehmerliste!$A29 -> 24 | DC6: =Teilnehmerliste!$A30 -> 25 | DG6: =Teilnehmerliste!$A31 -> 26 | DK6: =Teilnehmerliste!$A32 -> 27 | DO6: =Teilnehmerliste!$A33 -> 28 | DS6: =Teilnehmerliste!$A34 -> 29 | DW6: =Teilnehmerliste!$A35 -> 30 | EA6: =Teilnehmerliste!$A36 -> 31 | EE6: =Teilnehmerliste!$A37 -> 32 | EI6: =Teilnehmerliste!$A38 -> 33 | EM6: =Teilnehmerliste!$A39 -> 34 | EQ6: =Teilnehmerliste!$A40 -> 35 | EU6: =Teilnehmerliste!$A41 -> 36 | EY6: =Teilnehmerliste!$A42 -> 37 | FC6: =Teilnehmerliste!$A43 -> 38 | FG6: =Teilnehmerliste!$A44 -> 39 | FK6: =Teilnehmerliste!$A45 -> 40 | FO6: =Teilnehmerliste!$A46 -> 41 | FS6: =Teilnehmerliste!$A47 -> 42 | FW6: =Teilnehmerliste!$A48 -> 43 | GA6: =Teilnehmerliste!$A49 -> 44 | GE6: =Teilnehmerliste!$A50 -> 45 | GI6: =Teilnehmerliste!$A51 -> 46 | GM6: =Teilnehmerliste!$A52 -> 47 | GQ6: =Teilnehmerliste!$A53 -> 48 | GU6: =Teilnehmerliste!$A54 -> 49 | GY6: =Teilnehmerliste!$A55 -> 50
A8: Datum | B8: Zeit | C8: Nr. | D8: Spiel | G8: Resultat | I8: Tipp | K8: Pkt | M8: Tipp | O8: Pkt | Q8: Tipp | S8: Pkt | U8: Tipp | W8: Pkt | Y8: Tipp | AA8: Pkt | AC8: Tipp | AE8: Pkt | AG8: Tipp | AI8: Pkt | AK8: Tipp | AM8: Pkt | AO8: Tipp | AQ8: Pkt | AS8: Tipp | AU8: Pkt | AW8: Tipp | AY8: Pkt | BA8: Tipp | BC8: Pkt | BE8: Tipp | BG8: Pkt | BI8: Tipp | BK8: Pkt | BM8: Tipp | BO8: Pkt | BQ8: Tipp | BS8: Pkt | BU8: Tipp | BW8: Pkt | BY8: Tipp | CA8: Pkt | CC8: Tipp | CE8: Pkt | CG8: Tipp | CI8: Pkt | CK8: Tipp | CM8: Pkt | CO8: Tipp | CQ8: Pkt | CS8: Tipp | CU8: Pkt | CW8: Tipp | CY8: Pkt | DA8: Tipp | DC8: Pkt | DE8: Tipp | DG8: Pkt | DI8: Tipp | DK8: Pkt | DM8: Tipp | DO8: Pkt | DQ8: Tipp | DS8: Pkt | DU8: Tipp | DW8: Pkt | DY8: Tipp | EA8: Pkt | EC8: Tipp | EE8: Pkt | EG8: Tipp | EI8: Pkt | EK8: Tipp | EM8: Pkt | EO8: Tipp | EQ8: Pkt | ES8: Tipp | EU8: Pkt | EW8: Tipp | EY8: Pkt | FA8: Tipp | FC8: Pkt | FE8: Tipp | FG8: Pkt | FI8: Tipp | FK8: Pkt | FM8: Tipp | FO8: Pkt | FQ8: Tipp | FS8: Pkt | FU8: Tipp | FW8: Pkt | FY8: Tipp | GA8: Pkt | GC8: Tipp | GE8: Pkt | GG8: Tipp | GI8: Pkt | GK8: Tipp | GM8: Pkt | GO8: Tipp | GQ8: Pkt | GS8: Tipp | GU8: Pkt | GW8: Tipp | GY8: Pkt
A9: Do. 11. Jun. | B9: 21:00:00 | C9: 1 | D9: Mexiko | E9: Südafrika | F9: 2 | G9: 0 | I9: 2 | J9: 1 | K9: =IF(OR($F9="",$G9="",I9="",J9=""),"",IF(AND($F9=I9,$G9=J9),10,IF($F9-$G9=I9-J9,7,IF(OR(AND($F9>$G9,I9>J9),AND($F9<$G9,I9<J9)),5,0)))) -> 5 | L9: =IF(I9="","",IF(I9>J9,"A",IF(I9<J9,"B",IF(I9=J9,"X")))) -> A | M9: 2 | N9: 1 | O9: =IF(OR($F9="",$G9="",M9="",N9=""),"",IF(AND($F9=M9,$G9=N9),10,IF($F9-$G9=M9-N9,7,IF(OR(AND($F9>$G9,M9>N9),AND($F9<$G9,M9<N9)),5,0)))) -> 5 | P9: =IF(M9="","",IF(M9>N9,"A",IF(M9<N9,"B",IF(M9=N9,"X")))) -> A | Q9: 3 | R9: 2 | S9: =IF(OR($F9="",$G9="",Q9="",R9=""),"",IF(AND($F9=Q9,$G9=R9),10,IF($F9-$G9=Q9-R9,7,IF(OR(AND($F9>$G9,Q9>R9),AND($F9<$G9,Q9<R9)),5,0)))) -> 5 | T9: =IF(Q9="","",IF(Q9>R9,"A",IF(Q9<R9,"B",IF(Q9=R9,"X")))) -> A | U9: 2 | V9: 1 | W9: =IF(OR($F9="",$G9="",U9="",V9=""),"",IF(AND($F9=U9,$G9=V9),10,IF($F9-$G9=U9-V9,7,IF(OR(AND($F9>$G9,U9>V9),AND($F9<$G9,U9<V9)),5,0)))) -> 5 | X9: =IF(U9="","",IF(U9>V9,"A",IF(U9<V9,"B",IF(U9=V9,"X")))) -> A | Y9: 2 | Z9: 0 | AA9: =IF(OR($F9="",$G9="",Y9="",Z9=""),"",IF(AND($F9=Y9,$G9=Z9),10,IF($F9-$G9=Y9-Z9,7,IF(OR(AND($F9>$G9,Y9>Z9),AND($F9<$G9,Y9<Z9)),5,0)))) -> 10 | AB9: =IF(Y9="","",IF(Y9>Z9,"A",IF(Y9<Z9,"B",IF(Y9=Z9,"X")))) -> A | AC9: 2 | AD9: 1 | AE9: =IF(OR($F9="",$G9="",AC9="",AD9=""),"",IF(AND($F9=AC9,$G9=AD9),10,IF($F9-$G9=AC9-AD9,7,IF(OR(AND($F9>$G9,AC9>AD9),AND($F9<$G9,AC9<AD9)),5,0)))) -> 5 | AF9: =IF(AC9="","",IF(AC9>AD9,"A",IF(AC9<AD9,"B",IF(AC9=AD9,"X")))) -> A | AG9: 2 | AH9: 0 | AI9: =IF(OR($F9="",$G9="",AG9="",AH9=""),"",IF(AND($F9=AG9,$G9=AH9),10,IF($F9-$G9=AG9-AH9,7,IF(OR(AND($F9>$G9,AG9>AH9),AND($F9<$G9,AG9<AH9)),5,0)))) -> 10 | AJ9: =IF(AG9="","",IF(AG9>AH9,"A",IF(AG9<AH9,"B",IF(AG9=AH9,"X")))) -> A | AK9: 1 | AL9: 0 | AM9: =IF(OR($F9="",$G9="",AK9="",AL9=""),"",IF(AND($F9=AK9,$G9=AL9),10,IF($F9-$G9=AK9-AL9,7,IF(OR(AND($F9>$G9,AK9>AL9),AND($F9<$G9,AK9<AL9)),5,0)))) -> 5 | AN9: =IF(AK9="","",IF(AK9>AL9,"A",IF(AK9<AL9,"B",IF(AK9=AL9,"X")))) -> A | AO9: 2 | AP9: 1 | AQ9: =IF(OR($F9="",$G9="",AO9="",AP9=""),"",IF(AND($F9=AO9,$G9=AP9),10,IF($F9-$G9=AO9-AP9,7,IF(OR(AND($F9>$G9,AO9>AP9),AND($F9<$G9,AO9<AP9)),5,0)))) -> 5 | AR9: =IF(AO9="","",IF(AO9>AP9,"A",IF(AO9<AP9,"B",IF(AO9=AP9,"X")))) -> A | AS9: 2 | AT9: 0 | AU9: =IF(OR($F9="",$G9="",AS9="",AT9=""),"",IF(AND($F9=AS9,$G9=AT9),10,IF($F9-$G9=AS9-AT9,7,IF(OR(AND($F9>$G9,AS9>AT9),AND($F9<$G9,AS9<AT9)),5,0)))) -> 10 | AV9: =IF(AS9="","",IF(AS9>AT9,"A",IF(AS9<AT9,"B",IF(AS9=AT9,"X")))) -> A | AW9: 3 | AX9: 0 | AY9: =IF(OR($F9="",$G9="",AW9="",AX9=""),"",IF(AND($F9=AW9,$G9=AX9),10,IF($F9-$G9=AW9-AX9,7,IF(OR(AND($F9>$G9,AW9>AX9),AND($F9<$G9,AW9<AX9)),5,0)))) -> 5 | AZ9: =IF(AW9="","",IF(AW9>AX9,"A",IF(AW9<AX9,"B",IF(AW9=AX9,"X")))) -> A | BA9: 2 | BB9: 0 | BC9: =IF(OR($F9="",$G9="",BA9="",BB9=""),"",IF(AND($F9=BA9,$G9=BB9),10,IF($F9-$G9=BA9-BB9,7,IF(OR(AND($F9>$G9,BA9>BB9),AND($F9<$G9,BA9<BB9)),5,0)))) -> 10 | BD9: =IF(BA9="","",IF(BA9>BB9,"A",IF(BA9<BB9,"B",IF(BA9=BB9,"X")))) -> A | BE9: 2 | BF9: 1 | BG9: =IF(OR($F9="",$G9="",BE9="",BF9=""),"",IF(AND($F9=BE9,$G9=BF9),10,IF($F9-$G9=BE9-BF9,7,IF(OR(AND($F9>$G9,BE9>BF9),AND($F9<$G9,BE9<BF9)),5,0)))) -> 5 | BH9: =IF(BE9="","",IF(BE9>BF9,"A",IF(BE9<BF9,"B",IF(BE9=BF9,"X")))) -> A | BI9: 2 | BJ9: 0 | BK9: =IF(OR($F9="",$G9="",BI9="",BJ9=""),"",IF(AND($F9=BI9,$G9=BJ9),10,IF($F9-$G9=BI9-BJ9,7,IF(OR(AND($F9>$G9,BI9>BJ9),AND($F9<$G9,BI9<BJ9)),5,0)))) -> 10 | BL9: =IF(BI9="","",IF(BI9>BJ9,"A",IF(BI9<BJ9,"B",IF(BI9=BJ9,"X")))) -> A | BM9: 3 | BN9: 1 | BO9: =IF(OR($F9="",$G9="",BM9="",BN9=""),"",IF(AND($F9=BM9,$G9=BN9),10,IF($F9-$G9=BM9-BN9,7,IF(OR(AND($F9>$G9,BM9>BN9),AND($F9<$G9,BM9<BN9)),5,0)))) -> 7 | BP9: =IF(BM9="","",IF(BM9>BN9,"A",IF(BM9<BN9,"B",IF(BM9=BN9,"X")))) -> A | BQ9: 2 | BR9: 1 | BS9: =IF(OR($F9="",$G9="",BQ9="",BR9=""),"",IF(AND($F9=BQ9,$G9=BR9),10,IF($F9-$G9=BQ9-BR9,7,IF(OR(AND($F9>$G9,BQ9>BR9),AND($F9<$G9,BQ9<BR9)),5,0)))) -> 5 | BT9: =IF(BQ9="","",IF(BQ9>BR9,"A",IF(BQ9<BR9,"B",IF(BQ9=BR9,"X")))) -> A | BU9: 2 | BV9: 0 | BW9: =IF(OR($F9="",$G9="",BU9="",BV9=""),"",IF(AND($F9=BU9,$G9=BV9),10,IF($F9-$G9=BU9-BV9,7,IF(OR(AND($F9>$G9,BU9>BV9),AND($F9<$G9,BU9<BV9)),5,0)))) -> 10 | BX9: =IF(BU9="","",IF(BU9>BV9,"A",IF(BU9<BV9,"B",IF(BU9=BV9,"X")))) -> A | BY9: 1 | BZ9: 0 | CA9: =IF(OR($F9="",$G9="",BY9="",BZ9=""),"",IF(AND($F9=BY9,$G9=BZ9),10,IF($F9-$G9=BY9-BZ9,7,IF(OR(AND($F9>$G9,BY9>BZ9),AND($F9<$G9,BY9<BZ9)),5,0)))) -> 5 | CB9: =IF(BY9="","",IF(BY9>BZ9,"A",IF(BY9<BZ9,"B",IF(BY9=BZ9,"X")))) -> A | CC9: 2 | CD9: 1 | CE9: =IF(OR($F9="",$G9="",CC9="",CD9=""),"",IF(AND($F9=CC9,$G9=CD9),10,IF($F9-$G9=CC9-CD9,7,IF(OR(AND($F9>$G9,CC9>CD9),AND($F9<$G9,CC9<CD9)),5,0)))) -> 5 | CF9: =IF(CC9="","",IF(CC9>CD9,"A",IF(CC9<CD9,"B",IF(CC9=CD9,"X")))) -> A | CG9: 1 | CH9: 0 | CI9: =IF(OR($F9="",$G9="",CG9="",CH9=""),"",IF(AND($F9=CG9,$G9=CH9),10,IF($F9-$G9=CG9-CH9,7,IF(OR(AND($F9>$G9,CG9>CH9),AND($F9<$G9,CG9<CH9)),5,0)))) -> 5 | CJ9: =IF(CG9="","",IF(CG9>CH9,"A",IF(CG9<CH9,"B",IF(CG9=CH9,"X")))) -> A | CK9: 3 | CL9: 1 | CM9: =IF(OR($F9="",$G9="",CK9="",CL9=""),"",IF(AND($F9=CK9,$G9=CL9),10,IF($F9-$G9=CK9-CL9,7,IF(OR(AND($F9>$G9,CK9>CL9),AND($F9<$G9,CK9<CL9)),5,0)))) -> 7 | CN9: =IF(CK9="","",IF(CK9>CL9,"A",IF(CK9<CL9,"B",IF(CK9=CL9,"X")))) -> A | CO9: 2 | CP9: 0 | CQ9: =IF(OR($F9="",$G9="",CO9="",CP9=""),"",IF(AND($F9=CO9,$G9=CP9),10,IF($F9-$G9=CO9-CP9,7,IF(OR(AND($F9>$G9,CO9>CP9),AND($F9<$G9,CO9<CP9)),5,0)))) -> 10 | CR9: =IF(CO9="","",IF(CO9>CP9,"A",IF(CO9<CP9,"B",IF(CO9=CP9,"X")))) -> A | CS9: 2 | CT9: 1 | CU9: =IF(OR($F9="",$G9="",CS9="",CT9=""),"",IF(AND($F9=CS9,$G9=CT9),10,IF($F9-$G9=CS9-CT9,7,IF(OR(AND($F9>$G9,CS9>CT9),AND($F9<$G9,CS9<CT9)),5,0)))) -> 5 | CV9: =IF(CS9="","",IF(CS9>CT9,"A",IF(CS9<CT9,"B",IF(CS9=CT9,"X")))) -> A | CW9: 2 | CX9: 0 | CY9: =IF(OR($F9="",$G9="",CW9="",CX9=""),"",IF(AND($F9=CW9,$G9=CX9),10,IF($F9-$G9=CW9-CX9,7,IF(OR(AND($F9>$G9,CW9>CX9),AND($F9<$G9,CW9<CX9)),5,0)))) -> 10 | CZ9: =IF(CW9="","",IF(CW9>CX9,"A",IF(CW9<CX9,"B",IF(CW9=CX9,"X")))) -> A | DA9: 2 | DB9: 0 | DC9: =IF(OR($F9="",$G9="",DA9="",DB9=""),"",IF(AND($F9=DA9,$G9=DB9),10,IF($F9-$G9=DA9-DB9,7,IF(OR(AND($F9>$G9,DA9>DB9),AND($F9<$G9,DA9<DB9)),5,0)))) -> 10 | DD9: =IF(DA9="","",IF(DA9>DB9,"A",IF(DA9<DB9,"B",IF(DA9=DB9,"X")))) -> A | DE9: 3 | DF9: 1 | DG9: =IF(OR($F9="",$G9="",DE9="",DF9=""),"",IF(AND($F9=DE9,$G9=DF9),10,IF($F9-$G9=DE9-DF9,7,IF(OR(AND($F9>$G9,DE9>DF9),AND($F9<$G9,DE9<DF9)),5,0)))) -> 7 | DH9: =IF(DE9="","",IF(DE9>DF9,"A",IF(DE9<DF9,"B",IF(DE9=DF9,"X")))) -> A | DI9: 3 | DJ9: 0 | DK9: =IF(OR($F9="",$G9="",DI9="",DJ9=""),"",IF(AND($F9=DI9,$G9=DJ9),10,IF($F9-$G9=DI9-DJ9,7,IF(OR(AND($F9>$G9,DI9>DJ9),AND($F9<$G9,DI9<DJ9)),5,0)))) -> 5 | DL9: =IF(DI9="","",IF(DI9>DJ9,"A",IF(DI9<DJ9,"B",IF(DI9=DJ9,"X")))) -> A | DM9: 2 | DN9: 0 | DO9: =IF(OR($F9="",$G9="",DM9="",DN9=""),"",IF(AND($F9=DM9,$G9=DN9),10,IF($F9-$G9=DM9-DN9,7,IF(OR(AND($F9>$G9,DM9>DN9),AND($F9<$G9,DM9<DN9)),5,0)))) -> 10 | DP9: =IF(DM9="","",IF(DM9>DN9,"A",IF(DM9<DN9,"B",IF(DM9=DN9,"X")))) -> A | DQ9: 1 | DR9: 0 | DS9: =IF(OR($F9="",$G9="",DQ9="",DR9=""),"",IF(AND($F9=DQ9,$G9=DR9),10,IF($F9-$G9=DQ9-DR9,7,IF(OR(AND($F9>$G9,DQ9>DR9),AND($F9<$G9,DQ9<DR9)),5,0)))) -> 5 | DT9: =IF(DQ9="","",IF(DQ9>DR9,"A",IF(DQ9<DR9,"B",IF(DQ9=DR9,"X")))) -> A | DU9: 1 | DV9: 1 | DW9: =IF(OR($F9="",$G9="",DU9="",DV9=""),"",IF(AND($F9=DU9,$G9=DV9),10,IF($F9-$G9=DU9-DV9,7,IF(OR(AND($F9>$G9,DU9>DV9),AND($F9<$G9,DU9<DV9)),5,0)))) -> 0 | DX9: =IF(DU9="","",IF(DU9>DV9,"A",IF(DU9<DV9,"B",IF(DU9=DV9,"X")))) -> X | DY9: 2 | DZ9: 1 | EA9: =IF(OR($F9="",$G9="",DY9="",DZ9=""),"",IF(AND($F9=DY9,$G9=DZ9),10,IF($F9-$G9=DY9-DZ9,7,IF(OR(AND($F9>$G9,DY9>DZ9),AND($F9<$G9,DY9<DZ9)),5,0)))) -> 5 | EB9: =IF(DY9="","",IF(DY9>DZ9,"A",IF(DY9<DZ9,"B",IF(DY9=DZ9,"X")))) -> A | EC9: 2 | ED9: 2 | EE9: =IF(OR($F9="",$G9="",EC9="",ED9=""),"",IF(AND($F9=EC9,$G9=ED9),10,IF($F9-$G9=EC9-ED9,7,IF(OR(AND($F9>$G9,EC9>ED9),AND($F9<$G9,EC9<ED9)),5,0)))) -> 0 | EF9: =IF(EC9="","",IF(EC9>ED9,"A",IF(EC9<ED9,"B",IF(EC9=ED9,"X")))) -> X | EG9: 2 | EH9: 1 | EI9: =IF(OR($F9="",$G9="",EG9="",EH9=""),"",IF(AND($F9=EG9,$G9=EH9),10,IF($F9-$G9=EG9-EH9,7,IF(OR(AND($F9>$G9,EG9>EH9),AND($F9<$G9,EG9<EH9)),5,0)))) -> 5 | EJ9: =IF(EG9="","",IF(EG9>EH9,"A",IF(EG9<EH9,"B",IF(EG9=EH9,"X")))) -> A | EK9: 1 | EL9: 0 | EM9: =IF(OR($F9="",$G9="",EK9="",EL9=""),"",IF(AND($F9=EK9,$G9=EL9),10,IF($F9-$G9=EK9-EL9,7,IF(OR(AND($F9>$G9,EK9>EL9),AND($F9<$G9,EK9<EL9)),5,0)))) -> 5 | EN9: =IF(EK9="","",IF(EK9>EL9,"A",IF(EK9<EL9,"B",IF(EK9=EL9,"X")))) -> A | EO9: 2 | EP9: 1 | EQ9: =IF(OR($F9="",$G9="",EO9="",EP9=""),"",IF(AND($F9=EO9,$G9=EP9),10,IF($F9-$G9=EO9-EP9,7,IF(OR(AND($F9>$G9,EO9>EP9),AND($F9<$G9,EO9<EP9)),5,0)))) -> 5 | ER9: =IF(EO9="","",IF(EO9>EP9,"A",IF(EO9<EP9,"B",IF(EO9=EP9,"X")))) -> A | ES9: 2 | ET9: 1 | EU9: =IF(OR($F9="",$G9="",ES9="",ET9=""),"",IF(AND($F9=ES9,$G9=ET9),10,IF($F9-$G9=ES9-ET9,7,IF(OR(AND($F9>$G9,ES9>ET9),AND($F9<$G9,ES9<ET9)),5,0)))) -> 5 | EV9: =IF(ES9="","",IF(ES9>ET9,"A",IF(ES9<ET9,"B",IF(ES9=ET9,"X")))) -> A | EW9: 3 | EX9: 1 | EY9: =IF(OR($F9="",$G9="",EW9="",EX9=""),"",IF(AND($F9=EW9,$G9=EX9),10,IF($F9-$G9=EW9-EX9,7,IF(OR(AND($F9>$G9,EW9>EX9),AND($F9<$G9,EW9<EX9)),5,0)))) -> 7 | EZ9: =IF(EW9="","",IF(EW9>EX9,"A",IF(EW9<EX9,"B",IF(EW9=EX9,"X")))) -> A | FA9: 2 | FB9: 1 | FC9: =IF(OR($F9="",$G9="",FA9="",FB9=""),"",IF(AND($F9=FA9,$G9=FB9),10,IF($F9-$G9=FA9-FB9,7,IF(OR(AND($F9>$G9,FA9>FB9),AND($F9<$G9,FA9<FB9)),5,0)))) -> 5 | FD9: =IF(FA9="","",IF(FA9>FB9,"A",IF(FA9<FB9,"B",IF(FA9=FB9,"X")))) -> A | FE9: 2 | FF9: 0 | FG9: =IF(OR($F9="",$G9="",FE9="",FF9=""),"",IF(AND($F9=FE9,$G9=FF9),10,IF($F9-$G9=FE9-FF9,7,IF(OR(AND($F9>$G9,FE9>FF9),AND($F9<$G9,FE9<FF9)),5,0)))) -> 10 | FH9: =IF(FE9="","",IF(FE9>FF9,"A",IF(FE9<FF9,"B",IF(FE9=FF9,"X")))) -> A | FI9: 2 | FJ9: 2 | FK9: =IF(OR($F9="",$G9="",FI9="",FJ9=""),"",IF(AND($F9=FI9,$G9=FJ9),10,IF($F9-$G9=FI9-FJ9,7,IF(OR(AND($F9>$G9,FI9>FJ9),AND($F9<$G9,FI9<FJ9)),5,0)))) -> 0 | FL9: =IF(FI9="","",IF(FI9>FJ9,"A",IF(FI9<FJ9,"B",IF(FI9=FJ9,"X")))) -> X | FM9: 3 | FN9: 1 | FO9: =IF(OR($F9="",$G9="",FM9="",FN9=""),"",IF(AND($F9=FM9,$G9=FN9),10,IF($F9-$G9=FM9-FN9,7,IF(OR(AND($F9>$G9,FM9>FN9),AND($F9<$G9,FM9<FN9)),5,0)))) -> 7 | FP9: =IF(FM9="","",IF(FM9>FN9,"A",IF(FM9<FN9,"B",IF(FM9=FN9,"X")))) -> A | FQ9: 1 | FR9: 0 | FS9: =IF(OR($F9="",$G9="",FQ9="",FR9=""),"",IF(AND($F9=FQ9,$G9=FR9),10,IF($F9-$G9=FQ9-FR9,7,IF(OR(AND($F9>$G9,FQ9>FR9),AND($F9<$G9,FQ9<FR9)),5,0)))) -> 5 | FT9: =IF(FQ9="","",IF(FQ9>FR9,"A",IF(FQ9<FR9,"B",IF(FQ9=FR9,"X")))) -> A | FU9: 1 | FV9: 0 | FW9: =IF(OR($F9="",$G9="",FU9="",FV9=""),"",IF(AND($F9=FU9,$G9=FV9),10,IF($F9-$G9=FU9-FV9,7,IF(OR(AND($F9>$G9,FU9>FV9),AND($F9<$G9,FU9<FV9)),5,0)))) -> 5 | FX9: =IF(FU9="","",IF(FU9>FV9,"A",IF(FU9<FV9,"B",IF(FU9=FV9,"X")))) -> A | FY9: 3 | FZ9: 1 | GA9: =IF(OR($F9="",$G9="",FY9="",FZ9=""),"",IF(AND($F9=FY9,$G9=FZ9),10,IF($F9-$G9=FY9-FZ9,7,IF(OR(AND($F9>$G9,FY9>FZ9),AND($F9<$G9,FY9<FZ9)),5,0)))) -> 7 | GB9: =IF(FY9="","",IF(FY9>FZ9,"A",IF(FY9<FZ9,"B",IF(FY9=FZ9,"X")))) -> A | GC9: 2 | GD9: 1 | GE9: =IF(OR($F9="",$G9="",GC9="",GD9=""),"",IF(AND($F9=GC9,$G9=GD9),10,IF($F9-$G9=GC9-GD9,7,IF(OR(AND($F9>$G9,GC9>GD9),AND($F9<$G9,GC9<GD9)),5,0)))) -> 5 | GF9: =IF(GC9="","",IF(GC9>GD9,"A",IF(GC9<GD9,"B",IF(GC9=GD9,"X")))) -> A | GG9: 1 | GH9: 0 | GI9: =IF(OR($F9="",$G9="",GG9="",GH9=""),"",IF(AND($F9=GG9,$G9=GH9),10,IF($F9-$G9=GG9-GH9,7,IF(OR(AND($F9>$G9,GG9>GH9),AND($F9<$G9,GG9<GH9)),5,0)))) -> 5 | GJ9: =IF(GG9="","",IF(GG9>GH9,"A",IF(GG9<GH9,"B",IF(GG9=GH9,"X")))) -> A | GK9: 2 | GL9: 1 | GM9: =IF(OR($F9="",$G9="",GK9="",GL9=""),"",IF(AND($F9=GK9,$G9=GL9),10,IF($F9-$G9=GK9-GL9,7,IF(OR(AND($F9>$G9,GK9>GL9),AND($F9<$G9,GK9<GL9)),5,0)))) -> 5 | GN9: =IF(GK9="","",IF(GK9>GL9,"A",IF(GK9<GL9,"B",IF(GK9=GL9,"X")))) -> A | GO9: 2 | GP9: 0 | GQ9: =IF(OR($F9="",$G9="",GO9="",GP9=""),"",IF(AND($F9=GO9,$G9=GP9),10,IF($F9-$G9=GO9-GP9,7,IF(OR(AND($F9>$G9,GO9>GP9),AND($F9<$G9,GO9<GP9)),5,0)))) -> 10 | GR9: =IF(GO9="","",IF(GO9>GP9,"A",IF(GO9<GP9,"B",IF(GO9=GP9,"X")))) -> A | GS9: 2 | GT9: 0 | GU9: =IF(OR($F9="",$G9="",GS9="",GT9=""),"",IF(AND($F9=GS9,$G9=GT9),10,IF($F9-$G9=GS9-GT9,7,IF(OR(AND($F9>$G9,GS9>GT9),AND($F9<$G9,GS9<GT9)),5,0)))) -> 10 | GV9: =IF(GS9="","",IF(GS9>GT9,"A",IF(GS9<GT9,"B",IF(GS9=GT9,"X")))) -> A | GW9: 3 | GX9: 1 | GY9: =IF(OR($F9="",$G9="",GW9="",GX9=""),"",IF(AND($F9=GW9,$G9=GX9),10,IF($F9-$G9=GW9-GX9,7,IF(OR(AND($F9>$G9,GW9>GX9),AND($F9<$G9,GW9<GX9)),5,0)))) -> 7 | GZ9: =IF(GW9="","",IF(GW9>GX9,"A",IF(GW9<GX9,"B",IF(GW9=GX9,"X")))) -> A | HB9: =SUM(COUNTIF($I9:$GZ9,"A")+COUNTIF($I90:$GZ90,"A")) -> 77 | HC9: =SUM(COUNTIF($I9:$GZ9,"X")+COUNTIF($I90:$GZ90,"X")) -> 6 | HD9: =SUM(COUNTIF($I9:$GZ9,"B")+COUNTIF($I90:$GZ90,"B")) -> 1 | HE9: =SUM(HB9:HD9) -> 84 | HG9: =HB9*100/HE9 -> 91.66666667 | HH9: =HC9*100/HE9 -> 7.142857143 | HI9: =HD9*100/HE9 -> 1.19047619 | HK9: =SUM(I9:J80,M9:N80,Q9:R80,U9:V80,Y9:Z80,AC9:AD80,AG9:AH80,AK9:AL80,AO9:AP80,AS9:AT80,AW9:AX80,BA9:BB80,BE9:BF80,BI9:BJ80,BM9:BN80,BQ9:BR80,BU9:BV80,BY9:BZ80,CC9:CD80,CG9:CH80,CK9:CL80,CO9:CP80,CS9:CT80,CW9:CX80,DA9:DB80,DE9:DF80,DI9:DJ80,DM9:DN80,DQ9:DR80,DU9:DV80,DY9:DZ80,EC9:ED80,EG9:EH80,EK9:EL80,EO9:EP80,ES9:ET80,EW9:EX80,FA9:FB80,FE9:FF80,FI9:FJ80,FM9:FN80,FQ9:FR80,FU9:FV80,FY9:FZ80,GC9:GD80,GG9:GH80,GK9:GL80,GO9:GP80,GS9:GT80,GW9:GX80) -> 9250 | HL9: Spieler 1 - 50 | HO9: =_xlfn.LET(_xlpm.Start,COLUMN($I$1),_xlpm.Ende,COLUMN($GY$1),_xlpm.Anzahl,INT((_xlpm.Ende-_xlpm.Start)/4)+1,_xlpm.Spalten,_xlpm.Start+4*_xlfn.SEQUENCE(1,_xlpm.Anzahl,0,1),_xlpm.Namen1,INDEX($4:$4,1,_xlpm.Spalten)&" "&INDEX($5:$5,1,_xlpm.Spalten),_xlpm.Punkte1,INDEX(9:9,1,_xlpm.Spalten+2),_xlpm.Namen2,INDEX($85:$85,1,_xlpm.Spalten)&" "&INDEX($86:$86,1,_xlpm.Spalten),_xlpm.Punkte2,INDEX(90:90,1,_xlpm.Spalten+2),_xlfn.TEXTJOIN(", ",TRUE,_xlfn._xlws.FILTER(_xlfn.HSTACK(_xlpm.Namen1,_xlpm.Namen2),_xlfn.HSTACK(_xlpm.Punkte1,_xlpm.Punkte2)=10,""))) -> Ruben Antonelli, André Bartholet, Roger Bartholet, Pongsapat Nott Boonaek, Manfred Brunner, Philip Brunner, Lisa D'Acunto, Vinci D'Acunto, Rafael Derungs, Dino Duvnjak, Stefan Gygli, André Lanz, Franz Lischer, Julian Merkli, Martin Rohner, Martin Schawalder, Yannick Schilliger, Bruno Silva, Aleandro Silvestri, Armando Thormann, Christoph Wälti, Markus Wagner | HQ9: =_xlfn.LET(_xlpm.Start,COLUMN($I$1),_xlpm.Ende,COLUMN($GY$1),_xlpm.Anzahl,INT((_xlpm.Ende-_xlpm.Start)/4)+1,_xlpm.Spalten,_xlpm.Start+4*_xlfn.SEQUENCE(1,_xlpm.Anzahl,0,1),_xlpm.Namen1,INDEX($4:$4,1,_xlpm.Spalten)&" "&INDEX($5:$5,1,_xlpm.Spalten),_xlpm.Punkte1,INDEX(9:9,1,_xlpm.Spalten+2),_xlpm.Namen2,INDEX($85:$85,1,_xlpm.Spalten)&" "&INDEX($86:$86,1,_xlpm.Spalten),_xlpm.Punkte2,INDEX(90:90,1,_xlpm.Spalten+2),_xlfn.TEXTJOIN(", ",TRUE,_xlfn._xlws.FILTER(_xlfn.HSTACK(_xlpm.Namen1,_xlpm.Namen2),_xlfn.HSTACK(_xlpm.Punkte1,_xlpm.Punkte2)=7,""))) -> Manuel Brunner, Leo Rodrigues da Costa, Goran Djukic, Sarina Gygli, Florian Haab, Michael Isenschmid, Marc Lütolf, Mauro Marini, Ben Marthaler, Elias Marty, Stefan Principe, Jingwen Wang
A10: Fr. 12. Jun. | B10: 04:00:00 | C10: 2 | D10: Südkorea | E10: Tschechien | F10: 2 | G10: 1 | I10: 2 | J10: 1 | K10: =IF(OR($F10="",$G10="",I10="",J10=""),"",IF(AND($F10=I10,$G10=J10),10,IF($F10-$G10=I10-J10,7,IF(OR(AND($F10>$G10,I10>J10),AND($F10<$G10,I10<J10)),5,0)))) -> 10 | L10: =IF(I10="","",IF(I10>J10,"A",IF(I10<J10,"B",IF(I10=J10,"X")))) -> A | M10: 1 | N10: 2 | O10: =IF(OR($F10="",$G10="",M10="",N10=""),"",IF(AND($F10=M10,$G10=N10),10,IF($F10-$G10=M10-N10,7,IF(OR(AND($F10>$G10,M10>N10),AND($F10<$G10,M10<N10)),5,0)))) -> 0 | P10: =IF(M10="","",IF(M10>N10,"A",IF(M10<N10,"B",IF(M10=N10,"X")))) -> B | Q10: 1 | R10: 1 | S10: =IF(OR($F10="",$G10="",Q10="",R10=""),"",IF(AND($F10=Q10,$G10=R10),10,IF($F10-$G10=Q10-R10,7,IF(OR(AND($F10>$G10,Q10>R10),AND($F10<$G10,Q10<R10)),5,0)))) -> 0 | T10: =IF(Q10="","",IF(Q10>R10,"A",IF(Q10<R10,"B",IF(Q10=R10,"X")))) -> X | U10: 2 | V10: 3 | W10: =IF(OR($F10="",$G10="",U10="",V10=""),"",IF(AND($F10=U10,$G10=V10),10,IF($F10-$G10=U10-V10,7,IF(OR(AND($F10>$G10,U10>V10),AND($F10<$G10,U10<V10)),5,0)))) -> 0 | X10: =IF(U10="","",IF(U10>V10,"A",IF(U10<V10,"B",IF(U10=V10,"X")))) -> B | Y10: 0 | Z10: 3 | AA10: =IF(OR($F10="",$G10="",Y10="",Z10=""),"",IF(AND($F10=Y10,$G10=Z10),10,IF($F10-$G10=Y10-Z10,7,IF(OR(AND($F10>$G10,Y10>Z10),AND($F10<$G10,Y10<Z10)),5,0)))) -> 0 | AB10: =IF(Y10="","",IF(Y10>Z10,"A",IF(Y10<Z10,"B",IF(Y10=Z10,"X")))) -> B | AC10: 1 | AD10: 1 | AE10: =IF(OR($F10="",$G10="",AC10="",AD10=""),"",IF(AND($F10=AC10,$G10=AD10),10,IF($F10-$G10=AC10-AD10,7,IF(OR(AND($F10>$G10,AC10>AD10),AND($F10<$G10,AC10<AD10)),5,0)))) -> 0 | AF10: =IF(AC10="","",IF(AC10>AD10,"A",IF(AC10<AD10,"B",IF(AC10=AD10,"X")))) -> X | AG10: 1 | AH10: 1 | AI10: =IF(OR($F10="",$G10="",AG10="",AH10=""),"",IF(AND($F10=AG10,$G10=AH10),10,IF($F10-$G10=AG10-AH10,7,IF(OR(AND($F10>$G10,AG10>AH10),AND($F10<$G10,AG10<AH10)),5,0)))) -> 0 | AJ10: =IF(AG10="","",IF(AG10>AH10,"A",IF(AG10<AH10,"B",IF(AG10=AH10,"X")))) -> X | AK10: 1 | AL10: 2 | AM10: =IF(OR($F10="",$G10="",AK10="",AL10=""),"",IF(AND($F10=AK10,$G10=AL10),10,IF($F10-$G10=AK10-AL10,7,IF(OR(AND($F10>$G10,AK10>AL10),AND($F10<$G10,AK10<AL10)),5,0)))) -> 0 | AN10: =IF(AK10="","",IF(AK10>AL10,"A",IF(AK10<AL10,"B",IF(AK10=AL10,"X")))) -> B | AO10: 1 | AP10: 2 | AQ10: =IF(OR($F10="",$G10="",AO10="",AP10=""),"",IF(AND($F10=AO10,$G10=AP10),10,IF($F10-$G10=AO10-AP10,7,IF(OR(AND($F10>$G10,AO10>AP10),AND($F10<$G10,AO10<AP10)),5,0)))) -> 0 | AR10: =IF(AO10="","",IF(AO10>AP10,"A",IF(AO10<AP10,"B",IF(AO10=AP10,"X")))) -> B | AS10: 1 | AT10: 1 | AU10: =IF(OR($F10="",$G10="",AS10="",AT10=""),"",IF(AND($F10=AS10,$G10=AT10),10,IF($F10-$G10=AS10-AT10,7,IF(OR(AND($F10>$G10,AS10>AT10),AND($F10<$G10,AS10<AT10)),5,0)))) -> 0 | AV10: =IF(AS10="","",IF(AS10>AT10,"A",IF(AS10<AT10,"B",IF(AS10=AT10,"X")))) -> X | AW10: 2 | AX10: 1 | AY10: =IF(OR($F10="",$G10="",AW10="",AX10=""),"",IF(AND($F10=AW10,$G10=AX10),10,IF($F10-$G10=AW10-AX10,7,IF(OR(AND($F10>$G10,AW10>AX10),AND($F10<$G10,AW10<AX10)),5,0)))) -> 10 | AZ10: =IF(AW10="","",IF(AW10>AX10,"A",IF(AW10<AX10,"B",IF(AW10=AX10,"X")))) -> A | BA10: 2 | BB10: 2 | BC10: =IF(OR($F10="",$G10="",BA10="",BB10=""),"",IF(AND($F10=BA10,$G10=BB10),10,IF($F10-$G10=BA10-BB10,7,IF(OR(AND($F10>$G10,BA10>BB10),AND($F10<$G10,BA10<BB10)),5,0)))) -> 0 | BD10: =IF(BA10="","",IF(BA10>BB10,"A",IF(BA10<BB10,"B",IF(BA10=BB10,"X")))) -> X | BE10: 1 | BF10: 1 | BG10: =IF(OR($F10="",$G10="",BE10="",BF10=""),"",IF(AND($F10=BE10,$G10=BF10),10,IF($F10-$G10=BE10-BF10,7,IF(OR(AND($F10>$G10,BE10>BF10),AND($F10<$G10,BE10<BF10)),5,0)))) -> 0 | BH10: =IF(BE10="","",IF(BE10>BF10,"A",IF(BE10<BF10,"B",IF(BE10=BF10,"X")))) -> X | BI10: 1 | BJ10: 1 | BK10: =IF(OR($F10="",$G10="",BI10="",BJ10=""),"",IF(AND($F10=BI10,$G10=BJ10),10,IF($F10-$G10=BI10-BJ10,7,IF(OR(AND($F10>$G10,BI10>BJ10),AND($F10<$G10,BI10<BJ10)),5,0)))) -> 0 | BL10: =IF(BI10="","",IF(BI10>BJ10,"A",IF(BI10<BJ10,"B",IF(BI10=BJ10,"X")))) -> X | BM10: 2 | BN10: 1 | BO10: =IF(OR($F10="",$G10="",BM10="",BN10=""),"",IF(AND($F10=BM10,$G10=BN10),10,IF($F10-$G10=BM10-BN10,7,IF(OR(AND($F10>$G10,BM10>BN10),AND($F10<$G10,BM10<BN10)),5,0)))) -> 10 | BP10: =IF(BM10="","",IF(BM10>BN10,"A",IF(BM10<BN10,"B",IF(BM10=BN10,"X")))) -> A | BQ10: 3 | BR10: 2 | BS10: =IF(OR($F10="",$G10="",BQ10="",BR10=""),"",IF(AND($F10=BQ10,$G10=BR10),10,IF($F10-$G10=BQ10-BR10,7,IF(OR(AND($F10>$G10,BQ10>BR10),AND($F10<$G10,BQ10<BR10)),5,0)))) -> 7 | BT10: =IF(BQ10="","",IF(BQ10>BR10,"A",IF(BQ10<BR10,"B",IF(BQ10=BR10,"X")))) -> A | BU10: 1 | BV10: 1 | BW10: =IF(OR($F10="",$G10="",BU10="",BV10=""),"",IF(AND($F10=BU10,$G10=BV10),10,IF($F10-$G10=BU10-BV10,7,IF(OR(AND($F10>$G10,BU10>BV10),AND($F10<$G10,BU10<BV10)),5,0)))) -> 0 | BX10: =IF(BU10="","",IF(BU10>BV10,"A",IF(BU10<BV10,"B",IF(BU10=BV10,"X")))) -> X | BY10: 1 | BZ10: 1 | CA10: =IF(OR($F10="",$G10="",BY10="",BZ10=""),"",IF(AND($F10=BY10,$G10=BZ10),10,IF($F10-$G10=BY10-BZ10,7,IF(OR(AND($F10>$G10,BY10>BZ10),AND($F10<$G10,BY10<BZ10)),5,0)))) -> 0 | CB10: =IF(BY10="","",IF(BY10>BZ10,"A",IF(BY10<BZ10,"B",IF(BY10=BZ10,"X")))) -> X | CC10: 2 | CD10: 1 | CE10: =IF(OR($F10="",$G10="",CC10="",CD10=""),"",IF(AND($F10=CC10,$G10=CD10),10,IF($F10-$G10=CC10-CD10,7,IF(OR(AND($F10>$G10,CC10>CD10),AND($F10<$G10,CC10<CD10)),5,0)))) -> 10 | CF10: =IF(CC10="","",IF(CC10>CD10,"A",IF(CC10<CD10,"B",IF(CC10=CD10,"X")))) -> A | CG10: 2 | CH10: 2 | CI10: =IF(OR($F10="",$G10="",CG10="",CH10=""),"",IF(AND($F10=CG10,$G10=CH10),10,IF($F10-$G10=CG10-CH10,7,IF(OR(AND($F10>$G10,CG10>CH10),AND($F10<$G10,CG10<CH10)),5,0)))) -> 0 | CJ10: =IF(CG10="","",IF(CG10>CH10,"A",IF(CG10<CH10,"B",IF(CG10=CH10,"X")))) -> X | CK10: 1 | CL10: 1 | CM10: =IF(OR($F10="",$G10="",CK10="",CL10=""),"",IF(AND($F10=CK10,$G10=CL10),10,IF($F10-$G10=CK10-CL10,7,IF(OR(AND($F10>$G10,CK10>CL10),AND($F10<$G10,CK10<CL10)),5,0)))) -> 0 | CN10: =IF(CK10="","",IF(CK10>CL10,"A",IF(CK10<CL10,"B",IF(CK10=CL10,"X")))) -> X | CO10: 1 | CP10: 2 | CQ10: =IF(OR($F10="",$G10="",CO10="",CP10=""),"",IF(AND($F10=CO10,$G10=CP10),10,IF($F10-$G10=CO10-CP10,7,IF(OR(AND($F10>$G10,CO10>CP10),AND($F10<$G10,CO10<CP10)),5,0)))) -> 0 | CR10: =IF(CO10="","",IF(CO10>CP10,"A",IF(CO10<CP10,"B",IF(CO10=CP10,"X")))) -> B | CS10: 1 | CT10: 1 | CU10: =IF(OR($F10="",$G10="",CS10="",CT10=""),"",IF(AND($F10=CS10,$G10=CT10),10,IF($F10-$G10=CS10-CT10,7,IF(OR(AND($F10>$G10,CS10>CT10),AND($F10<$G10,CS10<CT10)),5,0)))) -> 0 | CV10: =IF(CS10="","",IF(CS10>CT10,"A",IF(CS10<CT10,"B",IF(CS10=CT10,"X")))) -> X | CW10: 1 | CX10: 1 | CY10: =IF(OR($F10="",$G10="",CW10="",CX10=""),"",IF(AND($F10=CW10,$G10=CX10),10,IF($F10-$G10=CW10-CX10,7,IF(OR(AND($F10>$G10,CW10>CX10),AND($F10<$G10,CW10<CX10)),5,0)))) -> 0 | CZ10: =IF(CW10="","",IF(CW10>CX10,"A",IF(CW10<CX10,"B",IF(CW10=CX10,"X")))) -> X | DA10: 1 | DB10: 1 | DC10: =IF(OR($F10="",$G10="",DA10="",DB10=""),"",IF(AND($F10=DA10,$G10=DB10),10,IF($F10-$G10=DA10-DB10,7,IF(OR(AND($F10>$G10,DA10>DB10),AND($F10<$G10,DA10<DB10)),5,0)))) -> 0 | DD10: =IF(DA10="","",IF(DA10>DB10,"A",IF(DA10<DB10,"B",IF(DA10=DB10,"X")))) -> X | DE10: 1 | DF10: 2 | DG10: =IF(OR($F10="",$G10="",DE10="",DF10=""),"",IF(AND($F10=DE10,$G10=DF10),10,IF($F10-$G10=DE10-DF10,7,IF(OR(AND($F10>$G10,DE10>DF10),AND($F10<$G10,DE10<DF10)),5,0)))) -> 0 | DH10: =IF(DE10="","",IF(DE10>DF10,"A",IF(DE10<DF10,"B",IF(DE10=DF10,"X")))) -> B | DI10: 1 | DJ10: 1 | DK10: =IF(OR($F10="",$G10="",DI10="",DJ10=""),"",IF(AND($F10=DI10,$G10=DJ10),10,IF($F10-$G10=DI10-DJ10,7,IF(OR(AND($F10>$G10,DI10>DJ10),AND($F10<$G10,DI10<DJ10)),5,0)))) -> 0 | DL10: =IF(DI10="","",IF(DI10>DJ10,"A",IF(DI10<DJ10,"B",IF(DI10=DJ10,"X")))) -> X | DM10: 1 | DN10: 1 | DO10: =IF(OR($F10="",$G10="",DM10="",DN10=""),"",IF(AND($F10=DM10,$G10=DN10),10,IF($F10-$G10=DM10-DN10,7,IF(OR(AND($F10>$G10,DM10>DN10),AND($F10<$G10,DM10<DN10)),5,0)))) -> 0 | DP10: =IF(DM10="","",IF(DM10>DN10,"A",IF(DM10<DN10,"B",IF(DM10=DN10,"X")))) -> X | DQ10: 1 | DR10: 1 | DS10: =IF(OR($F10="",$G10="",DQ10="",DR10=""),"",IF(AND($F10=DQ10,$G10=DR10),10,IF($F10-$G10=DQ10-DR10,7,IF(OR(AND($F10>$G10,DQ10>DR10),AND($F10<$G10,DQ10<DR10)),5,0)))) -> 0 | DT10: =IF(DQ10="","",IF(DQ10>DR10,"A",IF(DQ10<DR10,"B",IF(DQ10=DR10,"X")))) -> X | DU10: 0 | DV10: 2 | DW10: =IF(OR($F10="",$G10="",DU10="",DV10=""),"",IF(AND($F10=DU10,$G10=DV10),10,IF($F10-$G10=DU10-DV10,7,IF(OR(AND($F10>$G10,DU10>DV10),AND($F10<$G10,DU10<DV10)),5,0)))) -> 0 | DX10: =IF(DU10="","",IF(DU10>DV10,"A",IF(DU10<DV10,"B",IF(DU10=DV10,"X")))) -> B | DY10: 1 | DZ10: 1 | EA10: =IF(OR($F10="",$G10="",DY10="",DZ10=""),"",IF(AND($F10=DY10,$G10=DZ10),10,IF($F10-$G10=DY10-DZ10,7,IF(OR(AND($F10>$G10,DY10>DZ10),AND($F10<$G10,DY10<DZ10)),5,0)))) -> 0 | EB10: =IF(DY10="","",IF(DY10>DZ10,"A",IF(DY10<DZ10,"B",IF(DY10=DZ10,"X")))) -> X | EC10: 0 | ED10: 1 | EE10: =IF(OR($F10="",$G10="",EC10="",ED10=""),"",IF(AND($F10=EC10,$G10=ED10),10,IF($F10-$G10=EC10-ED10,7,IF(OR(AND($F10>$G10,EC10>ED10),AND($F10<$G10,EC10<ED10)),5,0)))) -> 0 | EF10: =IF(EC10="","",IF(EC10>ED10,"A",IF(EC10<ED10,"B",IF(EC10=ED10,"X")))) -> B | EG10: 0 | EH10: 0 | EI10: =IF(OR($F10="",$G10="",EG10="",EH10=""),"",IF(AND($F10=EG10,$G10=EH10),10,IF($F10-$G10=EG10-EH10,7,IF(OR(AND($F10>$G10,EG10>EH10),AND($F10<$G10,EG10<EH10)),5,0)))) -> 0 | EJ10: =IF(EG10="","",IF(EG10>EH10,"A",IF(EG10<EH10,"B",IF(EG10=EH10,"X")))) -> X | EK10: 2 | EL10: 1 | EM10: =IF(OR($F10="",$G10="",EK10="",EL10=""),"",IF(AND($F10=EK10,$G10=EL10),10,IF($F10-$G10=EK10-EL10,7,IF(OR(AND($F10>$G10,EK10>EL10),AND($F10<$G10,EK10<EL10)),5,0)))) -> 10 | EN10: =IF(EK10="","",IF(EK10>EL10,"A",IF(EK10<EL10,"B",IF(EK10=EL10,"X")))) -> A | EO10: 1 | EP10: 1 | EQ10: =IF(OR($F10="",$G10="",EO10="",EP10=""),"",IF(AND($F10=EO10,$G10=EP10),10,IF($F10-$G10=EO10-EP10,7,IF(OR(AND($F10>$G10,EO10>EP10),AND($F10<$G10,EO10<EP10)),5,0)))) -> 0 | ER10: =IF(EO10="","",IF(EO10>EP10,"A",IF(EO10<EP10,"B",IF(EO10=EP10,"X")))) -> X | ES10: 2 | ET10: 1 | EU10: =IF(OR($F10="",$G10="",ES10="",ET10=""),"",IF(AND($F10=ES10,$G10=ET10),10,IF($F10-$G10=ES10-ET10,7,IF(OR(AND($F10>$G10,ES10>ET10),AND($F10<$G10,ES10<ET10)),5,0)))) -> 10 | EV10: =IF(ES10="","",IF(ES10>ET10,"A",IF(ES10<ET10,"B",IF(ES10=ET10,"X")))) -> A | EW10: 1 | EX10: 0 | EY10: =IF(OR($F10="",$G10="",EW10="",EX10=""),"",IF(AND($F10=EW10,$G10=EX10),10,IF($F10-$G10=EW10-EX10,7,IF(OR(AND($F10>$G10,EW10>EX10),AND($F10<$G10,EW10<EX10)),5,0)))) -> 7 | EZ10: =IF(EW10="","",IF(EW10>EX10,"A",IF(EW10<EX10,"B",IF(EW10=EX10,"X")))) -> A | FA10: 0 | FB10: 2 | FC10: =IF(OR($F10="",$G10="",FA10="",FB10=""),"",IF(AND($F10=FA10,$G10=FB10),10,IF($F10-$G10=FA10-FB10,7,IF(OR(AND($F10>$G10,FA10>FB10),AND($F10<$G10,FA10<FB10)),5,0)))) -> 0 | FD10: =IF(FA10="","",IF(FA10>FB10,"A",IF(FA10<FB10,"B",IF(FA10=FB10,"X")))) -> B | FE10: 1 | FF10: 1 | FG10: =IF(OR($F10="",$G10="",FE10="",FF10=""),"",IF(AND($F10=FE10,$G10=FF10),10,IF($F10-$G10=FE10-FF10,7,IF(OR(AND($F10>$G10,FE10>FF10),AND($F10<$G10,FE10<FF10)),5,0)))) -> 0 | FH10: =IF(FE10="","",IF(FE10>FF10,"A",IF(FE10<FF10,"B",IF(FE10=FF10,"X")))) -> X | FI10: 2 | FJ10: 0 | FK10: =IF(OR($F10="",$G10="",FI10="",FJ10=""),"",IF(AND($F10=FI10,$G10=FJ10),10,IF($F10-$G10=FI10-FJ10,7,IF(OR(AND($F10>$G10,FI10>FJ10),AND($F10<$G10,FI10<FJ10)),5,0)))) -> 5 | FL10: =IF(FI10="","",IF(FI10>FJ10,"A",IF(FI10<FJ10,"B",IF(FI10=FJ10,"X")))) -> A | FM10: 2 | FN10: 1 | FO10: =IF(OR($F10="",$G10="",FM10="",FN10=""),"",IF(AND($F10=FM10,$G10=FN10),10,IF($F10-$G10=FM10-FN10,7,IF(OR(AND($F10>$G10,FM10>FN10),AND($F10<$G10,FM10<FN10)),5,0)))) -> 10 | FP10: =IF(FM10="","",IF(FM10>FN10,"A",IF(FM10<FN10,"B",IF(FM10=FN10,"X")))) -> A | FQ10: 2 | FR10: 1 | FS10: =IF(OR($F10="",$G10="",FQ10="",FR10=""),"",IF(AND($F10=FQ10,$G10=FR10),10,IF($F10-$G10=FQ10-FR10,7,IF(OR(AND($F10>$G10,FQ10>FR10),AND($F10<$G10,FQ10<FR10)),5,0)))) -> 10 | FT10: =IF(FQ10="","",IF(FQ10>FR10,"A",IF(FQ10<FR10,"B",IF(FQ10=FR10,"X")))) -> A | FU10: 1 | FV10: 1 | FW10: =IF(OR($F10="",$G10="",FU10="",FV10=""),"",IF(AND($F10=FU10,$G10=FV10),10,IF($F10-$G10=FU10-FV10,7,IF(OR(AND($F10>$G10,FU10>FV10),AND($F10<$G10,FU10<FV10)),5,0)))) -> 0 | FX10: =IF(FU10="","",IF(FU10>FV10,"A",IF(FU10<FV10,"B",IF(FU10=FV10,"X")))) -> X | FY10: 3 | FZ10: 1 | GA10: =IF(OR($F10="",$G10="",FY10="",FZ10=""),"",IF(AND($F10=FY10,$G10=FZ10),10,IF($F10-$G10=FY10-FZ10,7,IF(OR(AND($F10>$G10,FY10>FZ10),AND($F10<$G10,FY10<FZ10)),5,0)))) -> 5 | GB10: =IF(FY10="","",IF(FY10>FZ10,"A",IF(FY10<FZ10,"B",IF(FY10=FZ10,"X")))) -> A | GC10: 1 | GD10: 2 | GE10: =IF(OR($F10="",$G10="",GC10="",GD10=""),"",IF(AND($F10=GC10,$G10=GD10),10,IF($F10-$G10=GC10-GD10,7,IF(OR(AND($F10>$G10,GC10>GD10),AND($F10<$G10,GC10<GD10)),5,0)))) -> 0 | GF10: =IF(GC10="","",IF(GC10>GD10,"A",IF(GC10<GD10,"B",IF(GC10=GD10,"X")))) -> B | GG10: 1 | GH10: 0 | GI10: =IF(OR($F10="",$G10="",GG10="",GH10=""),"",IF(AND($F10=GG10,$G10=GH10),10,IF($F10-$G10=GG10-GH10,7,IF(OR(AND($F10>$G10,GG10>GH10),AND($F10<$G10,GG10<GH10)),5,0)))) -> 7 | GJ10: =IF(GG10="","",IF(GG10>GH10,"A",IF(GG10<GH10,"B",IF(GG10=GH10,"X")))) -> A | GK10: 0 | GL10: 1 | GM10: =IF(OR($F10="",$G10="",GK10="",GL10=""),"",IF(AND($F10=GK10,$G10=GL10),10,IF($F10-$G10=GK10-GL10,7,IF(OR(AND($F10>$G10,GK10>GL10),AND($F10<$G10,GK10<GL10)),5,0)))) -> 0 | GN10: =IF(GK10="","",IF(GK10>GL10,"A",IF(GK10<GL10,"B",IF(GK10=GL10,"X")))) -> B | GO10: 0 | GP10: 0 | GQ10: =IF(OR($F10="",$G10="",GO10="",GP10=""),"",IF(AND($F10=GO10,$G10=GP10),10,IF($F10-$G10=GO10-GP10,7,IF(OR(AND($F10>$G10,GO10>GP10),AND($F10<$G10,GO10<GP10)),5,0)))) -> 0 | GR10: =IF(GO10="","",IF(GO10>GP10,"A",IF(GO10<GP10,"B",IF(GO10=GP10,"X")))) -> X | GS10: 0 | GT10: 1 | GU10: =IF(OR($F10="",$G10="",GS10="",GT10=""),"",IF(AND($F10=GS10,$G10=GT10),10,IF($F10-$G10=GS10-GT10,7,IF(OR(AND($F10>$G10,GS10>GT10),AND($F10<$G10,GS10<GT10)),5,0)))) -> 0 | GV10: =IF(GS10="","",IF(GS10>GT10,"A",IF(GS10<GT10,"B",IF(GS10=GT10,"X")))) -> B | GW10: 1 | GX10: 1 | GY10: =IF(OR($F10="",$G10="",GW10="",GX10=""),"",IF(AND($F10=GW10,$G10=GX10),10,IF($F10-$G10=GW10-GX10,7,IF(OR(AND($F10>$G10,GW10>GX10),AND($F10<$G10,GW10<GX10)),5,0)))) -> 0 | GZ10: =IF(GW10="","",IF(GW10>GX10,"A",IF(GW10<GX10,"B",IF(GW10=GX10,"X")))) -> X | HB10: =SUM(COUNTIF($I10:$GZ10,"A")+COUNTIF($I91:$GZ91,"A")) -> 18 | HC10: =SUM(COUNTIF($I10:$GZ10,"X")+COUNTIF($I91:$GZ91,"X")) -> 45 | HD10: =SUM(COUNTIF($I10:$GZ10,"B")+COUNTIF($I91:$GZ91,"B")) -> 21 | HE10: =SUM(HB10:HD10) -> 84 | HG10: =HB10*100/HE10 -> 21.42857143 | HH10: =HC10*100/HE10 -> 53.57142857 | HI10: =HD10*100/HE10 -> 25 | HK10: =SUM(I90:J161,M90:N161,Q90:R161,U90:V161,Y90:Z161,AC90:AD161,AG90:AH161,AK90:AL161,AO90:AP161,AS90:AT161,AW90:AX161,BA90:BB161,BE90:BF161,BI90:BJ161,BM90:BN161,BQ90:BR161,BU90:BV161,BY90:BZ161,CC90:CD161,CG90:CH161,CK90:CL161,CO90:CP161,CS90:CT161,CW90:CX161,DA90:DB161,DE90:DF161,DI90:DJ161,DM90:DN161,DQ90:DR161,DU90:DV161,DY90:DZ161,EC90:ED161,EG90:EH161,EK90:EL161,EO90:EP161,ES90:ET161,EW90:EX161,FA90:FB161,FE90:FF161,FI90:FJ161,FM90:FN161,FQ90:FR161,FU90:FV161,FY90:FZ161,GC90:GD161,GG90:GH161,GK90:GL161,GO90:GP161,GS90:GT161,GW90:GX161) -> 6972 | HL10: Spieler 51 - 100 | HO10: =_xlfn.LET(_xlpm.Start,COLUMN($I$1),_xlpm.Ende,COLUMN($GY$1),_xlpm.Anzahl,INT((_xlpm.Ende-_xlpm.Start)/4)+1,_xlpm.Spalten,_xlpm.Start+4*_xlfn.SEQUENCE(1,_xlpm.Anzahl,0,1),_xlpm.Namen1,INDEX($4:$4,1,_xlpm.Spalten)&" "&INDEX($5:$5,1,_xlpm.Spalten),_xlpm.Punkte1,INDEX(10:10,1,_xlpm.Spalten+2),_xlpm.Namen2,INDEX($85:$85,1,_xlpm.Spalten)&" "&INDEX($86:$86,1,_xlpm.Spalten),_xlpm.Punkte2,INDEX(91:91,1,_xlpm.Spalten+2),_xlfn.TEXTJOIN(", ",TRUE,_xlfn._xlws.FILTER(_xlfn.HSTACK(_xlpm.Namen1,_xlpm.Namen2),_xlfn.HSTACK(_xlpm.Punkte1,_xlpm.Punkte2)=10,""))) -> Panos Agorastos, Mara Beck, Manuel Brunner, Oli Christiansen, Laurent Grosse, Robin Gygli, Florian Haab, Agnes Isenschmid, Martin Marthaler, Lynn Rüegg, Evelyne Schenk | HQ10: =_xlfn.LET(_xlpm.Start,COLUMN($I$1),_xlpm.Ende,COLUMN($GY$1),_xlpm.Anzahl,INT((_xlpm.Ende-_xlpm.Start)/4)+1,_xlpm.Spalten,_xlpm.Start+4*_xlfn.SEQUENCE(1,_xlpm.Anzahl,0,1),_xlpm.Namen1,INDEX($4:$4,1,_xlpm.Spalten)&" "&INDEX($5:$5,1,_xlpm.Spalten),_xlpm.Punkte1,INDEX(10:10,1,_xlpm.Spalten+2),_xlpm.Namen2,INDEX($85:$85,1,_xlpm.Spalten)&" "&INDEX($86:$86,1,_xlpm.Spalten),_xlpm.Punkte2,INDEX(91:91,1,_xlpm.Spalten+2),_xlfn.TEXTJOIN(", ",TRUE,_xlfn._xlws.FILTER(_xlfn.HSTACK(_xlpm.Namen1,_xlpm.Namen2),_xlfn.HSTACK(_xlpm.Punkte1,_xlpm.Punkte2)=7,""))) -> Nicolas Brunner, Sarina Gygli, Pascal Keller, Martin Schawalder
A11: Fr. 12. Jun. | B11: 21:00:00 | C11: 3 | D11: Kanada | E11: Bosnien-Herz. | F11: 1 | G11: 1 | I11: 1 | J11: 1 | K11: 10 | L11: X | M11: 1 | N11: 2 | O11: 0 | P11: B | Q11: 0 | R11: 1 | S11: 0 | T11: B | U11: 2 | V11: 2 | W11: 7 | X11: X | Y11: 2 | Z11: 2 | AA11: 7 | AB11: X | AC11: 2 | AD11: 2 | AE11: 7 | AF11: X | AG11: 1 | AH11: 0 | AI11: 0 | AJ11: A | AK11: 2 | AL11: 1 | AM11: 0 | AN11: A | AO11: 1 | AP11: 0 | AQ11: 0 | AR11: A | AS11: 1 | AT11: 0 | AU11: 0 | AV11: A | AW11: 3 | AX11: 0 | AY11: 0 | AZ11: A | BA11: 2 | BB11: 1 | BC11: 0 | BD11: A | BE11: 2 | BF11: 1 | BG11: 0 | BH11: A | BI11: 0 | BJ11: 1 | BK11: 0 | BL11: B | BM11: 1 | BN11: 2 | BO11: 0 | BP11: B | BQ11: 1 | BR11: 2 | BS11: 0 | BT11: B | BU11: 1 | BV11: 2 | BW11: 0 | BX11: B | BY11: 0 | BZ11: 0 | CA11: 7 | CB11: X | CC11: 1 | CD11: 1 | CE11: 10 | CF11: X | CG11: 1 | CH11: 1 | CI11: 10 | CJ11: X | CK11: 1 | CL11: 1 | CM11: 10 | CN11: X | CO11: 1 | CP11: 1 | CQ11: 10 | CR11: X | CS11: 2 | CT11: 1 | CU11: 0 | CV11: A | CW11: 0 | CX11: 1 | CY11: 0 | CZ11: B | DA11: 2 | DB11: 1 | DC11: 0 | DD11: A | DE11: 2 | DF11: 1 | DG11: 0 | DH11: A | DI11: 1 | DJ11: 2 | DK11: 0 | DL11: B | DM11: 0 | DN11: 1 | DO11: 0 | DP11: B | DQ11: 0 | DR11: 1 | DS11: 0 | DT11: B | DU11: 1 | DV11: 1 | DW11: 10 | DX11: X | DY11: 0 | DZ11: 2 | EA11: 0 | EB11: B | EC11: 0 | ED11: 2 | EE11: 0 | EF11: B | EG11: 0 | EH11: 1 | EI11: 0 | EJ11: B | EK11: 1 | EL11: 0 | EM11: 0 | EN11: A | EO11: 2 | EP11: 1 | EQ11: 0 | ER11: A | ES11: 2 | ET11: 1 | EU11: 0 | EV11: A | EW11: 1 | EX11: 0 | EY11: 0 | EZ11: A | FA11: 0 | FB11: 1 | FC11: 0 | FD11: B | FE11: 2 | FF11: 1 | FG11: 0 | FH11: A | FI11: 1 | FJ11: 0 | FK11: 0 | FL11: A | FM11: 2 | FN11: 1 | FO11: 0 | FP11: A | FQ11: 2 | FR11: 1 | FS11: 0 | FT11: A | FU11: 1 | FV11: 2 | FW11: 0 | FX11: B | FY11: 1 | FZ11: 3 | GA11: 0 | GB11: B | GC11: 0 | GD11: 1 | GE11: 0 | GF11: B | GG11: 1 | GH11: 0 | GI11: 0 | GJ11: A | GK11: 0 | GL11: 2 | GM11: 0 | GN11: B | GO11: 1 | GP11: 2 | GQ11: 0 | GR11: B | GS11: 1 | GT11: 1 | GU11: 10 | GV11: X | GW11: 2 | GX11: 0 | GY11: 0 | GZ11: A | HB11: 37 | HC11: 19 | HD11: 28 | HE11: 84 | HG11: 44.04761905 | HH11: 22.61904762 | HI11: 33.33333333 | HK11: =SUM(HK9:HK10) -> 16222 | HL11: Total | HO11: =_xlfn.LET(_xlpm.Start,COLUMN($I$1),_xlpm.Ende,COLUMN($GY$1),_xlpm.Anzahl,INT((_xlpm.Ende-_xlpm.Start)/4)+1,_xlpm.Spalten,_xlpm.Start+4*_xlfn.SEQUENCE(1,_xlpm.Anzahl,0,1),_xlpm.Namen1,INDEX($4:$4,1,_xlpm.Spalten)&" "&INDEX($5:$5,1,_xlpm.Spalten),_xlpm.Punkte1,INDEX(11:11,1,_xlpm.Spalten+2),_xlpm.Namen2,INDEX($85:$85,1,_xlpm.Spalten)&" "&INDEX($86:$86,1,_xlpm.Spalten),_xlpm.Punkte2,INDEX(92:92,1,_xlpm.Spalten+2),_xlfn.TEXTJOIN(", ",TRUE,_xlfn._xlws.FILTER(_xlfn.HSTACK(_xlpm.Namen1,_xlpm.Namen2),_xlfn.HSTACK(_xlpm.Punkte1,_xlpm.Punkte2)=10,""))) -> Panos Agorastos, Oli Christiansen, Javier Cruz, Leo Rodrigues da Costa, Lisa D'Acunto, Andreia Gomes, Franz Lischer, Martin Marthaler, Petra Rauscher, Michael Rüegg, Yannick Schilliger, Aleandro Silvestri, Armando Thormann, Christoph Wälti | HQ11: =_xlfn.LET(_xlpm.Start,COLUMN($I$1),_xlpm.Ende,COLUMN($GY$1),_xlpm.Anzahl,INT((_xlpm.Ende-_xlpm.Start)/4)+1,_xlpm.Spalten,_xlpm.Start+4*_xlfn.SEQUENCE(1,_xlpm.Anzahl,0,1),_xlpm.Namen1,INDEX($4:$4,1,_xlpm.Spalten)&" "&INDEX($5:$5,1,_xlpm.Spalten),_xlpm.Punkte1,INDEX(11:11,1,_xlpm.Spalten+2),_xlpm.Namen2,INDEX($85:$85,1,_xlpm.Spalten)&" "&INDEX($86:$86,1,_xlpm.Spalten),_xlpm.Punkte2,INDEX(92:92,1,_xlpm.Spalten+2),_xlfn.TEXTJOIN(", ",TRUE,_xlfn._xlws.FILTER(_xlfn.HSTACK(_xlpm.Namen1,_xlpm.Namen2),_xlfn.HSTACK(_xlpm.Punkte1,_xlpm.Punkte2)=7,""))) -> Marco Antonelli, Ruben Antonelli, Peter Balazs, André Burkart, Ben Marthaler
A12: Sa. 13. Jun. | B12: 03:00:00 | C12: 4 | D12: USA | E12: Paraguay | F12: 4 | G12: 1 | I12: 2 | J12: 1 | K12: 5 | L12: A | M12: 1 | N12: 1 | O12: 0 | P12: X | Q12: 1 | R12: 2 | S12: 0 | T12: B | U12: 3 | V12: 1 | W12: 5 | X12: A | Y12: 2 | Z12: 0 | AA12: 5 | AB12: A | AC12: 1 | AD12: 0 | AE12: 5 | AF12: A | AG12: 1 | AH12: 0 | AI12: 5 | AJ12: A | AK12: 1 | AL12: 2 | AM12: 0 | AN12: B | AO12: 2 | AP12: 2 | AQ12: 0 | AR12: X | AS12: 2 | AT12: 0 | AU12: 5 | AV12: A | AW12: 2 | AX12: 1 | AY12: 5 | AZ12: A | BA12: 2 | BB12: 0 | BC12: 5 | BD12: A | BE12: 2 | BF12: 1 | BG12: 5 | BH12: A | BI12: 1 | BJ12: 3 | BK12: 0 | BL12: B | BM12: 2 | BN12: 1 | BO12: 5 | BP12: A | BQ12: 1 | BR12: 0 | BS12: 5 | BT12: A | BU12: 2 | BV12: 1 | BW12: 5 | BX12: A | BY12: 1 | BZ12: 1 | CA12: 0 | CB12: X | CC12: 1 | CD12: 1 | CE12: 0 | CF12: X | CG12: 2 | CH12: 0 | CI12: 5 | CJ12: A | CK12: 2 | CL12: 1 | CM12: 5 | CN12: A | CO12: 2 | CP12: 0 | CQ12: 5 | CR12: A | CS12: 1 | CT12: 3 | CU12: 0 | CV12: B | CW12: 1 | CX12: 3 | CY12: 0 | CZ12: B | DA12: 1 | DB12: 1 | DC12: 0 | DD12: X | DE12: 2 | DF12: 1 | DG12: 5 | DH12: A | DI12: 2 | DJ12: 1 | DK12: 5 | DL12: A | DM12: 2 | DN12: 0 | DO12: 5 | DP12: A | DQ12: 1 | DR12: 0 | DS12: 5 | DT12: A | DU12: 1 | DV12: 0 | DW12: 5 | DX12: A | DY12: 1 | DZ12: 3 | EA12: 0 | EB12: B | EC12: 1 | ED12: 1 | EE12: 0 | EF12: X | EG12: 1 | EH12: 1 | EI12: 0 | EJ12: X | EK12: 1 | EL12: 0 | EM12: 5 | EN12: A | EO12: 2 | EP12: 0 | EQ12: 5 | ER12: A | ES12: 2 | ET12: 1 | EU12: 5 | EV12: A | EW12: 1 | EX12: 1 | EY12: 0 | EZ12: X | FA12: 1 | FB12: 0 | FC12: 5 | FD12: A | FE12: 3 | FF12: 0 | FG12: 7 | FH12: A | FI12: 1 | FJ12: 1 | FK12: 0 | FL12: X | FM12: 2 | FN12: 0 | FO12: 5 | FP12: A | FQ12: 2 | FR12: 1 | FS12: 5 | FT12: A | FU12: 1 | FV12: 2 | FW12: 0 | FX12: B | FY12: 1 | FZ12: 3 | GA12: 0 | GB12: B | GC12: 2 | GD12: 0 | GE12: 5 | GF12: A | GG12: 1 | GH12: 0 | GI12: 5 | GJ12: A | GK12: 1 | GL12: 0 | GM12: 5 | GN12: A | GO12: 1 | GP12: 0 | GQ12: 5 | GR12: A | GS12: 0 | GT12: 1 | GU12: 0 | GV12: B | GW12: 1 | GX12: 1 | GY12: 0 | GZ12: X | HB12: 58 | HC12: 13 | HD12: 13 | HE12: 84 | HG12: 69.04761905 | HH12: 15.47619048 | HI12: 15.47619048 | HO12: =_xlfn.LET(_xlpm.Start,COLUMN($I$1),_xlpm.Ende,COLUMN($GY$1),_xlpm.Anzahl,INT((_xlpm.Ende-_xlpm.Start)/4)+1,_xlpm.Spalten,_xlpm.Start+4*_xlfn.SEQUENCE(1,_xlpm.Anzahl,0,1),_xlpm.Namen1,INDEX($4:$4,1,_xlpm.Spalten)&" "&INDEX($5:$5,1,_xlpm.Spalten),_xlpm.Punkte1,INDEX(12:12,1,_xlpm.Spalten+2),_xlpm.Namen2,INDEX($85:$85,1,_xlpm.Spalten)&" "&INDEX($86:$86,1,_xlpm.Spalten),_xlpm.Punkte2,INDEX(93:93,1,_xlpm.Spalten+2),_xlfn.TEXTJOIN(", ",TRUE,_xlfn._xlws.FILTER(_xlfn.HSTACK(_xlpm.Namen1,_xlpm.Namen2),_xlfn.HSTACK(_xlpm.Punkte1,_xlpm.Punkte2)=10,""))) -> Ralph Schuster | HQ12: =_xlfn.LET(_xlpm.Start,COLUMN($I$1),_xlpm.Ende,COLUMN($GY$1),_xlpm.Anzahl,INT((_xlpm.Ende-_xlpm.Start)/4)+1,_xlpm.Spalten,_xlpm.Start+4*_xlfn.SEQUENCE(1,_xlpm.Anzahl,0,1),_xlpm.Namen1,INDEX($4:$4,1,_xlpm.Spalten)&" "&INDEX($5:$5,1,_xlpm.Spalten),_xlpm.Punkte1,INDEX(12:12,1,_xlpm.Spalten+2),_xlpm.Namen2,INDEX($85:$85,1,_xlpm.Spalten)&" "&INDEX($86:$86,1,_xlpm.Spalten),_xlpm.Punkte2,INDEX(93:93,1,_xlpm.Spalten+2),_xlfn.TEXTJOIN(", ",TRUE,_xlfn._xlws.FILTER(_xlfn.HSTACK(_xlpm.Namen1,_xlpm.Namen2),_xlfn.HSTACK(_xlpm.Punkte1,_xlpm.Punkte2)=7,""))) -> Stefan Gygli
A13: So. 14. Jun. | B13: 03:00:00 | C13: 5 | D13: Haiti | E13: Schottland | F13: 0 | G13: 1 | I13: 1 | J13: 2 | K13: 7 | L13: B | M13: 1 | N13: 3 | O13: 5 | P13: B | Q13: 0 | R13: 2 | S13: 5 | T13: B | U13: 0 | V13: 2 | W13: 5 | X13: B | Y13: 0 | Z13: 3 | AA13: 5 | AB13: B | AC13: 0 | AD13: 2 | AE13: 5 | AF13: B | AG13: 0 | AH13: 1 | AI13: 10 | AJ13: B | AK13: 1 | AL13: 2 | AM13: 7 | AN13: B | AO13: 1 | AP13: 2 | AQ13: 7 | AR13: B | AS13: 0 | AT13: 3 | AU13: 5 | AV13: B | AW13: 0 | AX13: 2 | AY13: 5 | AZ13: B | BA13: 1 | BB13: 3 | BC13: 5 | BD13: B | BE13: 0 | BF13: 2 | BG13: 5 | BH13: B | BI13: 0 | BJ13: 3 | BK13: 5 | BL13: B | BM13: 0 | BN13: 2 | BO13: 5 | BP13: B | BQ13: 1 | BR13: 2 | BS13: 7 | BT13: B | BU13: 0 | BV13: 2 | BW13: 5 | BX13: B | BY13: 0 | BZ13: 1 | CA13: 10 | CB13: B | CC13: 0 | CD13: 1 | CE13: 10 | CF13: B | CG13: 0 | CH13: 3 | CI13: 5 | CJ13: B | CK13: 0 | CL13: 2 | CM13: 5 | CN13: B | CO13: 0 | CP13: 3 | CQ13: 5 | CR13: B | CS13: 0 | CT13: 4 | CU13: 5 | CV13: B | CW13: 0 | CX13: 4 | CY13: 5 | CZ13: B | DA13: 0 | DB13: 1 | DC13: 10 | DD13: B | DE13: 0 | DF13: 2 | DG13: 5 | DH13: B | DI13: 0 | DJ13: 2 | DK13: 5 | DL13: B | DM13: 0 | DN13: 1 | DO13: 10 | DP13: B | DQ13: 0 | DR13: 1 | DS13: 10 | DT13: B | DU13: 0 | DV13: 1 | DW13: 10 | DX13: B | DY13: 0 | DZ13: 3 | EA13: 5 | EB13: B | EC13: 1 | ED13: 2 | EE13: 7 | EF13: B | EG13: 0 | EH13: 2 | EI13: 5 | EJ13: B | EK13: 0 | EL13: 2 | EM13: 5 | EN13: B | EO13: 0 | EP13: 2 | EQ13: 5 | ER13: B | ES13: 0 | ET13: 2 | EU13: 5 | EV13: B | EW13: 0 | EX13: 2 | EY13: 5 | EZ13: B | FA13: 2 | FB13: 2 | FC13: 0 | FD13: X | FE13: 0 | FF13: 2 | FG13: 5 | FH13: B | FI13: 1 | FJ13: 3 | FK13: 5 | FL13: B | FM13: 1 | FN13: 3 | FO13: 5 | FP13: B | FQ13: 0 | FR13: 2 | FS13: 5 | FT13: B | FU13: 0 | FV13: 2 | FW13: 5 | FX13: B | FY13: 1 | FZ13: 3 | GA13: 5 | GB13: B | GC13: 0 | GD13: 2 | GE13: 5 | GF13: B | GG13: 0 | GH13: 1 | GI13: 10 | GJ13: B | GK13: 0 | GL13: 1 | GM13: 10 | GN13: B | GO13: 0 | GP13: 2 | GQ13: 5 | GR13: B | GS13: 0 | GT13: 2 | GU13: 5 | GV13: B | GW13: 0 | GX13: 2 | GY13: 5 | GZ13: B | HB13: 0 | HC13: 3 | HD13: 81 | HE13: 84 | HG13: 0 | HH13: 3.571428571 | HI13: 96.42857143 | HO13: =_xlfn.LET(_xlpm.Start,COLUMN($I$1),_xlpm.Ende,COLUMN($GY$1),_xlpm.Anzahl,INT((_xlpm.Ende-_xlpm.Start)/4)+1,_xlpm.Spalten,_xlpm.Start+4*_xlfn.SEQUENCE(1,_xlpm.Anzahl,0,1),_xlpm.Namen1,INDEX($4:$4,1,_xlpm.Spalten)&" "&INDEX($5:$5,1,_xlpm.Spalten),_xlpm.Punkte1,INDEX(13:13,1,_xlpm.Spalten+2),_xlpm.Namen2,INDEX($85:$85,1,_xlpm.Spalten)&" "&INDEX($86:$86,1,_xlpm.Spalten),_xlpm.Punkte2,INDEX(94:94,1,_xlpm.Spalten+2),_xlfn.TEXTJOIN(", ",TRUE,_xlfn._xlws.FILTER(_xlfn.HSTACK(_xlpm.Namen1,_xlpm.Namen2),_xlfn.HSTACK(_xlpm.Punkte1,_xlpm.Punkte2)=10,""))) -> André Bartholet, André Burkart, Oli Christiansen, Rafael Derungs, Dino Duvnjak, Djuma Duvnjak, Andreia Gomes, Pascal Keller, Tanja Kistler, Martin Marthaler, Petra Rauscher, Lynn Rüegg, Michael Rüegg | HQ13: =_xlfn.LET(_xlpm.Start,COLUMN($I$1),_xlpm.Ende,COLUMN($GY$1),_xlpm.Anzahl,INT((_xlpm.Ende-_xlpm.Start)/4)+1,_xlpm.Spalten,_xlpm.Start+4*_xlfn.SEQUENCE(1,_xlpm.Anzahl,0,1),_xlpm.Namen1,INDEX($4:$4,1,_xlpm.Spalten)&" "&INDEX($5:$5,1,_xlpm.Spalten),_xlpm.Punkte1,INDEX(13:13,1,_xlpm.Spalten+2),_xlpm.Namen2,INDEX($85:$85,1,_xlpm.Spalten)&" "&INDEX($86:$86,1,_xlpm.Spalten),_xlpm.Punkte2,INDEX(94:94,1,_xlpm.Spalten+2),_xlfn.TEXTJOIN(", ",TRUE,_xlfn._xlws.FILTER(_xlfn.HSTACK(_xlpm.Namen1,_xlpm.Namen2),_xlfn.HSTACK(_xlpm.Punkte1,_xlpm.Punkte2)=7,""))) -> Panos Agorastos, Aya Bartholet, Philippe Bartholet, Nicolas Brunner, Deliz González, Lechena Pek
A14: Sa. 13. Jun. | B14: 06:00:00 | C14: 6 | D14: Australien | E14: Türkei | F14: 2 | G14: 0 | I14: 1 | J14: 2 | K14: 0 | L14: B | M14: 1 | N14: 2 | O14: 0 | P14: B | Q14: 1 | R14: 3 | S14: 0 | T14: B | U14: 1 | V14: 3 | W14: 0 | X14: B | Y14: 1 | Z14: 4 | AA14: 0 | AB14: B | AC14: 0 | AD14: 2 | AE14: 0 | AF14: B | AG14: 0 | AH14: 2 | AI14: 0 | AJ14: B | AK14: 2 | AL14: 0 | AM14: 10 | AN14: A | AO14: 1 | AP14: 1 | AQ14: 0 | AR14: X | AS14: 1 | AT14: 1 | AU14: 0 | AV14: X | AW14: 2 | AX14: 1 | AY14: 5 | AZ14: A | BA14: 1 | BB14: 2 | BC14: 0 | BD14: B | BE14: 1 | BF14: 2 | BG14: 0 | BH14: B | BI14: 1 | BJ14: 3 | BK14: 0 | BL14: B | BM14: 0 | BN14: 2 | BO14: 0 | BP14: B | BQ14: 2 | BR14: 4 | BS14: 0 | BT14: B | BU14: 1 | BV14: 2 | BW14: 0 | BX14: B | BY14: 1 | BZ14: 1 | CA14: 0 | CB14: X | CC14: 0 | CD14: 2 | CE14: 0 | CF14: B | CG14: 1 | CH14: 2 | CI14: 0 | CJ14: B | CK14: 1 | CL14: 3 | CM14: 0 | CN14: B | CO14: 2 | CP14: 2 | CQ14: 0 | CR14: X | CS14: 1 | CT14: 3 | CU14: 0 | CV14: B | CW14: 1 | CX14: 3 | CY14: 0 | CZ14: B | DA14: 1 | DB14: 2 | DC14: 0 | DD14: B | DE14: 0 | DF14: 2 | DG14: 0 | DH14: B | DI14: 1 | DJ14: 1 | DK14: 0 | DL14: X | DM14: 1 | DN14: 2 | DO14: 0 | DP14: B | DQ14: 0 | DR14: 1 | DS14: 0 | DT14: B | DU14: 1 | DV14: 2 | DW14: 0 | DX14: B | DY14: 1 | DZ14: 2 | EA14: 0 | EB14: B | EC14: 1 | ED14: 1 | EE14: 0 | EF14: X | EG14: 0 | EH14: 3 | EI14: 0 | EJ14: B | EK14: 0 | EL14: 2 | EM14: 0 | EN14: B | EO14: 1 | EP14: 1 | EQ14: 0 | ER14: X | ES14: 1 | ET14: 2 | EU14: 0 | EV14: B | EW14: 0 | EX14: 1 | EY14: 0 | EZ14: B | FA14: 2 | FB14: 1 | FC14: 5 | FD14: A | FE14: 1 | FF14: 1 | FG14: 0 | FH14: X | FI14: 1 | FJ14: 2 | FK14: 0 | FL14: B | FM14: 0 | FN14: 2 | FO14: 0 | FP14: B | FQ14: 1 | FR14: 3 | FS14: 0 | FT14: B | FU14: 1 | FV14: 1 | FW14: 0 | FX14: X | FY14: 1 | FZ14: 3 | GA14: 0 | GB14: B | GC14: 0 | GD14: 2 | GE14: 0 | GF14: B | GG14: 0 | GH14: 1 | GI14: 0 | GJ14: B | GK14: 1 | GL14: 2 | GM14: 0 | GN14: B | GO14: 1 | GP14: 3 | GQ14: 0 | GR14: B | GS14: 0 | GT14: 1 | GU14: 0 | GV14: B | GW14: 1 | GX14: 2 | GY14: 0 | GZ14: B | HB14: 4 | HC14: 19 | HD14: 61 | HE14: 84 | HG14: 4.761904762 | HH14: 22.61904762 | HI14: 72.61904762 | HK14: Total Tore / Anzahl Spieler | HO14: =_xlfn.LET(_xlpm.Start,COLUMN($I$1),_xlpm.Ende,COLUMN($GY$1),_xlpm.Anzahl,INT((_xlpm.Ende-_xlpm.Start)/4)+1,_xlpm.Spalten,_xlpm.Start+4*_xlfn.SEQUENCE(1,_xlpm.Anzahl,0,1),_xlpm.Namen1,INDEX($4:$4,1,_xlpm.Spalten)&" "&INDEX($5:$5,1,_xlpm.Spalten),_xlpm.Punkte1,INDEX(14:14,1,_xlpm.Spalten+2),_xlpm.Namen2,INDEX($85:$85,1,_xlpm.Spalten)&" "&INDEX($86:$86,1,_xlpm.Spalten),_xlpm.Punkte2,INDEX(95:95,1,_xlpm.Spalten+2),_xlfn.TEXTJOIN(", ",TRUE,_xlfn._xlws.FILTER(_xlfn.HSTACK(_xlpm.Namen1,_xlpm.Namen2),_xlfn.HSTACK(_xlpm.Punkte1,_xlpm.Punkte2)=10,""))) -> Aya Bartholet | HQ14: =_xlfn.LET(_xlpm.Start,COLUMN($I$1),_xlpm.Ende,COLUMN($GY$1),_xlpm.Anzahl,INT((_xlpm.Ende-_xlpm.Start)/4)+1,_xlpm.Spalten,_xlpm.Start+4*_xlfn.SEQUENCE(1,_xlpm.Anzahl,0,1),_xlpm.Namen1,INDEX($4:$4,1,_xlpm.Spalten)&" "&INDEX($5:$5,1,_xlpm.Spalten),_xlpm.Punkte1,INDEX(14:14,1,_xlpm.Spalten+2),_xlpm.Namen2,INDEX($85:$85,1,_xlpm.Spalten)&" "&INDEX($86:$86,1,_xlpm.Spalten),_xlpm.Punkte2,INDEX(95:95,1,_xlpm.Spalten+2),_xlfn.TEXTJOIN(", ",TRUE,_xlfn._xlws.FILTER(_xlfn.HSTACK(_xlpm.Namen1,_xlpm.Namen2),_xlfn.HSTACK(_xlpm.Punkte1,_xlpm.Punkte2)=7,""))) -> 
A15: So. 14. Jun. | B15: 00:00:00 | C15: 7 | D15: Brasilien | E15: Marokko | F15: 1 | G15: 1 | I15: 2 | J15: 1 | K15: 0 | L15: A | M15: 2 | N15: 1 | O15: 0 | P15: A | Q15: 3 | R15: 2 | S15: 0 | T15: A | U15: 2 | V15: 1 | W15: 0 | X15: A | Y15: 4 | Z15: 3 | AA15: 0 | AB15: A | AC15: 1 | AD15: 1 | AE15: 10 | AF15: X | AG15: 3 | AH15: 1 | AI15: 0 | AJ15: A | AK15: 2 | AL15: 1 | AM15: 0 | AN15: A | AO15: 2 | AP15: 0 | AQ15: 0 | AR15: A | AS15: 2 | AT15: 0 | AU15: 0 | AV15: A | AW15: 3 | AX15: 1 | AY15: 0 | AZ15: A | BA15: 2 | BB15: 1 | BC15: 0 | BD15: A | BE15: 2 | BF15: 1 | BG15: 0 | BH15: A | BI15: 1 | BJ15: 1 | BK15: 10 | BL15: X | BM15: 3 | BN15: 1 | BO15: 0 | BP15: A | BQ15: 3 | BR15: 2 | BS15: 0 | BT15: A | BU15: 1 | BV15: 1 | BW15: 10 | BX15: X | BY15: 2 | BZ15: 0 | CA15: 0 | CB15: A | CC15: 2 | CD15: 1 | CE15: 0 | CF15: A | CG15: 2 | CH15: 2 | CI15: 7 | CJ15: X | CK15: 3 | CL15: 2 | CM15: 0 | CN15: A | CO15: 2 | CP15: 1 | CQ15: 0 | CR15: A | CS15: 3 | CT15: 2 | CU15: 0 | CV15: A | CW15: 3 | CX15: 1 | CY15: 0 | CZ15: A | DA15: 2 | DB15: 1 | DC15: 0 | DD15: A | DE15: 2 | DF15: 1 | DG15: 0 | DH15: A | DI15: 3 | DJ15: 1 | DK15: 0 | DL15: A | DM15: 2 | DN15: 1 | DO15: 0 | DP15: A | DQ15: 2 | DR15: 0 | DS15: 0 | DT15: A | DU15: 3 | DV15: 0 | DW15: 0 | DX15: A | DY15: 1 | DZ15: 2 | EA15: 0 | EB15: B | EC15: 2 | ED15: 0 | EE15: 0 | EF15: A | EG15: 2 | EH15: 1 | EI15: 0 | EJ15: A | EK15: 3 | EL15: 0 | EM15: 0 | EN15: A | EO15: 3 | EP15: 0 | EQ15: 0 | ER15: A | ES15: 3 | ET15: 0 | EU15: 0 | EV15: A | EW15: 3 | EX15: 1 | EY15: 0 | EZ15: A | FA15: 3 | FB15: 1 | FC15: 0 | FD15: A | FE15: 2 | FF15: 0 | FG15: 0 | FH15: A | FI15: 1 | FJ15: 1 | FK15: 10 | FL15: X | FM15: 2 | FN15: 0 | FO15: 0 | FP15: A | FQ15: 3 | FR15: 0 | FS15: 0 | FT15: A | FU15: 2 | FV15: 0 | FW15: 0 | FX15: A | FY15: 3 | FZ15: 1 | GA15: 0 | GB15: A | GC15: 2 | GD15: 1 | GE15: 0 | GF15: A | GG15: 1 | GH15: 0 | GI15: 0 | GJ15: A | GK15: 1 | GL15: 0 | GM15: 0 | GN15: A | GO15: 1 | GP15: 1 | GQ15: 10 | GR15: X | GS15: 3 | GT15: 0 | GU15: 0 | GV15: A | GW15: 3 | GX15: 0 | GY15: 0 | GZ15: A | HB15: 75 | HC15: 8 | HD15: 1 | HE15: 84 | HG15: 89.28571429 | HH15: 9.523809524 | HI15: 1.19047619 | HK15: =SUM(HK11/Punktestand!F3) -> 193.1190476 | HO15: =_xlfn.LET(_xlpm.Start,COLUMN($I$1),_xlpm.Ende,COLUMN($GY$1),_xlpm.Anzahl,INT((_xlpm.Ende-_xlpm.Start)/4)+1,_xlpm.Spalten,_xlpm.Start+4*_xlfn.SEQUENCE(1,_xlpm.Anzahl,0,1),_xlpm.Namen1,INDEX($4:$4,1,_xlpm.Spalten)&" "&INDEX($5:$5,1,_xlpm.Spalten),_xlpm.Punkte1,INDEX(15:15,1,_xlpm.Spalten+2),_xlpm.Namen2,INDEX($85:$85,1,_xlpm.Spalten)&" "&INDEX($86:$86,1,_xlpm.Spalten),_xlpm.Punkte2,INDEX(96:96,1,_xlpm.Spalten+2),_xlfn.TEXTJOIN(", ",TRUE,_xlfn._xlws.FILTER(_xlfn.HSTACK(_xlpm.Namen1,_xlpm.Namen2),_xlfn.HSTACK(_xlpm.Punkte1,_xlpm.Punkte2)=10,""))) -> Peter Balazs, Manfred Brunner, Philip Brunner, Timothy Gygli, André Lanz, Martin Schawalder, Armando Thormann | HQ15: =_xlfn.LET(_xlpm.Start,COLUMN($I$1),_xlpm.Ende,COLUMN($GY$1),_xlpm.Anzahl,INT((_xlpm.Ende-_xlpm.Start)/4)+1,_xlpm.Spalten,_xlpm.Start+4*_xlfn.SEQUENCE(1,_xlpm.Anzahl,0,1),_xlpm.Namen1,INDEX($4:$4,1,_xlpm.Spalten)&" "&INDEX($5:$5,1,_xlpm.Spalten),_xlpm.Punkte1,INDEX(15:15,1,_xlpm.Spalten+2),_xlpm.Namen2,INDEX($85:$85,1,_xlpm.Spalten)&" "&INDEX($86:$86,1,_xlpm.Spalten),_xlpm.Punkte2,INDEX(96:96,1,_xlpm.Spalten+2),_xlfn.TEXTJOIN(", ",TRUE,_xlfn._xlws.FILTER(_xlfn.HSTACK(_xlpm.Namen1,_xlpm.Namen2),_xlfn.HSTACK(_xlpm.Punkte1,_xlpm.Punkte2)=7,""))) -> Javier Cruz
A16: Sa. 13. Jun. | B16: 21:00:00 | C16: 8 | D16: Katar | E16: Schweiz | F16: 1 | G16: 1 | I16: 1 | J16: 2 | K16: 0 | L16: B | M16: 1 | N16: 2 | O16: 0 | P16: B | Q16: 0 | R16: 2 | S16: 0 | T16: B | U16: 0 | V16: 3 | W16: 0 | X16: B | Y16: 1 | Z16: 3 | AA16: 0 | AB16: B | AC16: 0 | AD16: 3 | AE16: 0 | AF16: B | AG16: 0 | AH16: 3 | AI16: 0 | AJ16: B | AK16: 0 | AL16: 2 | AM16: 0 | AN16: B | AO16: 0 | AP16: 2 | AQ16: 0 | AR16: B | AS16: 0 | AT16: 2 | AU16: 0 | AV16: B | AW16: 0 | AX16: 3 | AY16: 0 | AZ16: B | BA16: 0 | BB16: 2 | BC16: 0 | BD16: B | BE16: 0 | BF16: 2 | BG16: 0 | BH16: B | BI16: 0 | BJ16: 2 | BK16: 0 | BL16: B | BM16: 1 | BN16: 3 | BO16: 0 | BP16: B | BQ16: 1 | BR16: 3 | BS16: 0 | BT16: B | BU16: 0 | BV16: 2 | BW16: 0 | BX16: B | BY16: 0 | BZ16: 1 | CA16: 0 | CB16: B | CC16: 0 | CD16: 3 | CE16: 0 | CF16: B | CG16: 1 | CH16: 2 | CI16: 0 | CJ16: B | CK16: 0 | CL16: 2 | CM16: 0 | CN16: B | CO16: 0 | CP16: 3 | CQ16: 0 | CR16: B | CS16: 0 | CT16: 3 | CU16: 0 | CV16: B | CW16: 0 | CX16: 2 | CY16: 0 | CZ16: B | DA16: 0 | DB16: 2 | DC16: 0 | DD16: B | DE16: 0 | DF16: 3 | DG16: 0 | DH16: B | DI16: 0 | DJ16: 3 | DK16: 0 | DL16: B | DM16: 0 | DN16: 3 | DO16: 0 | DP16: B | DQ16: 0 | DR16: 2 | DS16: 0 | DT16: B | DU16: 1 | DV16: 1 | DW16: 10 | DX16: X | DY16: 0 | DZ16: 4 | EA16: 0 | EB16: B | EC16: 0 | ED16: 3 | EE16: 0 | EF16: B | EG16: 0 | EH16: 1 | EI16: 0 | EJ16: B | EK16: 0 | EL16: 2 | EM16: 0 | EN16: B | EO16: 0 | EP16: 2 | EQ16: 0 | ER16: B | ES16: 0 | ET16: 3 | EU16: 0 | EV16: B | EW16: 0 | EX16: 2 | EY16: 0 | EZ16: B | FA16: 1 | FB16: 2 | FC16: 0 | FD16: B | FE16: 0 | FF16: 3 | FG16: 0 | FH16: B | FI16: 0 | FJ16: 2 | FK16: 0 | FL16: B | FM16: 1 | FN16: 3 | FO16: 0 | FP16: B | FQ16: 1 | FR16: 3 | FS16: 0 | FT16: B | FU16: 1 | FV16: 3 | FW16: 0 | FX16: B | FY16: 1 | FZ16: 3 | GA16: 0 | GB16: B | GC16: 0 | GD16: 2 | GE16: 0 | GF16: B | GG16: 0 | GH16: 1 | GI16: 0 | GJ16: B | GK16: 1 | GL16: 2 | GM16: 0 | GN16: B | GO16: 0 | GP16: 2 | GQ16: 0 | GR16: B | GS16: 0 | GT16: 2 | GU16: 0 | GV16: B | GW16: 0 | GX16: 2 | GY16: 0 | GZ16: B | HB16: 0 | HC16: 1 | HD16: 83 | HE16: 84 | HG16: 0 | HH16: 1.19047619 | HI16: 98.80952381 | HO16: =_xlfn.LET(_xlpm.Start,COLUMN($I$1),_xlpm.Ende,COLUMN($GY$1),_xlpm.Anzahl,INT((_xlpm.Ende-_xlpm.Start)/4)+1,_xlpm.Spalten,_xlpm.Start+4*_xlfn.SEQUENCE(1,_xlpm.Anzahl,0,1),_xlpm.Namen1,INDEX($4:$4,1,_xlpm.Spalten)&" "&INDEX($5:$5,1,_xlpm.Spalten),_xlpm.Punkte1,INDEX(16:16,1,_xlpm.Spalten+2),_xlpm.Namen2,INDEX($85:$85,1,_xlpm.Spalten)&" "&INDEX($86:$86,1,_xlpm.Spalten),_xlpm.Punkte2,INDEX(97:97,1,_xlpm.Spalten+2),_xlfn.TEXTJOIN(", ",TRUE,_xlfn._xlws.FILTER(_xlfn.HSTACK(_xlpm.Namen1,_xlpm.Namen2),_xlfn.HSTACK(_xlpm.Punkte1,_xlpm.Punkte2)=10,""))) -> Andreia Gomes | HQ16: =_xlfn.LET(_xlpm.Start,COLUMN($I$1),_xlpm.Ende,COLUMN($GY$1),_xlpm.Anzahl,INT((_xlpm.Ende-_xlpm.Start)/4)+1,_xlpm.Spalten,_xlpm.Start+4*_xlfn.SEQUENCE(1,_xlpm.Anzahl,0,1),_xlpm.Namen1,INDEX($4:$4,1,_xlpm.Spalten)&" "&INDEX($5:$5,1,_xlpm.Spalten),_xlpm.Punkte1,INDEX(16:16,1,_xlpm.Spalten+2),_xlpm.Namen2,INDEX($85:$85,1,_xlpm.Spalten)&" "&INDEX($86:$86,1,_xlpm.Spalten),_xlpm.Punkte2,INDEX(97:97,1,_xlpm.Spalten+2),_xlfn.TEXTJOIN(", ",TRUE,_xlfn._xlws.FILTER(_xlfn.HSTACK(_xlpm.Namen1,_xlpm.Namen2),_xlfn.HSTACK(_xlpm.Punkte1,_xlpm.Punkte2)=7,""))) -> 
A17: Mo. 15. Jun. | B17: 01:00:00 | C17: 9 | D17: Elfenbeinküste | E17: Ecuador | F17: 1 | G17: 0 | I17: 1 | J17: 1 | K17: 0 | L17: X | M17: 1 | N17: 1 | O17: 0 | P17: X | Q17: 1 | R17: 2 | S17: 0 | T17: B | U17: 3 | V17: 1 | W17: 5 | X17: A | Y17: 0 | Z17: 2 | AA17: 0 | AB17: B | AC17: 2 | AD17: 1 | AE17: 7 | AF17: A | AG17: 0 | AH17: 1 | AI17: 0 | AJ17: B | AK17: 1 | AL17: 2 | AM17: 0 | AN17: B | AO17: 1 | AP17: 1 | AQ17: 0 | AR17: X | AS17: 1 | AT17: 2 | AU17: 0 | AV17: B | AW17: 1 | AX17: 2 | AY17: 0 | AZ17: B | BA17: 2 | BB17: 0 | BC17: 5 | BD17: A | BE17: 1 | BF17: 1 | BG17: 0 | BH17: X | BI17: 2 | BJ17: 2 | BK17: 0 | BL17: X | BM17: 1 | BN17: 1 | BO17: 0 | BP17: X | BQ17: 2 | BR17: 2 | BS17: 0 | BT17: X | BU17: 1 | BV17: 1 | BW17: 0 | BX17: X | BY17: 1 | BZ17: 1 | CA17: 0 | CB17: X | CC17: 1 | CD17: 0 | CE17: 10 | CF17: A | CG17: 2 | CH17: 0 | CI17: 5 | CJ17: A | CK17: 0 | CL17: 0 | CM17: 0 | CN17: X | CO17: 0 | CP17: 2 | CQ17: 0 | CR17: B | CS17: 0 | CT17: 2 | CU17: 0 | CV17: B | CW17: 2 | CX17: 0 | CY17: 5 | CZ17: A | DA17: 1 | DB17: 1 | DC17: 0 | DD17: X | DE17: 1 | DF17: 2 | DG17: 0 | DH17: B | DI17: 0 | DJ17: 1 | DK17: 0 | DL17: B | DM17: 0 | DN17: 1 | DO17: 0 | DP17: B | DQ17: 0 | DR17: 1 | DS17: 0 | DT17: B | DU17: 1 | DV17: 1 | DW17: 0 | DX17: X | DY17: 2 | DZ17: 0 | EA17: 5 | EB17: A | EC17: 0 | ED17: 1 | EE17: 0 | EF17: B | EG17: 0 | EH17: 0 | EI17: 0 | EJ17: X | EK17: 1 | EL17: 1 | EM17: 0 | EN17: X | EO17: 1 | EP17: 2 | EQ17: 0 | ER17: B | ES17: 1 | ET17: 1 | EU17: 0 | EV17: X | EW17: 1 | EX17: 3 | EY17: 0 | EZ17: B | FA17: 1 | FB17: 2 | FC17: 0 | FD17: B | FE17: 1 | FF17: 1 | FG17: 0 | FH17: X | FI17: 0 | FJ17: 0 | FK17: 0 | FL17: X | FM17: 0 | FN17: 2 | FO17: 0 | FP17: B | FQ17: 2 | FR17: 2 | FS17: 0 | FT17: X | FU17: 1 | FV17: 3 | FW17: 0 | FX17: B | FY17: 3 | FZ17: 1 | GA17: 5 | GB17: A | GC17: 0 | GD17: 2 | GE17: 0 | GF17: B | GG17: 1 | GH17: 0 | GI17: 10 | GJ17: A | GK17: 0 | GL17: 1 | GM17: 0 | GN17: B | GO17: 0 | GP17: 0 | GQ17: 0 | GR17: X | GS17: 0 | GT17: 2 | GU17: 0 | GV17: B | GW17: 1 | GX17: 1 | GY17: 0 | GZ17: X | HB17: 14 | HC17: 42 | HD17: 28 | HE17: 84 | HG17: 16.66666667 | HH17: 50 | HI17: 33.33333333 | HK17: Tore / Anzahl Spiele (72) | HO17: =_xlfn.LET(_xlpm.Start,COLUMN($I$1),_xlpm.Ende,COLUMN($GY$1),_xlpm.Anzahl,INT((_xlpm.Ende-_xlpm.Start)/4)+1,_xlpm.Spalten,_xlpm.Start+4*_xlfn.SEQUENCE(1,_xlpm.Anzahl,0,1),_xlpm.Namen1,INDEX($4:$4,1,_xlpm.Spalten)&" "&INDEX($5:$5,1,_xlpm.Spalten),_xlpm.Punkte1,INDEX(17:17,1,_xlpm.Spalten+2),_xlpm.Namen2,INDEX($85:$85,1,_xlpm.Spalten)&" "&INDEX($86:$86,1,_xlpm.Spalten),_xlpm.Punkte2,INDEX(98:98,1,_xlpm.Spalten+2),_xlfn.TEXTJOIN(", ",TRUE,_xlfn._xlws.FILTER(_xlfn.HSTACK(_xlpm.Namen1,_xlpm.Namen2),_xlfn.HSTACK(_xlpm.Punkte1,_xlpm.Punkte2)=10,""))) -> Oli Christiansen, Pascal Keller, Michael Rüegg | HQ17: =_xlfn.LET(_xlpm.Start,COLUMN($I$1),_xlpm.Ende,COLUMN($GY$1),_xlpm.Anzahl,INT((_xlpm.Ende-_xlpm.Start)/4)+1,_xlpm.Spalten,_xlpm.Start+4*_xlfn.SEQUENCE(1,_xlpm.Anzahl,0,1),_xlpm.Namen1,INDEX($4:$4,1,_xlpm.Spalten)&" "&INDEX($5:$5,1,_xlpm.Spalten),_xlpm.Punkte1,INDEX(17:17,1,_xlpm.Spalten+2),_xlpm.Namen2,INDEX($85:$85,1,_xlpm.Spalten)&" "&INDEX($86:$86,1,_xlpm.Spalten),_xlpm.Punkte2,INDEX(98:98,1,_xlpm.Spalten+2),_xlfn.TEXTJOIN(", ",TRUE,_xlfn._xlws.FILTER(_xlfn.HSTACK(_xlpm.Namen1,_xlpm.Namen2),_xlfn.HSTACK(_xlpm.Punkte1,_xlpm.Punkte2)=7,""))) -> Peter Balazs, Stefan Principe, Yannick Schilliger
A18: So. 14. Jun. | B18: 19:00:00 | C18: 10 | D18: Deutschland | E18: Curacao | F18: 7 | G18: 1 | I18: 4 | J18: 0 | K18: 5 | L18: A | M18: 3 | N18: 0 | O18: 5 | P18: A | Q18: 3 | R18: 0 | S18: 5 | T18: A | U18: 5 | V18: 0 | W18: 5 | X18: A | Y18: 4 | Z18: 0 | AA18: 5 | AB18: A | AC18: 4 | AD18: 0 | AE18: 5 | AF18: A | AG18: 5 | AH18: 0 | AI18: 5 | AJ18: A | AK18: 2 | AL18: 0 | AM18: 5 | AN18: A | AO18: 4 | AP18: 0 | AQ18: 5 | AR18: A | AS18: 4 | AT18: 0 | AU18: 5 | AV18: A | AW18: 4 | AX18: 0 | AY18: 5 | AZ18: A | BA18: 4 | BB18: 0 | BC18: 5 | BD18: A | BE18: 4 | BF18: 0 | BG18: 5 | BH18: A | BI18: 4 | BJ18: 0 | BK18: 5 | BL18: A | BM18: 3 | BN18: 0 | BO18: 5 | BP18: A | BQ18: 5 | BR18: 0 | BS18: 5 | BT18: A | BU18: 4 | BV18: 0 | BW18: 5 | BX18: A | BY18: 2 | BZ18: 0 | CA18: 5 | CB18: A | CC18: 3 | CD18: 0 | CE18: 5 | CF18: A | CG18: 4 | CH18: 0 | CI18: 5 | CJ18: A | CK18: 3 | CL18: 0 | CM18: 5 | CN18: A | CO18: 4 | CP18: 0 | CQ18: 5 | CR18: A | CS18: 3 | CT18: 1 | CU18: 5 | CV18: A | CW18: 5 | CX18: 0 | CY18: 5 | CZ18: A | DA18: 4 | DB18: 0 | DC18: 5 | DD18: A | DE18: 6 | DF18: 0 | DG18: 7 | DH18: A | DI18: 6 | DJ18: 0 | DK18: 7 | DL18: A | DM18: 3 | DN18: 0 | DO18: 5 | DP18: A | DQ18: 3 | DR18: 0 | DS18: 5 | DT18: A | DU18: 3 | DV18: 1 | DW18: 5 | DX18: A | DY18: 5 | DZ18: 0 | EA18: 5 | EB18: A | EC18: 5 | ED18: 0 | EE18: 5 | EF18: A | EG18: 3 | EH18: 0 | EI18: 5 | EJ18: A | EK18: 3 | EL18: 0 | EM18: 5 | EN18: A | EO18: 4 | EP18: 0 | EQ18: 5 | ER18: A | ES18: 4 | ET18: 0 | EU18: 5 | EV18: A | EW18: 3 | EX18: 0 | EY18: 5 | EZ18: A | FA18: 3 | FB18: 0 | FC18: 5 | FD18: A | FE18: 5 | FF18: 0 | FG18: 5 | FH18: A | FI18: 2 | FJ18: 0 | FK18: 5 | FL18: A | FM18: 3 | FN18: 0 | FO18: 5 | FP18: A | FQ18: 5 | FR18: 0 | FS18: 5 | FT18: A | FU18: 4 | FV18: 0 | FW18: 5 | FX18: A | FY18: 3 | FZ18: 1 | GA18: 5 | GB18: A | GC18: 3 | GD18: 0 | GE18: 5 | GF18: A | GG18: 1 | GH18: 0 | GI18: 5 | GJ18: A | GK18: 2 | GL18: 1 | GM18: 5 | GN18: A | GO18: 3 | GP18: 0 | GQ18: 5 | GR18: A | GS18: 3 | GT18: 0 | GU18: 5 | GV18: A | GW18: 4 | GX18: 0 | GY18: 5 | GZ18: A | HB18: 83 | HC18: 0 | HD18: 1 | HE18: 84 | HG18: 98.80952381 | HH18: 0 | HI18: 1.19047619 | HK18: =SUM(HK15/72) -> 2.682208995 | HL18: Tore pro Spiel (Ø) | HO18: =_xlfn.LET(_xlpm.Start,COLUMN($I$1),_xlpm.Ende,COLUMN($GY$1),_xlpm.Anzahl,INT((_xlpm.Ende-_xlpm.Start)/4)+1,_xlpm.Spalten,_xlpm.Start+4*_xlfn.SEQUENCE(1,_xlpm.Anzahl,0,1),_xlpm.Namen1,INDEX($4:$4,1,_xlpm.Spalten)&" "&INDEX($5:$5,1,_xlpm.Spalten),_xlpm.Punkte1,INDEX(18:18,1,_xlpm.Spalten+2),_xlpm.Namen2,INDEX($85:$85,1,_xlpm.Spalten)&" "&INDEX($86:$86,1,_xlpm.Spalten),_xlpm.Punkte2,INDEX(99:99,1,_xlpm.Spalten+2),_xlfn.TEXTJOIN(", ",TRUE,_xlfn._xlws.FILTER(_xlfn.HSTACK(_xlpm.Namen1,_xlpm.Namen2),_xlfn.HSTACK(_xlpm.Punkte1,_xlpm.Punkte2)=10,""))) ->  | HQ18: =_xlfn.LET(_xlpm.Start,COLUMN($I$1),_xlpm.Ende,COLUMN($GY$1),_xlpm.Anzahl,INT((_xlpm.Ende-_xlpm.Start)/4)+1,_xlpm.Spalten,_xlpm.Start+4*_xlfn.SEQUENCE(1,_xlpm.Anzahl,0,1),_xlpm.Namen1,INDEX($4:$4,1,_xlpm.Spalten)&" "&INDEX($5:$5,1,_xlpm.Spalten),_xlpm.Punkte1,INDEX(18:18,1,_xlpm.Spalten+2),_xlpm.Namen2,INDEX($85:$85,1,_xlpm.Spalten)&" "&INDEX($86:$86,1,_xlpm.Spalten),_xlpm.Punkte2,INDEX(99:99,1,_xlpm.Spalten+2),_xlfn.TEXTJOIN(", ",TRUE,_xlfn._xlws.FILTER(_xlfn.HSTACK(_xlpm.Namen1,_xlpm.Namen2),_xlfn.HSTACK(_xlpm.Punkte1,_xlpm.Punkte2)=7,""))) -> Goran Djukic, Armin Duvnjak, Martin Oroshi, Christoph Wälti
A19: So. 14. Jun. | B19: 22:00:00 | C19: 11 | D19: Holland | E19: Japan | F19: 2 | G19: 2 | I19: 2 | J19: 1 | K19: 0 | L19: A | M19: 3 | N19: 1 | O19: 0 | P19: A | Q19: 2 | R19: 2 | S19: 10 | T19: X | U19: 2 | V19: 0 | W19: 0 | X19: A | Y19: 2 | Z19: 2 | AA19: 10 | AB19: X | AC19: 2 | AD19: 0 | AE19: 0 | AF19: A | AG19: 2 | AH19: 1 | AI19: 0 | AJ19: A | AK19: 2 | AL19: 0 | AM19: 0 | AN19: A | AO19: 2 | AP19: 0 | AQ19: 0 | AR19: A | AS19: 2 | AT19: 0 | AU19: 0 | AV19: A | AW19: 3 | AX19: 1 | AY19: 0 | AZ19: A | BA19: 1 | BB19: 1 | BC19: 7 | BD19: X | BE19: 2 | BF19: 1 | BG19: 0 | BH19: A | BI19: 1 | BJ19: 1 | BK19: 7 | BL19: X | BM19: 3 | BN19: 1 | BO19: 0 | BP19: A | BQ19: 4 | BR19: 1 | BS19: 0 | BT19: A | BU19: 1 | BV19: 1 | BW19: 7 | BX19: X | BY19: 2 | BZ19: 0 | CA19: 0 | CB19: A | CC19: 2 | CD19: 1 | CE19: 0 | CF19: A | CG19: 2 | CH19: 2 | CI19: 10 | CJ19: X | CK19: 2 | CL19: 1 | CM19: 0 | CN19: A | CO19: 2 | CP19: 2 | CQ19: 10 | CR19: X | CS19: 2 | CT19: 2 | CU19: 10 | CV19: X | CW19: 2 | CX19: 2 | CY19: 10 | CZ19: X | DA19: 2 | DB19: 1 | DC19: 0 | DD19: A | DE19: 3 | DF19: 2 | DG19: 0 | DH19: A | DI19: 1 | DJ19: 1 | DK19: 7 | DL19: X | DM19: 2 | DN19: 1 | DO19: 0 | DP19: A | DQ19: 1 | DR19: 1 | DS19: 7 | DT19: X | DU19: 2 | DV19: 1 | DW19: 0 | DX19: A | DY19: 2 | DZ19: 2 | EA19: 10 | EB19: X | EC19: 2 | ED19: 1 | EE19: 0 | EF19: A | EG19: 2 | EH19: 0 | EI19: 0 | EJ19: A | EK19: 2 | EL19: 1 | EM19: 0 | EN19: A | EO19: 2 | EP19: 1 | EQ19: 0 | ER19: A | ES19: 2 | ET19: 1 | EU19: 0 | EV19: A | EW19: 1 | EX19: 0 | EY19: 0 | EZ19: A | FA19: 3 | FB19: 3 | FC19: 7 | FD19: X | FE19: 2 | FF19: 1 | FG19: 0 | FH19: A | FI19: 2 | FJ19: 1 | FK19: 0 | FL19: A | FM19: 2 | FN19: 0 | FO19: 0 | FP19: A | FQ19: 2 | FR19: 2 | FS19: 10 | FT19: X | FU19: 1 | FV19: 1 | FW19: 7 | FX19: X | FY19: 3 | FZ19: 1 | GA19: 0 | GB19: A | GC19: 1 | GD19: 0 | GE19: 0 | GF19: A | GG19: 1 | GH19: 0 | GI19: 0 | GJ19: A | GK19: 2 | GL19: 1 | GM19: 0 | GN19: A | GO19: 1 | GP19: 1 | GQ19: 7 | GR19: X | GS19: 1 | GT19: 1 | GU19: 7 | GV19: X | GW19: 2 | GX19: 1 | GY19: 0 | GZ19: A | HB19: 60 | HC19: 23 | HD19: 1 | HE19: 84 | HG19: 71.42857143 | HH19: 27.38095238 | HI19: 1.19047619 | HO19: =_xlfn.LET(_xlpm.Start,COLUMN($I$1),_xlpm.Ende,COLUMN($GY$1),_xlpm.Anzahl,INT((_xlpm.Ende-_xlpm.Start)/4)+1,_xlpm.Spalten,_xlpm.Start+4*_xlfn.SEQUENCE(1,_xlpm.Anzahl,0,1),_xlpm.Namen1,INDEX($4:$4,1,_xlpm.Spalten)&" "&INDEX($5:$5,1,_xlpm.Spalten),_xlpm.Punkte1,INDEX(19:19,1,_xlpm.Spalten+2),_xlpm.Namen2,INDEX($85:$85,1,_xlpm.Spalten)&" "&INDEX($86:$86,1,_xlpm.Spalten),_xlpm.Punkte2,INDEX(100:100,1,_xlpm.Spalten+2),_xlfn.TEXTJOIN(", ",TRUE,_xlfn._xlws.FILTER(_xlfn.HSTACK(_xlpm.Namen1,_xlpm.Namen2),_xlfn.HSTACK(_xlpm.Punkte1,_xlpm.Punkte2)=10,""))) -> Ambra Antonelli, Ruben Antonelli, Javier Cruz, Lisa D'Acunto, Niva D'Acunto, Vinci D'Acunto, Rui Gomes, Agnes Isenschmid, Telmo Oliveira, Lechena Pek, Stefan Principe, Jingwen Wang | HQ19: =_xlfn.LET(_xlpm.Start,COLUMN($I$1),_xlpm.Ende,COLUMN($GY$1),_xlpm.Anzahl,INT((_xlpm.Ende-_xlpm.Start)/4)+1,_xlpm.Spalten,_xlpm.Start+4*_xlfn.SEQUENCE(1,_xlpm.Anzahl,0,1),_xlpm.Namen1,INDEX($4:$4,1,_xlpm.Spalten)&" "&INDEX($5:$5,1,_xlpm.Spalten),_xlpm.Punkte1,INDEX(19:19,1,_xlpm.Spalten+2),_xlpm.Namen2,INDEX($85:$85,1,_xlpm.Spalten)&" "&INDEX($86:$86,1,_xlpm.Spalten),_xlpm.Punkte2,INDEX(100:100,1,_xlpm.Spalten+2),_xlfn.TEXTJOIN(", ",TRUE,_xlfn._xlws.FILTER(_xlfn.HSTACK(_xlpm.Namen1,_xlpm.Namen2),_xlfn.HSTACK(_xlpm.Punkte1,_xlpm.Punkte2)=7,""))) -> Pongsapat Nott Boonaek, Manfred Brunner, Philip Brunner, Armin Duvnjak, Djuma Duvnjak, Selina Gygli, Andreas Isenschmid, André Lanz, Franz Lischer, Mauro Marini, Armando Thormann
A20: Mo. 15. Jun. | B20: 04:00:00 | C20: 12 | D20: Schweden | E20: Tunesien | F20: 5 | G20: 1 | I20: 2 | J20: 1 | K20: 5 | L20: A | M20: 2 | N20: 1 | O20: 5 | P20: A | Q20: 1 | R20: 1 | S20: 0 | T20: X | U20: 1 | V20: 2 | W20: 0 | X20: B | Y20: 3 | Z20: 1 | AA20: 5 | AB20: A | AC20: 0 | AD20: 0 | AE20: 0 | AF20: X | AG20: 0 | AH20: 1 | AI20: 0 | AJ20: B | AK20: 2 | AL20: 1 | AM20: 5 | AN20: A | AO20: 2 | AP20: 1 | AQ20: 5 | AR20: A | AS20: 1 | AT20: 0 | AU20: 5 | AV20: A | AW20: 2 | AX20: 1 | AY20: 5 | AZ20: A | BA20: 2 | BB20: 1 | BC20: 5 | BD20: A | BE20: 2 | BF20: 1 | BG20: 5 | BH20: A | BI20: 1 | BJ20: 0 | BK20: 5 | BL20: A | BM20: 2 | BN20: 0 | BO20: 5 | BP20: A | BQ20: 3 | BR20: 1 | BS20: 5 | BT20: A | BU20: 2 | BV20: 0 | BW20: 5 | BX20: A | BY20: 1 | BZ20: 0 | CA20: 5 | CB20: A | CC20: 0 | CD20: 1 | CE20: 0 | CF20: B | CG20: 2 | CH20: 3 | CI20: 0 | CJ20: B | CK20: 1 | CL20: 0 | CM20: 5 | CN20: A | CO20: 2 | CP20: 0 | CQ20: 5 | CR20: A | CS20: 0 | CT20: 1 | CU20: 0 | CV20: B | CW20: 1 | CX20: 1 | CY20: 0 | CZ20: X | DA20: 0 | DB20: 0 | DC20: 0 | DD20: X | DE20: 1 | DF20: 2 | DG20: 0 | DH20: B | DI20: 0 | DJ20: 0 | DK20: 0 | DL20: X | DM20: 1 | DN20: 0 | DO20: 5 | DP20: A | DQ20: 1 | DR20: 0 | DS20: 5 | DT20: A | DU20: 1 | DV20: 0 | DW20: 5 | DX20: A | DY20: 3 | DZ20: 1 | EA20: 5 | EB20: A | EC20: 2 | ED20: 1 | EE20: 5 | EF20: A | EG20: 1 | EH20: 1 | EI20: 0 | EJ20: X | EK20: 2 | EL20: 0 | EM20: 5 | EN20: A | EO20: 1 | EP20: 1 | EQ20: 0 | ER20: X | ES20: 1 | ET20: 1 | EU20: 0 | EV20: X | EW20: 2 | EX20: 1 | EY20: 5 | EZ20: A | FA20: 1 | FB20: 2 | FC20: 0 | FD20: B | FE20: 0 | FF20: 0 | FG20: 0 | FH20: X | FI20: 1 | FJ20: 0 | FK20: 5 | FL20: A | FM20: 2 | FN20: 0 | FO20: 5 | FP20: A | FQ20: 2 | FR20: 1 | FS20: 5 | FT20: A | FU20: 2 | FV20: 1 | FW20: 5 | FX20: A | FY20: 3 | FZ20: 1 | GA20: 5 | GB20: A | GC20: 1 | GD20: 0 | GE20: 5 | GF20: A | GG20: 0 | GH20: 1 | GI20: 0 | GJ20: B | GK20: 1 | GL20: 0 | GM20: 5 | GN20: A | GO20: 2 | GP20: 1 | GQ20: 5 | GR20: A | GS20: 2 | GT20: 0 | GU20: 5 | GV20: A | GW20: 1 | GX20: 1 | GY20: 0 | GZ20: X | HB20: 52 | HC20: 21 | HD20: 11 | HE20: 84 | HG20: 61.9047619 | HH20: 25 | HI20: 13.0952381 | HO20: =_xlfn.LET(_xlpm.Start,COLUMN($I$1),_xlpm.Ende,COLUMN($GY$1),_xlpm.Anzahl,INT((_xlpm.Ende-_xlpm.Start)/4)+1,_xlpm.Spalten,_xlpm.Start+4*_xlfn.SEQUENCE(1,_xlpm.Anzahl,0,1),_xlpm.Namen1,INDEX($4:$4,1,_xlpm.Spalten)&" "&INDEX($5:$5,1,_xlpm.Spalten),_xlpm.Punkte1,INDEX(20:20,1,_xlpm.Spalten+2),_xlpm.Namen2,INDEX($85:$85,1,_xlpm.Spalten)&" "&INDEX($86:$86,1,_xlpm.Spalten),_xlpm.Punkte2,INDEX(101:101,1,_xlpm.Spalten+2),_xlfn.TEXTJOIN(", ",TRUE,_xlfn._xlws.FILTER(_xlfn.HSTACK(_xlpm.Namen1,_xlpm.Namen2),_xlfn.HSTACK(_xlpm.Punkte1,_xlpm.Punkte2)=10,""))) ->  | HQ20: =_xlfn.LET(_xlpm.Start,COLUMN($I$1),_xlpm.Ende,COLUMN($GY$1),_xlpm.Anzahl,INT((_xlpm.Ende-_xlpm.Start)/4)+1,_xlpm.Spalten,_xlpm.Start+4*_xlfn.SEQUENCE(1,_xlpm.Anzahl,0,1),_xlpm.Namen1,INDEX($4:$4,1,_xlpm.Spalten)&" "&INDEX($5:$5,1,_xlpm.Spalten),_xlpm.Punkte1,INDEX(20:20,1,_xlpm.Spalten+2),_xlpm.Namen2,INDEX($85:$85,1,_xlpm.Spalten)&" "&INDEX($86:$86,1,_xlpm.Spalten),_xlpm.Punkte2,INDEX(101:101,1,_xlpm.Spalten+2),_xlfn.TEXTJOIN(", ",TRUE,_xlfn._xlws.FILTER(_xlfn.HSTACK(_xlpm.Namen1,_xlpm.Namen2),_xlfn.HSTACK(_xlpm.Punkte1,_xlpm.Punkte2)=7,""))) -> 
A21: Di. 16. Jun. | B21: 00:00:00 | C21: 13 | D21: Saudi-Arabien | E21: Uruguay | F21: 1 | G21: 1 | I21: 1 | J21: 2 | K21: 0 | L21: B | M21: 1 | N21: 2 | O21: 0 | P21: B | Q21: 1 | R21: 2 | S21: 0 | T21: B | U21: 1 | V21: 1 | W21: 10 | X21: X | Y21: 1 | Z21: 1 | AA21: 10 | AB21: X | AC21: 0 | AD21: 2 | AE21: 0 | AF21: B | AG21: 0 | AH21: 1 | AI21: 0 | AJ21: B | AK21: 0 | AL21: 1 | AM21: 0 | AN21: B | AO21: 1 | AP21: 2 | AQ21: 0 | AR21: B | AS21: 1 | AT21: 4 | AU21: 0 | AV21: B | AW21: 2 | AX21: 1 | AY21: 0 | AZ21: A | BA21: 1 | BB21: 3 | BC21: 0 | BD21: B | BE21: 0 | BF21: 2 | BG21: 0 | BH21: B | BI21: 0 | BJ21: 3 | BK21: 0 | BL21: B | BM21: 1 | BN21: 2 | BO21: 0 | BP21: B | BQ21: 0 | BR21: 2 | BS21: 0 | BT21: B | BU21: 0 | BV21: 2 | BW21: 0 | BX21: B | BY21: 0 | BZ21: 1 | CA21: 0 | CB21: B | CC21: 0 | CD21: 1 | CE21: 0 | CF21: B | CG21: 1 | CH21: 2 | CI21: 0 | CJ21: B | CK21: 1 | CL21: 3 | CM21: 0 | CN21: B | CO21: 1 | CP21: 0 | CQ21: 0 | CR21: A | CS21: 0 | CT21: 2 | CU21: 0 | CV21: B | CW21: 0 | CX21: 2 | CY21: 0 | CZ21: B | DA21: 0 | DB21: 2 | DC21: 0 | DD21: B | DE21: 1 | DF21: 3 | DG21: 0 | DH21: B | DI21: 0 | DJ21: 1 | DK21: 0 | DL21: B | DM21: 0 | DN21: 2 | DO21: 0 | DP21: B | DQ21: 0 | DR21: 2 | DS21: 0 | DT21: B | DU21: 1 | DV21: 0 | DW21: 0 | DX21: A | DY21: 0 | DZ21: 1 | EA21: 0 | EB21: B | EC21: 1 | ED21: 1 | EE21: 10 | EF21: X | EG21: 0 | EH21: 1 | EI21: 0 | EJ21: B | EK21: 0 | EL21: 2 | EM21: 0 | EN21: B | EO21: 0 | EP21: 2 | EQ21: 0 | ER21: B | ES21: 0 | ET21: 2 | EU21: 0 | EV21: B | EW21: 0 | EX21: 1 | EY21: 0 | EZ21: B | FA21: 0 | FB21: 1 | FC21: 0 | FD21: B | FE21: 0 | FF21: 3 | FG21: 0 | FH21: B | FI21: 0 | FJ21: 3 | FK21: 0 | FL21: B | FM21: 1 | FN21: 3 | FO21: 0 | FP21: B | FQ21: 1 | FR21: 3 | FS21: 0 | FT21: B | FU21: 1 | FV21: 2 | FW21: 0 | FX21: B | FY21: 1 | FZ21: 3 | GA21: 0 | GB21: B | GC21: 0 | GD21: 1 | GE21: 0 | GF21: B | GG21: 0 | GH21: 1 | GI21: 0 | GJ21: B | GK21: 0 | GL21: 1 | GM21: 0 | GN21: B | GO21: 0 | GP21: 2 | GQ21: 0 | GR21: B | GS21: 0 | GT21: 1 | GU21: 0 | GV21: B | GW21: 0 | GX21: 4 | GY21: 0 | GZ21: B | HB21: 5 | HC21: 5 | HD21: 74 | HE21: 84 | HG21: 5.952380952 | HH21: 5.952380952 | HI21: 88.0952381 | HO21: =_xlfn.LET(_xlpm.Start,COLUMN($I$1),_xlpm.Ende,COLUMN($GY$1),_xlpm.Anzahl,INT((_xlpm.Ende-_xlpm.Start)/4)+1,_xlpm.Spalten,_xlpm.Start+4*_xlfn.SEQUENCE(1,_xlpm.Anzahl,0,1),_xlpm.Namen1,INDEX($4:$4,1,_xlpm.Spalten)&" "&INDEX($5:$5,1,_xlpm.Spalten),_xlpm.Punkte1,INDEX(21:21,1,_xlpm.Spalten+2),_xlpm.Namen2,INDEX($85:$85,1,_xlpm.Spalten)&" "&INDEX($86:$86,1,_xlpm.Spalten),_xlpm.Punkte2,INDEX(102:102,1,_xlpm.Spalten+2),_xlfn.TEXTJOIN(", ",TRUE,_xlfn._xlws.FILTER(_xlfn.HSTACK(_xlpm.Namen1,_xlpm.Namen2),_xlfn.HSTACK(_xlpm.Punkte1,_xlpm.Punkte2)=10,""))) -> Marco Antonelli, Ruben Antonelli, Deliz González, Martin Oroshi | HQ21: =_xlfn.LET(_xlpm.Start,COLUMN($I$1),_xlpm.Ende,COLUMN($GY$1),_xlpm.Anzahl,INT((_xlpm.Ende-_xlpm.Start)/4)+1,_xlpm.Spalten,_xlpm.Start+4*_xlfn.SEQUENCE(1,_xlpm.Anzahl,0,1),_xlpm.Namen1,INDEX($4:$4,1,_xlpm.Spalten)&" "&INDEX($5:$5,1,_xlpm.Spalten),_xlpm.Punkte1,INDEX(21:21,1,_xlpm.Spalten+2),_xlpm.Namen2,INDEX($85:$85,1,_xlpm.Spalten)&" "&INDEX($86:$86,1,_xlpm.Spalten),_xlpm.Punkte2,INDEX(102:102,1,_xlpm.Spalten+2),_xlfn.TEXTJOIN(", ",TRUE,_xlfn._xlws.FILTER(_xlfn.HSTACK(_xlpm.Namen1,_xlpm.Namen2),_xlfn.HSTACK(_xlpm.Punkte1,_xlpm.Punkte2)=7,""))) -> Lechena Pek
A22: Mo. 15. Jun. | B22: 18:00:00 | C22: 14 | D22: Spanien | E22: Kap Verde | F22: 0 | G22: 0 | I22: 3 | J22: 0 | K22: 0 | L22: A | M22: 3 | N22: 0 | O22: 0 | P22: A | Q22: 3 | R22: 0 | S22: 0 | T22: A | U22: 4 | V22: 0 | W22: 0 | X22: A | Y22: 5 | Z22: 1 | AA22: 0 | AB22: A | AC22: 3 | AD22: 0 | AE22: 0 | AF22: A | AG22: 6 | AH22: 0 | AI22: 0 | AJ22: A | AK22: 3 | AL22: 0 | AM22: 0 | AN22: A | AO22: 4 | AP22: 0 | AQ22: 0 | AR22: A | AS22: 8 | AT22: 0 | AU22: 0 | AV22: A | AW22: 4 | AX22: 0 | AY22: 0 | AZ22: A | BA22: 4 | BB22: 0 | BC22: 0 | BD22: A | BE22: 4 | BF22: 0 | BG22: 0 | BH22: A | BI22: 3 | BJ22: 1 | BK22: 0 | BL22: A | BM22: 3 | BN22: 0 | BO22: 0 | BP22: A | BQ22: 5 | BR22: 0 | BS22: 0 | BT22: A | BU22: 4 | BV22: 0 | BW22: 0 | BX22: A | BY22: 3 | BZ22: 0 | CA22: 0 | CB22: A | CC22: 2 | CD22: 0 | CE22: 0 | CF22: A | CG22: 2 | CH22: 0 | CI22: 0 | CJ22: A | CK22: 4 | CL22: 1 | CM22: 0 | CN22: A | CO22: 5 | CP22: 0 | CQ22: 0 | CR22: A | CS22: 5 | CT22: 0 | CU22: 0 | CV22: A | CW22: 6 | CX22: 0 | CY22: 0 | CZ22: A | DA22: 3 | DB22: 0 | DC22: 0 | DD22: A | DE22: 3 | DF22: 0 | DG22: 0 | DH22: A | DI22: 4 | DJ22: 0 | DK22: 0 | DL22: A | DM22: 4 | DN22: 0 | DO22: 0 | DP22: A | DQ22: 3 | DR22: 0 | DS22: 0 | DT22: A | DU22: 2 | DV22: 1 | DW22: 0 | DX22: A | DY22: 2 | DZ22: 2 | EA22: 7 | EB22: X | EC22: 3 | ED22: 0 | EE22: 0 | EF22: A | EG22: 4 | EH22: 0 | EI22: 0 | EJ22: A | EK22: 4 | EL22: 0 | EM22: 0 | EN22: A | EO22: 5 | EP22: 0 | EQ22: 0 | ER22: A | ES22: 4 | ET22: 0 | EU22: 0 | EV22: A | EW22: 3 | EX22: 0 | EY22: 0 | EZ22: A | FA22: 3 | FB22: 1 | FC22: 0 | FD22: A | FE22: 6 | FF22: 0 | FG22: 0 | FH22: A | FI22: 4 | FJ22: 1 | FK22: 0 | FL22: A | FM22: 3 | FN22: 0 | FO22: 0 | FP22: A | FQ22: 4 | FR22: 0 | FS22: 0 | FT22: A | FU22: 4 | FV22: 0 | FW22: 0 | FX22: A | FY22: 3 | FZ22: 1 | GA22: 0 | GB22: A | GC22: 3 | GD22: 0 | GE22: 0 | GF22: A | GG22: 1 | GH22: 0 | GI22: 0 | GJ22: A | GK22: 3 | GL22: 0 | GM22: 0 | GN22: A | GO22: 4 | GP22: 0 | GQ22: 0 | GR22: A | GS22: 3 | GT22: 0 | GU22: 0 | GV22: A | GW22: 5 | GX22: 0 | GY22: 0 | GZ22: A | HB22: 83 | HC22: 1 | HD22: 0 | HE22: 84 | HG22: 98.80952381 | HH22: 1.19047619 | HI22: 0 | HO22: =_xlfn.LET(_xlpm.Start,COLUMN($I$1),_xlpm.Ende,COLUMN($GY$1),_xlpm.Anzahl,INT((_xlpm.Ende-_xlpm.Start)/4)+1,_xlpm.Spalten,_xlpm.Start+4*_xlfn.SEQUENCE(1,_xlpm.Anzahl,0,1),_xlpm.Namen1,INDEX($4:$4,1,_xlpm.Spalten)&" "&INDEX($5:$5,1,_xlpm.Spalten),_xlpm.Punkte1,INDEX(22:22,1,_xlpm.Spalten+2),_xlpm.Namen2,INDEX($85:$85,1,_xlpm.Spalten)&" "&INDEX($86:$86,1,_xlpm.Spalten),_xlpm.Punkte2,INDEX(103:103,1,_xlpm.Spalten+2),_xlfn.TEXTJOIN(", ",TRUE,_xlfn._xlws.FILTER(_xlfn.HSTACK(_xlpm.Namen1,_xlpm.Namen2),_xlfn.HSTACK(_xlpm.Punkte1,_xlpm.Punkte2)=10,""))) ->  | HQ22: =_xlfn.LET(_xlpm.Start,COLUMN($I$1),_xlpm.Ende,COLUMN($GY$1),_xlpm.Anzahl,INT((_xlpm.Ende-_xlpm.Start)/4)+1,_xlpm.Spalten,_xlpm.Start+4*_xlfn.SEQUENCE(1,_xlpm.Anzahl,0,1),_xlpm.Namen1,INDEX($4:$4,1,_xlpm.Spalten)&" "&INDEX($5:$5,1,_xlpm.Spalten),_xlpm.Punkte1,INDEX(22:22,1,_xlpm.Spalten+2),_xlpm.Namen2,INDEX($85:$85,1,_xlpm.Spalten)&" "&INDEX($86:$86,1,_xlpm.Spalten),_xlpm.Punkte2,INDEX(103:103,1,_xlpm.Spalten+2),_xlfn.TEXTJOIN(", ",TRUE,_xlfn._xlws.FILTER(_xlfn.HSTACK(_xlpm.Namen1,_xlpm.Namen2),_xlfn.HSTACK(_xlpm.Punkte1,_xlpm.Punkte2)=7,""))) -> Rui Gomes
A23: Di. 16. Jun. | B23: 03:00:00 | C23: 15 | D23: Iran | E23: Neuseeland | F23: 2 | G23: 2 | I23: 2 | J23: 1 | K23: 0 | L23: A | M23: 2 | N23: 1 | O23: 0 | P23: A | Q23: 1 | R23: 1 | S23: 7 | T23: X | U23: 2 | V23: 1 | W23: 0 | X23: A | Y23: 0 | Z23: 0 | AA23: 7 | AB23: X | AC23: 1 | AD23: 0 | AE23: 0 | AF23: A | AG23: 2 | AH23: 0 | AI23: 0 | AJ23: A | AK23: 1 | AL23: 1 | AM23: 7 | AN23: X | AO23: 1 | AP23: 1 | AQ23: 7 | AR23: X | AS23: 1 | AT23: 1 | AU23: 7 | AV23: X | AW23: 2 | AX23: 0 | AY23: 0 | AZ23: A | BA23: 1 | BB23: 0 | BC23: 0 | BD23: A | BE23: 1 | BF23: 1 | BG23: 7 | BH23: X | BI23: 0 | BJ23: 0 | BK23: 7 | BL23: X | BM23: 2 | BN23: 2 | BO23: 10 | BP23: X | BQ23: 0 | BR23: 1 | BS23: 0 | BT23: B | BU23: 2 | BV23: 0 | BW23: 0 | BX23: A | BY23: 0 | BZ23: 0 | CA23: 7 | CB23: X | CC23: 0 | CD23: 1 | CE23: 0 | CF23: B | CG23: 0 | CH23: 0 | CI23: 7 | CJ23: X | CK23: 1 | CL23: 0 | CM23: 0 | CN23: A | CO23: 1 | CP23: 0 | CQ23: 0 | CR23: A | CS23: 0 | CT23: 0 | CU23: 7 | CV23: X | CW23: 0 | CX23: 0 | CY23: 7 | CZ23: X | DA23: 2 | DB23: 0 | DC23: 0 | DD23: A | DE23: 2 | DF23: 0 | DG23: 0 | DH23: A | DI23: 2 | DJ23: 0 | DK23: 0 | DL23: A | DM23: 1 | DN23: 1 | DO23: 7 | DP23: X | DQ23: 1 | DR23: 1 | DS23: 7 | DT23: X | DU23: 1 | DV23: 1 | DW23: 7 | DX23: X | DY23: 0 | DZ23: 0 | EA23: 7 | EB23: X | EC23: 0 | ED23: 0 | EE23: 7 | EF23: X | EG23: 1 | EH23: 0 | EI23: 0 | EJ23: A | EK23: 0 | EL23: 1 | EM23: 0 | EN23: B | EO23: 1 | EP23: 1 | EQ23: 7 | ER23: X | ES23: 1 | ET23: 1 | EU23: 7 | EV23: X | EW23: 1 | EX23: 1 | EY23: 7 | EZ23: X | FA23: 0 | FB23: 2 | FC23: 0 | FD23: B | FE23: 1 | FF23: 3 | FG23: 0 | FH23: B | FI23: 0 | FJ23: 0 | FK23: 7 | FL23: X | FM23: 2 | FN23: 0 | FO23: 0 | FP23: A | FQ23: 2 | FR23: 1 | FS23: 0 | FT23: A | FU23: 1 | FV23: 1 | FW23: 7 | FX23: X | FY23: 1 | FZ23: 3 | GA23: 0 | GB23: B | GC23: 2 | GD23: 1 | GE23: 0 | GF23: A | GG23: 1 | GH23: 0 | GI23: 0 | GJ23: A | GK23: 1 | GL23: 0 | GM23: 0 | GN23: A | GO23: 3 | GP23: 1 | GQ23: 0 | GR23: A | GS23: 1 | GT23: 1 | GU23: 7 | GV23: X | GW23: 1 | GX23: 2 | GY23: 0 | GZ23: B | HB23: 41 | HC23: 31 | HD23: 12 | HE23: 84 | HG23: 48.80952381 | HH23: 36.9047619 | HI23: 14.28571429 | HO23: =_xlfn.LET(_xlpm.Start,COLUMN($I$1),_xlpm.Ende,COLUMN($GY$1),_xlpm.Anzahl,INT((_xlpm.Ende-_xlpm.Start)/4)+1,_xlpm.Spalten,_xlpm.Start+4*_xlfn.SEQUENCE(1,_xlpm.Anzahl,0,1),_xlpm.Namen1,INDEX($4:$4,1,_xlpm.Spalten)&" "&INDEX($5:$5,1,_xlpm.Spalten),_xlpm.Punkte1,INDEX(23:23,1,_xlpm.Spalten+2),_xlpm.Namen2,INDEX($85:$85,1,_xlpm.Spalten)&" "&INDEX($86:$86,1,_xlpm.Spalten),_xlpm.Punkte2,INDEX(104:104,1,_xlpm.Spalten+2),_xlfn.TEXTJOIN(", ",TRUE,_xlfn._xlws.FILTER(_xlfn.HSTACK(_xlpm.Namen1,_xlpm.Namen2),_xlfn.HSTACK(_xlpm.Punkte1,_xlpm.Punkte2)=10,""))) -> Manuel Brunner, Ralph Schuster | HQ23: =_xlfn.LET(_xlpm.Start,COLUMN($I$1),_xlpm.Ende,COLUMN($GY$1),_xlpm.Anzahl,INT((_xlpm.Ende-_xlpm.Start)/4)+1,_xlpm.Spalten,_xlpm.Start+4*_xlfn.SEQUENCE(1,_xlpm.Anzahl,0,1),_xlpm.Namen1,INDEX($4:$4,1,_xlpm.Spalten)&" "&INDEX($5:$5,1,_xlpm.Spalten),_xlpm.Punkte1,INDEX(23:23,1,_xlpm.Spalten+2),_xlpm.Namen2,INDEX($85:$85,1,_xlpm.Spalten)&" "&INDEX($86:$86,1,_xlpm.Spalten),_xlpm.Punkte2,INDEX(104:104,1,_xlpm.Spalten+2),_xlfn.TEXTJOIN(", ",TRUE,_xlfn._xlws.FILTER(_xlfn.HSTACK(_xlpm.Namen1,_xlpm.Namen2),_xlfn.HSTACK(_xlpm.Punkte1,_xlpm.Punkte2)=7,""))) -> Ambra Antonelli, Ruben Antonelli, Aya Bartholet, Philippe Bartholet, Roger Bartholet, Michael Bosshart, Manfred Brunner, André Burkart, Javier Cruz, Niva D'Acunto, Vinci D'Acunto, Dino Duvnjak, Djuma Duvnjak, Andreia Gomes, Rui Gomes, Deliz González, Reto Gygli, Robin Gygli, Sarina Gygli, Timothy Gygli, Andreas Isenschmid, Franz Lischer, Mauro Marini, Martin Marthaler, Telmo Oliveira, Petra Rauscher, Evelyne Schenk, Bruno Silva, Lea Treichler
A24: Mo. 15. Jun. | B24: 21:00:00 | C24: 16 | D24: Belgien | E24: Ägypten | F24: 1 | G24: 1 | I24: 1 | J24: 1 | K24: 10 | L24: X | M24: 2 | N24: 1 | O24: 0 | P24: A | Q24: 2 | R24: 1 | S24: 0 | T24: A | U24: 2 | V24: 1 | W24: 0 | X24: A | Y24: 1 | Z24: 0 | AA24: 0 | AB24: A | AC24: 2 | AD24: 1 | AE24: 0 | AF24: A | AG24: 1 | AH24: 0 | AI24: 0 | AJ24: A | AK24: 2 | AL24: 1 | AM24: 0 | AN24: A | AO24: 2 | AP24: 1 | AQ24: 0 | AR24: A | AS24: 2 | AT24: 0 | AU24: 0 | AV24: A | AW24: 3 | AX24: 0 | AY24: 0 | AZ24: A | BA24: 2 | BB24: 0 | BC24: 0 | BD24: A | BE24: 2 | BF24: 1 | BG24: 0 | BH24: A | BI24: 0 | BJ24: 0 | BK24: 7 | BL24: X | BM24: 2 | BN24: 1 | BO24: 0 | BP24: A | BQ24: 2 | BR24: 2 | BS24: 7 | BT24: X | BU24: 2 | BV24: 1 | BW24: 0 | BX24: A | BY24: 1 | BZ24: 0 | CA24: 0 | CB24: A | CC24: 1 | CD24: 0 | CE24: 0 | CF24: A | CG24: 2 | CH24: 2 | CI24: 7 | CJ24: X | CK24: 2 | CL24: 1 | CM24: 0 | CN24: A | CO24: 2 | CP24: 1 | CQ24: 0 | CR24: A | CS24: 2 | CT24: 1 | CU24: 0 | CV24: A | CW24: 3 | CX24: 2 | CY24: 0 | CZ24: A | DA24: 2 | DB24: 1 | DC24: 0 | DD24: A | DE24: 3 | DF24: 1 | DG24: 0 | DH24: A | DI24: 2 | DJ24: 1 | DK24: 0 | DL24: A | DM24: 2 | DN24: 0 | DO24: 0 | DP24: A | DQ24: 2 | DR24: 1 | DS24: 0 | DT24: A | DU24: 2 | DV24: 1 | DW24: 0 | DX24: A | DY24: 1 | DZ24: 1 | EA24: 10 | EB24: X | EC24: 2 | ED24: 0 | EE24: 0 | EF24: A | EG24: 2 | EH24: 1 | EI24: 0 | EJ24: A | EK24: 2 | EL24: 0 | EM24: 0 | EN24: A | EO24: 2 | EP24: 0 | EQ24: 0 | ER24: A | ES24: 2 | ET24: 1 | EU24: 0 | EV24: A | EW24: 1 | EX24: 0 | EY24: 0 | EZ24: A | FA24: 2 | FB24: 2 | FC24: 7 | FD24: X | FE24: 2 | FF24: 2 | FG24: 7 | FH24: X | FI24: 1 | FJ24: 1 | FK24: 10 | FL24: X | FM24: 3 | FN24: 1 | FO24: 0 | FP24: A | FQ24: 2 | FR24: 0 | FS24: 0 | FT24: A | FU24: 3 | FV24: 1 | FW24: 0 | FX24: A | FY24: 3 | FZ24: 1 | GA24: 0 | GB24: A | GC24: 1 | GD24: 1 | GE24: 10 | GF24: X | GG24: 1 | GH24: 0 | GI24: 0 | GJ24: A | GK24: 1 | GL24: 0 | GM24: 0 | GN24: A | GO24: 2 | GP24: 2 | GQ24: 7 | GR24: X | GS24: 2 | GT24: 1 | GU24: 0 | GV24: A | GW24: 2 | GX24: 1 | GY24: 0 | GZ24: A | HB24: 68 | HC24: 16 | HD24: 0 | HE24: 84 | HG24: 80.95238095 | HH24: 19.04761905 | HI24: 0 | HO24: =_xlfn.LET(_xlpm.Start,COLUMN($I$1),_xlpm.Ende,COLUMN($GY$1),_xlpm.Anzahl,INT((_xlpm.Ende-_xlpm.Start)/4)+1,_xlpm.Spalten,_xlpm.Start+4*_xlfn.SEQUENCE(1,_xlpm.Anzahl,0,1),_xlpm.Namen1,INDEX($4:$4,1,_xlpm.Spalten)&" "&INDEX($5:$5,1,_xlpm.Spalten),_xlpm.Punkte1,INDEX(24:24,1,_xlpm.Spalten+2),_xlpm.Namen2,INDEX($85:$85,1,_xlpm.Spalten)&" "&INDEX($86:$86,1,_xlpm.Spalten),_xlpm.Punkte2,INDEX(105:105,1,_xlpm.Spalten+2),_xlfn.TEXTJOIN(", ",TRUE,_xlfn._xlws.FILTER(_xlfn.HSTACK(_xlpm.Namen1,_xlpm.Namen2),_xlfn.HSTACK(_xlpm.Punkte1,_xlpm.Punkte2)=10,""))) -> Panos Agorastos, Rui Gomes, Timothy Gygli, Aiden Jones, Ben Marthaler, Elias Marty, Stefan Principe, Michael Rüegg, Christoph Wälti | HQ24: =_xlfn.LET(_xlpm.Start,COLUMN($I$1),_xlpm.Ende,COLUMN($GY$1),_xlpm.Anzahl,INT((_xlpm.Ende-_xlpm.Start)/4)+1,_xlpm.Spalten,_xlpm.Start+4*_xlfn.SEQUENCE(1,_xlpm.Anzahl,0,1),_xlpm.Namen1,INDEX($4:$4,1,_xlpm.Spalten)&" "&INDEX($5:$5,1,_xlpm.Spalten),_xlpm.Punkte1,INDEX(24:24,1,_xlpm.Spalten+2),_xlpm.Namen2,INDEX($85:$85,1,_xlpm.Spalten)&" "&INDEX($86:$86,1,_xlpm.Spalten),_xlpm.Punkte2,INDEX(105:105,1,_xlpm.Spalten+2),_xlfn.TEXTJOIN(", ",TRUE,_xlfn._xlws.FILTER(_xlfn.HSTACK(_xlpm.Namen1,_xlpm.Namen2),_xlfn.HSTACK(_xlpm.Punkte1,_xlpm.Punkte2)=7,""))) -> Manfred Brunner, Nicolas Brunner, Javier Cruz, Selina Gygli, Stefan Gygli, André Lanz, Martin Oroshi
A25: Di. 16. Jun. | B25: 21:00:00 | C25: 17 | D25: Frankreich | E25: Senegal | F25: 3 | G25: 1 | I25: 2 | J25: 1 | K25: 5 | L25: A | M25: 2 | N25: 1 | O25: 5 | P25: A | Q25: 3 | R25: 1 | S25: 10 | T25: A | U25: 2 | V25: 1 | W25: 5 | X25: A | Y25: 3 | Z25: 1 | AA25: 10 | AB25: A | AC25: 2 | AD25: 1 | AE25: 5 | AF25: A | AG25: 2 | AH25: 0 | AI25: 7 | AJ25: A | AK25: 3 | AL25: 1 | AM25: 10 | AN25: A | AO25: 2 | AP25: 0 | AQ25: 7 | AR25: A | AS25: 3 | AT25: 0 | AU25: 5 | AV25: A | AW25: 2 | AX25: 1 | AY25: 5 | AZ25: A | BA25: 3 | BB25: 1 | BC25: 10 | BD25: A | BE25: 3 | BF25: 1 | BG25: 10 | BH25: A | BI25: 2 | BJ25: 0 | BK25: 7 | BL25: A | BM25: 4 | BN25: 2 | BO25: 7 | BP25: A | BQ25: 3 | BR25: 1 | BS25: 10 | BT25: A | BU25: 2 | BV25: 1 | BW25: 5 | BX25: A | BY25: 1 | BZ25: 1 | CA25: 0 | CB25: X | CC25: 2 | CD25: 0 | CE25: 7 | CF25: A | CG25: 3 | CH25: 2 | CI25: 5 | CJ25: A | CK25: 3 | CL25: 1 | CM25: 10 | CN25: A | CO25: 3 | CP25: 0 | CQ25: 5 | CR25: A | CS25: 3 | CT25: 0 | CU25: 5 | CV25: A | CW25: 2 | CX25: 1 | CY25: 5 | CZ25: A | DA25: 2 | DB25: 1 | DC25: 5 | DD25: A | DE25: 2 | DF25: 0 | DG25: 7 | DH25: A | DI25: 3 | DJ25: 1 | DK25: 10 | DL25: A | DM25: 2 | DN25: 0 | DO25: 7 | DP25: A | DQ25: 2 | DR25: 0 | DS25: 7 | DT25: A | DU25: 2 | DV25: 1 | DW25: 5 | DX25: A | DY25: 3 | DZ25: 2 | EA25: 5 | EB25: A | EC25: 1 | ED25: 0 | EE25: 5 | EF25: A | EG25: 3 | EH25: 1 | EI25: 10 | EJ25: A | EK25: 3 | EL25: 1 | EM25: 10 | EN25: A | EO25: 2 | EP25: 1 | EQ25: 5 | ER25: A | ES25: 2 | ET25: 0 | EU25: 7 | EV25: A | EW25: 3 | EX25: 1 | EY25: 10 | EZ25: A | FA25: 4 | FB25: 3 | FC25: 5 | FD25: A | FE25: 1 | FF25: 1 | FG25: 0 | FH25: X | FI25: 3 | FJ25: 1 | FK25: 10 | FL25: A | FM25: 3 | FN25: 1 | FO25: 10 | FP25: A | FQ25: 3 | FR25: 1 | FS25: 10 | FT25: A | FU25: 3 | FV25: 0 | FW25: 5 | FX25: A | FY25: 3 | FZ25: 1 | GA25: 10 | GB25: A | GC25: 2 | GD25: 0 | GE25: 7 | GF25: A | GG25: 1 | GH25: 0 | GI25: 5 | GJ25: A | GK25: 2 | GL25: 0 | GM25: 7 | GN25: A | GO25: 2 | GP25: 1 | GQ25: 5 | GR25: A | GS25: 3 | GT25: 0 | GU25: 5 | GV25: A | GW25: 3 | GX25: 0 | GY25: 5 | GZ25: A | HB25: 78 | HC25: 6 | HD25: 0 | HE25: 84 | HG25: 92.85714286 | HH25: 7.142857143 | HI25: 0 | HO25: =_xlfn.LET(_xlpm.Start,COLUMN($I$1),_xlpm.Ende,COLUMN($GY$1),_xlpm.Anzahl,INT((_xlpm.Ende-_xlpm.Start)/4)+1,_xlpm.Spalten,_xlpm.Start+4*_xlfn.SEQUENCE(1,_xlpm.Anzahl,0,1),_xlpm.Namen1,INDEX($4:$4,1,_xlpm.Spalten)&" "&INDEX($5:$5,1,_xlpm.Spalten),_xlpm.Punkte1,INDEX(25:25,1,_xlpm.Spalten+2),_xlpm.Namen2,INDEX($85:$85,1,_xlpm.Spalten)&" "&INDEX($86:$86,1,_xlpm.Spalten),_xlpm.Punkte2,INDEX(106:106,1,_xlpm.Spalten+2),_xlfn.TEXTJOIN(", ",TRUE,_xlfn._xlws.FILTER(_xlfn.HSTACK(_xlpm.Namen1,_xlpm.Namen2),_xlfn.HSTACK(_xlpm.Punkte1,_xlpm.Punkte2)=10,""))) -> Ambra Antonelli, Ruben Antonelli, Aya Bartholet, Pongsapat Nott Boonaek, Michael Bosshart, Nicolas Brunner, Leo Rodrigues da Costa, Armin Duvnjak, Florian González, Laurent Grosse, Sarina Gygli, Timothy Gygli, Florian Haab, Agnes Isenschmid, Michael Isenschmid, Elias Marty, Julian Merkli, Petra Rauscher, Sabine Rüegg, Yannick Schilliger, Reto Treichler, Christoph Wälti | HQ25: =_xlfn.LET(_xlpm.Start,COLUMN($I$1),_xlpm.Ende,COLUMN($GY$1),_xlpm.Anzahl,INT((_xlpm.Ende-_xlpm.Start)/4)+1,_xlpm.Spalten,_xlpm.Start+4*_xlfn.SEQUENCE(1,_xlpm.Anzahl,0,1),_xlpm.Namen1,INDEX($4:$4,1,_xlpm.Spalten)&" "&INDEX($5:$5,1,_xlpm.Spalten),_xlpm.Punkte1,INDEX(25:25,1,_xlpm.Spalten+2),_xlpm.Namen2,INDEX($85:$85,1,_xlpm.Spalten)&" "&INDEX($86:$86,1,_xlpm.Spalten),_xlpm.Punkte2,INDEX(106:106,1,_xlpm.Spalten+2),_xlfn.TEXTJOIN(", ",TRUE,_xlfn._xlws.FILTER(_xlfn.HSTACK(_xlpm.Namen1,_xlpm.Namen2),_xlfn.HSTACK(_xlpm.Punkte1,_xlpm.Punkte2)=7,""))) -> André Bartholet, Philippe Bartholet, Manfred Brunner, Manuel Brunner, Oli Christiansen, Goran Djukic, Dino Duvnjak, Djuma Duvnjak, Robin Gygli, Aiden Jones, Tanja Kistler, Nicolas Mack, Lynn Rüegg, Erich Schommarz, Aleandro Silvestri, Armando Thormann, Markus Wagner, Marc Walthard
A26: Mi. 17. Jun. | B26: 00:00:00 | C26: 18 | D26: Irak | E26: Norwegen | F26: 1 | G26: 4 | I26: 1 | J26: 2 | K26: 5 | L26: B | M26: 1 | N26: 2 | O26: 5 | P26: B | Q26: 0 | R26: 1 | S26: 5 | T26: B | U26: 1 | V26: 3 | W26: 5 | X26: B | Y26: 1 | Z26: 3 | AA26: 5 | AB26: B | AC26: 0 | AD26: 3 | AE26: 7 | AF26: B | AG26: 0 | AH26: 3 | AI26: 7 | AJ26: B | AK26: 0 | AL26: 1 | AM26: 5 | AN26: B | AO26: 1 | AP26: 2 | AQ26: 5 | AR26: B | AS26: 0 | AT26: 3 | AU26: 7 | AV26: B | AW26: 0 | AX26: 2 | AY26: 5 | AZ26: B | BA26: 0 | BB26: 3 | BC26: 7 | BD26: B | BE26: 1 | BF26: 2 | BG26: 5 | BH26: B | BI26: 0 | BJ26: 2 | BK26: 5 | BL26: B | BM26: 1 | BN26: 1 | BO26: 0 | BP26: X | BQ26: 0 | BR26: 4 | BS26: 5 | BT26: B | BU26: 0 | BV26: 3 | BW26: 7 | BX26: B | BY26: 0 | BZ26: 2 | CA26: 5 | CB26: B | CC26: 0 | CD26: 1 | CE26: 5 | CF26: B | CG26: 0 | CH26: 2 | CI26: 5 | CJ26: B | CK26: 0 | CL26: 2 | CM26: 5 | CN26: B | CO26: 0 | CP26: 4 | CQ26: 5 | CR26: B | CS26: 0 | CT26: 2 | CU26: 5 | CV26: B | CW26: 0 | CX26: 3 | CY26: 7 | CZ26: B | DA26: 1 | DB26: 2 | DC26: 5 | DD26: B | DE26: 0 | DF26: 5 | DG26: 5 | DH26: B | DI26: 0 | DJ26: 3 | DK26: 7 | DL26: B | DM26: 0 | DN26: 1 | DO26: 5 | DP26: B | DQ26: 0 | DR26: 1 | DS26: 5 | DT26: B | DU26: 0 | DV26: 2 | DW26: 5 | DX26: B | DY26: 1 | DZ26: 3 | EA26: 5 | EB26: B | EC26: 2 | ED26: 2 | EE26: 0 | EF26: X | EG26: 0 | EH26: 4 | EI26: 5 | EJ26: B | EK26: 0 | EL26: 2 | EM26: 5 | EN26: B | EO26: 0 | EP26: 2 | EQ26: 5 | ER26: B | ES26: 0 | ET26: 2 | EU26: 5 | EV26: B | EW26: 0 | EX26: 1 | EY26: 5 | EZ26: B | FA26: 0 | FB26: 1 | FC26: 5 | FD26: B | FE26: 0 | FF26: 1 | FG26: 5 | FH26: B | FI26: 0 | FJ26: 2 | FK26: 5 | FL26: B | FM26: 0 | FN26: 3 | FO26: 7 | FP26: B | FQ26: 1 | FR26: 3 | FS26: 5 | FT26: B | FU26: 1 | FV26: 3 | FW26: 5 | FX26: B | FY26: 1 | FZ26: 3 | GA26: 5 | GB26: B | GC26: 0 | GD26: 2 | GE26: 5 | GF26: B | GG26: 0 | GH26: 1 | GI26: 5 | GJ26: B | GK26: 0 | GL26: 1 | GM26: 5 | GN26: B | GO26: 0 | GP26: 2 | GQ26: 5 | GR26: B | GS26: 0 | GT26: 2 | GU26: 5 | GV26: B | GW26: 0 | GX26: 4 | GY26: 5 | GZ26: B | HB26: 1 | HC26: 2 | HD26: 81 | HE26: 84 | HG26: 1.19047619 | HH26: 2.380952381 | HI26: 96.42857143 | HO26: =_xlfn.LET(_xlpm.Start,COLUMN($I$1),_xlpm.Ende,COLUMN($GY$1),_xlpm.Anzahl,INT((_xlpm.Ende-_xlpm.Start)/4)+1,_xlpm.Spalten,_xlpm.Start+4*_xlfn.SEQUENCE(1,_xlpm.Anzahl,0,1),_xlpm.Namen1,INDEX($4:$4,1,_xlpm.Spalten)&" "&INDEX($5:$5,1,_xlpm.Spalten),_xlpm.Punkte1,INDEX(26:26,1,_xlpm.Spalten+2),_xlpm.Namen2,INDEX($85:$85,1,_xlpm.Spalten)&" "&INDEX($86:$86,1,_xlpm.Spalten),_xlpm.Punkte2,INDEX(107:107,1,_xlpm.Spalten+2),_xlfn.TEXTJOIN(", ",TRUE,_xlfn._xlws.FILTER(_xlfn.HSTACK(_xlpm.Namen1,_xlpm.Namen2),_xlfn.HSTACK(_xlpm.Punkte1,_xlpm.Punkte2)=10,""))) ->  | HQ26: =_xlfn.LET(_xlpm.Start,COLUMN($I$1),_xlpm.Ende,COLUMN($GY$1),_xlpm.Anzahl,INT((_xlpm.Ende-_xlpm.Start)/4)+1,_xlpm.Spalten,_xlpm.Start+4*_xlfn.SEQUENCE(1,_xlpm.Anzahl,0,1),_xlpm.Namen1,INDEX($4:$4,1,_xlpm.Spalten)&" "&INDEX($5:$5,1,_xlpm.Spalten),_xlpm.Punkte1,INDEX(26:26,1,_xlpm.Spalten+2),_xlpm.Namen2,INDEX($85:$85,1,_xlpm.Spalten)&" "&INDEX($86:$86,1,_xlpm.Spalten),_xlpm.Punkte2,INDEX(107:107,1,_xlpm.Spalten+2),_xlfn.TEXTJOIN(", ",TRUE,_xlfn._xlws.FILTER(_xlfn.HSTACK(_xlpm.Namen1,_xlpm.Namen2),_xlfn.HSTACK(_xlpm.Punkte1,_xlpm.Punkte2)=7,""))) -> Peter Balazs, André Bartholet, Roger Bartholet, Pongsapat Nott Boonaek, Philip Brunner, Vinci D'Acunto, Armin Duvnjak, Florian Haab, Stefan Principe, Michael Prucha, Erich Schommarz, Christoph Wälti, Markus Wagner
A27: Mi. 17. Jun. | B27: 03:00:00 | C27: 19 | D27: Argentinien | E27: Algerien | F27: 3 | G27: 0 | I27: 2 | J27: 1 | K27: 5 | L27: A | M27: 3 | N27: 1 | O27: 5 | P27: A | Q27: 4 | R27: 1 | S27: 7 | T27: A | U27: 1 | V27: 0 | W27: 5 | X27: A | Y27: 3 | Z27: 0 | AA27: 10 | AB27: A | AC27: 2 | AD27: 0 | AE27: 5 | AF27: A | AG27: 2 | AH27: 0 | AI27: 5 | AJ27: A | AK27: 3 | AL27: 1 | AM27: 5 | AN27: A | AO27: 3 | AP27: 0 | AQ27: 10 | AR27: A | AS27: 2 | AT27: 0 | AU27: 5 | AV27: A | AW27: 3 | AX27: 0 | AY27: 10 | AZ27: A | BA27: 2 | BB27: 0 | BC27: 5 | BD27: A | BE27: 2 | BF27: 0 | BG27: 5 | BH27: A | BI27: 3 | BJ27: 0 | BK27: 10 | BL27: A | BM27: 3 | BN27: 1 | BO27: 5 | BP27: A | BQ27: 5 | BR27: 1 | BS27: 5 | BT27: A | BU27: 3 | BV27: 0 | BW27: 10 | BX27: A | BY27: 2 | BZ27: 0 | CA27: 5 | CB27: A | CC27: 2 | CD27: 0 | CE27: 5 | CF27: A | CG27: 2 | CH27: 0 | CI27: 5 | CJ27: A | CK27: 3 | CL27: 0 | CM27: 10 | CN27: A | CO27: 2 | CP27: 0 | CQ27: 5 | CR27: A | CS27: 4 | CT27: 1 | CU27: 7 | CV27: A | CW27: 4 | CX27: 1 | CY27: 7 | CZ27: A | DA27: 2 | DB27: 0 | DC27: 5 | DD27: A | DE27: 2 | DF27: 0 | DG27: 5 | DH27: A | DI27: 2 | DJ27: 0 | DK27: 5 | DL27: A | DM27: 2 | DN27: 0 | DO27: 5 | DP27: A | DQ27: 2 | DR27: 0 | DS27: 5 | DT27: A | DU27: 3 | DV27: 0 | DW27: 10 | DX27: A | DY27: 4 | DZ27: 0 | EA27: 5 | EB27: A | EC27: 2 | ED27: 1 | EE27: 5 | EF27: A | EG27: 2 | EH27: 0 | EI27: 5 | EJ27: A | EK27: 2 | EL27: 0 | EM27: 5 | EN27: A | EO27: 2 | EP27: 0 | EQ27: 5 | ER27: A | ES27: 2 | ET27: 0 | EU27: 5 | EV27: A | EW27: 2 | EX27: 0 | EY27: 5 | EZ27: A | FA27: 2 | FB27: 1 | FC27: 5 | FD27: A | FE27: 2 | FF27: 0 | FG27: 5 | FH27: A | FI27: 3 | FJ27: 0 | FK27: 10 | FL27: A | FM27: 3 | FN27: 0 | FO27: 10 | FP27: A | FQ27: 2 | FR27: 0 | FS27: 5 | FT27: A | FU27: 2 | FV27: 1 | FW27: 5 | FX27: A | FY27: 3 | FZ27: 1 | GA27: 5 | GB27: A | GC27: 1 | GD27: 0 | GE27: 5 | GF27: A | GG27: 1 | GH27: 0 | GI27: 5 | GJ27: A | GK27: 2 | GL27: 1 | GM27: 5 | GN27: A | GO27: 2 | GP27: 1 | GQ27: 5 | GR27: A | GS27: 2 | GT27: 0 | GU27: 5 | GV27: A | GW27: 2 | GX27: 0 | GY27: 5 | GZ27: A | HB27: 82 | HC27: 1 | HD27: 1 | HE27: 84 | HG27: 97.61904762 | HH27: 1.19047619 | HI27: 1.19047619 | HO27: =_xlfn.LET(_xlpm.Start,COLUMN($I$1),_xlpm.Ende,COLUMN($GY$1),_xlpm.Anzahl,INT((_xlpm.Ende-_xlpm.Start)/4)+1,_xlpm.Spalten,_xlpm.Start+4*_xlfn.SEQUENCE(1,_xlpm.Anzahl,0,1),_xlpm.Namen1,INDEX($4:$4,1,_xlpm.Spalten)&" "&INDEX($5:$5,1,_xlpm.Spalten),_xlpm.Punkte1,INDEX(27:27,1,_xlpm.Spalten+2),_xlpm.Namen2,INDEX($85:$85,1,_xlpm.Spalten)&" "&INDEX($86:$86,1,_xlpm.Spalten),_xlpm.Punkte2,INDEX(108:108,1,_xlpm.Spalten+2),_xlfn.TEXTJOIN(", ",TRUE,_xlfn._xlws.FILTER(_xlfn.HSTACK(_xlpm.Namen1,_xlpm.Namen2),_xlfn.HSTACK(_xlpm.Punkte1,_xlpm.Punkte2)=10,""))) -> Ruben Antonelli, Philippe Bartholet, Mara Beck, Manfred Brunner, Philip Brunner, Leo Rodrigues da Costa, Andreia Gomes, Timothy Gygli, Florian Haab, Nicolas Mack, Mauro Marini, Martin Marthaler, Ivo und Brigitte Rüdemann, Bruno Silva, Reto Treichler, Marc Walthard | HQ27: =_xlfn.LET(_xlpm.Start,COLUMN($I$1),_xlpm.Ende,COLUMN($GY$1),_xlpm.Anzahl,INT((_xlpm.Ende-_xlpm.Start)/4)+1,_xlpm.Spalten,_xlpm.Start+4*_xlfn.SEQUENCE(1,_xlpm.Anzahl,0,1),_xlpm.Namen1,INDEX($4:$4,1,_xlpm.Spalten)&" "&INDEX($5:$5,1,_xlpm.Spalten),_xlpm.Punkte1,INDEX(27:27,1,_xlpm.Spalten+2),_xlpm.Namen2,INDEX($85:$85,1,_xlpm.Spalten)&" "&INDEX($86:$86,1,_xlpm.Spalten),_xlpm.Punkte2,INDEX(108:108,1,_xlpm.Spalten+2),_xlfn.TEXTJOIN(", ",TRUE,_xlfn._xlws.FILTER(_xlfn.HSTACK(_xlpm.Namen1,_xlpm.Namen2),_xlfn.HSTACK(_xlpm.Punkte1,_xlpm.Punkte2)=7,""))) -> Ambra Antonelli, Niva D'Acunto, Vinci D'Acunto, Martin Oroshi, Stefan Zachmann
A28: Di. 16. Jun. | B28: 06:00:00 | C28: 20 | D28: Österreich | E28: Jordanien | F28: 3 | G28: 1 | I28: 2 | J28: 1 | K28: 5 | L28: A | M28: 2 | N28: 1 | O28: 5 | P28: A | Q28: 1 | R28: 0 | S28: 5 | T28: A | U28: 3 | V28: 0 | W28: 5 | X28: A | Y28: 3 | Z28: 0 | AA28: 5 | AB28: A | AC28: 3 | AD28: 0 | AE28: 5 | AF28: A | AG28: 3 | AH28: 0 | AI28: 5 | AJ28: A | AK28: 2 | AL28: 1 | AM28: 5 | AN28: A | AO28: 1 | AP28: 0 | AQ28: 5 | AR28: A | AS28: 2 | AT28: 0 | AU28: 7 | AV28: A | AW28: 2 | AX28: 1 | AY28: 5 | AZ28: A | BA28: 3 | BB28: 0 | BC28: 5 | BD28: A | BE28: 2 | BF28: 0 | BG28: 7 | BH28: A | BI28: 1 | BJ28: 0 | BK28: 5 | BL28: A | BM28: 1 | BN28: 0 | BO28: 5 | BP28: A | BQ28: 2 | BR28: 0 | BS28: 7 | BT28: A | BU28: 2 | BV28: 0 | BW28: 7 | BX28: A | BY28: 1 | BZ28: 0 | CA28: 5 | CB28: A | CC28: 2 | CD28: 0 | CE28: 7 | CF28: A | CG28: 1 | CH28: 0 | CI28: 5 | CJ28: A | CK28: 2 | CL28: 0 | CM28: 7 | CN28: A | CO28: 2 | CP28: 1 | CQ28: 5 | CR28: A | CS28: 1 | CT28: 0 | CU28: 5 | CV28: A | CW28: 3 | CX28: 0 | CY28: 5 | CZ28: A | DA28: 2 | DB28: 0 | DC28: 7 | DD28: A | DE28: 4 | DF28: 0 | DG28: 5 | DH28: A | DI28: 4 | DJ28: 0 | DK28: 5 | DL28: A | DM28: 3 | DN28: 1 | DO28: 10 | DP28: A | DQ28: 3 | DR28: 0 | DS28: 5 | DT28: A | DU28: 1 | DV28: 0 | DW28: 5 | DX28: A | DY28: 3 | DZ28: 0 | EA28: 5 | EB28: A | EC28: 1 | ED28: 2 | EE28: 0 | EF28: B | EG28: 1 | EH28: 0 | EI28: 5 | EJ28: A | EK28: 2 | EL28: 1 | EM28: 5 | EN28: A | EO28: 2 | EP28: 0 | EQ28: 7 | ER28: A | ES28: 2 | ET28: 1 | EU28: 5 | EV28: A | EW28: 1 | EX28: 0 | EY28: 5 | EZ28: A | FA28: 1 | FB28: 1 | FC28: 0 | FD28: X | FE28: 3 | FF28: 0 | FG28: 5 | FH28: A | FI28: 1 | FJ28: 0 | FK28: 5 | FL28: A | FM28: 3 | FN28: 1 | FO28: 10 | FP28: A | FQ28: 2 | FR28: 0 | FS28: 7 | FT28: A | FU28: 3 | FV28: 0 | FW28: 5 | FX28: A | FY28: 3 | FZ28: 1 | GA28: 10 | GB28: A | GC28: 2 | GD28: 0 | GE28: 7 | GF28: A | GG28: 1 | GH28: 0 | GI28: 5 | GJ28: A | GK28: 1 | GL28: 0 | GM28: 5 | GN28: A | GO28: 2 | GP28: 0 | GQ28: 7 | GR28: A | GS28: 2 | GT28: 0 | GU28: 7 | GV28: A | GW28: 1 | GX28: 0 | GY28: 5 | GZ28: A | HB28: 80 | HC28: 3 | HD28: 1 | HE28: 84 | HG28: 95.23809524 | HH28: 3.571428571 | HI28: 1.19047619 | HO28: =_xlfn.LET(_xlpm.Start,COLUMN($I$1),_xlpm.Ende,COLUMN($GY$1),_xlpm.Anzahl,INT((_xlpm.Ende-_xlpm.Start)/4)+1,_xlpm.Spalten,_xlpm.Start+4*_xlfn.SEQUENCE(1,_xlpm.Anzahl,0,1),_xlpm.Namen1,INDEX($4:$4,1,_xlpm.Spalten)&" "&INDEX($5:$5,1,_xlpm.Spalten),_xlpm.Punkte1,INDEX(28:28,1,_xlpm.Spalten+2),_xlpm.Namen2,INDEX($85:$85,1,_xlpm.Spalten)&" "&INDEX($86:$86,1,_xlpm.Spalten),_xlpm.Punkte2,INDEX(109:109,1,_xlpm.Spalten+2),_xlfn.TEXTJOIN(", ",TRUE,_xlfn._xlws.FILTER(_xlfn.HSTACK(_xlpm.Namen1,_xlpm.Namen2),_xlfn.HSTACK(_xlpm.Punkte1,_xlpm.Punkte2)=10,""))) -> Dino Duvnjak, Florian Haab, Michael Isenschmid | HQ28: =_xlfn.LET(_xlpm.Start,COLUMN($I$1),_xlpm.Ende,COLUMN($GY$1),_xlpm.Anzahl,INT((_xlpm.Ende-_xlpm.Start)/4)+1,_xlpm.Spalten,_xlpm.Start+4*_xlfn.SEQUENCE(1,_xlpm.Anzahl,0,1),_xlpm.Namen1,INDEX($4:$4,1,_xlpm.Spalten)&" "&INDEX($5:$5,1,_xlpm.Spalten),_xlpm.Punkte1,INDEX(28:28,1,_xlpm.Spalten+2),_xlpm.Namen2,INDEX($85:$85,1,_xlpm.Spalten)&" "&INDEX($86:$86,1,_xlpm.Spalten),_xlpm.Punkte2,INDEX(109:109,1,_xlpm.Spalten+2),_xlfn.TEXTJOIN(", ",TRUE,_xlfn._xlws.FILTER(_xlfn.HSTACK(_xlpm.Namen1,_xlpm.Namen2),_xlfn.HSTACK(_xlpm.Punkte1,_xlpm.Punkte2)=7,""))) -> Roger Bartholet, Michael Bosshart, Nicolas Brunner, Philip Brunner, Oli Christiansen, Leo Rodrigues da Costa, Rafael Derungs, Reto Gygli, Agnes Isenschmid, Aiden Jones, André Lanz, Franz Lischer, Nicolas Mack, Mauro Marini, Julian Merkli, Michael Prucha, Petra Rauscher, Ivo und Brigitte Rüdemann, Sabine Rüegg, Martin Schawalder, Yannick Schilliger, Erich Schommarz, Aleandro Silvestri, Armando Thormann, Reto Treichler, Christoph Wälti, Marc Walthard, Jingwen Wang
A29: Do. 18. Jun. | B29: 01:00:00 | C29: 21 | D29: Ghana | E29: Panama | F29: 1 | G29: 0 | I29: 2 | J29: 1 | K29: 7 | L29: A | M29: 3 | N29: 1 | O29: 5 | P29: A | Q29: 2 | R29: 2 | S29: 0 | T29: X | U29: 2 | V29: 0 | W29: 5 | X29: A | Y29: 2 | Z29: 0 | AA29: 5 | AB29: A | AC29: 2 | AD29: 0 | AE29: 5 | AF29: A | AG29: 0 | AH29: 0 | AI29: 0 | AJ29: X | AK29: 2 | AL29: 0 | AM29: 5 | AN29: A | AO29: 2 | AP29: 1 | AQ29: 7 | AR29: A | AS29: 2 | AT29: 0 | AU29: 5 | AV29: A | AW29: 1 | AX29: 2 | AY29: 0 | AZ29: B | BA29: 2 | BB29: 1 | BC29: 7 | BD29: A | BE29: 2 | BF29: 1 | BG29: 7 | BH29: A | BI29: 0 | BJ29: 1 | BK29: 0 | BL29: B | BM29: 2 | BN29: 1 | BO29: 7 | BP29: A | BQ29: 1 | BR29: 0 | BS29: 10 | BT29: A | BU29: 1 | BV29: 1 | BW29: 0 | BX29: X | BY29: 1 | BZ29: 0 | CA29: 10 | CB29: A | CC29: 1 | CD29: 0 | CE29: 10 | CF29: A | CG29: 2 | CH29: 0 | CI29: 5 | CJ29: A | CK29: 2 | CL29: 1 | CM29: 7 | CN29: A | CO29: 1 | CP29: 0 | CQ29: 10 | CR29: A | CS29: 1 | CT29: 1 | CU29: 0 | CV29: X | CW29: 2 | CX29: 0 | CY29: 5 | CZ29: A | DA29: 2 | DB29: 1 | DC29: 7 | DD29: A | DE29: 1 | DF29: 2 | DG29: 0 | DH29: B | DI29: 2 | DJ29: 1 | DK29: 7 | DL29: A | DM29: 1 | DN29: 0 | DO29: 10 | DP29: A | DQ29: 1 | DR29: 0 | DS29: 10 | DT29: A | DU29: 1 | DV29: 1 | DW29: 0 | DX29: X | DY29: 2 | DZ29: 0 | EA29: 5 | EB29: A | EC29: 2 | ED29: 0 | EE29: 5 | EF29: A | EG29: 1 | EH29: 0 | EI29: 10 | EJ29: A | EK29: 2 | EL29: 0 | EM29: 5 | EN29: A | EO29: 3 | EP29: 1 | EQ29: 5 | ER29: A | ES29: 2 | ET29: 0 | EU29: 5 | EV29: A | EW29: 2 | EX29: 0 | EY29: 5 | EZ29: A | FA29: 1 | FB29: 0 | FC29: 10 | FD29: A | FE29: 1 | FF29: 0 | FG29: 10 | FH29: A | FI29: 1 | FJ29: 0 | FK29: 10 | FL29: A | FM29: 2 | FN29: 0 | FO29: 5 | FP29: A | FQ29: 2 | FR29: 0 | FS29: 5 | FT29: A | FU29: 2 | FV29: 1 | FW29: 7 | FX29: A | FY29: 3 | FZ29: 1 | GA29: 5 | GB29: A | GC29: 2 | GD29: 0 | GE29: 5 | GF29: A | GG29: 1 | GH29: 0 | GI29: 10 | GJ29: A | GK29: 2 | GL29: 1 | GM29: 7 | GN29: A | GO29: 0 | GP29: 1 | GQ29: 0 | GR29: B | GS29: 0 | GT29: 2 | GU29: 0 | GV29: B | GW29: 1 | GX29: 0 | GY29: 10 | GZ29: A | HB29: 56 | HC29: 18 | HD29: 10 | HE29: 84 | HG29: 66.66666667 | HH29: 21.42857143 | HI29: 11.9047619 | HO29: =_xlfn.LET(_xlpm.Start,COLUMN($I$1),_xlpm.Ende,COLUMN($GY$1),_xlpm.Anzahl,INT((_xlpm.Ende-_xlpm.Start)/4)+1,_xlpm.Spalten,_xlpm.Start+4*_xlfn.SEQUENCE(1,_xlpm.Anzahl,0,1),_xlpm.Namen1,INDEX($4:$4,1,_xlpm.Spalten)&" "&INDEX($5:$5,1,_xlpm.Spalten),_xlpm.Punkte1,INDEX(29:29,1,_xlpm.Spalten+2),_xlpm.Namen2,INDEX($85:$85,1,_xlpm.Spalten)&" "&INDEX($86:$86,1,_xlpm.Spalten),_xlpm.Punkte2,INDEX(110:110,1,_xlpm.Spalten+2),_xlfn.TEXTJOIN(", ",TRUE,_xlfn._xlws.FILTER(_xlfn.HSTACK(_xlpm.Namen1,_xlpm.Namen2),_xlfn.HSTACK(_xlpm.Punkte1,_xlpm.Punkte2)=10,""))) -> Nicolas Brunner, André Burkart, Oli Christiansen, Lisa D'Acunto, Dino Duvnjak, Djuma Duvnjak, Florian González, Selina Gygli, Stefan Gygli, Timothy Gygli, Pascal Keller, Marc Lütolf, Lynn Rüegg, Michael Rüegg, Christoph Wälti, Markus Wagner | HQ29: =_xlfn.LET(_xlpm.Start,COLUMN($I$1),_xlpm.Ende,COLUMN($GY$1),_xlpm.Anzahl,INT((_xlpm.Ende-_xlpm.Start)/4)+1,_xlpm.Spalten,_xlpm.Start+4*_xlfn.SEQUENCE(1,_xlpm.Anzahl,0,1),_xlpm.Namen1,INDEX($4:$4,1,_xlpm.Spalten)&" "&INDEX($5:$5,1,_xlpm.Spalten),_xlpm.Punkte1,INDEX(29:29,1,_xlpm.Spalten+2),_xlpm.Namen2,INDEX($85:$85,1,_xlpm.Spalten)&" "&INDEX($86:$86,1,_xlpm.Spalten),_xlpm.Punkte2,INDEX(110:110,1,_xlpm.Spalten+2),_xlfn.TEXTJOIN(", ",TRUE,_xlfn._xlws.FILTER(_xlfn.HSTACK(_xlpm.Namen1,_xlpm.Namen2),_xlfn.HSTACK(_xlpm.Punkte1,_xlpm.Punkte2)=7,""))) -> Panos Agorastos, Philippe Bartholet, Pongsapat Nott Boonaek, Michael Bosshart, Manuel Brunner, Leo Rodrigues da Costa, Rafael Derungs, Armin Duvnjak, Andreas Isenschmid, Tanja Kistler, Lechena Pek, Petra Rauscher, Yannick Schilliger, Erich Schommarz, Armando Thormann, Reto Treichler, Stefan Wullschleger
A30: Mi. 17. Jun. | B30: 22:00:00 | C30: 22 | D30: England | E30: Kroatien | F30: 4 | G30: 2 | I30: 2 | J30: 1 | K30: 5 | L30: A | M30: 2 | N30: 1 | O30: 5 | P30: A | Q30: 3 | R30: 2 | S30: 5 | T30: A | U30: 3 | V30: 2 | W30: 5 | X30: A | Y30: 3 | Z30: 2 | AA30: 5 | AB30: A | AC30: 1 | AD30: 1 | AE30: 0 | AF30: X | AG30: 2 | AH30: 1 | AI30: 5 | AJ30: A | AK30: 2 | AL30: 2 | AM30: 0 | AN30: X | AO30: 2 | AP30: 1 | AQ30: 5 | AR30: A | AS30: 3 | AT30: 1 | AU30: 7 | AV30: A | AW30: 3 | AX30: 1 | AY30: 7 | AZ30: A | BA30: 1 | BB30: 0 | BC30: 5 | BD30: A | BE30: 2 | BF30: 1 | BG30: 5 | BH30: A | BI30: 2 | BJ30: 2 | BK30: 0 | BL30: X | BM30: 2 | BN30: 2 | BO30: 0 | BP30: X | BQ30: 4 | BR30: 2 | BS30: 10 | BT30: A | BU30: 2 | BV30: 1 | BW30: 5 | BX30: A | BY30: 2 | BZ30: 1 | CA30: 5 | CB30: A | CC30: 2 | CD30: 2 | CE30: 0 | CF30: X | CG30: 3 | CH30: 2 | CI30: 5 | CJ30: A | CK30: 0 | CL30: 0 | CM30: 0 | CN30: X | CO30: 1 | CP30: 1 | CQ30: 0 | CR30: X | CS30: 2 | CT30: 1 | CU30: 5 | CV30: A | CW30: 2 | CX30: 2 | CY30: 0 | CZ30: X | DA30: 1 | DB30: 1 | DC30: 0 | DD30: X | DE30: 2 | DF30: 1 | DG30: 5 | DH30: A | DI30: 2 | DJ30: 2 | DK30: 0 | DL30: X | DM30: 2 | DN30: 1 | DO30: 5 | DP30: A | DQ30: 2 | DR30: 0 | DS30: 7 | DT30: A | DU30: 2 | DV30: 2 | DW30: 0 | DX30: X | DY30: 1 | DZ30: 1 | EA30: 0 | EB30: X | EC30: 1 | ED30: 3 | EE30: 0 | EF30: B | EG30: 2 | EH30: 1 | EI30: 5 | EJ30: A | EK30: 2 | EL30: 1 | EM30: 5 | EN30: A | EO30: 2 | EP30: 0 | EQ30: 7 | ER30: A | ES30: 2 | ET30: 1 | EU30: 5 | EV30: A | EW30: 2 | EX30: 1 | EY30: 5 | EZ30: A | FA30: 2 | FB30: 1 | FC30: 5 | FD30: A | FE30: 2 | FF30: 0 | FG30: 7 | FH30: A | FI30: 2 | FJ30: 0 | FK30: 7 | FL30: A | FM30: 2 | FN30: 0 | FO30: 7 | FP30: A | FQ30: 2 | FR30: 2 | FS30: 0 | FT30: X | FU30: 1 | FV30: 1 | FW30: 0 | FX30: X | FY30: 3 | FZ30: 1 | GA30: 7 | GB30: A | GC30: 1 | GD30: 1 | GE30: 0 | GF30: X | GG30: 1 | GH30: 0 | GI30: 5 | GJ30: A | GK30: 1 | GL30: 2 | GM30: 0 | GN30: B | GO30: 2 | GP30: 1 | GQ30: 5 | GR30: A | GS30: 3 | GT30: 0 | GU30: 5 | GV30: A | GW30: 2 | GX30: 1 | GY30: 5 | GZ30: A | HB30: 59 | HC30: 22 | HD30: 3 | HE30: 84 | HG30: 70.23809524 | HH30: 26.19047619 | HI30: 3.571428571 | HO30: =_xlfn.LET(_xlpm.Start,COLUMN($I$1),_xlpm.Ende,COLUMN($GY$1),_xlpm.Anzahl,INT((_xlpm.Ende-_xlpm.Start)/4)+1,_xlpm.Spalten,_xlpm.Start+4*_xlfn.SEQUENCE(1,_xlpm.Anzahl,0,1),_xlpm.Namen1,INDEX($4:$4,1,_xlpm.Spalten)&" "&INDEX($5:$5,1,_xlpm.Spalten),_xlpm.Punkte1,INDEX(30:30,1,_xlpm.Spalten+2),_xlpm.Namen2,INDEX($85:$85,1,_xlpm.Spalten)&" "&INDEX($86:$86,1,_xlpm.Spalten),_xlpm.Punkte2,INDEX(111:111,1,_xlpm.Spalten+2),_xlfn.TEXTJOIN(", ",TRUE,_xlfn._xlws.FILTER(_xlfn.HSTACK(_xlpm.Namen1,_xlpm.Namen2),_xlfn.HSTACK(_xlpm.Punkte1,_xlpm.Punkte2)=10,""))) -> Nicolas Brunner, Lynn Rüegg, Lea Treichler | HQ30: =_xlfn.LET(_xlpm.Start,COLUMN($I$1),_xlpm.Ende,COLUMN($GY$1),_xlpm.Anzahl,INT((_xlpm.Ende-_xlpm.Start)/4)+1,_xlpm.Spalten,_xlpm.Start+4*_xlfn.SEQUENCE(1,_xlpm.Anzahl,0,1),_xlpm.Namen1,INDEX($4:$4,1,_xlpm.Spalten)&" "&INDEX($5:$5,1,_xlpm.Spalten),_xlpm.Punkte1,INDEX(30:30,1,_xlpm.Spalten+2),_xlpm.Namen2,INDEX($85:$85,1,_xlpm.Spalten)&" "&INDEX($86:$86,1,_xlpm.Spalten),_xlpm.Punkte2,INDEX(111:111,1,_xlpm.Spalten+2),_xlfn.TEXTJOIN(", ",TRUE,_xlfn._xlws.FILTER(_xlfn.HSTACK(_xlpm.Namen1,_xlpm.Namen2),_xlfn.HSTACK(_xlpm.Punkte1,_xlpm.Punkte2)=7,""))) -> Roger Bartholet, Mara Beck, Djuma Duvnjak, Reto Gygli, Stefan Gygli, Timothy Gygli, Florian Haab, Michael Isenschmid, Yannick Schilliger, Marc Walthard
A31: Mi. 17. Jun. | B31: 19:00:00 | C31: 23 | D31: Portugal | E31: DR Kongo | F31: 1 | G31: 1 | I31: 2 | J31: 1 | K31: 0 | L31: A | M31: 3 | N31: 1 | O31: 0 | P31: A | Q31: 3 | R31: 0 | S31: 0 | T31: A | U31: 3 | V31: 1 | W31: 0 | X31: A | Y31: 4 | Z31: 1 | AA31: 0 | AB31: A | AC31: 3 | AD31: 0 | AE31: 0 | AF31: A | AG31: 4 | AH31: 0 | AI31: 0 | AJ31: A | AK31: 3 | AL31: 0 | AM31: 0 | AN31: A | AO31: 3 | AP31: 0 | AQ31: 0 | AR31: A | AS31: 3 | AT31: 0 | AU31: 0 | AV31: A | AW31: 4 | AX31: 0 | AY31: 0 | AZ31: A | BA31: 3 | BB31: 1 | BC31: 0 | BD31: A | BE31: 3 | BF31: 0 | BG31: 0 | BH31: A | BI31: 4 | BJ31: 0 | BK31: 0 | BL31: A | BM31: 3 | BN31: 1 | BO31: 0 | BP31: A | BQ31: 4 | BR31: 0 | BS31: 0 | BT31: A | BU31: 2 | BV31: 0 | BW31: 0 | BX31: A | BY31: 2 | BZ31: 0 | CA31: 0 | CB31: A | CC31: 1 | CD31: 0 | CE31: 0 | CF31: A | CG31: 2 | CH31: 1 | CI31: 0 | CJ31: A | CK31: 3 | CL31: 1 | CM31: 0 | CN31: A | CO31: 2 | CP31: 0 | CQ31: 0 | CR31: A | CS31: 1 | CT31: 0 | CU31: 0 | CV31: A | CW31: 1 | CX31: 0 | CY31: 0 | CZ31: A | DA31: 3 | DB31: 1 | DC31: 0 | DD31: A | DE31: 4 | DF31: 0 | DG31: 0 | DH31: A | DI31: 3 | DJ31: 0 | DK31: 0 | DL31: A | DM31: 3 | DN31: 0 | DO31: 0 | DP31: A | DQ31: 3 | DR31: 0 | DS31: 0 | DT31: A | DU31: 2 | DV31: 0 | DW31: 0 | DX31: A | DY31: 5 | DZ31: 0 | EA31: 0 | EB31: A | EC31: 1 | ED31: 0 | EE31: 0 | EF31: A | EG31: 4 | EH31: 0 | EI31: 0 | EJ31: A | EK31: 3 | EL31: 0 | EM31: 0 | EN31: A | EO31: 2 | EP31: 0 | EQ31: 0 | ER31: A | ES31: 3 | ET31: 1 | EU31: 0 | EV31: A | EW31: 2 | EX31: 0 | EY31: 0 | EZ31: A | FA31: 2 | FB31: 0 | FC31: 0 | FD31: A | FE31: 3 | FF31: 0 | FG31: 0 | FH31: A | FI31: 2 | FJ31: 1 | FK31: 0 | FL31: A | FM31: 3 | FN31: 0 | FO31: 0 | FP31: A | FQ31: 3 | FR31: 1 | FS31: 0 | FT31: A | FU31: 3 | FV31: 1 | FW31: 0 | FX31: A | FY31: 3 | FZ31: 1 | GA31: 0 | GB31: A | GC31: 1 | GD31: 0 | GE31: 0 | GF31: A | GG31: 1 | GH31: 0 | GI31: 0 | GJ31: A | GK31: 2 | GL31: 0 | GM31: 0 | GN31: A | GO31: 3 | GP31: 0 | GQ31: 0 | GR31: A | GS31: 2 | GT31: 0 | GU31: 0 | GV31: A | GW31: 3 | GX31: 0 | GY31: 0 | GZ31: A | HB31: 84 | HC31: 0 | HD31: 0 | HE31: 84 | HG31: 100 | HH31: 0 | HI31: 0 | HO31: =_xlfn.LET(_xlpm.Start,COLUMN($I$1),_xlpm.Ende,COLUMN($GY$1),_xlpm.Anzahl,INT((_xlpm.Ende-_xlpm.Start)/4)+1,_xlpm.Spalten,_xlpm.Start+4*_xlfn.SEQUENCE(1,_xlpm.Anzahl,0,1),_xlpm.Namen1,INDEX($4:$4,1,_xlpm.Spalten)&" "&INDEX($5:$5,1,_xlpm.Spalten),_xlpm.Punkte1,INDEX(31:31,1,_xlpm.Spalten+2),_xlpm.Namen2,INDEX($85:$85,1,_xlpm.Spalten)&" "&INDEX($86:$86,1,_xlpm.Spalten),_xlpm.Punkte2,INDEX(112:112,1,_xlpm.Spalten+2),_xlfn.TEXTJOIN(", ",TRUE,_xlfn._xlws.FILTER(_xlfn.HSTACK(_xlpm.Namen1,_xlpm.Namen2),_xlfn.HSTACK(_xlpm.Punkte1,_xlpm.Punkte2)=10,""))) ->  | HQ31: =_xlfn.LET(_xlpm.Start,COLUMN($I$1),_xlpm.Ende,COLUMN($GY$1),_xlpm.Anzahl,INT((_xlpm.Ende-_xlpm.Start)/4)+1,_xlpm.Spalten,_xlpm.Start+4*_xlfn.SEQUENCE(1,_xlpm.Anzahl,0,1),_xlpm.Namen1,INDEX($4:$4,1,_xlpm.Spalten)&" "&INDEX($5:$5,1,_xlpm.Spalten),_xlpm.Punkte1,INDEX(31:31,1,_xlpm.Spalten+2),_xlpm.Namen2,INDEX($85:$85,1,_xlpm.Spalten)&" "&INDEX($86:$86,1,_xlpm.Spalten),_xlpm.Punkte2,INDEX(112:112,1,_xlpm.Spalten+2),_xlfn.TEXTJOIN(", ",TRUE,_xlfn._xlws.FILTER(_xlfn.HSTACK(_xlpm.Namen1,_xlpm.Namen2),_xlfn.HSTACK(_xlpm.Punkte1,_xlpm.Punkte2)=7,""))) -> 
A32: Do. 18. Jun. | B32: 04:00:00 | C32: 24 | D32: Usbekistan | E32: Kolumbien | F32: 1 | G32: 3 | I32: 1 | J32: 2 | K32: 5 | L32: B | M32: 1 | N32: 2 | O32: 5 | P32: B | Q32: 0 | R32: 2 | S32: 7 | T32: B | U32: 0 | V32: 3 | W32: 5 | X32: B | Y32: 0 | Z32: 3 | AA32: 5 | AB32: B | AC32: 0 | AD32: 2 | AE32: 7 | AF32: B | AG32: 0 | AH32: 2 | AI32: 7 | AJ32: B | AK32: 1 | AL32: 2 | AM32: 5 | AN32: B | AO32: 1 | AP32: 2 | AQ32: 5 | AR32: B | AS32: 0 | AT32: 3 | AU32: 5 | AV32: B | AW32: 1 | AX32: 3 | AY32: 10 | AZ32: B | BA32: 1 | BB32: 2 | BC32: 5 | BD32: B | BE32: 0 | BF32: 2 | BG32: 7 | BH32: B | BI32: 0 | BJ32: 3 | BK32: 5 | BL32: B | BM32: 1 | BN32: 1 | BO32: 0 | BP32: X | BQ32: 0 | BR32: 2 | BS32: 7 | BT32: B | BU32: 0 | BV32: 2 | BW32: 7 | BX32: B | BY32: 0 | BZ32: 2 | CA32: 7 | CB32: B | CC32: 0 | CD32: 2 | CE32: 7 | CF32: B | CG32: 0 | CH32: 3 | CI32: 5 | CJ32: B | CK32: 0 | CL32: 3 | CM32: 5 | CN32: B | CO32: 0 | CP32: 1 | CQ32: 5 | CR32: B | CS32: 0 | CT32: 3 | CU32: 5 | CV32: B | CW32: 0 | CX32: 4 | CY32: 5 | CZ32: B | DA32: 0 | DB32: 2 | DC32: 7 | DD32: B | DE32: 1 | DF32: 3 | DG32: 10 | DH32: B | DI32: 0 | DJ32: 3 | DK32: 5 | DL32: B | DM32: 0 | DN32: 2 | DO32: 7 | DP32: B | DQ32: 0 | DR32: 2 | DS32: 7 | DT32: B | DU32: 0 | DV32: 1 | DW32: 5 | DX32: B | DY32: 0 | DZ32: 3 | EA32: 5 | EB32: B | EC32: 0 | ED32: 2 | EE32: 7 | EF32: B | EG32: 0 | EH32: 3 | EI32: 5 | EJ32: B | EK32: 1 | EL32: 1 | EM32: 0 | EN32: X | EO32: 0 | EP32: 3 | EQ32: 5 | ER32: B | ES32: 0 | ET32: 2 | EU32: 7 | EV32: B | EW32: 0 | EX32: 1 | EY32: 5 | EZ32: B | FA32: 1 | FB32: 2 | FC32: 5 | FD32: B | FE32: 0 | FF32: 4 | FG32: 5 | FH32: B | FI32: 0 | FJ32: 1 | FK32: 5 | FL32: B | FM32: 0 | FN32: 3 | FO32: 5 | FP32: B | FQ32: 2 | FR32: 4 | FS32: 7 | FT32: B | FU32: 1 | FV32: 2 | FW32: 5 | FX32: B | FY32: 1 | FZ32: 3 | GA32: 10 | GB32: B | GC32: 0 | GD32: 2 | GE32: 7 | GF32: B | GG32: 0 | GH32: 1 | GI32: 5 | GJ32: B | GK32: 1 | GL32: 2 | GM32: 5 | GN32: B | GO32: 0 | GP32: 2 | GQ32: 7 | GR32: B | GS32: 0 | GT32: 1 | GU32: 5 | GV32: B | GW32: 0 | GX32: 1 | GY32: 5 | GZ32: B | HB32: 2 | HC32: 2 | HD32: 80 | HE32: 84 | HG32: 2.380952381 | HH32: 2.380952381 | HI32: 95.23809524 | HO32: =_xlfn.LET(_xlpm.Start,COLUMN($I$1),_xlpm.Ende,COLUMN($GY$1),_xlpm.Anzahl,INT((_xlpm.Ende-_xlpm.Start)/4)+1,_xlpm.Spalten,_xlpm.Start+4*_xlfn.SEQUENCE(1,_xlpm.Anzahl,0,1),_xlpm.Namen1,INDEX($4:$4,1,_xlpm.Spalten)&" "&INDEX($5:$5,1,_xlpm.Spalten),_xlpm.Punkte1,INDEX(32:32,1,_xlpm.Spalten+2),_xlpm.Namen2,INDEX($85:$85,1,_xlpm.Spalten)&" "&INDEX($86:$86,1,_xlpm.Spalten),_xlpm.Punkte2,INDEX(113:113,1,_xlpm.Spalten+2),_xlfn.TEXTJOIN(", ",TRUE,_xlfn._xlws.FILTER(_xlfn.HSTACK(_xlpm.Namen1,_xlpm.Namen2),_xlfn.HSTACK(_xlpm.Punkte1,_xlpm.Punkte2)=10,""))) -> Mara Beck, Goran Djukic, Michael Isenschmid, Yannick Schilliger, Ralph Schuster | HQ32: =_xlfn.LET(_xlpm.Start,COLUMN($I$1),_xlpm.Ende,COLUMN($GY$1),_xlpm.Anzahl,INT((_xlpm.Ende-_xlpm.Start)/4)+1,_xlpm.Spalten,_xlpm.Start+4*_xlfn.SEQUENCE(1,_xlpm.Anzahl,0,1),_xlpm.Namen1,INDEX($4:$4,1,_xlpm.Spalten)&" "&INDEX($5:$5,1,_xlpm.Spalten),_xlpm.Punkte1,INDEX(32:32,1,_xlpm.Spalten+2),_xlpm.Namen2,INDEX($85:$85,1,_xlpm.Spalten)&" "&INDEX($86:$86,1,_xlpm.Spalten),_xlpm.Punkte2,INDEX(113:113,1,_xlpm.Spalten+2),_xlfn.TEXTJOIN(", ",TRUE,_xlfn._xlws.FILTER(_xlfn.HSTACK(_xlpm.Namen1,_xlpm.Namen2),_xlfn.HSTACK(_xlpm.Punkte1,_xlpm.Punkte2)=7,""))) -> Ambra Antonelli, Peter Balazs, André Bartholet, Michael Bosshart, Nicolas Brunner, Philip Brunner, André Burkart, Oli Christiansen, Rafael Derungs, Dino Duvnjak, Djuma Duvnjak, Deliz González, Robin Gygli, Agnes Isenschmid, Aiden Jones, André Lanz, Mauro Marini, Elias Marty, Philipp Meyer, Telmo Oliveira, Michael Prucha, Petra Rauscher, Ivo und Brigitte Rüdemann, Michael Rüegg, Erich Schommarz, Bruno Silva, Aleandro Silvestri, Armando Thormann, Lea Treichler, Reto Treichler, Markus Wagner, Marc Walthard, Stefan Wullschleger
A33: Do. 18. Jun. | B33: 18:00:00 | C33: 25 | D33: Tschechien | E33: Südafrika | F33: 1 | G33: 1 | I33: 2 | J33: 1 | K33: 0 | L33: A | M33: 2 | N33: 1 | O33: 0 | P33: A | Q33: 1 | R33: 2 | S33: 0 | T33: B | U33: 2 | V33: 0 | W33: 0 | X33: A | Y33: 2 | Z33: 1 | AA33: 0 | AB33: A | AC33: 1 | AD33: 0 | AE33: 0 | AF33: A | AG33: 1 | AH33: 0 | AI33: 0 | AJ33: A | AK33: 1 | AL33: 1 | AM33: 10 | AN33: X | AO33: 2 | AP33: 2 | AQ33: 7 | AR33: X | AS33: 2 | AT33: 2 | AU33: 7 | AV33: X | AW33: 2 | AX33: 1 | AY33: 0 | AZ33: A | BA33: 2 | BB33: 1 | BC33: 0 | BD33: A | BE33: 2 | BF33: 1 | BG33: 0 | BH33: A | BI33: 1 | BJ33: 1 | BK33: 10 | BL33: X | BM33: 1 | BN33: 1 | BO33: 10 | BP33: X | BQ33: 2 | BR33: 2 | BS33: 7 | BT33: X | BU33: 2 | BV33: 0 | BW33: 0 | BX33: A | BY33: 1 | BZ33: 1 | CA33: 10 | CB33: X | CC33: 1 | CD33: 0 | CE33: 0 | CF33: A | CG33: 1 | CH33: 0 | CI33: 0 | CJ33: A | CK33: 3 | CL33: 1 | CM33: 0 | CN33: A | CO33: 1 | CP33: 0 | CQ33: 0 | CR33: A | CS33: 3 | CT33: 1 | CU33: 0 | CV33: A | CW33: 3 | CX33: 1 | CY33: 0 | CZ33: A | DA33: 1 | DB33: 0 | DC33: 0 | DD33: A | DE33: 2 | DF33: 0 | DG33: 0 | DH33: A | DI33: 2 | DJ33: 0 | DK33: 0 | DL33: A | DM33: 1 | DN33: 0 | DO33: 0 | DP33: A | DQ33: 1 | DR33: 0 | DS33: 0 | DT33: A | DU33: 1 | DV33: 0 | DW33: 0 | DX33: A | DY33: 1 | DZ33: 1 | EA33: 10 | EB33: X | EC33: 1 | ED33: 1 | EE33: 10 | EF33: X | EG33: 1 | EH33: 0 | EI33: 0 | EJ33: A | EK33: 1 | EL33: 1 | EM33: 10 | EN33: X | EO33: 2 | EP33: 1 | EQ33: 0 | ER33: A | ES33: 1 | ET33: 1 | EU33: 10 | EV33: X | EW33: 2 | EX33: 0 | EY33: 0 | EZ33: A | FA33: 1 | FB33: 0 | FC33: 0 | FD33: A | FE33: 1 | FF33: 1 | FG33: 10 | FH33: X | FI33: 0 | FJ33: 2 | FK33: 0 | FL33: B | FM33: 2 | FN33: 0 | FO33: 0 | FP33: A | FQ33: 2 | FR33: 1 | FS33: 0 | FT33: A | FU33: 1 | FV33: 1 | FW33: 10 | FX33: X | FY33: 3 | FZ33: 1 | GA33: 0 | GB33: A | GC33: 1 | GD33: 0 | GE33: 0 | GF33: A | GG33: 1 | GH33: 0 | GI33: 0 | GJ33: A | GK33: 0 | GL33: 1 | GM33: 0 | GN33: B | GO33: 1 | GP33: 1 | GQ33: 10 | GR33: X | GS33: 1 | GT33: 1 | GU33: 10 | GV33: X | GW33: 1 | GX33: 1 | GY33: 10 | GZ33: X | HB33: 54 | HC33: 24 | HD33: 6 | HE33: 84 | HG33: 64.28571429 | HH33: 28.57142857 | HI33: 7.142857143 | HO33: =_xlfn.LET(_xlpm.Start,COLUMN($I$1),_xlpm.Ende,COLUMN($GY$1),_xlpm.Anzahl,INT((_xlpm.Ende-_xlpm.Start)/4)+1,_xlpm.Spalten,_xlpm.Start+4*_xlfn.SEQUENCE(1,_xlpm.Anzahl,0,1),_xlpm.Namen1,INDEX($4:$4,1,_xlpm.Spalten)&" "&INDEX($5:$5,1,_xlpm.Spalten),_xlpm.Punkte1,INDEX(33:33,1,_xlpm.Spalten+2),_xlpm.Namen2,INDEX($85:$85,1,_xlpm.Spalten)&" "&INDEX($86:$86,1,_xlpm.Spalten),_xlpm.Punkte2,INDEX(114:114,1,_xlpm.Spalten+2),_xlfn.TEXTJOIN(", ",TRUE,_xlfn._xlws.FILTER(_xlfn.HSTACK(_xlpm.Namen1,_xlpm.Namen2),_xlfn.HSTACK(_xlpm.Punkte1,_xlpm.Punkte2)=10,""))) -> Aya Bartholet, Manfred Brunner, Manuel Brunner, André Burkart, Rui Gomes, Deliz González, Laurent Grosse, Robin Gygli, Stefan Gygli, Andreas Isenschmid, André Lanz, Franz Lischer, Marc Lütolf, Julian Merkli, Lynn Rüegg, Michael Rüegg, Evelyne Schenk, Yannick Schilliger, Ralph Schuster, Christoph Wälti | HQ33: =_xlfn.LET(_xlpm.Start,COLUMN($I$1),_xlpm.Ende,COLUMN($GY$1),_xlpm.Anzahl,INT((_xlpm.Ende-_xlpm.Start)/4)+1,_xlpm.Spalten,_xlpm.Start+4*_xlfn.SEQUENCE(1,_xlpm.Anzahl,0,1),_xlpm.Namen1,INDEX($4:$4,1,_xlpm.Spalten)&" "&INDEX($5:$5,1,_xlpm.Spalten),_xlpm.Punkte1,INDEX(33:33,1,_xlpm.Spalten+2),_xlpm.Namen2,INDEX($85:$85,1,_xlpm.Spalten)&" "&INDEX($86:$86,1,_xlpm.Spalten),_xlpm.Punkte2,INDEX(114:114,1,_xlpm.Spalten+2),_xlfn.TEXTJOIN(", ",TRUE,_xlfn._xlws.FILTER(_xlfn.HSTACK(_xlpm.Namen1,_xlpm.Namen2),_xlfn.HSTACK(_xlpm.Punkte1,_xlpm.Punkte2)=7,""))) -> Philippe Bartholet, Roger Bartholet, Nicolas Brunner, Ben Marthaler
A34: Do. 18. Jun. | B34: 21:00:00 | C34: 26 | D34: Schweiz | E34: Bosnien-Herz. | F34: 4 | G34: 1 | I34: 1 | J34: 1 | K34: 0 | L34: X | M34: 2 | N34: 1 | O34: 5 | P34: A | Q34: 2 | R34: 2 | S34: 0 | T34: X | U34: 3 | V34: 2 | W34: 5 | X34: A | Y34: 3 | Z34: 1 | AA34: 5 | AB34: A | AC34: 2 | AD34: 1 | AE34: 5 | AF34: A | AG34: 2 | AH34: 0 | AI34: 5 | AJ34: A | AK34: 2 | AL34: 1 | AM34: 5 | AN34: A | AO34: 2 | AP34: 0 | AQ34: 5 | AR34: A | AS34: 3 | AT34: 1 | AU34: 5 | AV34: A | AW34: 3 | AX34: 0 | AY34: 7 | AZ34: A | BA34: 2 | BB34: 0 | BC34: 5 | BD34: A | BE34: 2 | BF34: 1 | BG34: 5 | BH34: A | BI34: 3 | BJ34: 1 | BK34: 5 | BL34: A | BM34: 2 | BN34: 0 | BO34: 5 | BP34: A | BQ34: 4 | BR34: 1 | BS34: 10 | BT34: A | BU34: 1 | BV34: 1 | BW34: 0 | BX34: X | BY34: 0 | BZ34: 0 | CA34: 0 | CB34: X | CC34: 2 | CD34: 0 | CE34: 5 | CF34: A | CG34: 1 | CH34: 1 | CI34: 0 | CJ34: X | CK34: 2 | CL34: 1 | CM34: 5 | CN34: A | CO34: 2 | CP34: 1 | CQ34: 5 | CR34: A | CS34: 2 | CT34: 1 | CU34: 5 | CV34: A | CW34: 1 | CX34: 1 | CY34: 0 | CZ34: X | DA34: 1 | DB34: 0 | DC34: 5 | DD34: A | DE34: 2 | DF34: 1 | DG34: 5 | DH34: A | DI34: 2 | DJ34: 2 | DK34: 0 | DL34: X | DM34: 1 | DN34: 1 | DO34: 0 | DP34: X | DQ34: 1 | DR34: 1 | DS34: 0 | DT34: X | DU34: 1 | DV34: 2 | DW34: 0 | DX34: B | DY34: 2 | DZ34: 1 | EA34: 5 | EB34: A | EC34: 1 | ED34: 1 | EE34: 0 | EF34: X | EG34: 2 | EH34: 1 | EI34: 5 | EJ34: A | EK34: 2 | EL34: 1 | EM34: 5 | EN34: A | EO34: 2 | EP34: 1 | EQ34: 5 | ER34: A | ES34: 2 | ET34: 1 | EU34: 5 | EV34: A | EW34: 1 | EX34: 1 | EY34: 0 | EZ34: X | FA34: 3 | FB34: 1 | FC34: 5 | FD34: A | FE34: 2 | FF34: 0 | FG34: 5 | FH34: A | FI34: 1 | FJ34: 0 | FK34: 5 | FL34: A | FM34: 2 | FN34: 0 | FO34: 5 | FP34: A | FQ34: 3 | FR34: 1 | FS34: 5 | FT34: A | FU34: 0 | FV34: 0 | FW34: 0 | FX34: X | FY34: 3 | FZ34: 1 | GA34: 5 | GB34: A | GC34: 1 | GD34: 1 | GE34: 0 | GF34: X | GG34: 1 | GH34: 0 | GI34: 5 | GJ34: A | GK34: 1 | GL34: 0 | GM34: 5 | GN34: A | GO34: 2 | GP34: 1 | GQ34: 5 | GR34: A | GS34: 2 | GT34: 1 | GU34: 5 | GV34: A | GW34: 1 | GX34: 0 | GY34: 5 | GZ34: A | HB34: 65 | HC34: 18 | HD34: 1 | HE34: 84 | HG34: 77.38095238 | HH34: 21.42857143 | HI34: 1.19047619 | HO34: =_xlfn.LET(_xlpm.Start,COLUMN($I$1),_xlpm.Ende,COLUMN($GY$1),_xlpm.Anzahl,INT((_xlpm.Ende-_xlpm.Start)/4)+1,_xlpm.Spalten,_xlpm.Start+4*_xlfn.SEQUENCE(1,_xlpm.Anzahl,0,1),_xlpm.Namen1,INDEX($4:$4,1,_xlpm.Spalten)&" "&INDEX($5:$5,1,_xlpm.Spalten),_xlpm.Punkte1,INDEX(34:34,1,_xlpm.Spalten+2),_xlpm.Namen2,INDEX($85:$85,1,_xlpm.Spalten)&" "&INDEX($86:$86,1,_xlpm.Spalten),_xlpm.Punkte2,INDEX(115:115,1,_xlpm.Spalten+2),_xlfn.TEXTJOIN(", ",TRUE,_xlfn._xlws.FILTER(_xlfn.HSTACK(_xlpm.Namen1,_xlpm.Namen2),_xlfn.HSTACK(_xlpm.Punkte1,_xlpm.Punkte2)=10,""))) -> Nicolas Brunner, Stefan Principe | HQ34: =_xlfn.LET(_xlpm.Start,COLUMN($I$1),_xlpm.Ende,COLUMN($GY$1),_xlpm.Anzahl,INT((_xlpm.Ende-_xlpm.Start)/4)+1,_xlpm.Spalten,_xlpm.Start+4*_xlfn.SEQUENCE(1,_xlpm.Anzahl,0,1),_xlpm.Namen1,INDEX($4:$4,1,_xlpm.Spalten)&" "&INDEX($5:$5,1,_xlpm.Spalten),_xlpm.Punkte1,INDEX(34:34,1,_xlpm.Spalten+2),_xlpm.Namen2,INDEX($85:$85,1,_xlpm.Spalten)&" "&INDEX($86:$86,1,_xlpm.Spalten),_xlpm.Punkte2,INDEX(115:115,1,_xlpm.Spalten+2),_xlfn.TEXTJOIN(", ",TRUE,_xlfn._xlws.FILTER(_xlfn.HSTACK(_xlpm.Namen1,_xlpm.Namen2),_xlfn.HSTACK(_xlpm.Punkte1,_xlpm.Punkte2)=7,""))) -> Mara Beck, Mauro Marini, Markus Wagner
A35: Fr. 19. Jun. | B35: 00:00:00 | C35: 27 | D35: Kanada | E35: Katar | F35: 6 | G35: 0 | I35: 2 | J35: 1 | K35: 5 | L35: A | M35: 2 | N35: 1 | O35: 5 | P35: A | Q35: 2 | R35: 1 | S35: 5 | T35: A | U35: 2 | V35: 0 | W35: 5 | X35: A | Y35: 2 | Z35: 0 | AA35: 5 | AB35: A | AC35: 2 | AD35: 0 | AE35: 5 | AF35: A | AG35: 1 | AH35: 0 | AI35: 5 | AJ35: A | AK35: 2 | AL35: 0 | AM35: 5 | AN35: A | AO35: 1 | AP35: 1 | AQ35: 0 | AR35: X | AS35: 2 | AT35: 0 | AU35: 5 | AV35: A | AW35: 3 | AX35: 0 | AY35: 5 | AZ35: A | BA35: 1 | BB35: 0 | BC35: 5 | BD35: A | BE35: 1 | BF35: 0 | BG35: 5 | BH35: A | BI35: 1 | BJ35: 0 | BK35: 5 | BL35: A | BM35: 1 | BN35: 0 | BO35: 5 | BP35: A | BQ35: 3 | BR35: 2 | BS35: 5 | BT35: A | BU35: 2 | BV35: 0 | BW35: 5 | BX35: A | BY35: 1 | BZ35: 1 | CA35: 0 | CB35: X | CC35: 1 | CD35: 0 | CE35: 5 | CF35: A | CG35: 1 | CH35: 1 | CI35: 0 | CJ35: X | CK35: 1 | CL35: 0 | CM35: 5 | CN35: A | CO35: 2 | CP35: 0 | CQ35: 5 | CR35: A | CS35: 2 | CT35: 0 | CU35: 5 | CV35: A | CW35: 2 | CX35: 0 | CY35: 5 | CZ35: A | DA35: 2 | DB35: 0 | DC35: 5 | DD35: A | DE35: 3 | DF35: 0 | DG35: 5 | DH35: A | DI35: 1 | DJ35: 1 | DK35: 0 | DL35: X | DM35: 1 | DN35: 0 | DO35: 5 | DP35: A | DQ35: 1 | DR35: 0 | DS35: 5 | DT35: A | DU35: 1 | DV35: 1 | DW35: 0 | DX35: X | DY35: 2 | DZ35: 0 | EA35: 5 | EB35: A | EC35: 1 | ED35: 2 | EE35: 0 | EF35: B | EG35: 2 | EH35: 2 | EI35: 0 | EJ35: X | EK35: 1 | EL35: 0 | EM35: 5 | EN35: A | EO35: 3 | EP35: 0 | EQ35: 5 | ER35: A | ES35: 2 | ET35: 0 | EU35: 5 | EV35: A | EW35: 2 | EX35: 0 | EY35: 5 | EZ35: A | FA35: 2 | FB35: 1 | FC35: 5 | FD35: A | FE35: 3 | FF35: 1 | FG35: 5 | FH35: A | FI35: 1 | FJ35: 1 | FK35: 0 | FL35: X | FM35: 2 | FN35: 0 | FO35: 5 | FP35: A | FQ35: 3 | FR35: 0 | FS35: 5 | FT35: A | FU35: 2 | FV35: 0 | FW35: 5 | FX35: A | FY35: 3 | FZ35: 1 | GA35: 5 | GB35: A | GC35: 1 | GD35: 0 | GE35: 5 | GF35: A | GG35: 1 | GH35: 0 | GI35: 5 | GJ35: A | GK35: 1 | GL35: 0 | GM35: 5 | GN35: A | GO35: 1 | GP35: 0 | GQ35: 5 | GR35: A | GS35: 2 | GT35: 1 | GU35: 5 | GV35: A | GW35: 2 | GX35: 0 | GY35: 5 | GZ35: A | HB35: 71 | HC35: 12 | HD35: 1 | HE35: 84 | HG35: 84.52380952 | HH35: 14.28571429 | HI35: 1.19047619 | HO35: =_xlfn.LET(_xlpm.Start,COLUMN($I$1),_xlpm.Ende,COLUMN($GY$1),_xlpm.Anzahl,INT((_xlpm.Ende-_xlpm.Start)/4)+1,_xlpm.Spalten,_xlpm.Start+4*_xlfn.SEQUENCE(1,_xlpm.Anzahl,0,1),_xlpm.Namen1,INDEX($4:$4,1,_xlpm.Spalten)&" "&INDEX($5:$5,1,_xlpm.Spalten),_xlpm.Punkte1,INDEX(35:35,1,_xlpm.Spalten+2),_xlpm.Namen2,INDEX($85:$85,1,_xlpm.Spalten)&" "&INDEX($86:$86,1,_xlpm.Spalten),_xlpm.Punkte2,INDEX(116:116,1,_xlpm.Spalten+2),_xlfn.TEXTJOIN(", ",TRUE,_xlfn._xlws.FILTER(_xlfn.HSTACK(_xlpm.Namen1,_xlpm.Namen2),_xlfn.HSTACK(_xlpm.Punkte1,_xlpm.Punkte2)=10,""))) ->  | HQ35: =_xlfn.LET(_xlpm.Start,COLUMN($I$1),_xlpm.Ende,COLUMN($GY$1),_xlpm.Anzahl,INT((_xlpm.Ende-_xlpm.Start)/4)+1,_xlpm.Spalten,_xlpm.Start+4*_xlfn.SEQUENCE(1,_xlpm.Anzahl,0,1),_xlpm.Namen1,INDEX($4:$4,1,_xlpm.Spalten)&" "&INDEX($5:$5,1,_xlpm.Spalten),_xlpm.Punkte1,INDEX(35:35,1,_xlpm.Spalten+2),_xlpm.Namen2,INDEX($85:$85,1,_xlpm.Spalten)&" "&INDEX($86:$86,1,_xlpm.Spalten),_xlpm.Punkte2,INDEX(116:116,1,_xlpm.Spalten+2),_xlfn.TEXTJOIN(", ",TRUE,_xlfn._xlws.FILTER(_xlfn.HSTACK(_xlpm.Namen1,_xlpm.Namen2),_xlfn.HSTACK(_xlpm.Punkte1,_xlpm.Punkte2)=7,""))) -> 
A36: Fr. 19. Jun. | B36: 03:00:00 | C36: 28 | D36: Mexiko | E36: Südkorea | F36: 1 | G36: 0 | I36: 1 | J36: 1 | K36: 0 | L36: X | M36: 1 | N36: 2 | O36: 0 | P36: B | Q36: 3 | R36: 2 | S36: 7 | T36: A | U36: 2 | V36: 1 | W36: 7 | X36: A | Y36: 1 | Z36: 1 | AA36: 0 | AB36: X | AC36: 2 | AD36: 2 | AE36: 0 | AF36: X | AG36: 1 | AH36: 0 | AI36: 10 | AJ36: A | AK36: 1 | AL36: 1 | AM36: 0 | AN36: X | AO36: 2 | AP36: 0 | AQ36: 5 | AR36: A | AS36: 3 | AT36: 0 | AU36: 5 | AV36: A | AW36: 2 | AX36: 1 | AY36: 7 | AZ36: A | BA36: 1 | BB36: 1 | BC36: 0 | BD36: X | BE36: 2 | BF36: 1 | BG36: 7 | BH36: A | BI36: 3 | BJ36: 1 | BK36: 5 | BL36: A | BM36: 2 | BN36: 1 | BO36: 7 | BP36: A | BQ36: 2 | BR36: 2 | BS36: 0 | BT36: X | BU36: 2 | BV36: 1 | BW36: 7 | BX36: A | BY36: 1 | BZ36: 1 | CA36: 0 | CB36: X | CC36: 1 | CD36: 1 | CE36: 0 | CF36: X | CG36: 2 | CH36: 1 | CI36: 7 | CJ36: A | CK36: 2 | CL36: 1 | CM36: 7 | CN36: A | CO36: 1 | CP36: 0 | CQ36: 10 | CR36: A | CS36: 1 | CT36: 0 | CU36: 10 | CV36: A | CW36: 1 | CX36: 0 | CY36: 10 | CZ36: A | DA36: 2 | DB36: 2 | DC36: 0 | DD36: X | DE36: 2 | DF36: 1 | DG36: 7 | DH36: A | DI36: 1 | DJ36: 1 | DK36: 0 | DL36: X | DM36: 1 | DN36: 0 | DO36: 10 | DP36: A | DQ36: 1 | DR36: 0 | DS36: 10 | DT36: A | DU36: 1 | DV36: 1 | DW36: 0 | DX36: X | DY36: 2 | DZ36: 1 | EA36: 7 | EB36: A | EC36: 1 | ED36: 2 | EE36: 0 | EF36: B | EG36: 1 | EH36: 0 | EI36: 10 | EJ36: A | EK36: 1 | EL36: 1 | EM36: 0 | EN36: X | EO36: 2 | EP36: 1 | EQ36: 7 | ER36: A | ES36: 1 | ET36: 1 | EU36: 0 | EV36: X | EW36: 1 | EX36: 0 | EY36: 10 | EZ36: A | FA36: 3 | FB36: 1 | FC36: 5 | FD36: A | FE36: 1 | FF36: 1 | FG36: 0 | FH36: X | FI36: 2 | FJ36: 1 | FK36: 7 | FL36: A | FM36: 2 | FN36: 1 | FO36: 7 | FP36: A | FQ36: 1 | FR36: 2 | FS36: 0 | FT36: B | FU36: 1 | FV36: 1 | FW36: 0 | FX36: X | FY36: 3 | FZ36: 1 | GA36: 5 | GB36: A | GC36: 1 | GD36: 0 | GE36: 10 | GF36: A | GG36: 1 | GH36: 0 | GI36: 10 | GJ36: A | GK36: 2 | GL36: 0 | GM36: 5 | GN36: A | GO36: 1 | GP36: 1 | GQ36: 0 | GR36: X | GS36: 3 | GT36: 0 | GU36: 5 | GV36: A | GW36: 2 | GX36: 1 | GY36: 7 | GZ36: A | HB36: 54 | HC36: 22 | HD36: 8 | HE36: 84 | HG36: 64.28571429 | HH36: 26.19047619 | HI36: 9.523809524 | HO36: =_xlfn.LET(_xlpm.Start,COLUMN($I$1),_xlpm.Ende,COLUMN($GY$1),_xlpm.Anzahl,INT((_xlpm.Ende-_xlpm.Start)/4)+1,_xlpm.Spalten,_xlpm.Start+4*_xlfn.SEQUENCE(1,_xlpm.Anzahl,0,1),_xlpm.Namen1,INDEX($4:$4,1,_xlpm.Spalten)&" "&INDEX($5:$5,1,_xlpm.Spalten),_xlpm.Punkte1,INDEX(36:36,1,_xlpm.Spalten+2),_xlpm.Namen2,INDEX($85:$85,1,_xlpm.Spalten)&" "&INDEX($86:$86,1,_xlpm.Spalten),_xlpm.Punkte2,INDEX(117:117,1,_xlpm.Spalten+2),_xlfn.TEXTJOIN(", ",TRUE,_xlfn._xlws.FILTER(_xlfn.HSTACK(_xlpm.Namen1,_xlpm.Namen2),_xlfn.HSTACK(_xlpm.Punkte1,_xlpm.Punkte2)=10,""))) -> André Bartholet, Lisa D'Acunto, Niva D'Acunto, Vinci D'Acunto, Dino Duvnjak, Djuma Duvnjak, Florian González, Sarina Gygli, Aiden Jones, Pascal Keller, Philipp Meyer | HQ36: =_xlfn.LET(_xlpm.Start,COLUMN($I$1),_xlpm.Ende,COLUMN($GY$1),_xlpm.Anzahl,INT((_xlpm.Ende-_xlpm.Start)/4)+1,_xlpm.Spalten,_xlpm.Start+4*_xlfn.SEQUENCE(1,_xlpm.Anzahl,0,1),_xlpm.Namen1,INDEX($4:$4,1,_xlpm.Spalten)&" "&INDEX($5:$5,1,_xlpm.Spalten),_xlpm.Punkte1,INDEX(36:36,1,_xlpm.Spalten+2),_xlpm.Namen2,INDEX($85:$85,1,_xlpm.Spalten)&" "&INDEX($86:$86,1,_xlpm.Spalten),_xlpm.Punkte2,INDEX(117:117,1,_xlpm.Spalten+2),_xlfn.TEXTJOIN(", ",TRUE,_xlfn._xlws.FILTER(_xlfn.HSTACK(_xlpm.Namen1,_xlpm.Namen2),_xlfn.HSTACK(_xlpm.Punkte1,_xlpm.Punkte2)=7,""))) -> Ambra Antonelli, Marco Antonelli, Mara Beck, Michael Bosshart, Manuel Brunner, Philip Brunner, Javier Cruz, Leo Rodrigues da Costa, Goran Djukic, Rui Gomes, Reto Gygli, Timothy Gygli, Florian Haab, Marc Lütolf, Nicolas Mack, Michael Prucha, Petra Rauscher, Martin Rohner, Ivo und Brigitte Rüdemann, Martin Schawalder, Evelyne Schenk, Yannick Schilliger, Erich Schommarz, Aleandro Silvestri, Armando Thormann, Marc Walthard, Stefan Wullschleger
A37: Sa. 20. Jun. | B37: 03:00:00 | C37: 29 | D37: Brasilien | E37: Haiti | F37: 3 | G37: 0 | I37: 3 | J37: 0 | K37: 10 | L37: A | M37: 4 | N37: 0 | O37: 5 | P37: A | Q37: 4 | R37: 0 | S37: 5 | T37: A | U37: 4 | V37: 0 | W37: 5 | X37: A | Y37: 4 | Z37: 0 | AA37: 5 | AB37: A | AC37: 4 | AD37: 0 | AE37: 5 | AF37: A | AG37: 5 | AH37: 0 | AI37: 5 | AJ37: A | AK37: 3 | AL37: 0 | AM37: 10 | AN37: A | AO37: 3 | AP37: 0 | AQ37: 10 | AR37: A | AS37: 5 | AT37: 0 | AU37: 5 | AV37: A | AW37: 5 | AX37: 0 | AY37: 5 | AZ37: A | BA37: 3 | BB37: 0 | BC37: 10 | BD37: A | BE37: 3 | BF37: 0 | BG37: 10 | BH37: A | BI37: 5 | BJ37: 0 | BK37: 5 | BL37: A | BM37: 2 | BN37: 0 | BO37: 5 | BP37: A | BQ37: 5 | BR37: 0 | BS37: 5 | BT37: A | BU37: 3 | BV37: 0 | BW37: 10 | BX37: A | BY37: 4 | BZ37: 0 | CA37: 5 | CB37: A | CC37: 2 | CD37: 0 | CE37: 5 | CF37: A | CG37: 3 | CH37: 0 | CI37: 10 | CJ37: A | CK37: 4 | CL37: 1 | CM37: 7 | CN37: A | CO37: 4 | CP37: 0 | CQ37: 5 | CR37: A | CS37: 4 | CT37: 0 | CU37: 5 | CV37: A | CW37: 5 | CX37: 0 | CY37: 5 | CZ37: A | DA37: 3 | DB37: 0 | DC37: 10 | DD37: A | DE37: 3 | DF37: 0 | DG37: 10 | DH37: A | DI37: 4 | DJ37: 0 | DK37: 5 | DL37: A | DM37: 3 | DN37: 0 | DO37: 10 | DP37: A | DQ37: 3 | DR37: 0 | DS37: 10 | DT37: A | DU37: 3 | DV37: 1 | DW37: 5 | DX37: A | DY37: 4 | DZ37: 0 | EA37: 5 | EB37: A | EC37: 2 | ED37: 0 | EE37: 5 | EF37: A | EG37: 4 | EH37: 0 | EI37: 5 | EJ37: A | EK37: 2 | EL37: 0 | EM37: 5 | EN37: A | EO37: 4 | EP37: 0 | EQ37: 5 | ER37: A | ES37: 4 | ET37: 0 | EU37: 5 | EV37: A | EW37: 3 | EX37: 1 | EY37: 5 | EZ37: A | FA37: 3 | FB37: 0 | FC37: 10 | FD37: A | FE37: 4 | FF37: 0 | FG37: 5 | FH37: A | FI37: 2 | FJ37: 0 | FK37: 5 | FL37: A | FM37: 3 | FN37: 0 | FO37: 10 | FP37: A | FQ37: 3 | FR37: 0 | FS37: 10 | FT37: A | FU37: 2 | FV37: 0 | FW37: 5 | FX37: A | FY37: 3 | FZ37: 1 | GA37: 5 | GB37: A | GC37: 2 | GD37: 0 | GE37: 5 | GF37: A | GG37: 1 | GH37: 0 | GI37: 5 | GJ37: A | GK37: 2 | GL37: 1 | GM37: 5 | GN37: A | GO37: 3 | GP37: 0 | GQ37: 10 | GR37: A | GS37: 4 | GT37: 0 | GU37: 5 | GV37: A | GW37: 4 | GX37: 0 | GY37: 5 | GZ37: A | HB37: 84 | HC37: 0 | HD37: 0 | HE37: 84 | HG37: 100 | HH37: 0 | HI37: 0 | HO37: =_xlfn.LET(_xlpm.Start,COLUMN($I$1),_xlpm.Ende,COLUMN($GY$1),_xlpm.Anzahl,INT((_xlpm.Ende-_xlpm.Start)/4)+1,_xlpm.Spalten,_xlpm.Start+4*_xlfn.SEQUENCE(1,_xlpm.Anzahl,0,1),_xlpm.Namen1,INDEX($4:$4,1,_xlpm.Spalten)&" "&INDEX($5:$5,1,_xlpm.Spalten),_xlpm.Punkte1,INDEX(37:37,1,_xlpm.Spalten+2),_xlpm.Namen2,INDEX($85:$85,1,_xlpm.Spalten)&" "&INDEX($86:$86,1,_xlpm.Spalten),_xlpm.Punkte2,INDEX(118:118,1,_xlpm.Spalten+2),_xlfn.TEXTJOIN(", ",TRUE,_xlfn._xlws.FILTER(_xlfn.HSTACK(_xlpm.Namen1,_xlpm.Namen2),_xlfn.HSTACK(_xlpm.Punkte1,_xlpm.Punkte2)=10,""))) -> Panos Agorastos, Aya Bartholet, Philippe Bartholet, Pongsapat Nott Boonaek, Michael Bosshart, Philip Brunner, Javier Cruz, Rafael Derungs, Goran Djukic, Dino Duvnjak, Djuma Duvnjak, Selina Gygli, Florian Haab, Agnes Isenschmid, André Lanz, Julian Merkli, Ivo und Brigitte Rüdemann, Michael Rüegg, Sabine Rüegg, Martin Schawalder, Marc Walthard, Stefan Wullschleger | HQ37: =_xlfn.LET(_xlpm.Start,COLUMN($I$1),_xlpm.Ende,COLUMN($GY$1),_xlpm.Anzahl,INT((_xlpm.Ende-_xlpm.Start)/4)+1,_xlpm.Spalten,_xlpm.Start+4*_xlfn.SEQUENCE(1,_xlpm.Anzahl,0,1),_xlpm.Namen1,INDEX($4:$4,1,_xlpm.Spalten)&" "&INDEX($5:$5,1,_xlpm.Spalten),_xlpm.Punkte1,INDEX(37:37,1,_xlpm.Spalten+2),_xlpm.Namen2,INDEX($85:$85,1,_xlpm.Spalten)&" "&INDEX($86:$86,1,_xlpm.Spalten),_xlpm.Punkte2,INDEX(118:118,1,_xlpm.Spalten+2),_xlfn.TEXTJOIN(", ",TRUE,_xlfn._xlws.FILTER(_xlfn.HSTACK(_xlpm.Namen1,_xlpm.Namen2),_xlfn.HSTACK(_xlpm.Punkte1,_xlpm.Punkte2)=7,""))) -> Leo Rodrigues da Costa
A38: Sa. 20. Jun. | B38: 00:00:00 | C38: 30 | D38: Schottland | E38: Marokko | F38: 0 | G38: 1 | I38: 1 | J38: 2 | K38: 7 | L38: B | M38: 1 | N38: 2 | O38: 7 | P38: B | Q38: 1 | R38: 2 | S38: 7 | T38: B | U38: 1 | V38: 3 | W38: 5 | X38: B | Y38: 1 | Z38: 3 | AA38: 5 | AB38: B | AC38: 0 | AD38: 2 | AE38: 5 | AF38: B | AG38: 0 | AH38: 1 | AI38: 10 | AJ38: B | AK38: 1 | AL38: 0 | AM38: 0 | AN38: A | AO38: 1 | AP38: 1 | AQ38: 0 | AR38: X | AS38: 0 | AT38: 0 | AU38: 0 | AV38: X | AW38: 1 | AX38: 1 | AY38: 0 | AZ38: X | BA38: 1 | BB38: 2 | BC38: 7 | BD38: B | BE38: 1 | BF38: 2 | BG38: 7 | BH38: B | BI38: 0 | BJ38: 2 | BK38: 5 | BL38: B | BM38: 0 | BN38: 1 | BO38: 10 | BP38: B | BQ38: 2 | BR38: 4 | BS38: 5 | BT38: B | BU38: 1 | BV38: 2 | BW38: 7 | BX38: B | BY38: 0 | BZ38: 1 | CA38: 10 | CB38: B | CC38: 1 | CD38: 2 | CE38: 7 | CF38: B | CG38: 1 | CH38: 3 | CI38: 5 | CJ38: B | CK38: 1 | CL38: 3 | CM38: 5 | CN38: B | CO38: 1 | CP38: 2 | CQ38: 7 | CR38: B | CS38: 1 | CT38: 2 | CU38: 7 | CV38: B | CW38: 1 | CX38: 2 | CY38: 7 | CZ38: B | DA38: 0 | DB38: 1 | DC38: 10 | DD38: B | DE38: 1 | DF38: 3 | DG38: 5 | DH38: B | DI38: 0 | DJ38: 2 | DK38: 5 | DL38: B | DM38: 0 | DN38: 1 | DO38: 10 | DP38: B | DQ38: 0 | DR38: 1 | DS38: 10 | DT38: B | DU38: 1 | DV38: 1 | DW38: 0 | DX38: X | DY38: 1 | DZ38: 2 | EA38: 7 | EB38: B | EC38: 1 | ED38: 2 | EE38: 7 | EF38: B | EG38: 0 | EH38: 2 | EI38: 5 | EJ38: B | EK38: 1 | EL38: 1 | EM38: 0 | EN38: X | EO38: 1 | EP38: 1 | EQ38: 0 | ER38: X | ES38: 1 | ET38: 1 | EU38: 0 | EV38: X | EW38: 1 | EX38: 0 | EY38: 0 | EZ38: A | FA38: 2 | FB38: 2 | FC38: 0 | FD38: X | FE38: 1 | FF38: 1 | FG38: 0 | FH38: X | FI38: 1 | FJ38: 3 | FK38: 5 | FL38: B | FM38: 1 | FN38: 3 | FO38: 5 | FP38: B | FQ38: 1 | FR38: 1 | FS38: 0 | FT38: X | FU38: 2 | FV38: 1 | FW38: 0 | FX38: A | FY38: 1 | FZ38: 3 | GA38: 5 | GB38: B | GC38: 0 | GD38: 1 | GE38: 10 | GF38: B | GG38: 0 | GH38: 1 | GI38: 10 | GJ38: B | GK38: 1 | GL38: 2 | GM38: 7 | GN38: B | GO38: 1 | GP38: 2 | GQ38: 7 | GR38: B | GS38: 2 | GT38: 1 | GU38: 0 | GV38: A | GW38: 2 | GX38: 1 | GY38: 0 | GZ38: A | HB38: 11 | HC38: 19 | HD38: 54 | HE38: 84 | HG38: 13.0952381 | HH38: 22.61904762 | HI38: 64.28571429 | HO38: =_xlfn.LET(_xlpm.Start,COLUMN($I$1),_xlpm.Ende,COLUMN($GY$1),_xlpm.Anzahl,INT((_xlpm.Ende-_xlpm.Start)/4)+1,_xlpm.Spalten,_xlpm.Start+4*_xlfn.SEQUENCE(1,_xlpm.Anzahl,0,1),_xlpm.Namen1,INDEX($4:$4,1,_xlpm.Spalten)&" "&INDEX($5:$5,1,_xlpm.Spalten),_xlpm.Punkte1,INDEX(38:38,1,_xlpm.Spalten+2),_xlpm.Namen2,INDEX($85:$85,1,_xlpm.Spalten)&" "&INDEX($86:$86,1,_xlpm.Spalten),_xlpm.Punkte2,INDEX(119:119,1,_xlpm.Spalten+2),_xlfn.TEXTJOIN(", ",TRUE,_xlfn._xlws.FILTER(_xlfn.HSTACK(_xlpm.Namen1,_xlpm.Namen2),_xlfn.HSTACK(_xlpm.Punkte1,_xlpm.Punkte2)=10,""))) -> André Bartholet, Manuel Brunner, André Burkart, Rafael Derungs, Dino Duvnjak, Djuma Duvnjak, Aiden Jones, Pascal Keller, Elias Marty | HQ38: =_xlfn.LET(_xlpm.Start,COLUMN($I$1),_xlpm.Ende,COLUMN($GY$1),_xlpm.Anzahl,INT((_xlpm.Ende-_xlpm.Start)/4)+1,_xlpm.Spalten,_xlpm.Start+4*_xlfn.SEQUENCE(1,_xlpm.Anzahl,0,1),_xlpm.Namen1,INDEX($4:$4,1,_xlpm.Spalten)&" "&INDEX($5:$5,1,_xlpm.Spalten),_xlpm.Punkte1,INDEX(38:38,1,_xlpm.Spalten+2),_xlpm.Namen2,INDEX($85:$85,1,_xlpm.Spalten)&" "&INDEX($86:$86,1,_xlpm.Spalten),_xlpm.Punkte2,INDEX(119:119,1,_xlpm.Spalten+2),_xlfn.TEXTJOIN(", ",TRUE,_xlfn._xlws.FILTER(_xlfn.HSTACK(_xlpm.Namen1,_xlpm.Namen2),_xlfn.HSTACK(_xlpm.Punkte1,_xlpm.Punkte2)=7,""))) -> Panos Agorastos, Yiannis Agorastos, Ambra Antonelli, Pongsapat Nott Boonaek, Michael Bosshart, Philip Brunner, Oli Christiansen, Lisa D'Acunto, Niva D'Acunto, Vinci D'Acunto, Rui Gomes, Deliz González, Tanja Kistler, André Lanz, Mauro Marini, Julian Merkli, Martin Oroshi, Stefan Principe, Michael Prucha, Martin Rohner, Sabine Rüegg, Yannick Schilliger, Aleandro Silvestri, Armando Thormann, Christoph Wälti, Marc Walthard, Stefan Wullschleger
A39: Sa. 20. Jun. | B39: 05:00:00 | C39: 31 | D39: Türkei | E39: Paraguay | F39: 0 | G39: 1 | I39: 1 | J39: 1 | K39: 0 | L39: X | M39: 1 | N39: 1 | O39: 0 | P39: X | Q39: 2 | R39: 2 | S39: 0 | T39: X | U39: 2 | V39: 0 | W39: 0 | X39: A | Y39: 3 | Z39: 0 | AA39: 0 | AB39: A | AC39: 2 | AD39: 1 | AE39: 0 | AF39: A | AG39: 1 | AH39: 0 | AI39: 0 | AJ39: A | AK39: 2 | AL39: 1 | AM39: 0 | AN39: A | AO39: 2 | AP39: 1 | AQ39: 0 | AR39: A | AS39: 1 | AT39: 0 | AU39: 0 | AV39: A | AW39: 1 | AX39: 2 | AY39: 7 | AZ39: B | BA39: 2 | BB39: 0 | BC39: 0 | BD39: A | BE39: 2 | BF39: 1 | BG39: 0 | BH39: A | BI39: 1 | BJ39: 1 | BK39: 0 | BL39: X | BM39: 1 | BN39: 0 | BO39: 0 | BP39: A | BQ39: 2 | BR39: 0 | BS39: 0 | BT39: A | BU39: 2 | BV39: 1 | BW39: 0 | BX39: A | BY39: 1 | BZ39: 1 | CA39: 0 | CB39: X | CC39: 2 | CD39: 1 | CE39: 0 | CF39: A | CG39: 2 | CH39: 1 | CI39: 0 | CJ39: A | CK39: 2 | CL39: 1 | CM39: 0 | CN39: A | CO39: 2 | CP39: 1 | CQ39: 0 | CR39: A | CS39: 2 | CT39: 1 | CU39: 0 | CV39: A | CW39: 2 | CX39: 2 | CY39: 0 | CZ39: X | DA39: 1 | DB39: 1 | DC39: 0 | DD39: X | DE39: 1 | DF39: 0 | DG39: 0 | DH39: A | DI39: 1 | DJ39: 1 | DK39: 0 | DL39: X | DM39: 1 | DN39: 0 | DO39: 0 | DP39: A | DQ39: 2 | DR39: 0 | DS39: 0 | DT39: A | DU39: 1 | DV39: 0 | DW39: 0 | DX39: A | DY39: 1 | DZ39: 0 | EA39: 0 | EB39: A | EC39: 2 | ED39: 3 | EE39: 7 | EF39: B | EG39: 2 | EH39: 1 | EI39: 0 | EJ39: A | EK39: 1 | EL39: 1 | EM39: 0 | EN39: X | EO39: 1 | EP39: 1 | EQ39: 0 | ER39: X | ES39: 1 | ET39: 2 | EU39: 7 | EV39: B | EW39: 2 | EX39: 1 | EY39: 0 | EZ39: A | FA39: 1 | FB39: 0 | FC39: 0 | FD39: A | FE39: 0 | FF39: 1 | FG39: 10 | FH39: B | FI39: 1 | FJ39: 0 | FK39: 0 | FL39: A | FM39: 2 | FN39: 0 | FO39: 0 | FP39: A | FQ39: 0 | FR39: 0 | FS39: 0 | FT39: X | FU39: 1 | FV39: 1 | FW39: 0 | FX39: X | FY39: 3 | FZ39: 1 | GA39: 0 | GB39: A | GC39: 2 | GD39: 0 | GE39: 0 | GF39: A | GG39: 0 | GH39: 1 | GI39: 10 | GJ39: B | GK39: 2 | GL39: 1 | GM39: 0 | GN39: A | GO39: 2 | GP39: 0 | GQ39: 0 | GR39: A | GS39: 2 | GT39: 0 | GU39: 0 | GV39: A | GW39: 2 | GX39: 1 | GY39: 0 | GZ39: A | HB39: 56 | HC39: 21 | HD39: 7 | HE39: 84 | HG39: 66.66666667 | HH39: 25 | HI39: 8.333333333 | HO39: =_xlfn.LET(_xlpm.Start,COLUMN($I$1),_xlpm.Ende,COLUMN($GY$1),_xlpm.Anzahl,INT((_xlpm.Ende-_xlpm.Start)/4)+1,_xlpm.Spalten,_xlpm.Start+4*_xlfn.SEQUENCE(1,_xlpm.Anzahl,0,1),_xlpm.Namen1,INDEX($4:$4,1,_xlpm.Spalten)&" "&INDEX($5:$5,1,_xlpm.Spalten),_xlpm.Punkte1,INDEX(39:39,1,_xlpm.Spalten+2),_xlpm.Namen2,INDEX($85:$85,1,_xlpm.Spalten)&" "&INDEX($86:$86,1,_xlpm.Spalten),_xlpm.Punkte2,INDEX(120:120,1,_xlpm.Spalten+2),_xlfn.TEXTJOIN(", ",TRUE,_xlfn._xlws.FILTER(_xlfn.HSTACK(_xlpm.Namen1,_xlpm.Namen2),_xlfn.HSTACK(_xlpm.Punkte1,_xlpm.Punkte2)=10,""))) -> Stefan Gygli, Pascal Keller | HQ39: =_xlfn.LET(_xlpm.Start,COLUMN($I$1),_xlpm.Ende,COLUMN($GY$1),_xlpm.Anzahl,INT((_xlpm.Ende-_xlpm.Start)/4)+1,_xlpm.Spalten,_xlpm.Start+4*_xlfn.SEQUENCE(1,_xlpm.Anzahl,0,1),_xlpm.Namen1,INDEX($4:$4,1,_xlpm.Spalten)&" "&INDEX($5:$5,1,_xlpm.Spalten),_xlpm.Punkte1,INDEX(39:39,1,_xlpm.Spalten+2),_xlpm.Namen2,INDEX($85:$85,1,_xlpm.Spalten)&" "&INDEX($86:$86,1,_xlpm.Spalten),_xlpm.Punkte2,INDEX(120:120,1,_xlpm.Spalten+2),_xlfn.TEXTJOIN(", ",TRUE,_xlfn._xlws.FILTER(_xlfn.HSTACK(_xlpm.Namen1,_xlpm.Namen2),_xlfn.HSTACK(_xlpm.Punkte1,_xlpm.Punkte2)=7,""))) -> Mara Beck, Deliz González, Robin Gygli
A40: Fr. 19. Jun. | B40: 21:00:00 | C40: 32 | D40: USA | E40: Australien | F40: 2 | G40: 0 | I40: 1 | J40: 1 | K40: 0 | L40: X | M40: 1 | N40: 1 | O40: 0 | P40: X | Q40: 1 | R40: 1 | S40: 0 | T40: X | U40: 2 | V40: 0 | W40: 10 | X40: A | Y40: 2 | Z40: 0 | AA40: 10 | AB40: A | AC40: 2 | AD40: 0 | AE40: 10 | AF40: A | AG40: 2 | AH40: 1 | AI40: 5 | AJ40: A | AK40: 2 | AL40: 2 | AM40: 0 | AN40: X | AO40: 1 | AP40: 0 | AQ40: 5 | AR40: A | AS40: 1 | AT40: 1 | AU40: 0 | AV40: X | AW40: 2 | AX40: 1 | AY40: 5 | AZ40: A | BA40: 3 | BB40: 1 | BC40: 7 | BD40: A | BE40: 2 | BF40: 1 | BG40: 5 | BH40: A | BI40: 0 | BJ40: 0 | BK40: 0 | BL40: X | BM40: 2 | BN40: 1 | BO40: 5 | BP40: A | BQ40: 1 | BR40: 1 | BS40: 0 | BT40: X | BU40: 2 | BV40: 0 | BW40: 10 | BX40: A | BY40: 0 | BZ40: 0 | CA40: 0 | CB40: X | CC40: 1 | CD40: 0 | CE40: 5 | CF40: A | CG40: 2 | CH40: 2 | CI40: 0 | CJ40: X | CK40: 2 | CL40: 0 | CM40: 10 | CN40: A | CO40: 2 | CP40: 1 | CQ40: 5 | CR40: A | CS40: 1 | CT40: 1 | CU40: 0 | CV40: X | CW40: 1 | CX40: 1 | CY40: 0 | CZ40: X | DA40: 2 | DB40: 1 | DC40: 5 | DD40: A | DE40: 2 | DF40: 1 | DG40: 5 | DH40: A | DI40: 2 | DJ40: 2 | DK40: 0 | DL40: X | DM40: 1 | DN40: 1 | DO40: 0 | DP40: X | DQ40: 1 | DR40: 0 | DS40: 5 | DT40: A | DU40: 1 | DV40: 1 | DW40: 0 | DX40: X | DY40: 2 | DZ40: 0 | EA40: 10 | EB40: A | EC40: 3 | ED40: 2 | EE40: 5 | EF40: A | EG40: 2 | EH40: 2 | EI40: 0 | EJ40: X | EK40: 1 | EL40: 1 | EM40: 0 | EN40: X | EO40: 2 | EP40: 1 | EQ40: 5 | ER40: A | ES40: 2 | ET40: 0 | EU40: 10 | EV40: A | EW40: 1 | EX40: 0 | EY40: 5 | EZ40: A | FA40: 2 | FB40: 1 | FC40: 5 | FD40: A | FE40: 2 | FF40: 2 | FG40: 0 | FH40: X | FI40: 0 | FJ40: 0 | FK40: 0 | FL40: X | FM40: 2 | FN40: 0 | FO40: 10 | FP40: A | FQ40: 2 | FR40: 0 | FS40: 10 | FT40: A | FU40: 2 | FV40: 2 | FW40: 0 | FX40: X | FY40: 3 | FZ40: 1 | GA40: 7 | GB40: A | GC40: 1 | GD40: 0 | GE40: 5 | GF40: A | GG40: 1 | GH40: 0 | GI40: 5 | GJ40: A | GK40: 2 | GL40: 1 | GM40: 5 | GN40: A | GO40: 1 | GP40: 1 | GQ40: 0 | GR40: X | GS40: 1 | GT40: 1 | GU40: 0 | GV40: X | GW40: 1 | GX40: 2 | GY40: 0 | GZ40: B | HB40: 51 | HC40: 29 | HD40: 4 | HE40: 84 | HG40: 60.71428571 | HH40: 34.52380952 | HI40: 4.761904762 | HO40: =_xlfn.LET(_xlpm.Start,COLUMN($I$1),_xlpm.Ende,COLUMN($GY$1),_xlpm.Anzahl,INT((_xlpm.Ende-_xlpm.Start)/4)+1,_xlpm.Spalten,_xlpm.Start+4*_xlfn.SEQUENCE(1,_xlpm.Anzahl,0,1),_xlpm.Namen1,INDEX($4:$4,1,_xlpm.Spalten)&" "&INDEX($5:$5,1,_xlpm.Spalten),_xlpm.Punkte1,INDEX(40:40,1,_xlpm.Spalten+2),_xlpm.Namen2,INDEX($85:$85,1,_xlpm.Spalten)&" "&INDEX($86:$86,1,_xlpm.Spalten),_xlpm.Punkte2,INDEX(121:121,1,_xlpm.Spalten+2),_xlfn.TEXTJOIN(", ",TRUE,_xlfn._xlws.FILTER(_xlfn.HSTACK(_xlpm.Namen1,_xlpm.Namen2),_xlfn.HSTACK(_xlpm.Punkte1,_xlpm.Punkte2)=10,""))) -> Marco Antonelli, Ruben Antonelli, Peter Balazs, Philip Brunner, Leo Rodrigues da Costa, Rui Gomes, Robin Gygli, Florian Haab, Agnes Isenschmid, Nicolas Mack, Martin Oroshi, Michael Prucha, Aleandro Silvestri, Markus Wagner | HQ40: =_xlfn.LET(_xlpm.Start,COLUMN($I$1),_xlpm.Ende,COLUMN($GY$1),_xlpm.Anzahl,INT((_xlpm.Ende-_xlpm.Start)/4)+1,_xlpm.Spalten,_xlpm.Start+4*_xlfn.SEQUENCE(1,_xlpm.Anzahl,0,1),_xlpm.Namen1,INDEX($4:$4,1,_xlpm.Spalten)&" "&INDEX($5:$5,1,_xlpm.Spalten),_xlpm.Punkte1,INDEX(40:40,1,_xlpm.Spalten+2),_xlpm.Namen2,INDEX($85:$85,1,_xlpm.Spalten)&" "&INDEX($86:$86,1,_xlpm.Spalten),_xlpm.Punkte2,INDEX(121:121,1,_xlpm.Spalten+2),_xlfn.TEXTJOIN(", ",TRUE,_xlfn._xlws.FILTER(_xlfn.HSTACK(_xlpm.Namen1,_xlpm.Namen2),_xlfn.HSTACK(_xlpm.Punkte1,_xlpm.Punkte2)=7,""))) -> Pongsapat Nott Boonaek, Michael Isenschmid, Lechena Pek, Stefan Principe, Martin Rohner, Evelyne Schenk
A41: Sa. 20. Jun. | B41: 22:00:00 | C41: 33 | D41: Deutschland | E41: Elfenbeinküste | F41: 2 | G41: 1 | I41: 2 | J41: 1 | K41: 10 | L41: A | M41: 2 | N41: 2 | O41: 0 | P41: X | Q41: 2 | R41: 0 | S41: 5 | T41: A | U41: 1 | V41: 1 | W41: 0 | X41: X | Y41: 2 | Z41: 1 | AA41: 10 | AB41: A | AC41: 1 | AD41: 1 | AE41: 0 | AF41: X | AG41: 1 | AH41: 0 | AI41: 7 | AJ41: A | AK41: 2 | AL41: 1 | AM41: 10 | AN41: A | AO41: 2 | AP41: 0 | AQ41: 5 | AR41: A | AS41: 3 | AT41: 1 | AU41: 5 | AV41: A | AW41: 3 | AX41: 0 | AY41: 5 | AZ41: A | BA41: 2 | BB41: 0 | BC41: 5 | BD41: A | BE41: 2 | BF41: 0 | BG41: 5 | BH41: A | BI41: 3 | BJ41: 1 | BK41: 5 | BL41: A | BM41: 2 | BN41: 0 | BO41: 5 | BP41: A | BQ41: 2 | BR41: 1 | BS41: 10 | BT41: A | BU41: 2 | BV41: 1 | BW41: 10 | BX41: A | BY41: 1 | BZ41: 0 | CA41: 7 | CB41: A | CC41: 2 | CD41: 0 | CE41: 5 | CF41: A | CG41: 3 | CH41: 1 | CI41: 5 | CJ41: A | CK41: 3 | CL41: 1 | CM41: 5 | CN41: A | CO41: 4 | CP41: 1 | CQ41: 5 | CR41: A | CS41: 4 | CT41: 2 | CU41: 5 | CV41: A | CW41: 4 | CX41: 2 | CY41: 5 | CZ41: A | DA41: 2 | DB41: 1 | DC41: 10 | DD41: A | DE41: 3 | DF41: 0 | DG41: 5 | DH41: A | DI41: 3 | DJ41: 1 | DK41: 5 | DL41: A | DM41: 2 | DN41: 0 | DO41: 5 | DP41: A | DQ41: 2 | DR41: 0 | DS41: 5 | DT41: A | DU41: 2 | DV41: 0 | DW41: 5 | DX41: A | DY41: 2 | DZ41: 0 | EA41: 5 | EB41: A | EC41: 2 | ED41: 1 | EE41: 10 | EF41: A | EG41: 2 | EH41: 0 | EI41: 5 | EJ41: A | EK41: 2 | EL41: 1 | EM41: 10 | EN41: A | EO41: 2 | EP41: 0 | EQ41: 5 | ER41: A | ES41: 2 | ET41: 0 | EU41: 5 | EV41: A | EW41: 2 | EX41: 0 | EY41: 5 | EZ41: A | FA41: 2 | FB41: 0 | FC41: 5 | FD41: A | FE41: 2 | FF41: 0 | FG41: 5 | FH41: A | FI41: 3 | FJ41: 0 | FK41: 5 | FL41: A | FM41: 3 | FN41: 0 | FO41: 5 | FP41: A | FQ41: 3 | FR41: 0 | FS41: 5 | FT41: A | FU41: 3 | FV41: 0 | FW41: 5 | FX41: A | FY41: 3 | FZ41: 1 | GA41: 5 | GB41: A | GC41: 2 | GD41: 0 | GE41: 5 | GF41: A | GG41: 1 | GH41: 0 | GI41: 7 | GJ41: A | GK41: 2 | GL41: 0 | GM41: 5 | GN41: A | GO41: 2 | GP41: 1 | GQ41: 10 | GR41: A | GS41: 3 | GT41: 0 | GU41: 5 | GV41: A | GW41: 2 | GX41: 1 | GY41: 10 | GZ41: A | HB41: 79 | HC41: 5 | HD41: 0 | HE41: 84 | HG41: 94.04761905 | HH41: 5.952380952 | HI41: 0 | HO41: =_xlfn.LET(_xlpm.Start,COLUMN($I$1),_xlpm.Ende,COLUMN($GY$1),_xlpm.Anzahl,INT((_xlpm.Ende-_xlpm.Start)/4)+1,_xlpm.Spalten,_xlpm.Start+4*_xlfn.SEQUENCE(1,_xlpm.Anzahl,0,1),_xlpm.Namen1,INDEX($4:$4,1,_xlpm.Spalten)&" "&INDEX($5:$5,1,_xlpm.Spalten),_xlpm.Punkte1,INDEX(41:41,1,_xlpm.Spalten+2),_xlpm.Namen2,INDEX($85:$85,1,_xlpm.Spalten)&" "&INDEX($86:$86,1,_xlpm.Spalten),_xlpm.Punkte2,INDEX(122:122,1,_xlpm.Spalten+2),_xlfn.TEXTJOIN(", ",TRUE,_xlfn._xlws.FILTER(_xlfn.HSTACK(_xlpm.Namen1,_xlpm.Namen2),_xlfn.HSTACK(_xlpm.Punkte1,_xlpm.Punkte2)=10,""))) -> Panos Agorastos, Ruben Antonelli, Aya Bartholet, Nicolas Brunner, Philip Brunner, Rafael Derungs, Deliz González, Laurent Grosse, André Lanz, Marc Lütolf, Philipp Meyer, Michael Prucha, Michael Rüegg, Martin Schawalder, Yannick Schilliger, Erich Schommarz, Bruno Silva, Reto Treichler, Stefan Wullschleger | HQ41: =_xlfn.LET(_xlpm.Start,COLUMN($I$1),_xlpm.Ende,COLUMN($GY$1),_xlpm.Anzahl,INT((_xlpm.Ende-_xlpm.Start)/4)+1,_xlpm.Spalten,_xlpm.Start+4*_xlfn.SEQUENCE(1,_xlpm.Anzahl,0,1),_xlpm.Namen1,INDEX($4:$4,1,_xlpm.Spalten)&" "&INDEX($5:$5,1,_xlpm.Spalten),_xlpm.Punkte1,INDEX(41:41,1,_xlpm.Spalten+2),_xlpm.Namen2,INDEX($85:$85,1,_xlpm.Spalten)&" "&INDEX($86:$86,1,_xlpm.Spalten),_xlpm.Punkte2,INDEX(122:122,1,_xlpm.Spalten+2),_xlfn.TEXTJOIN(", ",TRUE,_xlfn._xlws.FILTER(_xlfn.HSTACK(_xlpm.Namen1,_xlpm.Namen2),_xlfn.HSTACK(_xlpm.Punkte1,_xlpm.Punkte2)=7,""))) -> André Bartholet, André Burkart, Pascal Keller, Stefan Principe
A42: So. 21. Jun. | B42: 02:00:00 | C42: 34 | D42: Ecuador | E42: Curacao | F42: 0 | G42: 0 | I42: 2 | J42: 1 | K42: 0 | L42: A | M42: 3 | N42: 0 | O42: 0 | P42: A | Q42: 2 | R42: 1 | S42: 0 | T42: A | U42: 3 | V42: 1 | W42: 0 | X42: A | Y42: 3 | Z42: 1 | AA42: 0 | AB42: A | AC42: 2 | AD42: 0 | AE42: 0 | AF42: A | AG42: 1 | AH42: 0 | AI42: 0 | AJ42: A | AK42: 1 | AL42: 0 | AM42: 0 | AN42: A | AO42: 1 | AP42: 0 | AQ42: 0 | AR42: A | AS42: 2 | AT42: 0 | AU42: 0 | AV42: A | AW42: 3 | AX42: 0 | AY42: 0 | AZ42: A | BA42: 1 | BB42: 0 | BC42: 0 | BD42: A | BE42: 2 | BF42: 1 | BG42: 0 | BH42: A | BI42: 2 | BJ42: 0 | BK42: 0 | BL42: A | BM42: 1 | BN42: 0 | BO42: 0 | BP42: A | BQ42: 3 | BR42: 1 | BS42: 0 | BT42: A | BU42: 3 | BV42: 0 | BW42: 0 | BX42: A | BY42: 1 | BZ42: 0 | CA42: 0 | CB42: A | CC42: 1 | CD42: 0 | CE42: 0 | CF42: A | CG42: 2 | CH42: 0 | CI42: 0 | CJ42: A | CK42: 2 | CL42: 0 | CM42: 0 | CN42: A | CO42: 2 | CP42: 1 | CQ42: 0 | CR42: A | CS42: 3 | CT42: 1 | CU42: 0 | CV42: A | CW42: 3 | CX42: 1 | CY42: 0 | CZ42: A | DA42: 3 | DB42: 0 | DC42: 0 | DD42: A | DE42: 2 | DF42: 0 | DG42: 0 | DH42: A | DI42: 3 | DJ42: 1 | DK42: 0 | DL42: A | DM42: 2 | DN42: 0 | DO42: 0 | DP42: A | DQ42: 2 | DR42: 0 | DS42: 0 | DT42: A | DU42: 1 | DV42: 1 | DW42: 7 | DX42: X | DY42: 0 | DZ42: 0 | EA42: 10 | EB42: X | EC42: 1 | ED42: 1 | EE42: 7 | EF42: X | EG42: 3 | EH42: 1 | EI42: 0 | EJ42: A | EK42: 1 | EL42: 0 | EM42: 0 | EN42: A | EO42: 2 | EP42: 0 | EQ42: 0 | ER42: A | ES42: 2 | ET42: 0 | EU42: 0 | EV42: A | EW42: 2 | EX42: 0 | EY42: 0 | EZ42: A | FA42: 2 | FB42: 1 | FC42: 0 | FD42: A | FE42: 2 | FF42: 0 | FG42: 0 | FH42: A | FI42: 1 | FJ42: 0 | FK42: 0 | FL42: A | FM42: 3 | FN42: 0 | FO42: 0 | FP42: A | FQ42: 2 | FR42: 1 | FS42: 0 | FT42: A | FU42: 2 | FV42: 0 | FW42: 0 | FX42: A | FY42: 3 | FZ42: 1 | GA42: 0 | GB42: A | GC42: 3 | GD42: 0 | GE42: 0 | GF42: A | GG42: 1 | GH42: 0 | GI42: 0 | GJ42: A | GK42: 2 | GL42: 1 | GM42: 0 | GN42: A | GO42: 3 | GP42: 0 | GQ42: 0 | GR42: A | GS42: 1 | GT42: 1 | GU42: 7 | GV42: X | GW42: 3 | GX42: 0 | GY42: 0 | GZ42: A | HB42: 75 | HC42: 9 | HD42: 0 | HE42: 84 | HG42: 89.28571429 | HH42: 10.71428571 | HI42: 0 | HO42: =_xlfn.LET(_xlpm.Start,COLUMN($I$1),_xlpm.Ende,COLUMN($GY$1),_xlpm.Anzahl,INT((_xlpm.Ende-_xlpm.Start)/4)+1,_xlpm.Spalten,_xlpm.Start+4*_xlfn.SEQUENCE(1,_xlpm.Anzahl,0,1),_xlpm.Namen1,INDEX($4:$4,1,_xlpm.Spalten)&" "&INDEX($5:$5,1,_xlpm.Spalten),_xlpm.Punkte1,INDEX(42:42,1,_xlpm.Spalten+2),_xlpm.Namen2,INDEX($85:$85,1,_xlpm.Spalten)&" "&INDEX($86:$86,1,_xlpm.Spalten),_xlpm.Punkte2,INDEX(123:123,1,_xlpm.Spalten+2),_xlfn.TEXTJOIN(", ",TRUE,_xlfn._xlws.FILTER(_xlfn.HSTACK(_xlpm.Namen1,_xlpm.Namen2),_xlfn.HSTACK(_xlpm.Punkte1,_xlpm.Punkte2)=10,""))) -> Rui Gomes, Lechena Pek, Evelyne Schenk | HQ42: =_xlfn.LET(_xlpm.Start,COLUMN($I$1),_xlpm.Ende,COLUMN($GY$1),_xlpm.Anzahl,INT((_xlpm.Ende-_xlpm.Start)/4)+1,_xlpm.Spalten,_xlpm.Start+4*_xlfn.SEQUENCE(1,_xlpm.Anzahl,0,1),_xlpm.Namen1,INDEX($4:$4,1,_xlpm.Spalten)&" "&INDEX($5:$5,1,_xlpm.Spalten),_xlpm.Punkte1,INDEX(42:42,1,_xlpm.Spalten+2),_xlpm.Namen2,INDEX($85:$85,1,_xlpm.Spalten)&" "&INDEX($86:$86,1,_xlpm.Spalten),_xlpm.Punkte2,INDEX(123:123,1,_xlpm.Spalten+2),_xlfn.TEXTJOIN(", ",TRUE,_xlfn._xlws.FILTER(_xlfn.HSTACK(_xlpm.Namen1,_xlpm.Namen2),_xlfn.HSTACK(_xlpm.Punkte1,_xlpm.Punkte2)=7,""))) -> Andreia Gomes, Deliz González, Franz Lischer, Ben Marthaler, Lynn Rüegg, Stefan Zachmann
A43: Sa. 20. Jun. | B43: 19:00:00 | C43: 35 | D43: Holland | E43: Schweden | F43: 5 | G43: 1 | I43: 2 | J43: 1 | K43: 5 | L43: A | M43: 2 | N43: 1 | O43: 5 | P43: A | Q43: 1 | R43: 2 | S43: 0 | T43: B | U43: 3 | V43: 1 | W43: 5 | X43: A | Y43: 3 | Z43: 2 | AA43: 5 | AB43: A | AC43: 2 | AD43: 0 | AE43: 5 | AF43: A | AG43: 2 | AH43: 1 | AI43: 5 | AJ43: A | AK43: 1 | AL43: 1 | AM43: 0 | AN43: X | AO43: 2 | AP43: 1 | AQ43: 5 | AR43: A | AS43: 1 | AT43: 1 | AU43: 0 | AV43: X | AW43: 3 | AX43: 0 | AY43: 5 | AZ43: A | BA43: 2 | BB43: 1 | BC43: 5 | BD43: A | BE43: 2 | BF43: 1 | BG43: 5 | BH43: A | BI43: 3 | BJ43: 1 | BK43: 5 | BL43: A | BM43: 2 | BN43: 2 | BO43: 0 | BP43: X | BQ43: 2 | BR43: 2 | BS43: 0 | BT43: X | BU43: 1 | BV43: 1 | BW43: 0 | BX43: X | BY43: 1 | BZ43: 1 | CA43: 0 | CB43: X | CC43: 3 | CD43: 0 | CE43: 5 | CF43: A | CG43: 3 | CH43: 2 | CI43: 5 | CJ43: A | CK43: 2 | CL43: 1 | CM43: 5 | CN43: A | CO43: 2 | CP43: 2 | CQ43: 0 | CR43: X | CS43: 2 | CT43: 1 | CU43: 5 | CV43: A | CW43: 2 | CX43: 1 | CY43: 5 | CZ43: A | DA43: 2 | DB43: 0 | DC43: 5 | DD43: A | DE43: 3 | DF43: 1 | DG43: 5 | DH43: A | DI43: 2 | DJ43: 0 | DK43: 5 | DL43: A | DM43: 1 | DN43: 0 | DO43: 5 | DP43: A | DQ43: 1 | DR43: 0 | DS43: 5 | DT43: A | DU43: 2 | DV43: 2 | DW43: 0 | DX43: X | DY43: 2 | DZ43: 2 | EA43: 0 | EB43: X | EC43: 3 | ED43: 1 | EE43: 5 | EF43: A | EG43: 3 | EH43: 0 | EI43: 5 | EJ43: A | EK43: 1 | EL43: 2 | EM43: 0 | EN43: B | EO43: 2 | EP43: 1 | EQ43: 5 | ER43: A | ES43: 2 | ET43: 1 | EU43: 5 | EV43: A | EW43: 1 | EX43: 0 | EY43: 5 | EZ43: A | FA43: 1 | FB43: 0 | FC43: 5 | FD43: A | FE43: 1 | FF43: 0 | FG43: 5 | FH43: A | FI43: 1 | FJ43: 0 | FK43: 5 | FL43: A | FM43: 3 | FN43: 1 | FO43: 5 | FP43: A | FQ43: 2 | FR43: 1 | FS43: 5 | FT43: A | FU43: 1 | FV43: 1 | FW43: 0 | FX43: X | FY43: 3 | FZ43: 1 | GA43: 5 | GB43: A | GC43: 2 | GD43: 0 | GE43: 5 | GF43: A | GG43: 1 | GH43: 0 | GI43: 5 | GJ43: A | GK43: 2 | GL43: 1 | GM43: 5 | GN43: A | GO43: 3 | GP43: 1 | GQ43: 5 | GR43: A | GS43: 3 | GT43: 1 | GU43: 5 | GV43: A | GW43: 2 | GX43: 1 | GY43: 5 | GZ43: A | HB43: 65 | HC43: 15 | HD43: 4 | HE43: 84 | HG43: 77.38095238 | HH43: 17.85714286 | HI43: 4.761904762 | HO43: =_xlfn.LET(_xlpm.Start,COLUMN($I$1),_xlpm.Ende,COLUMN($GY$1),_xlpm.Anzahl,INT((_xlpm.Ende-_xlpm.Start)/4)+1,_xlpm.Spalten,_xlpm.Start+4*_xlfn.SEQUENCE(1,_xlpm.Anzahl,0,1),_xlpm.Namen1,INDEX($4:$4,1,_xlpm.Spalten)&" "&INDEX($5:$5,1,_xlpm.Spalten),_xlpm.Punkte1,INDEX(43:43,1,_xlpm.Spalten+2),_xlpm.Namen2,INDEX($85:$85,1,_xlpm.Spalten)&" "&INDEX($86:$86,1,_xlpm.Spalten),_xlpm.Punkte2,INDEX(124:124,1,_xlpm.Spalten+2),_xlfn.TEXTJOIN(", ",TRUE,_xlfn._xlws.FILTER(_xlfn.HSTACK(_xlpm.Namen1,_xlpm.Namen2),_xlfn.HSTACK(_xlpm.Punkte1,_xlpm.Punkte2)=10,""))) ->  | HQ43: =_xlfn.LET(_xlpm.Start,COLUMN($I$1),_xlpm.Ende,COLUMN($GY$1),_xlpm.Anzahl,INT((_xlpm.Ende-_xlpm.Start)/4)+1,_xlpm.Spalten,_xlpm.Start+4*_xlfn.SEQUENCE(1,_xlpm.Anzahl,0,1),_xlpm.Namen1,INDEX($4:$4,1,_xlpm.Spalten)&" "&INDEX($5:$5,1,_xlpm.Spalten),_xlpm.Punkte1,INDEX(43:43,1,_xlpm.Spalten+2),_xlpm.Namen2,INDEX($85:$85,1,_xlpm.Spalten)&" "&INDEX($86:$86,1,_xlpm.Spalten),_xlpm.Punkte2,INDEX(124:124,1,_xlpm.Spalten+2),_xlfn.TEXTJOIN(", ",TRUE,_xlfn._xlws.FILTER(_xlfn.HSTACK(_xlpm.Namen1,_xlpm.Namen2),_xlfn.HSTACK(_xlpm.Punkte1,_xlpm.Punkte2)=7,""))) -> 
A44: Sa. 20. Jun. | B44: 06:00:00 | C44: 36 | D44: Tunesien | E44: Japan | F44: 0 | G44: 4 | I44: 1 | J44: 1 | K44: 0 | L44: X | M44: 1 | N44: 1 | O44: 0 | P44: X | Q44: 2 | R44: 0 | S44: 0 | T44: A | U44: 2 | V44: 0 | W44: 0 | X44: A | Y44: 0 | Z44: 3 | AA44: 5 | AB44: B | AC44: 0 | AD44: 2 | AE44: 5 | AF44: B | AG44: 0 | AH44: 0 | AI44: 0 | AJ44: X | AK44: 2 | AL44: 1 | AM44: 0 | AN44: A | AO44: 0 | AP44: 0 | AQ44: 0 | AR44: X | AS44: 1 | AT44: 0 | AU44: 0 | AV44: A | AW44: 1 | AX44: 2 | AY44: 5 | AZ44: B | BA44: 1 | BB44: 3 | BC44: 5 | BD44: B | BE44: 1 | BF44: 2 | BG44: 5 | BH44: B | BI44: 1 | BJ44: 2 | BK44: 5 | BL44: B | BM44: 1 | BN44: 2 | BO44: 5 | BP44: B | BQ44: 0 | BR44: 1 | BS44: 5 | BT44: B | BU44: 0 | BV44: 1 | BW44: 5 | BX44: B | BY44: 0 | BZ44: 1 | CA44: 5 | CB44: B | CC44: 1 | CD44: 2 | CE44: 5 | CF44: B | CG44: 1 | CH44: 2 | CI44: 5 | CJ44: B | CK44: 0 | CL44: 2 | CM44: 5 | CN44: B | CO44: 1 | CP44: 1 | CQ44: 0 | CR44: X | CS44: 1 | CT44: 1 | CU44: 0 | CV44: X | CW44: 1 | CX44: 1 | CY44: 0 | CZ44: X | DA44: 0 | DB44: 1 | DC44: 5 | DD44: B | DE44: 1 | DF44: 2 | DG44: 5 | DH44: B | DI44: 1 | DJ44: 3 | DK44: 5 | DL44: B | DM44: 0 | DN44: 1 | DO44: 5 | DP44: B | DQ44: 0 | DR44: 1 | DS44: 5 | DT44: B | DU44: 1 | DV44: 0 | DW44: 0 | DX44: A | DY44: 0 | DZ44: 1 | EA44: 5 | EB44: B | EC44: 2 | ED44: 1 | EE44: 0 | EF44: A | EG44: 0 | EH44: 1 | EI44: 5 | EJ44: B | EK44: 0 | EL44: 1 | EM44: 5 | EN44: B | EO44: 1 | EP44: 1 | EQ44: 0 | ER44: X | ES44: 1 | ET44: 2 | EU44: 5 | EV44: B | EW44: 1 | EX44: 1 | EY44: 0 | EZ44: X | FA44: 1 | FB44: 3 | FC44: 5 | FD44: B | FE44: 1 | FF44: 1 | FG44: 0 | FH44: X | FI44: 0 | FJ44: 1 | FK44: 5 | FL44: B | FM44: 1 | FN44: 3 | FO44: 5 | FP44: B | FQ44: 1 | FR44: 3 | FS44: 5 | FT44: B | FU44: 1 | FV44: 2 | FW44: 5 | FX44: B | FY44: 1 | FZ44: 3 | GA44: 5 | GB44: B | GC44: 0 | GD44: 2 | GE44: 5 | GF44: B | GG44: 0 | GH44: 1 | GI44: 5 | GJ44: B | GK44: 1 | GL44: 2 | GM44: 5 | GN44: B | GO44: 0 | GP44: 2 | GQ44: 5 | GR44: B | GS44: 0 | GT44: 3 | GU44: 5 | GV44: B | GW44: 1 | GX44: 1 | GY44: 0 | GZ44: X | HB44: 6 | HC44: 17 | HD44: 61 | HE44: 84 | HG44: 7.142857143 | HH44: 20.23809524 | HI44: 72.61904762 | HO44: =_xlfn.LET(_xlpm.Start,COLUMN($I$1),_xlpm.Ende,COLUMN($GY$1),_xlpm.Anzahl,INT((_xlpm.Ende-_xlpm.Start)/4)+1,_xlpm.Spalten,_xlpm.Start+4*_xlfn.SEQUENCE(1,_xlpm.Anzahl,0,1),_xlpm.Namen1,INDEX($4:$4,1,_xlpm.Spalten)&" "&INDEX($5:$5,1,_xlpm.Spalten),_xlpm.Punkte1,INDEX(44:44,1,_xlpm.Spalten+2),_xlpm.Namen2,INDEX($85:$85,1,_xlpm.Spalten)&" "&INDEX($86:$86,1,_xlpm.Spalten),_xlpm.Punkte2,INDEX(125:125,1,_xlpm.Spalten+2),_xlfn.TEXTJOIN(", ",TRUE,_xlfn._xlws.FILTER(_xlfn.HSTACK(_xlpm.Namen1,_xlpm.Namen2),_xlfn.HSTACK(_xlpm.Punkte1,_xlpm.Punkte2)=10,""))) ->  | HQ44: =_xlfn.LET(_xlpm.Start,COLUMN($I$1),_xlpm.Ende,COLUMN($GY$1),_xlpm.Anzahl,INT((_xlpm.Ende-_xlpm.Start)/4)+1,_xlpm.Spalten,_xlpm.Start+4*_xlfn.SEQUENCE(1,_xlpm.Anzahl,0,1),_xlpm.Namen1,INDEX($4:$4,1,_xlpm.Spalten)&" "&INDEX($5:$5,1,_xlpm.Spalten),_xlpm.Punkte1,INDEX(44:44,1,_xlpm.Spalten+2),_xlpm.Namen2,INDEX($85:$85,1,_xlpm.Spalten)&" "&INDEX($86:$86,1,_xlpm.Spalten),_xlpm.Punkte2,INDEX(125:125,1,_xlpm.Spalten+2),_xlfn.TEXTJOIN(", ",TRUE,_xlfn._xlws.FILTER(_xlfn.HSTACK(_xlpm.Namen1,_xlpm.Namen2),_xlfn.HSTACK(_xlpm.Punkte1,_xlpm.Punkte2)=7,""))) -> 
A45: Mo. 22. Jun. | B45: 00:00:00 | C45: 37 | D45: Uruguay | E45: Kap Verde | F45: 2 | G45: 2 | I45: 2 | J45: 1 | K45: 0 | L45: A | M45: 2 | N45: 0 | O45: 0 | P45: A | Q45: 1 | R45: 0 | S45: 0 | T45: A | U45: 3 | V45: 0 | W45: 0 | X45: A | Y45: 3 | Z45: 1 | AA45: 0 | AB45: A | AC45: 2 | AD45: 1 | AE45: 0 | AF45: A | AG45: 3 | AH45: 0 | AI45: 0 | AJ45: A | AK45: 2 | AL45: 0 | AM45: 0 | AN45: A | AO45: 1 | AP45: 0 | AQ45: 0 | AR45: A | AS45: 2 | AT45: 0 | AU45: 0 | AV45: A | AW45: 3 | AX45: 1 | AY45: 0 | AZ45: A | BA45: 3 | BB45: 0 | BC45: 0 | BD45: A | BE45: 2 | BF45: 0 | BG45: 0 | BH45: A | BI45: 2 | BJ45: 0 | BK45: 0 | BL45: A | BM45: 2 | BN45: 0 | BO45: 0 | BP45: A | BQ45: 4 | BR45: 0 | BS45: 0 | BT45: A | BU45: 2 | BV45: 0 | BW45: 0 | BX45: A | BY45: 2 | BZ45: 0 | CA45: 0 | CB45: A | CC45: 1 | CD45: 0 | CE45: 0 | CF45: A | CG45: 3 | CH45: 1 | CI45: 0 | CJ45: A | CK45: 3 | CL45: 1 | CM45: 0 | CN45: A | CO45: 3 | CP45: 0 | CQ45: 0 | CR45: A | CS45: 4 | CT45: 1 | CU45: 0 | CV45: A | CW45: 5 | CX45: 0 | CY45: 0 | CZ45: A | DA45: 2 | DB45: 0 | DC45: 0 | DD45: A | DE45: 2 | DF45: 0 | DG45: 0 | DH45: A | DI45: 2 | DJ45: 0 | DK45: 0 | DL45: A | DM45: 2 | DN45: 0 | DO45: 0 | DP45: A | DQ45: 3 | DR45: 0 | DS45: 0 | DT45: A | DU45: 1 | DV45: 1 | DW45: 7 | DX45: X | DY45: 2 | DZ45: 2 | EA45: 10 | EB45: X | EC45: 3 | ED45: 2 | EE45: 0 | EF45: A | EG45: 3 | EH45: 0 | EI45: 0 | EJ45: A | EK45: 1 | EL45: 0 | EM45: 0 | EN45: A | EO45: 3 | EP45: 0 | EQ45: 0 | ER45: A | ES45: 3 | ET45: 0 | EU45: 0 | EV45: A | EW45: 1 | EX45: 0 | EY45: 0 | EZ45: A | FA45: 2 | FB45: 1 | FC45: 0 | FD45: A | FE45: 2 | FF45: 0 | FG45: 0 | FH45: A | FI45: 3 | FJ45: 1 | FK45: 0 | FL45: A | FM45: 3 | FN45: 0 | FO45: 0 | FP45: A | FQ45: 3 | FR45: 0 | FS45: 0 | FT45: A | FU45: 3 | FV45: 1 | FW45: 0 | FX45: A | FY45: 3 | FZ45: 1 | GA45: 0 | GB45: A | GC45: 2 | GD45: 0 | GE45: 0 | GF45: A | GG45: 1 | GH45: 0 | GI45: 0 | GJ45: A | GK45: 2 | GL45: 1 | GM45: 0 | GN45: A | GO45: 2 | GP45: 0 | GQ45: 0 | GR45: A | GS45: 1 | GT45: 0 | GU45: 0 | GV45: A | GW45: 2 | GX45: 0 | GY45: 0 | GZ45: A | HB45: 80 | HC45: 4 | HD45: 0 | HE45: 84 | HG45: 95.23809524 | HH45: 4.761904762 | HI45: 0 | HO45: =_xlfn.LET(_xlpm.Start,COLUMN($I$1),_xlpm.Ende,COLUMN($GY$1),_xlpm.Anzahl,INT((_xlpm.Ende-_xlpm.Start)/4)+1,_xlpm.Spalten,_xlpm.Start+4*_xlfn.SEQUENCE(1,_xlpm.Anzahl,0,1),_xlpm.Namen1,INDEX($4:$4,1,_xlpm.Spalten)&" "&INDEX($5:$5,1,_xlpm.Spalten),_xlpm.Punkte1,INDEX(45:45,1,_xlpm.Spalten+2),_xlpm.Namen2,INDEX($85:$85,1,_xlpm.Spalten)&" "&INDEX($86:$86,1,_xlpm.Spalten),_xlpm.Punkte2,INDEX(126:126,1,_xlpm.Spalten+2),_xlfn.TEXTJOIN(", ",TRUE,_xlfn._xlws.FILTER(_xlfn.HSTACK(_xlpm.Namen1,_xlpm.Namen2),_xlfn.HSTACK(_xlpm.Punkte1,_xlpm.Punkte2)=10,""))) -> Rui Gomes | HQ45: =_xlfn.LET(_xlpm.Start,COLUMN($I$1),_xlpm.Ende,COLUMN($GY$1),_xlpm.Anzahl,INT((_xlpm.Ende-_xlpm.Start)/4)+1,_xlpm.Spalten,_xlpm.Start+4*_xlfn.SEQUENCE(1,_xlpm.Anzahl,0,1),_xlpm.Namen1,INDEX($4:$4,1,_xlpm.Spalten)&" "&INDEX($5:$5,1,_xlpm.Spalten),_xlpm.Punkte1,INDEX(45:45,1,_xlpm.Spalten+2),_xlpm.Namen2,INDEX($85:$85,1,_xlpm.Spalten)&" "&INDEX($86:$86,1,_xlpm.Spalten),_xlpm.Punkte2,INDEX(126:126,1,_xlpm.Spalten+2),_xlfn.TEXTJOIN(", ",TRUE,_xlfn._xlws.FILTER(_xlfn.HSTACK(_xlpm.Namen1,_xlpm.Namen2),_xlfn.HSTACK(_xlpm.Punkte1,_xlpm.Punkte2)=7,""))) -> Andreia Gomes, Lechena Pek, Evelyne Schenk
A46: So. 21. Jun. | B46: 18:00:00 | C46: 38 | D46: Spanien | E46: Saudi-Arabien | F46: 4 | G46: 0 | I46: 2 | J46: 1 | K46: 5 | L46: A | M46: 3 | N46: 1 | O46: 5 | P46: A | Q46: 3 | R46: 2 | S46: 5 | T46: A | U46: 2 | V46: 0 | W46: 5 | X46: A | Y46: 3 | Z46: 1 | AA46: 5 | AB46: A | AC46: 4 | AD46: 1 | AE46: 5 | AF46: A | AG46: 3 | AH46: 0 | AI46: 5 | AJ46: A | AK46: 4 | AL46: 1 | AM46: 5 | AN46: A | AO46: 2 | AP46: 0 | AQ46: 5 | AR46: A | AS46: 4 | AT46: 0 | AU46: 10 | AV46: A | AW46: 3 | AX46: 0 | AY46: 5 | AZ46: A | BA46: 2 | BB46: 0 | BC46: 5 | BD46: A | BE46: 3 | BF46: 0 | BG46: 5 | BH46: A | BI46: 2 | BJ46: 1 | BK46: 5 | BL46: A | BM46: 2 | BN46: 0 | BO46: 5 | BP46: A | BQ46: 5 | BR46: 0 | BS46: 5 | BT46: A | BU46: 3 | BV46: 0 | BW46: 5 | BX46: A | BY46: 2 | BZ46: 0 | CA46: 5 | CB46: A | CC46: 2 | CD46: 0 | CE46: 5 | CF46: A | CG46: 2 | CH46: 0 | CI46: 5 | CJ46: A | CK46: 3 | CL46: 1 | CM46: 5 | CN46: A | CO46: 3 | CP46: 1 | CQ46: 5 | CR46: A | CS46: 3 | CT46: 0 | CU46: 5 | CV46: A | CW46: 3 | CX46: 0 | CY46: 5 | CZ46: A | DA46: 3 | DB46: 0 | DC46: 5 | DD46: A | DE46: 3 | DF46: 0 | DG46: 5 | DH46: A | DI46: 4 | DJ46: 0 | DK46: 10 | DL46: A | DM46: 2 | DN46: 0 | DO46: 5 | DP46: A | DQ46: 2 | DR46: 0 | DS46: 5 | DT46: A | DU46: 1 | DV46: 0 | DW46: 5 | DX46: A | DY46: 5 | DZ46: 1 | EA46: 7 | EB46: A | EC46: 3 | ED46: 2 | EE46: 5 | EF46: A | EG46: 3 | EH46: 0 | EI46: 5 | EJ46: A | EK46: 2 | EL46: 0 | EM46: 5 | EN46: A | EO46: 3 | EP46: 0 | EQ46: 5 | ER46: A | ES46: 4 | ET46: 0 | EU46: 10 | EV46: A | EW46: 3 | EX46: 0 | EY46: 5 | EZ46: A | FA46: 2 | FB46: 1 | FC46: 5 | FD46: A | FE46: 4 | FF46: 0 | FG46: 10 | FH46: A | FI46: 2 | FJ46: 0 | FK46: 5 | FL46: A | FM46: 3 | FN46: 0 | FO46: 5 | FP46: A | FQ46: 3 | FR46: 0 | FS46: 5 | FT46: A | FU46: 3 | FV46: 0 | FW46: 5 | FX46: A | FY46: 4 | FZ46: 1 | GA46: 5 | GB46: A | GC46: 1 | GD46: 0 | GE46: 5 | GF46: A | GG46: 1 | GH46: 0 | GI46: 5 | GJ46: A | GK46: 2 | GL46: 1 | GM46: 5 | GN46: A | GO46: 3 | GP46: 0 | GQ46: 5 | GR46: A | GS46: 3 | GT46: 1 | GU46: 5 | GV46: A | GW46: 3 | GX46: 0 | GY46: 5 | GZ46: A | HB46: 84 | HC46: 0 | HD46: 0 | HE46: 84 | HG46: 100 | HH46: 0 | HI46: 0 | HO46: =_xlfn.LET(_xlpm.Start,COLUMN($I$1),_xlpm.Ende,COLUMN($GY$1),_xlpm.Anzahl,INT((_xlpm.Ende-_xlpm.Start)/4)+1,_xlpm.Spalten,_xlpm.Start+4*_xlfn.SEQUENCE(1,_xlpm.Anzahl,0,1),_xlpm.Namen1,INDEX($4:$4,1,_xlpm.Spalten)&" "&INDEX($5:$5,1,_xlpm.Spalten),_xlpm.Punkte1,INDEX(46:46,1,_xlpm.Spalten+2),_xlpm.Namen2,INDEX($85:$85,1,_xlpm.Spalten)&" "&INDEX($86:$86,1,_xlpm.Spalten),_xlpm.Punkte2,INDEX(127:127,1,_xlpm.Spalten+2),_xlfn.TEXTJOIN(", ",TRUE,_xlfn._xlws.FILTER(_xlfn.HSTACK(_xlpm.Namen1,_xlpm.Namen2),_xlfn.HSTACK(_xlpm.Punkte1,_xlpm.Punkte2)=10,""))) -> Roger Bartholet, Armin Duvnjak, Robin Gygli, Stefan Gygli, Philipp Meyer, Lea Treichler, Christoph Wälti | HQ46: =_xlfn.LET(_xlpm.Start,COLUMN($I$1),_xlpm.Ende,COLUMN($GY$1),_xlpm.Anzahl,INT((_xlpm.Ende-_xlpm.Start)/4)+1,_xlpm.Spalten,_xlpm.Start+4*_xlfn.SEQUENCE(1,_xlpm.Anzahl,0,1),_xlpm.Namen1,INDEX($4:$4,1,_xlpm.Spalten)&" "&INDEX($5:$5,1,_xlpm.Spalten),_xlpm.Punkte1,INDEX(46:46,1,_xlpm.Spalten+2),_xlpm.Namen2,INDEX($85:$85,1,_xlpm.Spalten)&" "&INDEX($86:$86,1,_xlpm.Spalten),_xlpm.Punkte2,INDEX(127:127,1,_xlpm.Spalten+2),_xlfn.TEXTJOIN(", ",TRUE,_xlfn._xlws.FILTER(_xlfn.HSTACK(_xlpm.Namen1,_xlpm.Namen2),_xlfn.HSTACK(_xlpm.Punkte1,_xlpm.Punkte2)=7,""))) -> Rui Gomes, Ralph Schuster, Stefan Zachmann
A47: So. 21. Jun. | B47: 21:00:00 | C47: 39 | D47: Belgien | E47: Iran | F47: 0 | G47: 0 | I47: 2 | J47: 1 | K47: 0 | L47: A | M47: 2 | N47: 1 | O47: 0 | P47: A | Q47: 1 | R47: 0 | S47: 0 | T47: A | U47: 3 | V47: 1 | W47: 0 | X47: A | Y47: 2 | Z47: 1 | AA47: 0 | AB47: A | AC47: 3 | AD47: 0 | AE47: 0 | AF47: A | AG47: 3 | AH47: 0 | AI47: 0 | AJ47: A | AK47: 2 | AL47: 1 | AM47: 0 | AN47: A | AO47: 1 | AP47: 0 | AQ47: 0 | AR47: A | AS47: 1 | AT47: 0 | AU47: 0 | AV47: A | AW47: 2 | AX47: 1 | AY47: 0 | AZ47: A | BA47: 3 | BB47: 1 | BC47: 0 | BD47: A | BE47: 2 | BF47: 0 | BG47: 0 | BH47: A | BI47: 0 | BJ47: 1 | BK47: 0 | BL47: B | BM47: 3 | BN47: 1 | BO47: 0 | BP47: A | BQ47: 4 | BR47: 0 | BS47: 0 | BT47: A | BU47: 2 | BV47: 0 | BW47: 0 | BX47: A | BY47: 2 | BZ47: 0 | CA47: 0 | CB47: A | CC47: 2 | CD47: 0 | CE47: 0 | CF47: A | CG47: 2 | CH47: 0 | CI47: 0 | CJ47: A | CK47: 2 | CL47: 1 | CM47: 0 | CN47: A | CO47: 2 | CP47: 0 | CQ47: 0 | CR47: A | CS47: 2 | CT47: 1 | CU47: 0 | CV47: A | CW47: 2 | CX47: 0 | CY47: 0 | CZ47: A | DA47: 1 | DB47: 0 | DC47: 0 | DD47: A | DE47: 2 | DF47: 1 | DG47: 0 | DH47: A | DI47: 3 | DJ47: 0 | DK47: 0 | DL47: A | DM47: 1 | DN47: 0 | DO47: 0 | DP47: A | DQ47: 1 | DR47: 0 | DS47: 0 | DT47: A | DU47: 1 | DV47: 0 | DW47: 0 | DX47: A | DY47: 2 | DZ47: 1 | EA47: 0 | EB47: A | EC47: 2 | ED47: 1 | EE47: 0 | EF47: A | EG47: 2 | EH47: 0 | EI47: 0 | EJ47: A | EK47: 2 | EL47: 1 | EM47: 0 | EN47: A | EO47: 3 | EP47: 1 | EQ47: 0 | ER47: A | ES47: 2 | ET47: 0 | EU47: 0 | EV47: A | EW47: 1 | EX47: 1 | EY47: 7 | EZ47: X | FA47: 1 | FB47: 0 | FC47: 0 | FD47: A | FE47: 2 | FF47: 0 | FG47: 0 | FH47: A | FI47: 2 | FJ47: 1 | FK47: 0 | FL47: A | FM47: 3 | FN47: 1 | FO47: 0 | FP47: A | FQ47: 2 | FR47: 0 | FS47: 0 | FT47: A | FU47: 2 | FV47: 0 | FW47: 0 | FX47: A | FY47: 3 | FZ47: 1 | GA47: 0 | GB47: A | GC47: 1 | GD47: 0 | GE47: 0 | GF47: A | GG47: 1 | GH47: 0 | GI47: 0 | GJ47: A | GK47: 2 | GL47: 1 | GM47: 0 | GN47: A | GO47: 3 | GP47: 1 | GQ47: 0 | GR47: A | GS47: 2 | GT47: 1 | GU47: 0 | GV47: A | GW47: 2 | GX47: 1 | GY47: 0 | GZ47: A | HB47: 79 | HC47: 4 | HD47: 1 | HE47: 84 | HG47: 94.04761905 | HH47: 4.761904762 | HI47: 1.19047619 | HO47: =_xlfn.LET(_xlpm.Start,COLUMN($I$1),_xlpm.Ende,COLUMN($GY$1),_xlpm.Anzahl,INT((_xlpm.Ende-_xlpm.Start)/4)+1,_xlpm.Spalten,_xlpm.Start+4*_xlfn.SEQUENCE(1,_xlpm.Anzahl,0,1),_xlpm.Namen1,INDEX($4:$4,1,_xlpm.Spalten)&" "&INDEX($5:$5,1,_xlpm.Spalten),_xlpm.Punkte1,INDEX(47:47,1,_xlpm.Spalten+2),_xlpm.Namen2,INDEX($85:$85,1,_xlpm.Spalten)&" "&INDEX($86:$86,1,_xlpm.Spalten),_xlpm.Punkte2,INDEX(128:128,1,_xlpm.Spalten+2),_xlfn.TEXTJOIN(", ",TRUE,_xlfn._xlws.FILTER(_xlfn.HSTACK(_xlpm.Namen1,_xlpm.Namen2),_xlfn.HSTACK(_xlpm.Punkte1,_xlpm.Punkte2)=10,""))) ->  | HQ47: =_xlfn.LET(_xlpm.Start,COLUMN($I$1),_xlpm.Ende,COLUMN($GY$1),_xlpm.Anzahl,INT((_xlpm.Ende-_xlpm.Start)/4)+1,_xlpm.Spalten,_xlpm.Start+4*_xlfn.SEQUENCE(1,_xlpm.Anzahl,0,1),_xlpm.Namen1,INDEX($4:$4,1,_xlpm.Spalten)&" "&INDEX($5:$5,1,_xlpm.Spalten),_xlpm.Punkte1,INDEX(47:47,1,_xlpm.Spalten+2),_xlpm.Namen2,INDEX($85:$85,1,_xlpm.Spalten)&" "&INDEX($86:$86,1,_xlpm.Spalten),_xlpm.Punkte2,INDEX(128:128,1,_xlpm.Spalten+2),_xlfn.TEXTJOIN(", ",TRUE,_xlfn._xlws.FILTER(_xlfn.HSTACK(_xlpm.Namen1,_xlpm.Namen2),_xlfn.HSTACK(_xlpm.Punkte1,_xlpm.Punkte2)=7,""))) -> Sarina Gygli, Ben Marthaler, Lechena Pek, Evelyne Schenk
A48: Mo. 22. Jun. | B48: 03:00:00 | C48: 40 | D48: Neuseeland | E48: Ägypten | F48: 1 | G48: 3 | I48: 1 | J48: 2 | K48: 5 | L48: B | M48: 1 | N48: 2 | O48: 5 | P48: B | Q48: 1 | R48: 1 | S48: 0 | T48: X | U48: 0 | V48: 3 | W48: 5 | X48: B | Y48: 0 | Z48: 2 | AA48: 7 | AB48: B | AC48: 1 | AD48: 3 | AE48: 10 | AF48: B | AG48: 0 | AH48: 1 | AI48: 5 | AJ48: B | AK48: 2 | AL48: 2 | AM48: 0 | AN48: X | AO48: 1 | AP48: 1 | AQ48: 0 | AR48: X | AS48: 1 | AT48: 2 | AU48: 5 | AV48: B | AW48: 1 | AX48: 2 | AY48: 5 | AZ48: B | BA48: 1 | BB48: 2 | BC48: 5 | BD48: B | BE48: 1 | BF48: 2 | BG48: 5 | BH48: B | BI48: 0 | BJ48: 1 | BK48: 5 | BL48: B | BM48: 1 | BN48: 1 | BO48: 0 | BP48: X | BQ48: 1 | BR48: 3 | BS48: 10 | BT48: B | BU48: 1 | BV48: 1 | BW48: 0 | BX48: X | BY48: 0 | BZ48: 1 | CA48: 5 | CB48: B | CC48: 1 | CD48: 1 | CE48: 0 | CF48: X | CG48: 0 | CH48: 1 | CI48: 5 | CJ48: B | CK48: 1 | CL48: 2 | CM48: 5 | CN48: B | CO48: 1 | CP48: 2 | CQ48: 5 | CR48: B | CS48: 1 | CT48: 3 | CU48: 10 | CV48: B | CW48: 1 | CX48: 3 | CY48: 10 | CZ48: B | DA48: 0 | DB48: 1 | DC48: 5 | DD48: B | DE48: 1 | DF48: 2 | DG48: 5 | DH48: B | DI48: 1 | DJ48: 3 | DK48: 10 | DL48: B | DM48: 1 | DN48: 1 | DO48: 0 | DP48: X | DQ48: 0 | DR48: 1 | DS48: 5 | DT48: B | DU48: 0 | DV48: 0 | DW48: 0 | DX48: X | DY48: 1 | DZ48: 1 | EA48: 0 | EB48: X | EC48: 1 | ED48: 0 | EE48: 0 | EF48: A | EG48: 0 | EH48: 0 | EI48: 0 | EJ48: X | EK48: 0 | EL48: 1 | EM48: 5 | EN48: B | EO48: 1 | EP48: 1 | EQ48: 0 | ER48: X | ES48: 1 | ET48: 2 | EU48: 5 | EV48: B | EW48: 1 | EX48: 0 | EY48: 0 | EZ48: A | FA48: 3 | FB48: 1 | FC48: 0 | FD48: A | FE48: 1 | FF48: 1 | FG48: 0 | FH48: X | FI48: 0 | FJ48: 2 | FK48: 7 | FL48: B | FM48: 0 | FN48: 2 | FO48: 7 | FP48: B | FQ48: 1 | FR48: 3 | FS48: 10 | FT48: B | FU48: 2 | FV48: 2 | FW48: 0 | FX48: X | FY48: 1 | FZ48: 3 | GA48: 10 | GB48: B | GC48: 0 | GD48: 1 | GE48: 5 | GF48: B | GG48: 0 | GH48: 1 | GI48: 5 | GJ48: B | GK48: 0 | GL48: 1 | GM48: 5 | GN48: B | GO48: 1 | GP48: 3 | GQ48: 10 | GR48: B | GS48: 1 | GT48: 1 | GU48: 0 | GV48: X | GW48: 1 | GX48: 2 | GY48: 5 | GZ48: B | HB48: 5 | HC48: 24 | HD48: 55 | HE48: 84 | HG48: 5.952380952 | HH48: 28.57142857 | HI48: 65.47619048 | HO48: =_xlfn.LET(_xlpm.Start,COLUMN($I$1),_xlpm.Ende,COLUMN($GY$1),_xlpm.Anzahl,INT((_xlpm.Ende-_xlpm.Start)/4)+1,_xlpm.Spalten,_xlpm.Start+4*_xlfn.SEQUENCE(1,_xlpm.Anzahl,0,1),_xlpm.Namen1,INDEX($4:$4,1,_xlpm.Spalten)&" "&INDEX($5:$5,1,_xlpm.Spalten),_xlpm.Punkte1,INDEX(48:48,1,_xlpm.Spalten+2),_xlpm.Namen2,INDEX($85:$85,1,_xlpm.Spalten)&" "&INDEX($86:$86,1,_xlpm.Spalten),_xlpm.Punkte2,INDEX(129:129,1,_xlpm.Spalten+2),_xlfn.TEXTJOIN(", ",TRUE,_xlfn._xlws.FILTER(_xlfn.HSTACK(_xlpm.Namen1,_xlpm.Namen2),_xlfn.HSTACK(_xlpm.Punkte1,_xlpm.Punkte2)=10,""))) -> Peter Balazs, Nicolas Brunner, Niva D'Acunto, Vinci D'Acunto, Armin Duvnjak, Agnes Isenschmid, Michael Isenschmid, André Lanz, Martin Oroshi | HQ48: =_xlfn.LET(_xlpm.Start,COLUMN($I$1),_xlpm.Ende,COLUMN($GY$1),_xlpm.Anzahl,INT((_xlpm.Ende-_xlpm.Start)/4)+1,_xlpm.Spalten,_xlpm.Start+4*_xlfn.SEQUENCE(1,_xlpm.Anzahl,0,1),_xlpm.Namen1,INDEX($4:$4,1,_xlpm.Spalten)&" "&INDEX($5:$5,1,_xlpm.Spalten),_xlpm.Punkte1,INDEX(48:48,1,_xlpm.Spalten+2),_xlpm.Namen2,INDEX($85:$85,1,_xlpm.Spalten)&" "&INDEX($86:$86,1,_xlpm.Spalten),_xlpm.Punkte2,INDEX(129:129,1,_xlpm.Spalten+2),_xlfn.TEXTJOIN(", ",TRUE,_xlfn._xlws.FILTER(_xlfn.HSTACK(_xlpm.Namen1,_xlpm.Namen2),_xlfn.HSTACK(_xlpm.Punkte1,_xlpm.Punkte2)=7,""))) -> Ruben Antonelli, Timothy Gygli, Florian Haab, Elias Marty, Philipp Meyer, Martin Rohner, Martin Schawalder, Yannick Schilliger, Aleandro Silvestri, Armando Thormann, Reto Treichler
A49: Di. 23. Jun. | B49: 02:00:00 | C49: 41 | D49: Norwegen | E49: Senegal | F49: 3 | G49: 2 | I49: 1 | J49: 1 | K49: 0 | L49: X | M49: 1 | N49: 1 | O49: 0 | P49: X | Q49: 1 | R49: 0 | S49: 7 | T49: A | U49: 2 | V49: 2 | W49: 0 | X49: X | Y49: 2 | Z49: 2 | AA49: 0 | AB49: X | AC49: 1 | AD49: 1 | AE49: 0 | AF49: X | AG49: 3 | AH49: 1 | AI49: 5 | AJ49: A | AK49: 1 | AL49: 2 | AM49: 0 | AN49: B | AO49: 1 | AP49: 1 | AQ49: 0 | AR49: X | AS49: 2 | AT49: 2 | AU49: 0 | AV49: X | AW49: 1 | AX49: 2 | AY49: 0 | AZ49: B | BA49: 2 | BB49: 1 | BC49: 7 | BD49: A | BE49: 2 | BF49: 1 | BG49: 7 | BH49: A | BI49: 0 | BJ49: 2 | BK49: 0 | BL49: B | BM49: 1 | BN49: 2 | BO49: 0 | BP49: B | BQ49: 3 | BR49: 2 | BS49: 10 | BT49: A | BU49: 2 | BV49: 1 | BW49: 7 | BX49: A | BY49: 2 | BZ49: 2 | CA49: 0 | CB49: X | CC49: 1 | CD49: 0 | CE49: 7 | CF49: A | CG49: 2 | CH49: 2 | CI49: 0 | CJ49: X | CK49: 2 | CL49: 2 | CM49: 0 | CN49: X | CO49: 3 | CP49: 1 | CQ49: 5 | CR49: A | CS49: 2 | CT49: 1 | CU49: 7 | CV49: A | CW49: 2 | CX49: 1 | CY49: 7 | CZ49: A | DA49: 1 | DB49: 1 | DC49: 0 | DD49: X | DE49: 2 | DF49: 0 | DG49: 5 | DH49: A | DI49: 2 | DJ49: 2 | DK49: 0 | DL49: X | DM49: 2 | DN49: 1 | DO49: 7 | DP49: A | DQ49: 1 | DR49: 0 | DS49: 7 | DT49: A | DU49: 1 | DV49: 0 | DW49: 7 | DX49: A | DY49: 2 | DZ49: 0 | EA49: 5 | EB49: A | EC49: 2 | ED49: 1 | EE49: 7 | EF49: A | EG49: 2 | EH49: 0 | EI49: 5 | EJ49: A | EK49: 1 | EL49: 1 | EM49: 0 | EN49: X | EO49: 1 | EP49: 1 | EQ49: 0 | ER49: X | ES49: 1 | ET49: 2 | EU49: 0 | EV49: B | EW49: 2 | EX49: 1 | EY49: 7 | EZ49: A | FA49: 0 | FB49: 3 | FC49: 0 | FD49: B | FE49: 1 | FF49: 2 | FG49: 0 | FH49: B | FI49: 1 | FJ49: 1 | FK49: 0 | FL49: X | FM49: 2 | FN49: 1 | FO49: 7 | FP49: A | FQ49: 2 | FR49: 0 | FS49: 5 | FT49: A | FU49: 2 | FV49: 1 | FW49: 7 | FX49: A | FY49: 1 | FZ49: 3 | GA49: 0 | GB49: B | GC49: 1 | GD49: 1 | GE49: 0 | GF49: X | GG49: 0 | GH49: 1 | GI49: 0 | GJ49: B | GK49: 1 | GL49: 0 | GM49: 7 | GN49: A | GO49: 2 | GP49: 1 | GQ49: 7 | GR49: A | GS49: 2 | GT49: 1 | GU49: 7 | GV49: A | GW49: 3 | GX49: 1 | GY49: 5 | GZ49: A | HB49: 39 | HC49: 29 | HD49: 16 | HE49: 84 | HG49: 46.42857143 | HH49: 34.52380952 | HI49: 19.04761905 | HO49: =_xlfn.LET(_xlpm.Start,COLUMN($I$1),_xlpm.Ende,COLUMN($GY$1),_xlpm.Anzahl,INT((_xlpm.Ende-_xlpm.Start)/4)+1,_xlpm.Spalten,_xlpm.Start+4*_xlfn.SEQUENCE(1,_xlpm.Anzahl,0,1),_xlpm.Namen1,INDEX($4:$4,1,_xlpm.Spalten)&" "&INDEX($5:$5,1,_xlpm.Spalten),_xlpm.Punkte1,INDEX(49:49,1,_xlpm.Spalten+2),_xlpm.Namen2,INDEX($85:$85,1,_xlpm.Spalten)&" "&INDEX($86:$86,1,_xlpm.Spalten),_xlpm.Punkte2,INDEX(130:130,1,_xlpm.Spalten+2),_xlfn.TEXTJOIN(", ",TRUE,_xlfn._xlws.FILTER(_xlfn.HSTACK(_xlpm.Namen1,_xlpm.Namen2),_xlfn.HSTACK(_xlpm.Punkte1,_xlpm.Punkte2)=10,""))) -> Nicolas Brunner, Lynn Rüegg | HQ49: =_xlfn.LET(_xlpm.Start,COLUMN($I$1),_xlpm.Ende,COLUMN($GY$1),_xlpm.Anzahl,INT((_xlpm.Ende-_xlpm.Start)/4)+1,_xlpm.Spalten,_xlpm.Start+4*_xlfn.SEQUENCE(1,_xlpm.Anzahl,0,1),_xlpm.Namen1,INDEX($4:$4,1,_xlpm.Spalten)&" "&INDEX($5:$5,1,_xlpm.Spalten),_xlpm.Punkte1,INDEX(49:49,1,_xlpm.Spalten+2),_xlpm.Namen2,INDEX($85:$85,1,_xlpm.Spalten)&" "&INDEX($86:$86,1,_xlpm.Spalten),_xlpm.Punkte2,INDEX(130:130,1,_xlpm.Spalten+2),_xlfn.TEXTJOIN(", ",TRUE,_xlfn._xlws.FILTER(_xlfn.HSTACK(_xlpm.Namen1,_xlpm.Namen2),_xlfn.HSTACK(_xlpm.Punkte1,_xlpm.Punkte2)=7,""))) -> Ambra Antonelli, Pongsapat Nott Boonaek, Michael Bosshart, Philip Brunner, Oli Christiansen, Niva D'Acunto, Vinci D'Acunto, Dino Duvnjak, Djuma Duvnjak, Andreia Gomes, Deliz González, Sarina Gygli, Florian Haab, Andreas Isenschmid, Tanja Kistler, André Lanz, Franz Lischer, Michael Prucha, Petra Rauscher, Martin Rohner, Ivo und Brigitte Rüdemann, Sabine Rüegg, Aleandro Silvestri, Armando Thormann, Jingwen Wang, Stefan Wullschleger, Stefan Zachmann
A50: Mo. 22. Jun. | B50: 23:00:00 | C50: 42 | D50: Frankreich | E50: Irak | F50: 3 | G50: 0 | I50: 2 | J50: 1 | K50: 5 | L50: A | M50: 2 | N50: 0 | O50: 5 | P50: A | Q50: 3 | R50: 0 | S50: 10 | T50: A | U50: 3 | V50: 1 | W50: 5 | X50: A | Y50: 3 | Z50: 0 | AA50: 10 | AB50: A | AC50: 4 | AD50: 0 | AE50: 5 | AF50: A | AG50: 2 | AH50: 0 | AI50: 5 | AJ50: A | AK50: 3 | AL50: 1 | AM50: 5 | AN50: A | AO50: 2 | AP50: 0 | AQ50: 5 | AR50: A | AS50: 3 | AT50: 0 | AU50: 10 | AV50: A | AW50: 4 | AX50: 0 | AY50: 5 | AZ50: A | BA50: 4 | BB50: 0 | BC50: 5 | BD50: A | BE50: 3 | BF50: 0 | BG50: 10 | BH50: A | BI50: 3 | BJ50: 0 | BK50: 10 | BL50: A | BM50: 2 | BN50: 0 | BO50: 5 | BP50: A | BQ50: 5 | BR50: 0 | BS50: 5 | BT50: A | BU50: 3 | BV50: 0 | BW50: 10 | BX50: A | BY50: 2 | BZ50: 0 | CA50: 5 | CB50: A | CC50: 2 | CD50: 0 | CE50: 5 | CF50: A | CG50: 2 | CH50: 0 | CI50: 5 | CJ50: A | CK50: 3 | CL50: 0 | CM50: 10 | CN50: A | CO50: 3 | CP50: 1 | CQ50: 5 | CR50: A | CS50: 3 | CT50: 1 | CU50: 5 | CV50: A | CW50: 3 | CX50: 1 | CY50: 5 | CZ50: A | DA50: 3 | DB50: 0 | DC50: 10 | DD50: A | DE50: 3 | DF50: 0 | DG50: 10 | DH50: A | DI50: 4 | DJ50: 0 | DK50: 5 | DL50: A | DM50: 2 | DN50: 0 | DO50: 5 | DP50: A | DQ50: 2 | DR50: 0 | DS50: 5 | DT50: A | DU50: 2 | DV50: 0 | DW50: 5 | DX50: A | DY50: 3 | DZ50: 0 | EA50: 10 | EB50: A | EC50: 1 | ED50: 0 | EE50: 5 | EF50: A | EG50: 4 | EH50: 0 | EI50: 5 | EJ50: A | EK50: 3 | EL50: 0 | EM50: 10 | EN50: A | EO50: 3 | EP50: 1 | EQ50: 5 | ER50: A | ES50: 3 | ET50: 0 | EU50: 10 | EV50: A | EW50: 3 | EX50: 1 | EY50: 5 | EZ50: A | FA50: 3 | FB50: 2 | FC50: 5 | FD50: A | FE50: 3 | FF50: 0 | FG50: 10 | FH50: A | FI50: 4 | FJ50: 0 | FK50: 5 | FL50: A | FM50: 3 | FN50: 0 | FO50: 10 | FP50: A | FQ50: 3 | FR50: 0 | FS50: 10 | FT50: A | FU50: 3 | FV50: 0 | FW50: 10 | FX50: A | FY50: 3 | FZ50: 1 | GA50: 5 | GB50: A | GC50: 2 | GD50: 0 | GE50: 5 | GF50: A | GG50: 1 | GH50: 0 | GI50: 5 | GJ50: A | GK50: 2 | GL50: 1 | GM50: 5 | GN50: A | GO50: 3 | GP50: 0 | GQ50: 10 | GR50: A | GS50: 3 | GT50: 0 | GU50: 10 | GV50: A | GW50: 4 | GX50: 0 | GY50: 5 | GZ50: A | HB50: 84 | HC50: 0 | HD50: 0 | HE50: 84 | HG50: 100 | HH50: 0 | HI50: 0 | HO50: =_xlfn.LET(_xlpm.Start,COLUMN($I$1),_xlpm.Ende,COLUMN($GY$1),_xlpm.Anzahl,INT((_xlpm.Ende-_xlpm.Start)/4)+1,_xlpm.Spalten,_xlpm.Start+4*_xlfn.SEQUENCE(1,_xlpm.Anzahl,0,1),_xlpm.Namen1,INDEX($4:$4,1,_xlpm.Spalten)&" "&INDEX($5:$5,1,_xlpm.Spalten),_xlpm.Punkte1,INDEX(50:50,1,_xlpm.Spalten+2),_xlpm.Namen2,INDEX($85:$85,1,_xlpm.Spalten)&" "&INDEX($86:$86,1,_xlpm.Spalten),_xlpm.Punkte2,INDEX(131:131,1,_xlpm.Spalten+2),_xlfn.TEXTJOIN(", ",TRUE,_xlfn._xlws.FILTER(_xlfn.HSTACK(_xlpm.Namen1,_xlpm.Namen2),_xlfn.HSTACK(_xlpm.Punkte1,_xlpm.Punkte2)=10,""))) -> Ambra Antonelli, Ruben Antonelli, Roger Bartholet, Michael Bosshart, Manfred Brunner, Philip Brunner, Leo Rodrigues da Costa, Rafael Derungs, Goran Djukic, Rui Gomes, Laurent Grosse, Robin Gygli, Stefan Gygli, Florian Haab, Agnes Isenschmid, Andreas Isenschmid, André Lanz, Franz Lischer, Nicolas Mack, Petra Rauscher, Martin Rohner, Martin Schawalder, Yannick Schilliger, Erich Schommarz, Aleandro Silvestri, Markus Wagner, Marc Walthard, Jingwen Wang | HQ50: =_xlfn.LET(_xlpm.Start,COLUMN($I$1),_xlpm.Ende,COLUMN($GY$1),_xlpm.Anzahl,INT((_xlpm.Ende-_xlpm.Start)/4)+1,_xlpm.Spalten,_xlpm.Start+4*_xlfn.SEQUENCE(1,_xlpm.Anzahl,0,1),_xlpm.Namen1,INDEX($4:$4,1,_xlpm.Spalten)&" "&INDEX($5:$5,1,_xlpm.Spalten),_xlpm.Punkte1,INDEX(50:50,1,_xlpm.Spalten+2),_xlpm.Namen2,INDEX($85:$85,1,_xlpm.Spalten)&" "&INDEX($86:$86,1,_xlpm.Spalten),_xlpm.Punkte2,INDEX(131:131,1,_xlpm.Spalten+2),_xlfn.TEXTJOIN(", ",TRUE,_xlfn._xlws.FILTER(_xlfn.HSTACK(_xlpm.Namen1,_xlpm.Namen2),_xlfn.HSTACK(_xlpm.Punkte1,_xlpm.Punkte2)=7,""))) -> Elias Marty, Ralph Schuster
A51: Mo. 22. Jun. | B51: 19:00:00 | C51: 43 | D51: Argentinien | E51: Österreich | F51: 2 | G51: 0 | I51: 2 | J51: 1 | K51: 5 | L51: A | M51: 3 | N51: 1 | O51: 7 | P51: A | Q51: 3 | R51: 1 | S51: 7 | T51: A | U51: 2 | V51: 1 | W51: 5 | X51: A | Y51: 0 | Z51: 1 | AA51: 0 | AB51: B | AC51: 3 | AD51: 1 | AE51: 7 | AF51: A | AG51: 2 | AH51: 0 | AI51: 10 | AJ51: A | AK51: 4 | AL51: 2 | AM51: 7 | AN51: A | AO51: 2 | AP51: 0 | AQ51: 10 | AR51: A | AS51: 2 | AT51: 0 | AU51: 10 | AV51: A | AW51: 2 | AX51: 1 | AY51: 5 | AZ51: A | BA51: 2 | BB51: 0 | BC51: 10 | BD51: A | BE51: 2 | BF51: 1 | BG51: 5 | BH51: A | BI51: 1 | BJ51: 1 | BK51: 0 | BL51: X | BM51: 3 | BN51: 1 | BO51: 7 | BP51: A | BQ51: 3 | BR51: 1 | BS51: 7 | BT51: A | BU51: 1 | BV51: 1 | BW51: 0 | BX51: X | BY51: 1 | BZ51: 0 | CA51: 5 | CB51: A | CC51: 2 | CD51: 1 | CE51: 5 | CF51: A | CG51: 3 | CH51: 1 | CI51: 7 | CJ51: A | CK51: 3 | CL51: 1 | CM51: 7 | CN51: A | CO51: 2 | CP51: 0 | CQ51: 10 | CR51: A | CS51: 3 | CT51: 2 | CU51: 5 | CV51: A | CW51: 3 | CX51: 1 | CY51: 7 | CZ51: A | DA51: 2 | DB51: 1 | DC51: 5 | DD51: A | DE51: 2 | DF51: 0 | DG51: 10 | DH51: A | DI51: 2 | DJ51: 1 | DK51: 5 | DL51: A | DM51: 2 | DN51: 1 | DO51: 5 | DP51: A | DQ51: 2 | DR51: 1 | DS51: 5 | DT51: A | DU51: 1 | DV51: 0 | DW51: 5 | DX51: A | DY51: 1 | DZ51: 1 | EA51: 0 | EB51: X | EC51: 1 | ED51: 1 | EE51: 0 | EF51: X | EG51: 1 | EH51: 0 | EI51: 5 | EJ51: A | EK51: 2 | EL51: 0 | EM51: 10 | EN51: A | EO51: 2 | EP51: 1 | EQ51: 5 | ER51: A | ES51: 2 | ET51: 1 | EU51: 5 | EV51: A | EW51: 1 | EX51: 0 | EY51: 5 | EZ51: A | FA51: 4 | FB51: 2 | FC51: 7 | FD51: A | FE51: 1 | FF51: 1 | FG51: 0 | FH51: X | FI51: 2 | FJ51: 1 | FK51: 5 | FL51: A | FM51: 3 | FN51: 1 | FO51: 7 | FP51: A | FQ51: 2 | FR51: 2 | FS51: 0 | FT51: X | FU51: 2 | FV51: 1 | FW51: 5 | FX51: A | FY51: 3 | FZ51: 1 | GA51: 7 | GB51: A | GC51: 1 | GD51: 0 | GE51: 5 | GF51: A | GG51: 1 | GH51: 0 | GI51: 5 | GJ51: A | GK51: 2 | GL51: 0 | GM51: 10 | GN51: A | GO51: 3 | GP51: 0 | GQ51: 5 | GR51: A | GS51: 2 | GT51: 0 | GU51: 10 | GV51: A | GW51: 3 | GX51: 1 | GY51: 7 | GZ51: A | HB51: 72 | HC51: 10 | HD51: 2 | HE51: 84 | HG51: 85.71428571 | HH51: 11.9047619 | HI51: 2.380952381 | HO51: =_xlfn.LET(_xlpm.Start,COLUMN($I$1),_xlpm.Ende,COLUMN($GY$1),_xlpm.Anzahl,INT((_xlpm.Ende-_xlpm.Start)/4)+1,_xlpm.Spalten,_xlpm.Start+4*_xlfn.SEQUENCE(1,_xlpm.Anzahl,0,1),_xlpm.Namen1,INDEX($4:$4,1,_xlpm.Spalten)&" "&INDEX($5:$5,1,_xlpm.Spalten),_xlpm.Punkte1,INDEX(51:51,1,_xlpm.Spalten+2),_xlpm.Namen2,INDEX($85:$85,1,_xlpm.Spalten)&" "&INDEX($86:$86,1,_xlpm.Spalten),_xlpm.Punkte2,INDEX(132:132,1,_xlpm.Spalten+2),_xlfn.TEXTJOIN(", ",TRUE,_xlfn._xlws.FILTER(_xlfn.HSTACK(_xlpm.Namen1,_xlpm.Namen2),_xlfn.HSTACK(_xlpm.Punkte1,_xlpm.Punkte2)=10,""))) -> André Bartholet, Philippe Bartholet, Roger Bartholet, Pongsapat Nott Boonaek, Lisa D'Acunto, Goran Djukic, Laurent Grosse, Tanja Kistler, Franz Lischer, Nicolas Mack, Elias Marty, Julian Merkli, Martin Rohner, Ivo und Brigitte Rüdemann, Martin Schawalder, Markus Wagner | HQ51: =_xlfn.LET(_xlpm.Start,COLUMN($I$1),_xlpm.Ende,COLUMN($GY$1),_xlpm.Anzahl,INT((_xlpm.Ende-_xlpm.Start)/4)+1,_xlpm.Spalten,_xlpm.Start+4*_xlfn.SEQUENCE(1,_xlpm.Anzahl,0,1),_xlpm.Namen1,INDEX($4:$4,1,_xlpm.Spalten)&" "&INDEX($5:$5,1,_xlpm.Spalten),_xlpm.Punkte1,INDEX(51:51,1,_xlpm.Spalten+2),_xlpm.Namen2,INDEX($85:$85,1,_xlpm.Spalten)&" "&INDEX($86:$86,1,_xlpm.Spalten),_xlpm.Punkte2,INDEX(132:132,1,_xlpm.Spalten+2),_xlfn.TEXTJOIN(", ",TRUE,_xlfn._xlws.FILTER(_xlfn.HSTACK(_xlpm.Namen1,_xlpm.Namen2),_xlfn.HSTACK(_xlpm.Punkte1,_xlpm.Punkte2)=7,""))) -> Yiannis Agorastos, Ambra Antonelli, Peter Balazs, Aya Bartholet, Manuel Brunner, Nicolas Brunner, Javier Cruz, Leo Rodrigues da Costa, Vinci D'Acunto, Selina Gygli, Florian Haab, Michael Isenschmid, Marc Lütolf, Philipp Meyer, Telmo Oliveira, Petra Rauscher, Evelyne Schenk
